Workbook

Sheet Visor
A1: Programas de Apoyo a la Generación de Nuevo Empleo y al Empleo Joven
A2: Reporte por sector económico - consolidado nóminas de julio 2021 a junio 2022
A4: Seleccione el sector económico | D4: Industrias manufactureras | N4: =IFERROR(VLOOKUP(D4,Hoja4!$C$2:$D$23,2,FALSE),"") -> C
B7: Sección | D7: Jovenes | F7: Mujeres > 28 años | H7: Hombres > 28 años | J7: Total Empleados o Recursos | M7: % | Q7: Empleadores beneficiados
A9: Nuevos empleos | B9: General | D9: =SUMIFS(insumos2!$T$2:$T$400000,insumos2!$J$2:$J$400000,"Aprobado con subsidio") -> 425760 | F9: =SUMIFS(insumos2!$U$2:$U$400000,insumos2!$J$2:$J$400000,"Aprobado con subsidio") -> 75794 | H9: =SUMIFS(insumos2!$V$2:$V$400000,insumos2!$J$2:$J$400000,"Aprobado con subsidio") -> 63793 | J9: =Hoja4!K24 -> 565347 | M9: =J9/$J$9 -> 1 | Q9: =B9 -> General | S9: =Hoja4!I24 -> 23440
B10: ="Sección "&N4 -> Sección C | D10: =SUMIFS(insumos2!$BC$2:$BC$400000,insumos2!$AS$2:$AS$400000,"Aprobado con subsidio") -> 42347 | F10: =SUMIFS(insumos2!$BD$2:$BD$400000,insumos2!$AS$2:$AS$400000,"Aprobado con subsidio") -> 7828 | H10: =SUMIFS(insumos2!$BE$2:$BE$400000,insumos2!$AS$2:$AS$400000,"Aprobado con subsidio") -> 5866 | J10: =VLOOKUP(N4,Hoja4!$H$1:$M$24,4,FALSE) -> 56041 | M10: =J10/$J$9 -> 0.09912673102 | Q10: =B10 -> Sección C | S10: =VLOOKUP(N4,Hoja4!$H$1:$M$24,2,FALSE) -> 3562
A11: Millones en subsidios | B11: =B9 -> General | D11: =SUM(insumos1!$L$2:$L$150000)/1000000 -> 308657.2038 | F11: =SUM(insumos1!$N$2:$N$300000)/1000000 -> 35381.01211 | H11: =SUM(insumos1!$M$2:$M$300000)/1000000 -> 17413.18675 | J11: =Hoja4!M24/1000000 -> 361451.4027 | M11: =J11/$J$11 -> 1
B12: =B10 -> Sección C | D12: =SUMIFS(insumos1!$L$2:$L$300000,insumos1!$H$2:$H$300000,Visor!$N$4)/1000000 -> 31165.49642 | F12: =SUMIFS(insumos1!$N$2:$N$300000,insumos1!$H$2:$H$300000,Visor!$N$4)/1000000 -> 3131.733072 | H12: =SUMIFS(insumos1!$M$2:$M$300000,insumos1!$H$2:$H$300000,Visor!$N$4)/1000000 -> 1513.285392 | J12: =VLOOKUP(N4,Hoja4!$H$1:$M$24,6,FALSE)/1000000 -> 35810.51489 | M12: =J12/$J$11 -> 0.09907421751 | P12: Tipo de documento del empleado
R13: Nacional | T13: Extranjero
P14: =B9 -> General | R14: =SUMIFS(insumos2!$W$2:$W$500000,insumos2!$J$2:$J$500000,"Aprobado con subsidio") -> 557187 | T14: =SUMIFS(insumos2!$X$2:$X$500000,insumos2!$J$2:$J$500000,"Aprobado con subsidio") -> 8160
P16: =B12 -> Sección C | R16: =SUMIFS(insumos2!$W$2:$W$500000,insumos2!$J$2:$J$500000,"Aprobado con subsidio",insumos2!$N$2:$N$500000,Visor!$N$4) -> 54761 | T16: =SUMIFS(insumos2!$X$2:$X$500000,insumos2!$J$2:$J$500000,"Aprobado con subsidio",insumos2!$N$2:$N$500000,Visor!$N$4) -> 1280
P18: * Los tipos de indentificación tomados par los extranjeros corresponden a CE, PE y PT
B30: Empleadores | E30: Natural | H30: Jurídica | L30: Recurso en millones | O30: Natural | R30: Jurídica
B31: ="Total sección "&N4 -> Total sección C | E31: =COUNTIFS(insumos2!$AS$1:$AS$399999,"Aprobado con subsidio",insumos2!$AP$1:$AP$399999,"Natural") -> 302 | H31: =COUNTIFS(insumos2!$AS$1:$AS$399999,"Aprobado con subsidio",insumos2!$AP$1:$AP$399999,"Jurídica") -> 3260 | L31: ="Total sección "&N4 -> Total sección C | O31: =SUMIFS(insumos1!$K$2:$K$372158,insumos1!$H$2:$H$372158,Visor!N4,insumos1!$I$2:$I$372158,"Natural")/1000000 -> 536.268469 | R31: =SUMIFS(insumos1!$K$2:$K$372158,insumos1!$H$2:$H$372158,Visor!N4,insumos1!$I$2:$I$372158,"Jurídica")/1000000 -> 35274.24642
B32: ="% sección "&N4 -> % sección C | E32: =E31/(E31+H31) -> 0.08478382931 | H32: =H31/(E31+H31) -> 0.9152161707 | L32: ="% sección "&N4 -> % sección C | O32: =O31/(O31+R31) -> 0.01497516779 | R32: =R31/(O31+R31) -> 0.9850248322
B33: ="% general" -> % general | E33: 0.1646 | H33: 0.8354 | L33: ="% general" -> % general | O33: 0.0563 | R33: 0.9437
C36: Tamaño | E36: Empleadores | H36: % | J36: Empleados | N36: % | P36: Recursos en millones
C37: Micro | E37: =COUNTIFS(insumos2!$AS$2:$AS$399999,"Aprobado con subsidio",insumos2!$AT$2:$AT$399999,"MICRO") -> 1439 | H37: =E37/$E$42 -> 0.4039865244 | J37: =SUMIFS(insumos2!$AN$2:$AN$399999,insumos2!$AS$2:$AS$399999,"Aprobado con subsidio",insumos2!$AT$2:$AT$399999,"MICRO") -> 5791 | N37: =J37/$J$42 -> 0.1033350583 | P37: =SUMIFS(insumos1!$K$2:$K$372158,insumos1!$H$2:$H$372158,Visor!N4,insumos1!$J$2:$J$372158,"MICRO")/1000000 -> 2776.641209
C38: Pequeña | E38: =COUNTIFS(insumos2!$AS$2:$AS$399999,"Aprobado con subsidio",insumos2!$AT$2:$AT$399999,"PEQUEÑA") -> 1349 | H38: 0.3787198203 | J38: =SUMIFS(insumos2!$AN$2:$AN$399999,insumos2!$AS$2:$AS$399999,"Aprobado con subsidio",insumos2!$AT$2:$AT$399999,"PEQUEÑA") -> 11307 | N38: 0.201762995 | P38: =SUMIFS(insumos1!$K$2:$K$372158,insumos1!$H$2:$H$372158,Visor!N4,insumos1!$J$2:$J$372158,"PEQUEÑA")/1000000 -> 5983.357161
C39: Mediana | E39: =COUNTIFS(insumos2!$AS$2:$AS$399999,"Aprobado con subsidio",insumos2!$AT$2:$AT$399999,"MEDIANA") -> 523 | H39: 0.1468276249 | J39: =SUMIFS(insumos2!$AN$2:$AN$399999,insumos2!$AS$2:$AS$399999,"Aprobado con subsidio",insumos2!$AT$2:$AT$399999,"MEDIANA") -> 11573 | N39: 0.2065095198 | P39: =SUMIFS(insumos1!$K$2:$K$372158,insumos1!$H$2:$H$372158,Visor!N4,insumos1!$J$2:$J$372158,"MEDIANA")/1000000 -> 6821.229732
C40: Grande | E40: =COUNTIFS(insumos2!$AS$2:$AS$399999,"Aprobado con subsidio",insumos2!$AT$2:$AT$399999,"GRANDE") -> 161 | H40: 0.04519932622 | J40: =SUMIFS(insumos2!$AN$2:$AN$399999,insumos2!$AS$2:$AS$399999,"Aprobado con subsidio",insumos2!$AT$2:$AT$399999,"GRANDE") -> 9476 | N40: 0.1690904873 | P40: =SUMIFS(insumos1!$K$2:$K$372158,insumos1!$H$2:$H$372158,Visor!N4,insumos1!$J$2:$J$372158,"GRANDE")/1000000 -> 6553.244917
C41: Muy grande | E41: =COUNTIFS(insumos2!$AS$2:$AS$399999,"Aprobado con subsidio",insumos2!$AT$2:$AT$399999,"MUY GRANDE") -> 90 | H41: 0.0252667041 | J41: =SUMIFS(insumos2!$AN$2:$AN$399999,insumos2!$AS$2:$AS$399999,"Aprobado con subsidio",insumos2!$AT$2:$AT$399999,"MUY GRANDE") -> 17894 | N41: 0.3193019397 | P41: =SUMIFS(insumos1!$K$2:$K$372158,insumos1!$H$2:$H$372158,Visor!N4,insumos1!$J$2:$J$372158,"MUY GRANDE")/1000000 -> 13676.04187
C42: Total | E42: =COUNTIFS(insumos2!$AS$2:$AS$399999,"Aprobado con subsidio") -> 3562 | H42: 1 | J42: =SUMIFS(insumos2!$AN$2:$AN$399999,insumos2!$AS$2:$AS$399999,"Aprobado con subsidio") -> 56041 | N42: 1 | P42: =P41+P40+P39+P37+P38 -> 35810.51489
B44: Tamaño | C44: ="Sección "&N4 -> Sección C | D44: general | E44: ="Sección "&N4 -> Sección C | F44: general
B45: Micro | C45: =H37 -> 0.4039865244 | D45: 0.6376801371 | E45: =N37 -> 0.1033350583 | F45: 0.104427293
B46: Pequeña | C46: =H38 -> 0.3787198203 | D46: 0.2743797922 | E46: =N38 -> 0.201762995 | F46: 0.1894298344
B47: Mediana | C47: =H39 -> 0.1468276249 | D47: 0.06616490439 | E47: =N39 -> 0.2065095198 | F47: 0.1934365931
B48: Grande | C48: =H40 -> 0.04519932622 | D48: 0.01371264116 | E48: =N40 -> 0.1690904873 | F48: 0.1301781558
B49: Muy Grande | C49: =H41 -> 0.0252667041 | D49: 0.008062525129 | E49: =N41 -> 0.3193019397 | F49: 0.3835281237
G60: Actividad económica | J60: =D4 -> Industrias manufactureras | U60: =N4 -> C
A65: Distribución Departamental | K65: Distribución en los principales municipios del País
A66: Departamento | D66: Empleadores | F66: % | G66: Empleados | I66: % | K66: Departamento | M66: Municipio | P66: Empleadores | R66: % | S66: Empleados | U66: %
A67: =IFERROR(insumos2!BP2,"") -> Bogotá | D67: =insumos2!BQ2 -> 1049 | F67: =IFERROR(D67/$D$95,"") -> 0.2944974733 | G67: =insumos2!BR2 -> 16171 | I67: =G67/$G$95 -> 0.2885565925 | K67: =IFERROR(insumos2!BY2,"") -> Bogotá | M67: =IFERROR(insumos2!BZ2,"") -> Bogotá, d.c. | P67: =IF(K67<>"",insumos2!CA2,"") -> 1049 | R67: =IFERROR(P67/$P$95,"") -> 0.2944974733 | S67: =IF(K67<>"",insumos2!CB2,"") -> 16171 | U67: =IFERROR(S67/$S$95,"") -> 0.2885565925
A68: =IFERROR(insumos2!BP3,"") -> Antioquia | D68: =insumos2!BQ3 -> 1004 | F68: =IFERROR(D68/$D$95,"") -> 0.2818641213 | G68: =insumos2!BR3 -> 17886 | I68: 0.319159187 | K68: =IFERROR(insumos2!BY3,"") -> Antioquia | M68: =IFERROR(insumos2!BZ3,"") -> Medellín | P68: =IF(K68<>"",insumos2!CA3,"") -> 497 | R68: =IFERROR(P68/$P$95,"") -> 0.1395283549 | S68: =IF(K68<>"",insumos2!CB3,"") -> 9039 | U68: =IFERROR(S68/$S$95,"") -> 0.161292625
A69: =IFERROR(insumos2!BP4,"") -> Valle del cauca | D69: =insumos2!BQ4 -> 358 | F69: 0.1005053341 | G69: =insumos2!BR4 -> 6772 | I69: 0.1208400992 | K69: =IFERROR(insumos2!BY4,"") -> Valle del cauca | M69: =IFERROR(insumos2!BZ4,"") -> Cali | P69: =IF(K69<>"",insumos2!CA4,"") -> 225 | R69: 0.06316676025 | S69: =IF(K69<>"",insumos2!CB4,"") -> 2911 | U69: 0.05194411235
A70: =IFERROR(insumos2!BP5,"") -> Cundinamarca | D70: =insumos2!BQ5 -> 229 | F70: 0.06428972487 | G70: =insumos2!BR5 -> 2897 | I70: 0.05169429525 | K70: =IFERROR(insumos2!BY5,"") -> Antioquia | M70: =IFERROR(insumos2!BZ5,"") -> Itagüí | P70: =IF(K70<>"",insumos2!CA5,"") -> 130 | R70: 0.03649635036 | S70: =IF(K70<>"",insumos2!CB5,"") -> 1809 | U70: 0.0322799379
A71: =IFERROR(insumos2!BP6,"") -> Santander | D71: =insumos2!BQ6 -> 207 | F71: 0.05811341943 | G71: =insumos2!BR6 -> 1884 | I71: 0.03361824379 | K71: =IFERROR(insumos2!BY6,"") -> Santander | M71: =IFERROR(insumos2!BZ6,"") -> Bucaramanga | P71: =IF(K71<>"",insumos2!CA6,"") -> 126 | R71: 0.03537338574 | S71: =IF(K71<>"",insumos2!CB6,"") -> 1282 | U71: 0.02287610856
A72: =IFERROR(insumos2!BP7,"") -> Atlántico | D72: =insumos2!BQ7 -> 122 | F72: 0.03425042111 | G72: =insumos2!BR7 -> 2607 | I72: 0.0465195125 | K72: =IFERROR(insumos2!BY7,"") -> Atlántico | M72: =IFERROR(insumos2!BZ7,"") -> Barranquilla | P72: =IF(K72<>"",insumos2!CA7,"") -> 101 | R72: 0.02835485682 | S72: =IF(K72<>"",insumos2!CB7,"") -> 2068 | U72: 0.03690155422
A73: =IFERROR(insumos2!BP8,"") -> Risaralda | D73: =insumos2!BQ8 -> 101 | F73: 0.02835485682 | G73: =insumos2!BR8 -> 1886 | I73: 0.03365393194 | K73: =IFERROR(insumos2!BY8,"") -> Norte de stder | M73: =IFERROR(insumos2!BZ8,"") -> Cucuta | P73: =IF(K73<>"",insumos2!CA8,"") -> 71 | R73: 0.01993262212 | S73: =IF(K73<>"",insumos2!CB8,"") -> 638 | U73: 0.01138452205
A74: =IFERROR(insumos2!BP9,"") -> Norte de stder | D74: =insumos2!BQ9 -> 89 | F74: 0.02498596294 | G74: =insumos2!BR9 -> 798 | I74: 0.0142395746 | K74: =IFERROR(insumos2!BY9,"") -> Caldas | M74: =IFERROR(insumos2!BZ9,"") -> Manizales | P74: =IF(K74<>"",insumos2!CA9,"") -> 58 | R74: 0.01628298709 | S74: =IF(K74<>"",insumos2!CB9,"") -> 631 | U74: 0.0112596135
A75: =IFERROR(insumos2!BP10,"") -> Caldas | D75: =insumos2!BQ10 -> 67 | F75: 0.0188096575 | G75: =insumos2!BR10 -> 703 | I75: 0.01254438715 | K75: =IFERROR(insumos2!BY10,"") -> Antioquia | M75: =IFERROR(insumos2!BZ10,"") -> La estrella | P75: =IF(K75<>"",insumos2!CA10,"") -> 57 | R75: 0.01600224593 | S75: =IF(K75<>"",insumos2!CB10,"") -> 706 | U75: 0.01259791938
A76: =IFERROR(insumos2!BP11,"") -> Tolima | D76: =insumos2!BQ11 -> 49 | F76: 0.01375631668 | G76: =insumos2!BR11 -> 516 | I76: 0.009207544476 | K76: =IFERROR(insumos2!BY11,"") -> Valle del cauca | M76: =IFERROR(insumos2!BZ11,"") -> Yumbo | P76: =IF(K76<>"",insumos2!CA11,"") -> 50 | R76: 0.01403705783 | S76: =IF(K76<>"",insumos2!CB11,"") -> 2429 | U76: 0.04334326654
A77: =IFERROR(insumos2!BP12,"") -> Boyacá | D77: =insumos2!BQ12 -> 36 | F77: 0.01010668164 | G77: =insumos2!BR12 -> 469 | I77: 0.00836887279 | K77: =IFERROR(insumos2!BY12,"") -> Risaralda | M77: =IFERROR(insumos2!BZ12,"") -> Pereira | P77: =IF(K77<>"",insumos2!CA12,"") -> 50 | R77: 0.01403705783 | S77: =IF(K77<>"",insumos2!CB12,"") -> 838 | U77: 0.01495333773
A78: =IFERROR(insumos2!BP13,"") -> Quindío | D78: =insumos2!BQ13 -> 36 | F78: 0.01010668164 | G78: =insumos2!BR13 -> 503 | I78: 0.008975571457 | K78: =IFERROR(insumos2!BY13,"") -> Antioquia | M78: =IFERROR(insumos2!BZ13,"") -> Sabaneta | P78: =IF(K78<>"",insumos2!CA13,"") -> 47 | R78: 0.01319483436 | S78: =IF(K78<>"",insumos2!CB13,"") -> 936 | U78: 0.01670205742
A79: =IFERROR(insumos2!BP14,"") -> Bolívar | D79: =insumos2!BQ14 -> 35 | F79: 0.009825940483 | G79: =insumos2!BR14 -> 903 | I79: 0.01611320283 | K79: =IFERROR(insumos2!BY14,"") -> Risaralda | M79: =IFERROR(insumos2!BZ14,"") -> Dosquebradas | P79: =IF(K79<>"",insumos2!CA14,"") -> 47 | R79: 0.01319483436 | S79: =IF(K79<>"",insumos2!CB14,"") -> 969 | U79: 0.01729091201
A80: =IFERROR(insumos2!BP15,"") -> Nariño | D80: =insumos2!BQ15 -> 28 | F80: 0.007860752386 | G80: =insumos2!BR15 -> 130 | I80: 0.002319730198 | K80: =IFERROR(insumos2!BY15,"") -> Cundinamarca | M80: =IFERROR(insumos2!BZ15,"") -> Cota | P80: =IF(K80<>"",insumos2!CA15,"") -> 46 | R80: 0.01291409321 | S80: =IF(K80<>"",insumos2!CB15,"") -> 366 | U80: 0.00653093271
A81: =IFERROR(insumos2!BP16,"") -> Meta | D81: =insumos2!BQ16 -> 27 | F81: 0.00758001123 | G81: =insumos2!BR16 -> 206 | I81: 0.003675880159 | K81: =IFERROR(insumos2!BY16,"") -> Antioquia | M81: =IFERROR(insumos2!BZ16,"") -> Envigado | P81: =IF(K81<>"",insumos2!CA16,"") -> 45 | R81: 0.01263335205 | S81: =IF(K81<>"",insumos2!CB16,"") -> 1026 | U81: 0.01830802448
A82: =IFERROR(insumos2!BP17,"") -> Huila | D82: =insumos2!BQ17 -> 24 | F82: 0.00673778776 | G82: =insumos2!BR17 -> 120 | I82: 0.002141289413 | K82: =IFERROR(insumos2!BY17,"") -> Tolima | M82: =IFERROR(insumos2!BZ17,"") -> Ibagué | P82: =IF(K82<>"",insumos2!CA17,"") -> 43 | R82: 0.01207186974 | S82: =IF(K82<>"",insumos2!CB17,"") -> 490 | U82: 0.008743598437
A83: =IFERROR(insumos2!BP18,"") -> Cauca | D83: =insumos2!BQ18 -> 20 | F83: 0.005614823133 | G83: =insumos2!BR18 -> 430 | I83: 0.00767295373 | K83: =IFERROR(insumos2!BY18,"") -> Antioquia | M83: =IFERROR(insumos2!BZ18,"") -> Rionegro | P83: =IF(K83<>"",insumos2!CA18,"") -> 38 | R83: 0.01066816395 | S83: =IF(K83<>"",insumos2!CB18,"") -> 1391 | U83: 0.02482111311
A84: =IFERROR(insumos2!BP19,"") -> Córdoba | D84: =insumos2!BQ19 -> 17 | F84: 0.004772599663 | G84: =insumos2!BR19 -> 489 | I84: 0.008725754358 | K84: =IFERROR(insumos2!BY19,"") -> Valle del cauca | M84: =IFERROR(insumos2!BZ19,"") -> Palmira | P84: =IF(K84<>"",insumos2!CA19,"") -> 36 | R84: 0.01010668164 | S84: =IF(K84<>"",insumos2!CB19,"") -> 560 | U84: 0.009992683928
A85: =IFERROR(insumos2!BP20,"") -> Magdalena | D85: =insumos2!BQ20 -> 14 | F85: 0.003930376193 | G85: =insumos2!BR20 -> 52 | I85: 0.000927892079 | K85: =IFERROR(insumos2!BY20,"") -> Bolívar | M85: =IFERROR(insumos2!BZ20,"") -> Cartagena de ind | P85: =IF(K85<>"",insumos2!CA20,"") -> 33 | R85: 0.00926445817 | S85: =IF(K85<>"",insumos2!CB20,"") -> 580 | U85: 0.0103495655
A86: =IFERROR(insumos2!BP21,"") -> Sucre | D86: =insumos2!BQ21 -> 13 | F86: 0.003649635036 | G86: =insumos2!BR21 -> 50 | I86: 0.0008922039221 | K86: =IFERROR(insumos2!BY21,"") -> Cundinamarca | M86: =IFERROR(insumos2!BZ21,"") -> Soacha | P86: =IF(K86<>"",insumos2!CA21,"") -> 31 | R86: 0.008702975856 | S86: =IF(K86<>"",insumos2!CB21,"") -> 361 | U86: 0.006441712318
A87: =IFERROR(insumos2!BP22,"") -> Cesar | D87: =insumos2!BQ22 -> 12 | F87: 0.00336889388 | G87: =insumos2!BR22 -> 115 | I87: 0.002052069021 | K87: =IFERROR(insumos2!BY22,"") -> Antioquia | M87: =IFERROR(insumos2!BZ22,"") -> Bello | P87: =IF(K87<>"",insumos2!CA22,"") -> 30 | R87: 0.0084222347 | S87: =IF(K87<>"",insumos2!CB22,"") -> 240 | U87: 0.004282578826
A88: =IFERROR(insumos2!BP23,"") -> Casanare | D88: =insumos2!BQ23 -> 11 | F88: 0.003088152723 | G88: =insumos2!BR23 -> 154 | I88: 0.00274798808 | K88: =IFERROR(insumos2!BY23,"") -> Cundinamarca | M88: =IFERROR(insumos2!BZ23,"") -> Mosquera | P88: =IF(K88<>"",insumos2!CA23,"") -> 27 | R88: 0.00758001123 | S88: =IF(K88<>"",insumos2!CB23,"") -> 303 | U88: 0.005406755768
A89: =IFERROR(insumos2!BP24,"") -> Caquetá | D89: =insumos2!BQ24 -> 9 | F89: 0.00252667041 | G89: =insumos2!BR24 -> 48 | I89: 0.0008565157652 | K89: =IFERROR(insumos2!BY24,"") -> Santander | M89: =IFERROR(insumos2!BZ24,"") -> Girón | P89: =IF(K89<>"",insumos2!CA24,"") -> 26 | R89: 0.007299270073 | S89: =IF(K89<>"",insumos2!CB24,"") -> 368 | U89: 0.006566620867
A90: =IFERROR(insumos2!BP25,"") -> Putumayo | D90: =insumos2!BQ25 -> 3 | F90: 0.00084222347 | G90: =insumos2!BR25 -> 5 | I90: 8.922039221e-05 | K90: =IFERROR(insumos2!BY25,"") -> Cundinamarca | M90: =IFERROR(insumos2!BZ25,"") -> Funza | P90: =IF(K90<>"",insumos2!CA25,"") -> 26 | R90: 0.007299270073 | S90: =IF(K90<>"",insumos2!CB25,"") -> 283 | U90: 0.005049874199
A91: =IFERROR(insumos2!BP26,"") -> Arauca | D91: =insumos2!BQ26 -> 2 | F91: =D91/$D$95 -> 0.0005614823133 | G91: =insumos2!BR26 -> 247 | I91: 0.004407487375 | K91: =IFERROR(insumos2!BY26,"") -> Quindío | M91: =IFERROR(insumos2!BZ26,"") -> Armenia | P91: =IF(K91<>"",insumos2!CA26,"") -> 25 | R91: 0.007018528916 | S91: =IF(K91<>"",insumos2!CB26,"") -> 288 | U91: 0.005139094591
A92: =IFERROR(insumos2!BP27,"") -> Vaupés | D92: =insumos2!BQ27 -> 0 | F92: 0 | G92: =insumos2!BR27 -> 0 | I92: 0 | K92: =IFERROR(insumos2!BY27,"") -> Nariño | M92: =IFERROR(insumos2!BZ27,"") -> Pasto | P92: =IF(K92<>"",insumos2!CA27,"") -> 22 | R92: 0.006176305446 | S92: =IF(K92<>"",insumos2!CB27,"") -> 111 | U92: 0.001980692707
A93: =IFERROR(insumos2!BP28,"") -> La guajira | D93: =insumos2!BQ28 -> 0 | F93: 0 | G93: =insumos2!BR28 -> 0 | I93: 0 | K93: =IFERROR(insumos2!BY28,"") -> Huila | M93: =IFERROR(insumos2!BZ28,"") -> Neiva | P93: =IF(K93<>"",insumos2!CA28,"") -> 20 | R93: 0.005614823133 | S93: =IF(K93<>"",insumos2!CB28,"") -> 109 | U93: 0.00194500455
A94: =IFERROR(insumos2!BP29,"") -> Otros | D94: =insumos2!BQ29 -> 0 | F94: 0 | G94: =insumos2!BR29 -> 0 | I94: 0 | K94: =IF(K93="","",IFERROR(insumos2!BY29,"")) -> Otros | M94: =IF(M93="","",IFERROR(insumos2!BZ29,"")) -> Otros | P94: =IF(K94<>"",insumos2!CA29,"") -> 606 | R94: 0.1701291409 | S94: =IF(K94<>"",insumos2!CB29,"") -> 9138 | U94: 0.1630591888
A95: =insumos2!BP30 -> Total | D95: =insumos2!BQ30 -> 3562 | F95: =D95/$D$95 -> 1 | G95: =insumos2!BR30 -> 56041 | I95: 1 | K95: =insumos2!BY30 -> Total | P95: =insumos2!CA30 -> 3562 | R95: =P95/$P$95 -> 1 | S95: =insumos2!CB30 -> 56041 | U95: =S95/$S$95 -> 1
G126: Actividad económica | J126: =J60 -> Industrias manufactureras | U126: =U60 -> C
B130: Sexo | D130: ="Total empleadores sección "&N4 -> Total empleadores sección C | G130: %
B132: Hombres | D132: =VLOOKUP(N4,Hoja4!$H$2:$P$23,7,FALSE) -> 26548 | G132: =D132/$D$135 -> 0.4737245945
B133: Mujeres | D133: =VLOOKUP(N4,Hoja4!$H$2:$P$23,8,FALSE) -> 29399 | G133: =D133/$D$135 -> 0.5245980621
B134: No disponible | D134: =VLOOKUP(N4,Hoja4!$H$2:$P$23,9,FALSE) -> 94 | G134: =D134/$D$135 -> 0.001677343374
B135: Total | D135: =D134+D133+D132 -> 56041 | G135: =D135/$D$135 -> 1
B138: ="Para la Sección "&U126&" hay "&ROUND(VLOOKUP(U126,Hoja4!$H$2:$R$23,11,FALSE),0)&" mujeres por cada 100 hombres beneficiados del Programa." -> Para la Sección C hay 111 mujeres por cada 100 hombres beneficiados del Programa.
G203: Actividad económica | J203: =J126 -> Industrias manufactureras | U203: =U126 -> C
B213: ="Grupo o División de la sección "&U126 -> Grupo o División de la sección C | I213: Empleadores | M213: % | O213: Empleados | S213: %
B214: =IF(insumos2!CG2=0,"",insumos2!CG2) -> Elaboración de productos alimenticios | I214: =IF(insumos2!CG2=0,"",insumos2!CH2) -> 694 | M214: =IFERROR(I214/insumos2!$CE$28,"") -> 0.1948343627 | O214: =IF(insumos2!CI2=0,"",insumos2!CI2) -> 12733 | S214: =IFERROR(O214/insumos2!$CF$28,"") -> 0.2272086508
B215: =IF(insumos2!CG3=0,"",insumos2!CG3) -> Confección de prendas de vestir | I215: =IF(insumos2!CG3=0,"",insumos2!CH3) -> 670 | M215: =IFERROR(I215/insumos2!$CE$28,"") -> 0.188096575 | O215: =IF(insumos2!CI3=0,"",insumos2!CI3) -> 17216 | S215: =IFERROR(O215/insumos2!$CF$28,"") -> 0.3072036545
B216: =IF(insumos2!CG4=0,"",insumos2!CG4) -> Instalación, mantenimiento y reparación especializado de maquinaria y equipo | I216: =IF(insumos2!CG4=0,"",insumos2!CH4) -> 297 | M216: =IFERROR(I216/insumos2!$CE$28,"") -> 0.08338012353 | O216: =IF(insumos2!CI4=0,"",insumos2!CI4) -> 2840 | S216: =IFERROR(O216/insumos2!$CF$28,"") -> 0.05067718278
B217: =IF(insumos2!CG5=0,"",insumos2!CG5) -> Fabricación de productos elaborados de metal, excepto maquinaria y equipo | I217: =IF(insumos2!CG5=0,"",insumos2!CH5) -> 292 | M217: =IFERROR(I217/insumos2!$CE$28,"") -> 0.08197641774 | O217: =IF(insumos2!CI5=0,"",insumos2!CI5) -> 2782 | S217: =IFERROR(O217/insumos2!$CF$28,"") -> 0.04964222623
B218: =IF(insumos2!CG6=0,"",insumos2!CG6) -> Fabricación de productos de caucho y de plástico | I218: =IF(insumos2!CG6=0,"",insumos2!CH6) -> 194 | M218: =IFERROR(I218/insumos2!$CE$28,"") -> 0.05446378439 | O218: =IF(insumos2!CI6=0,"",insumos2!CI6) -> 2715 | S218: =IFERROR(O218/insumos2!$CF$28,"") -> 0.04844667297
B219: =IF(insumos2!CG7=0,"",insumos2!CG7) -> Fabricación de sustancias y productos químicos | I219: =IF(insumos2!CG7=0,"",insumos2!CH7) -> 160 | M219: =IFERROR(I219/insumos2!$CE$28,"") -> 0.04491858506 | O219: =IF(insumos2!CI7=0,"",insumos2!CI7) -> 1650 | S219: =IFERROR(O219/insumos2!$CF$28,"") -> 0.02944272943
B220: =IF(insumos2!CG8=0,"",insumos2!CG8) -> Fabricación de productos textiles | I220: =IF(insumos2!CG8=0,"",insumos2!CH8) -> 155 | M220: =IFERROR(I220/insumos2!$CE$28,"") -> 0.04351487928 | O220: =IF(insumos2!CI8=0,"",insumos2!CI8) -> 2671 | S220: =IFERROR(O220/insumos2!$CF$28,"") -> 0.04766153352
B221: =IF(insumos2!CG9=0,"",insumos2!CG9) -> Otras industrias manufactureras | I221: =IF(insumos2!CG9=0,"",insumos2!CH9) -> 123 | M221: =IFERROR(I221/insumos2!$CE$28,"") -> 0.03453116227 | O221: =IF(insumos2!CI9=0,"",insumos2!CI9) -> 1249 | S221: =IFERROR(O221/insumos2!$CF$28,"") -> 0.02228725397
B222: =IF(insumos2!CG10=0,"",insumos2!CG10) -> Fabricación de muebles, colchones y somieres | I222: =IF(insumos2!CG10=0,"",insumos2!CH10) -> 117 | M222: =IFERROR(I222/insumos2!$CE$28,"") -> 0.03284671533 | O222: =IF(insumos2!CI10=0,"",insumos2!CI10) -> 1098 | S222: =IFERROR(O222/insumos2!$CF$28,"") -> 0.01959279813
B223: =IF(insumos2!CG11=0,"",insumos2!CG11) -> Actividades de impresión y de producción de copias a partir de grabaciones originales | I223: =IF(insumos2!CG11=0,"",insumos2!CH11) -> 113 | M223: =IFERROR(I223/insumos2!$CE$28,"") -> 0.0317237507 | O223: =IF(insumos2!CI11=0,"",insumos2!CI11) -> 629 | S223: =IFERROR(O223/insumos2!$CF$28,"") -> 0.01122392534
B224: =IF(insumos2!CG12=0,"",insumos2!CG12) -> Curtido y recurtido de cueros; fabricación de calzado; fabricación de artículos de viaje, maletas, bolsos de mano y artículos similares, y fabricación de artículos de talabartería y guarnicionería; adobo y teñido de pieles | I224: =IF(insumos2!CG12=0,"",insumos2!CH12) -> 112 | M224: =IFERROR(I224/insumos2!$CE$28,"") -> 0.03144300955 | O224: =IF(insumos2!CI12=0,"",insumos2!CI12) -> 1693 | S224: =IFERROR(O224/insumos2!$CF$28,"") -> 0.0302100248
B225: =IF(insumos2!CG13=0,"",insumos2!CG13) -> Fabricación de maquinaria y equipo n.c.p. | I225: =IF(insumos2!CG13=0,"",insumos2!CH13) -> 94 | M225: =IFERROR(I225/insumos2!$CE$28,"") -> 0.02638966873 | O225: =IF(insumos2!CI13=0,"",insumos2!CI13) -> 1124 | S225: =IFERROR(O225/insumos2!$CF$28,"") -> 0.02005674417
B226: =IF(insumos2!CG14=0,"",insumos2!CG14) -> Fabricación de otros productos minerales no metálicos | I226: =IF(insumos2!CG14=0,"",insumos2!CH14) -> 89 | M226: =IFERROR(I226/insumos2!$CE$28,"") -> 0.02498596294 | O226: =IF(insumos2!CI14=0,"",insumos2!CI14) -> 1400 | S226: =IFERROR(O226/insumos2!$CF$28,"") -> 0.02498170982
B227: =IF(insumos2!CG15=0,"",insumos2!CG15) -> Transformación de la madera y fabricación de productos de madera y de corcho, excepto muebles; fabricación de artículos de cestería y espartería | I227: =IF(insumos2!CG15=0,"",insumos2!CH15) -> 85 | M227: =IFERROR(I227/insumos2!$CE$28,"") -> 0.02386299832 | O227: =IF(insumos2!CI15=0,"",insumos2!CI15) -> 634 | S227: =IFERROR(O227/insumos2!$CF$28,"") -> 0.01131314573
B228: =IF(insumos2!CG16=0,"",insumos2!CG16) -> Fabricación de papel, cartón y productos de papel y cartón | I228: =IF(insumos2!CG16=0,"",insumos2!CH16) -> 73 | M228: =IFERROR(I228/insumos2!$CE$28,"") -> 0.02049410444 | O228: =IF(insumos2!CI16=0,"",insumos2!CI16) -> 512 | S228: =IFERROR(O228/insumos2!$CF$28,"") -> 0.009136168163
B229: =IF(insumos2!CG17=0,"",insumos2!CG17) -> Fabricación de aparatos y equipo eléctrico | I229: =IF(insumos2!CG17=0,"",insumos2!CH17) -> 59 | M229: =IFERROR(I229/insumos2!$CE$28,"") -> 0.01656372824 | O229: =IF(insumos2!CI17=0,"",insumos2!CI17) -> 1315 | S229: =IFERROR(O229/insumos2!$CF$28,"") -> 0.02346496315
B230: =IF(insumos2!CG18=0,"",insumos2!CG18) -> Fabricación de vehículos automotores, remolques y semirremolques | I230: =IF(insumos2!CG18=0,"",insumos2!CH18) -> 57 | M230: =IFERROR(I230/insumos2!$CE$28,"") -> 0.01600224593 | O230: =IF(insumos2!CI18=0,"",insumos2!CI18) -> 707 | S230: =IFERROR(O230/insumos2!$CF$28,"") -> 0.01261576346
B231: =IF(insumos2!CG19=0,"",insumos2!CG19) -> Elaboración de bebidas | I231: =IF(insumos2!CG19=0,"",insumos2!CH19) -> 47 | M231: =IFERROR(I231/insumos2!$CE$28,"") -> 0.01319483436 | O231: =IF(insumos2!CI19=0,"",insumos2!CI19) -> 559 | S231: =IFERROR(O231/insumos2!$CF$28,"") -> 0.009974839849
B232: =IF(insumos2!CG20=0,"",insumos2!CG20) -> Fabricación de productos farmacéuticos, sustancias químicas medicinales y productos botánicos de uso farmacéutico | I232: =IF(insumos2!CG20=0,"",insumos2!CH20) -> 44 | M232: =IFERROR(I232/insumos2!$CE$28,"") -> 0.01235261089 | O232: =IF(insumos2!CI20=0,"",insumos2!CI20) -> 849 | S232: =IFERROR(O232/insumos2!$CF$28,"") -> 0.0151496226
B233: =IF(insumos2!CG21=0,"",insumos2!CG21) -> Fabricación de productos metalúrgicos básicos | I233: =IF(insumos2!CG21=0,"",insumos2!CH21) -> 42 | M233: =IFERROR(I233/insumos2!$CE$28,"") -> 0.01179112858 | O233: =IF(insumos2!CI21=0,"",insumos2!CI21) -> 724 | S233: =IFERROR(O233/insumos2!$CF$28,"") -> 0.01291911279
B234: =IF(insumos2!CG22=0,"",insumos2!CG22) -> Fabricación de productos informáticos, electrónicos y ópticos | I234: =IF(insumos2!CG22=0,"",insumos2!CH22) -> 23 | M234: =IFERROR(I234/insumos2!$CE$28,"") -> 0.006457046603 | O234: =IF(insumos2!CI22=0,"",insumos2!CI22) -> 225 | S234: =IFERROR(O234/insumos2!$CF$28,"") -> 0.00401491765
B235: =IF(insumos2!CG23=0,"",insumos2!CG23) -> Fabricación de otros tipos de equipo de transporte | I235: =IF(insumos2!CG23=0,"",insumos2!CH23) -> 12 | M235: =IFERROR(I235/insumos2!$CE$28,"") -> 0.00336889388 | O235: =IF(insumos2!CI23=0,"",insumos2!CI23) -> 560 | S235: =IFERROR(O235/insumos2!$CF$28,"") -> 0.009992683928
B236: =IF(insumos2!CG24=0,"",insumos2!CG24) -> Coquización, fabricación de productos de la refinación del petróleo y actividad de mezcla de combustibles | I236: =IF(insumos2!CG24=0,"",insumos2!CH24) -> 8 | M236: =IFERROR(I236/insumos2!$CE$28,"") -> 0.002245929253 | O236: =IF(insumos2!CI24=0,"",insumos2!CI24) -> 49 | S236: =IFERROR(O236/insumos2!$CF$28,"") -> 0.0008743598437
B237: =IF(insumos2!CG25=0,"",insumos2!CG25) -> Elaboración de productos de tabaco | I237: =IF(insumos2!CG25=0,"",insumos2!CH25) -> 2 | M237: =IFERROR(I237/insumos2!$CE$28,"") -> 0.0005614823133 | O237: =IF(insumos2!CI25=0,"",insumos2!CI25) -> 107 | S237: =IFERROR(O237/insumos2!$CF$28,"") -> 0.001909316393
B238: =IF(insumos2!CG26=0,"",insumos2!CG26) ->  | I238: =IF(insumos2!CG26=0,"",insumos2!CH26) ->  | M238: =IFERROR(I238/insumos2!$CE$28,"") ->  | O238: =IF(insumos2!CI26=0,"",insumos2!CI26) ->  | S238: =IFERROR(O238/insumos2!$CF$28,"") -> 
G241: Postulaciones recibidas en la sección | K241: Cantidad | N241: %
G242: Total solicitudes | K242: =COUNT(insumos2!$AN$2:$AN$399999) -> 5789 | N242: =K242/$K$242 -> 1
G243: Empleadores con beneficiados | K243: =COUNTIFS(insumos2!$AS$2:$AS$399999,"Aprobado con subsidio") -> 3562 | N243: =K243/$K$242 -> 0.6153048886
G244: Empleadores sin beneficio | K244: =K242-K243 -> 2227 | N244: =K244/$K$242 -> 0.3846951114

Sheet insumos1 (hidden)
A1: Ciclo | B1: DIVIPOLA1 | C1: MpioNOM | D1: Depto | E1: DeptoNOM | F1: NOM_AECONOMICA1 | G1: SECTOR_ECONOMICO1 | H1: actividad | I1: TIPO_PERSONA1 | J1: SIZE1 | K1: Suma de RECURSOS1 | L1: Recursos_Jovenes | M1: Recursos_Masculino | N1: Recursos_Femenino | Q1: Suma de Suma de RECURSOS1 | R1: Etiquetas de columna
B2: 63001 | C2: ARMENIA | D2: 63 | E2: QUINDÍO | F2: ALOJAMIENTO Y SERVICIOS DE COMIDA | G2: 5611 | H2: I | I2: Natural | J2: MICRO | K2: 227131 | L2: 227131 | M2: 0 | N2: 0 | Q2: Etiquetas de fila | R2: (en blanco) | S2: Total general
B3: 5001 | C3: MEDELLÍN | D3: 5 | E3: ANTIOQUIA | F3: AGRICULTURA, GANADERÍA, CAZA, SILVICULTURA Y PESCA | G3: 141 | H3: A | I3: Natural | J3: MICRO | K3: 454262 | L3: 454262 | M3: 0 | N3: 0 | Q3: ACTIVIDADES ARTÍSTICAS, DE ENTRETENIMIENTO Y RECREACIÓN | R3: 753769500 | S3: 753769500
B4: 25307 | C4: GIRARDOT | D4: 25 | E4: CUNDINAMARCA | F4: COMERCIO AL POR MAYOR Y AL POR MENOR; REPARACIÓN DE VEHÍCULOS AUTOMOTORES Y MOTOCICLETAS | G4: 4530 | H4: G | I4: Natural | J4: MICRO | K4: 250000 | L4: 250000 | M4: 0 | N4: 0 | Q4: ACTIVIDADES DE ATENCIÓN DE LA SALUD HUMANA Y DE ASISTENCIA SOCIAL | R4: 2381098500 | S4: 2381098500
B5: 5001 | C5: MEDELLÍN | D5: 5 | E5: ANTIOQUIA | F5: ALOJAMIENTO Y SERVICIOS DE COMIDA | G5: 5611 | H5: I | I5: Natural | J5: MICRO | K5: 1000000 | L5: 1000000 | M5: 0 | N5: 0 | Q5: ACTIVIDADES DE LOS HOGARES INDIVIDUALES EN CALIDAD DE EMPLEADORES; ACTIVIDADES NO DIFERENCIADAS DE LOS HOGARES INDIVIDUALES COMO PRODUCTORES DE BIENES Y SERVICIOS PARA USO PROPIO | R5: 17424000 | S5: 17424000
B6: 11001 | C6: BOGOTÁ, D.C. | D6: 11 | E6: BOGOTÁ, D.C. | F6: COMERCIO AL POR MAYOR Y AL POR MENOR; REPARACIÓN DE VEHÍCULOS AUTOMOTORES Y MOTOCICLETAS | G6: 4663 | H6: G | I6: Natural | J6: MICRO | K6: 2227131 | L6: 2227131 | M6: 0 | N6: 0 | Q6: ACTIVIDADES DE SERVICIOS ADMINISTRATIVOS Y DE APOYO | R6: 10798161000 | S6: 10798161000
B7: 15176 | C7: CHIQUINQUIRÁ | D7: 15 | E7: BOYACÁ | F7: COMERCIO AL POR MAYOR Y AL POR MENOR; REPARACIÓN DE VEHÍCULOS AUTOMOTORES Y MOTOCICLETAS | G7: 4752 | H7: G | I7: Natural | J7: MICRO | K7: 1508524 | L7: 1408524 | M7: 100000 | N7: 0 | Q7: ACTIVIDADES FINANCIERAS Y DE SEGUROS | R7: 617644500 | S7: 617644500
B8: 76001 | C8: CALI | D8: 76 | E8: VALLE DEL CAUCA | F8: COMERCIO AL POR MAYOR Y AL POR MENOR; REPARACIÓN DE VEHÍCULOS AUTOMOTORES Y MOTOCICLETAS | G8: 4774 | H8: G | I8: Natural | J8: MICRO | K8: 454262 | L8: 454262 | M8: 0 | N8: 0 | Q8: ACTIVIDADES INMOBILIARIAS | R8: 522357000 | S8: 522357000
B9: 76001 | C9: CALI | D9: 76 | E9: VALLE DEL CAUCA | F9: ALOJAMIENTO Y SERVICIOS DE COMIDA | G9: 5511 | H9: I | I9: Natural | J9: MICRO | K9: 454262 | L9: 454262 | M9: 0 | N9: 0 | Q9: ACTIVIDADES PROFESIONALES, CIENTÍFICAS Y TÉCNICAS | R9: 5504169000 | S9: 5504169000
B10: 41001 | C10: NEIVA | D10: 41 | E10: HUILA | F10: COMERCIO AL POR MAYOR Y AL POR MENOR; REPARACIÓN DE VEHÍCULOS AUTOMOTORES Y MOTOCICLETAS | G10: 4729 | H10: G | I10: Natural | J10: MICRO | K10: 1550000 | L10: 500000 | M10: 0 | N10: 1050000 | Q10: ADMINISTRACIÓN PÚBLICA Y DEFENSA; PLANES DE SEGURIDAD SOCIAL DE AFILIACIÓN OBLIGATORIA | R10: 109263000 | S10: 109263000
B11: 52356 | C11: IPIALES | D11: 52 | E11: NARIÑO | F11: TRANSPORTE Y ALMACENAMIENTO | G11: 4923 | H11: H | I11: Natural | J11: MICRO | K11: 400000 | L11: 0 | M11: 400000 | N11: 0 | Q11: AGRICULTURA, GANADERÍA, CAZA, SILVICULTURA Y PESCA | R11: 4285033500 | S11: 4285033500
B12: 54001 | C12: CÚCUTA | D12: 54 | E12: NORTE DE SANTANDER | F12: OTRAS | G12: 90 | H12: Otras | I12: Natural | J12: PEQUEÑA | K12: 1300000 | L12: 0 | M12: 1000000 | N12: 300000 | Q12: ALOJAMIENTO Y SERVICIOS DE COMIDA | R12: 3928567500 | S12: 3928567500
B13: 54405 | C13: LOS PATIOS | D13: 54 | E13: NORTE DE SANTANDER | F13: TRANSPORTE Y ALMACENAMIENTO | G13: 4923 | H13: H | I13: Natural | J13: MICRO | K13: 317983 | L13: 227131 | M13: 90852 | N13: 0 | Q13: COMERCIO AL POR MAYOR Y AL POR MENOR; REPARACIÓN DE VEHÍCULOS AUTOMOTORES Y MOTOCICLETAS | R13: 21186495000 | S13: 21186495000
B14: 68276 | C14: FLORIDABLANCA | D14: 68 | E14: SANTANDER | F14: AGRICULTURA, GANADERÍA, CAZA, SILVICULTURA Y PESCA | G14: 126 | H14: A | I14: Natural | J14: MICRO | K14: 227131 | L14: 227131 | M14: 0 | N14: 0 | Q14: CONSTRUCCIÓN | R14: 9549078000 | S14: 9549078000
B15: 76828 | C15: TRUJILLO | D15: 76 | E15: VALLE DEL CAUCA | F15: COMERCIO AL POR MAYOR Y AL POR MENOR; REPARACIÓN DE VEHÍCULOS AUTOMOTORES Y MOTOCICLETAS | G15: 4752 | H15: G | I15: Natural | J15: MICRO | K15: 2331080 | L15: 1658524 | M15: 672556 | N15: 0 | Q15: DISTRIBUCIÓN DE AGUA; EVACUACIÓN Y TRATAMIENTO DE AGUAS RESIDUALES, GESTIÓN DE DESECHOS Y ACTIVIDADES DE SANEAMIENTO AMBIENTAL | R15: 246477000 | S15: 246477000
B16: 76001 | C16: CALI | D16: 76 | E16: VALLE DEL CAUCA | F16: AGRICULTURA, GANADERÍA, CAZA, SILVICULTURA Y PESCA | G16: 121 | H16: A | I16: Natural | J16: MICRO | K16: 227131 | L16: 227131 | M16: 0 | N16: 0 | Q16: EDUCACIÓN | R16: 1614442500 | S16: 1614442500
B17: 11001 | C17: BOGOTÁ, D.C. | D17: 11 | E17: BOGOTÁ, D.C. | F17: INDUSTRIAS MANUFACTURERAS | G17: 1313 | H17: C | I17: Natural | J17: MICRO | K17: 726818 | L17: 454262 | M17: 0 | N17: 272556 | Q17: EXPLOTACIÓN DE MINAS Y CANTERAS | R17: 571906500 | S17: 571906500
B18: 11001 | C18: BOGOTÁ, D.C. | D18: 11 | E18: BOGOTÁ, D.C. | F18: COMERCIO AL POR MAYOR Y AL POR MENOR; REPARACIÓN DE VEHÍCULOS AUTOMOTORES Y MOTOCICLETAS | G18: 4754 | H18: G | I18: Natural | J18: MICRO | K18: 1000000 | L18: 1000000 | M18: 0 | N18: 0 | Q18: INDUSTRIAS MANUFACTURERAS | R18: 28151013000 | S18: 28151013000
B19: 11001 | C19: BOGOTÁ, D.C. | D19: 11 | E19: BOGOTÁ, D.C. | F19: EDUCACIÓN | G19: 8512 | H19: P | I19: Natural | J19: MICRO | K19: 750000 | L19: 0 | M19: 0 | N19: 750000 | Q19: INFORMACIÓN Y COMUNICACIONES | R19: 1208790000 | S19: 1208790000
B20: 25181 | C20: CHOACHÍ | D20: 25 | E20: CUNDINAMARCA | F20: AGRICULTURA, GANADERÍA, CAZA, SILVICULTURA Y PESCA | G20: 145 | H20: A | I20: Natural | J20: MICRO | K20: 100000 | L20: 0 | M20: 100000 | N20: 0 | Q20: OTRAS | R20: 676995000 | S20: 676995000
B21: 25181 | C21: CHOACHÍ | D21: 25 | E21: CUNDINAMARCA | F21: COMERCIO AL POR MAYOR Y AL POR MENOR; REPARACIÓN DE VEHÍCULOS AUTOMOTORES Y MOTOCICLETAS | G21: 4663 | H21: G | I21: Natural | J21: PEQUEÑA | K21: 181704 | L21: 0 | M21: 181704 | N21: 0 | Q21: OTRAS ACTIVIDADES DE SERVICIOS | R21: 965217000 | S21: 965217000
B22: 25279 | C22: FOMEQUE | D22: 25 | E22: CUNDINAMARCA | F22: AGRICULTURA, GANADERÍA, CAZA, SILVICULTURA Y PESCA | G22: 145 | H22: A | I22: Natural | J22: PEQUEÑA | K22: 250000 | L22: 250000 | M22: 0 | N22: 0 | Q22: SUMINISTRO DE ELECTRICIDAD, GAS, VAPOR Y AIRE ACONDICIONADO | R22: 43015500 | S22: 43015500
B23: 5001 | C23: MEDELLÍN | D23: 5 | E23: ANTIOQUIA | F23: COMERCIO AL POR MAYOR Y AL POR MENOR; REPARACIÓN DE VEHÍCULOS AUTOMOTORES Y MOTOCICLETAS | G23: 4520 | H23: G | I23: Natural | J23: PEQUEÑA | K23: 227131 | L23: 227131 | M23: 0 | N23: 0 | Q23: TRANSPORTE Y ALMACENAMIENTO | R23: 14265537000 | S23: 14265537000
B24: 25214 | C24: COTA | D24: 25 | E24: CUNDINAMARCA | F24: CONSTRUCCIÓN | G24: 4290 | H24: F | I24: Natural | J24: MICRO | K24: 90852 | L24: 0 | M24: 90852 | N24: 0 | Q24: (en blanco)
B25: 25758 | C25: SOPÓ | D25: 25 | E25: CUNDINAMARCA | F25: AGRICULTURA, GANADERÍA, CAZA, SILVICULTURA Y PESCA | G25: 141 | H25: A | I25: Natural | J25: MICRO | K25: 250000 | L25: 250000 | M25: 0 | N25: 0 | Q25: Total general | R25: 107396454000 | S25: 107396454000
B26: 25297 | C26: GACHETÁ | D26: 25 | E26: CUNDINAMARCA | F26: COMERCIO AL POR MAYOR Y AL POR MENOR; REPARACIÓN DE VEHÍCULOS AUTOMOTORES Y MOTOCICLETAS | G26: 4663 | H26: G | I26: Natural | J26: MICRO | K26: 750000 | L26: 750000 | M26: 0 | N26: 0
B27: 11001 | C27: BOGOTÁ, D.C. | D27: 11 | E27: BOGOTÁ, D.C. | F27: EDUCACIÓN | G27: 8521 | H27: P | I27: Natural | J27: PEQUEÑA | K27: 227131 | L27: 227131 | M27: 0 | N27: 0
B28: 11001 | C28: BOGOTÁ, D.C. | D28: 11 | E28: BOGOTÁ, D.C. | F28: ACTIVIDADES PROFESIONALES, CIENTÍFICAS Y TÉCNICAS | G28: 7310 | H28: M | I28: Natural | J28: MICRO | K28: 227131 | L28: 227131 | M28: 0 | N28: 0
B29: 25754 | C29: SOACHA | D29: 25 | E29: CUNDINAMARCA | F29: ACTIVIDADES DE SERVICIOS ADMINISTRATIVOS Y DE APOYO | G29: 8219 | H29: N | I29: Natural | J29: MICRO | K29: 400000 | L29: 250000 | M29: 0 | N29: 150000
B30: 11001 | C30: BOGOTÁ, D.C. | D30: 11 | E30: BOGOTÁ, D.C. | F30: ACTIVIDADES PROFESIONALES, CIENTÍFICAS Y TÉCNICAS | G30: 6910 | H30: M | I30: Natural | J30: PEQUEÑA | K30: 10448026 | L30: 10448026 | M30: 0 | N30: 0
B31: 11001 | C31: BOGOTÁ, D.C. | D31: 11 | E31: BOGOTÁ, D.C. | F31: COMERCIO AL POR MAYOR Y AL POR MENOR; REPARACIÓN DE VEHÍCULOS AUTOMOTORES Y MOTOCICLETAS | G31: 4751 | H31: G | I31: Natural | J31: MICRO | K31: 681393 | L31: 681393 | M31: 0 | N31: 0
B32: 25785 | C32: TABIO | D32: 25 | E32: CUNDINAMARCA | F32: ACTIVIDADES ARTÍSTICAS, DE ENTRETENIMIENTO Y RECREACIÓN | G32: 9004 | H32: R | I32: Natural | J32: MICRO | K32: 250000 | L32: 250000 | M32: 0 | N32: 0
B33: 50001 | C33: VILLAVICENCIO | D33: 50 | E33: META | F33: COMERCIO AL POR MAYOR Y AL POR MENOR; REPARACIÓN DE VEHÍCULOS AUTOMOTORES Y MOTOCICLETAS | G33: 4729 | H33: G | I33: Natural | J33: MICRO | K33: 2204262 | L33: 2204262 | M33: 0 | N33: 0
B34: 25875 | C34: VILLETA | D34: 25 | E34: CUNDINAMARCA | F34: INDUSTRIAS MANUFACTURERAS | G34: 1081 | H34: C | I34: Natural | J34: PEQUEÑA | K34: 454262 | L34: 454262 | M34: 0 | N34: 0
B35: 25269 | C35: FACATATIVÁ | D35: 25 | E35: CUNDINAMARCA | F35: EDUCACIÓN | G35: 8560 | H35: P | I35: Natural | J35: MICRO | K35: 1850000 | L35: 1000000 | M35: 700000 | N35: 150000
B36: 85001 | C36: YOPAL | D36: 85 | E36: CASANARE | F36: COMERCIO AL POR MAYOR Y AL POR MENOR; REPARACIÓN DE VEHÍCULOS AUTOMOTORES Y MOTOCICLETAS | G36: 4769 | H36: G | I36: Natural | J36: MICRO | K36: 2450000 | L36: 2000000 | M36: 0 | N36: 450000
B37: 5001 | C37: MEDELLÍN | D37: 5 | E37: ANTIOQUIA | F37: OTRAS | G37: 90 | H37: Otras | I37: Natural | J37: MICRO | K37: 300000 | L37: 0 | M37: 300000 | N37: 0
B38: 15759 | C38: SOGAMOSO | D38: 15 | E38: BOYACÁ | F38: COMERCIO AL POR MAYOR Y AL POR MENOR; REPARACIÓN DE VEHÍCULOS AUTOMOTORES Y MOTOCICLETAS | G38: 4799 | H38: G | I38: Natural | J38: MICRO | K38: 250000 | L38: 250000 | M38: 0 | N38: 0
B39: 5001 | C39: MEDELLÍN | D39: 5 | E39: ANTIOQUIA | F39: ALOJAMIENTO Y SERVICIOS DE COMIDA | G39: 5611 | H39: I | I39: Natural | J39: MICRO | K39: 100000 | L39: 0 | M39: 100000 | N39: 0
B40: 5001 | C40: MEDELLÍN | D40: 5 | E40: ANTIOQUIA | F40: COMERCIO AL POR MAYOR Y AL POR MENOR; REPARACIÓN DE VEHÍCULOS AUTOMOTORES Y MOTOCICLETAS | G40: 4722 | H40: G | I40: Natural | J40: MICRO | K40: 2000000 | L40: 1000000 | M40: 400000 | N40: 600000
B41: 5001 | C41: MEDELLÍN | D41: 5 | E41: ANTIOQUIA | F41: INDUSTRIAS MANUFACTURERAS | G41: 3240 | H41: C | I41: Natural | J41: MICRO | K41: 2108524 | L41: 1908524 | M41: 200000 | N41: 0
B42: 5001 | C42: MEDELLÍN | D42: 5 | E42: ANTIOQUIA | F42: COMERCIO AL POR MAYOR Y AL POR MENOR; REPARACIÓN DE VEHÍCULOS AUTOMOTORES Y MOTOCICLETAS | G42: 4771 | H42: G | I42: Natural | J42: MICRO | K42: 1135655 | L42: 1135655 | M42: 0 | N42: 0
B43: 5001 | C43: MEDELLÍN | D43: 5 | E43: ANTIOQUIA | F43: COMERCIO AL POR MAYOR Y AL POR MENOR; REPARACIÓN DE VEHÍCULOS AUTOMOTORES Y MOTOCICLETAS | G43: 4663 | H43: G | I43: Natural | J43: MICRO | K43: 454262 | L43: 454262 | M43: 0 | N43: 0
B44: 11001 | C44: BOGOTÁ, D.C. | D44: 11 | E44: BOGOTÁ, D.C. | F44: COMERCIO AL POR MAYOR Y AL POR MENOR; REPARACIÓN DE VEHÍCULOS AUTOMOTORES Y MOTOCICLETAS | G44: 4771 | H44: G | I44: Natural | J44: PEQUEÑA | K44: 454262 | L44: 454262 | M44: 0 | N44: 0
B45: 5001 | C45: MEDELLÍN | D45: 5 | E45: ANTIOQUIA | F45: INDUSTRIAS MANUFACTURERAS | G45: 3110 | H45: C | I45: Natural | J45: MICRO | K45: 454262 | L45: 454262 | M45: 0 | N45: 0
B46: 5697 | C46: EL SANTUARIO | D46: 5 | E46: ANTIOQUIA | F46: COMERCIO AL POR MAYOR Y AL POR MENOR; REPARACIÓN DE VEHÍCULOS AUTOMOTORES Y MOTOCICLETAS | G46: 4773 | H46: G | I46: Natural | J46: MICRO | K46: 681393 | L46: 681393 | M46: 0 | N46: 0
B47: 11001 | C47: BOGOTÁ, D.C. | D47: 11 | E47: BOGOTÁ, D.C. | F47: COMERCIO AL POR MAYOR Y AL POR MENOR; REPARACIÓN DE VEHÍCULOS AUTOMOTORES Y MOTOCICLETAS | G47: 4652 | H47: G | I47: Natural | J47: MICRO | K47: 227131 | L47: 227131 | M47: 0 | N47: 0
B48: 54001 | C48: CÚCUTA | D48: 54 | E48: NORTE DE SANTANDER | F48: COMERCIO AL POR MAYOR Y AL POR MENOR; REPARACIÓN DE VEHÍCULOS AUTOMOTORES Y MOTOCICLETAS | G48: 4631 | H48: G | I48: Natural | J48: PEQUEÑA | K48: 454262 | L48: 454262 | M48: 0 | N48: 0
B49: 5001 | C49: MEDELLÍN | D49: 5 | E49: ANTIOQUIA | F49: ACTIVIDADES INMOBILIARIAS | G49: 6810 | H49: L | I49: Natural | J49: MICRO | K49: 90852 | L49: 0 | M49: 90852 | N49: 0
B50: 15759 | C50: SOGAMOSO | D50: 15 | E50: BOYACÁ | F50: EDUCACIÓN | G50: 8512 | H50: P | I50: Natural | J50: MICRO | K50: 1950000 | L50: 750000 | M50: 0 | N50: 1200000
B51: 15176 | C51: CHIQUINQUIRÁ | D51: 15 | E51: BOYACÁ | F51: INDUSTRIAS MANUFACTURERAS | G51: 1081 | H51: C | I51: Natural | J51: MICRO | K51: 1250000 | L51: 1250000 | M51: 0 | N51: 0
B52: 11001 | C52: BOGOTÁ, D.C. | D52: 11 | E52: BOGOTÁ, D.C. | F52: INDUSTRIAS MANUFACTURERAS | G52: 2920 | H52: C | I52: Natural | J52: MICRO | K52: 600000 | L52: 0 | M52: 0 | N52: 600000
B53: 15238 | C53: DUITAMA | D53: 15 | E53: BOYACÁ | F53: TRANSPORTE Y ALMACENAMIENTO | G53: 4923 | H53: H | I53: Natural | J53: MICRO | K53: 500000 | L53: 500000 | M53: 0 | N53: 0
B54: 85001 | C54: YOPAL | D54: 85 | E54: CASANARE | F54: COMERCIO AL POR MAYOR Y AL POR MENOR; REPARACIÓN DE VEHÍCULOS AUTOMOTORES Y MOTOCICLETAS | G54: 4542 | H54: G | I54: Natural | J54: MICRO | K54: 2908524 | L54: 2908524 | M54: 0 | N54: 0
B55: 15537 | C55: PAZ DE RÍO | D55: 15 | E55: BOYACÁ | F55: TRANSPORTE Y ALMACENAMIENTO | G55: 4923 | H55: H | I55: Natural | J55: PEQUEÑA | K55: 681393 | L55: 681393 | M55: 0 | N55: 0
B56: 15759 | C56: SOGAMOSO | D56: 15 | E56: BOYACÁ | F56: INDUSTRIAS MANUFACTURERAS | G56: 2395 | H56: C | I56: Natural | J56: PEQUEÑA | K56: 100000 | L56: 0 | M56: 100000 | N56: 0
B57: 11001 | C57: BOGOTÁ, D.C. | D57: 11 | E57: BOGOTÁ, D.C. | F57: COMERCIO AL POR MAYOR Y AL POR MENOR; REPARACIÓN DE VEHÍCULOS AUTOMOTORES Y MOTOCICLETAS | G57: 4663 | H57: G | I57: Natural | J57: MICRO | K57: 500000 | L57: 500000 | M57: 0 | N57: 0
B58: 15753 | C58: SOATÁ | D58: 15 | E58: BOYACÁ | F58: COMERCIO AL POR MAYOR Y AL POR MENOR; REPARACIÓN DE VEHÍCULOS AUTOMOTORES Y MOTOCICLETAS | G58: 4631 | H58: G | I58: Natural | J58: MICRO | K58: 381704 | L58: 0 | M58: 381704 | N58: 0
B59: 11001 | C59: BOGOTÁ, D.C. | D59: 11 | E59: BOGOTÁ, D.C. | F59: INDUSTRIAS MANUFACTURERAS | G59: 1081 | H59: C | I59: Natural | J59: MICRO | K59: 1908524 | L59: 1908524 | M59: 0 | N59: 0
B60: 11001 | C60: BOGOTÁ, D.C. | D60: 11 | E60: BOGOTÁ, D.C. | F60: TRANSPORTE Y ALMACENAMIENTO | G60: 4923 | H60: H | I60: Natural | J60: MICRO | K60: 2526818 | L60: 1954262 | M60: 272556 | N60: 300000
B61: 11001 | C61: BOGOTÁ, D.C. | D61: 11 | E61: BOGOTÁ, D.C. | F61: ALOJAMIENTO Y SERVICIOS DE COMIDA | G61: 5611 | H61: I | I61: Natural | J61: MICRO | K61: 1800000 | L61: 0 | M61: 900000 | N61: 900000
B62: 5266 | C62: ENVIGADO | D62: 5 | E62: ANTIOQUIA | F62: COMERCIO AL POR MAYOR Y AL POR MENOR; REPARACIÓN DE VEHÍCULOS AUTOMOTORES Y MOTOCICLETAS | G62: 4541 | H62: G | I62: Natural | J62: MICRO | K62: 681393 | L62: 681393 | M62: 0 | N62: 0
B63: 66001 | C63: PEREIRA | D63: 66 | E63: RISARALDA | F63: CONSTRUCCIÓN | G63: 4290 | H63: F | I63: Natural | J63: MICRO | K63: 1362784 | L63: 908524 | M63: 181704 | N63: 272556
B64: 66001 | C64: PEREIRA | D64: 66 | E64: RISARALDA | F64: COMERCIO AL POR MAYOR Y AL POR MENOR; REPARACIÓN DE VEHÍCULOS AUTOMOTORES Y MOTOCICLETAS | G64: 4773 | H64: G | I64: Natural | J64: PEQUEÑA | K64: 227131 | L64: 227131 | M64: 0 | N64: 0
B65: 66594 | C65: QUINCHÍA | D65: 66 | E65: RISARALDA | F65: COMERCIO AL POR MAYOR Y AL POR MENOR; REPARACIÓN DE VEHÍCULOS AUTOMOTORES Y MOTOCICLETAS | G65: 4711 | H65: G | I65: Natural | J65: MICRO | K65: 500000 | L65: 500000 | M65: 0 | N65: 0
B66: 66170 | C66: DOSQUEBRADAS | D66: 66 | E66: RISARALDA | F66: COMERCIO AL POR MAYOR Y AL POR MENOR; REPARACIÓN DE VEHÍCULOS AUTOMOTORES Y MOTOCICLETAS | G66: 4775 | H66: G | I66: Natural | J66: MICRO | K66: 1000000 | L66: 1000000 | M66: 0 | N66: 0
B67: 66170 | C67: DOSQUEBRADAS | D67: 66 | E67: RISARALDA | F67: ACTIVIDADES PROFESIONALES, CIENTÍFICAS Y TÉCNICAS | G67: 6910 | H67: M | I67: Natural | J67: PEQUEÑA | K67: 3950000 | L67: 2750000 | M67: 0 | N67: 1200000
B68: 18205 | C68: CURILLO | D68: 18 | E68: CAQUETÁ | F68: INDUSTRIAS MANUFACTURERAS | G68: 1040 | H68: C | I68: Natural | J68: MICRO | K68: 1850000 | L68: 1500000 | M68: 200000 | N68: 150000
B69: 19001 | C69: POPAYÁN | D69: 19 | E69: CAUCA | F69: EDUCACIÓN | G69: 8559 | H69: P | I69: Natural | J69: MICRO | K69: 317982 | L69: 0 | M69: 181704 | N69: 136278
B70: 76001 | C70: CALI | D70: 76 | E70: VALLE DEL CAUCA | F70: COMERCIO AL POR MAYOR Y AL POR MENOR; REPARACIÓN DE VEHÍCULOS AUTOMOTORES Y MOTOCICLETAS | G70: 4752 | H70: G | I70: Natural | J70: MICRO | K70: 4998441 | L70: 4998441 | M70: 0 | N70: 0
B71: 41001 | C71: NEIVA | D71: 41 | E71: HUILA | F71: COMERCIO AL POR MAYOR Y AL POR MENOR; REPARACIÓN DE VEHÍCULOS AUTOMOTORES Y MOTOCICLETAS | G71: 4752 | H71: G | I71: Natural | J71: PEQUEÑA | K71: 12050000 | L71: 7000000 | M71: 4600000 | N71: 450000
B72: 41001 | C72: NEIVA | D72: 41 | E72: HUILA | F72: COMERCIO AL POR MAYOR Y AL POR MENOR; REPARACIÓN DE VEHÍCULOS AUTOMOTORES Y MOTOCICLETAS | G72: 4711 | H72: G | I72: Natural | J72: PEQUEÑA | K72: 227131 | L72: 227131 | M72: 0 | N72: 0
B73: 41551 | C73: PITALITO | D73: 41 | E73: HUILA | F73: COMERCIO AL POR MAYOR Y AL POR MENOR; REPARACIÓN DE VEHÍCULOS AUTOMOTORES Y MOTOCICLETAS | G73: 4754 | H73: G | I73: Natural | J73: MICRO | K73: 363409 | L73: 227131 | M73: 0 | N73: 136278
B74: 41551 | C74: PITALITO | D74: 41 | E74: HUILA | F74: COMERCIO AL POR MAYOR Y AL POR MENOR; REPARACIÓN DE VEHÍCULOS AUTOMOTORES Y MOTOCICLETAS | G74: 4620 | H74: G | I74: Natural | J74: MICRO | K74: 1000000 | L74: 1000000 | M74: 0 | N74: 0
B75: 54498 | C75: OCAÑA | D75: 54 | E75: NORTE DE SANTANDER | F75: COMERCIO AL POR MAYOR Y AL POR MENOR; REPARACIÓN DE VEHÍCULOS AUTOMOTORES Y MOTOCICLETAS | G75: 4541 | H75: G | I75: Natural | J75: MICRO | K75: 1385655 | L75: 1385655 | M75: 0 | N75: 0
B76: 52001 | C76: PASTO | D76: 52 | E76: NARIÑO | F76: COMERCIO AL POR MAYOR Y AL POR MENOR; REPARACIÓN DE VEHÍCULOS AUTOMOTORES Y MOTOCICLETAS | G76: 4731 | H76: G | I76: Natural | J76: PEQUEÑA | K76: 227131 | L76: 227131 | M76: 0 | N76: 0
B77: 52317 | C77: GUACHUCAL | D77: 52 | E77: NARIÑO | F77: COMERCIO AL POR MAYOR Y AL POR MENOR; REPARACIÓN DE VEHÍCULOS AUTOMOTORES Y MOTOCICLETAS | G77: 4731 | H77: G | I77: Natural | J77: PEQUEÑA | K77: 1250000 | L77: 1250000 | M77: 0 | N77: 0
B78: 52560 | C78: POTOSÍ | D78: 52 | E78: NARIÑO | F78: INDUSTRIAS MANUFACTURERAS | G78: 1040 | H78: C | I78: Natural | J78: MICRO | K78: 500000 | L78: 500000 | M78: 0 | N78: 0
B79: 52683 | C79: SANDONÁ | D79: 52 | E79: NARIÑO | F79: COMERCIO AL POR MAYOR Y AL POR MENOR; REPARACIÓN DE VEHÍCULOS AUTOMOTORES Y MOTOCICLETAS | G79: 4711 | H79: G | I79: Natural | J79: MICRO | K79: 250000 | L79: 0 | M79: 100000 | N79: 150000
B80: 54001 | C80: CÚCUTA | D80: 54 | E80: NORTE DE SANTANDER | F80: INDUSTRIAS MANUFACTURERAS | G80: 2599 | H80: C | I80: Natural | J80: MICRO | K80: 227131 | L80: 227131 | M80: 0 | N80: 0
B81: 54001 | C81: CÚCUTA | D81: 54 | E81: NORTE DE SANTANDER | F81: TRANSPORTE Y ALMACENAMIENTO | G81: 4923 | H81: H | I81: Natural | J81: MICRO | K81: 250000 | L81: 250000 | M81: 0 | N81: 0
B82: 54518 | C82: PAMPLONA | D82: 54 | E82: NORTE DE SANTANDER | F82: ALOJAMIENTO Y SERVICIOS DE COMIDA | G82: 5611 | H82: I | I82: Natural | J82: PEQUEÑA | K82: 454262 | L82: 454262 | M82: 0 | N82: 0
B83: 68001 | C83: BUCARAMANGA | D83: 68 | E83: SANTANDER | F83: INDUSTRIAS MANUFACTURERAS | G83: 1610 | H83: C | I83: Natural | J83: PEQUEÑA | K83: 250000 | L83: 250000 | M83: 0 | N83: 0
B84: 68001 | C84: BUCARAMANGA | D84: 68 | E84: SANTANDER | F84: COMERCIO AL POR MAYOR Y AL POR MENOR; REPARACIÓN DE VEHÍCULOS AUTOMOTORES Y MOTOCICLETAS | G84: 4774 | H84: G | I84: Natural | J84: MICRO | K84: 3250000 | L84: 3250000 | M84: 0 | N84: 0
B85: 11001 | C85: BOGOTÁ, D.C. | D85: 11 | E85: BOGOTÁ, D.C. | F85: COMERCIO AL POR MAYOR Y AL POR MENOR; REPARACIÓN DE VEHÍCULOS AUTOMOTORES Y MOTOCICLETAS | G85: 4731 | H85: G | I85: Natural | J85: MICRO | K85: 7316421 | L85: 5544179 | M85: 463408 | N85: 1308834
B86: 54001 | C86: CÚCUTA | D86: 54 | E86: NORTE DE SANTANDER | F86: INDUSTRIAS MANUFACTURERAS | G86: 1410 | H86: C | I86: Natural | J86: MICRO | K86: 1158524 | L86: 1158524 | M86: 0 | N86: 0
B87: 68001 | C87: BUCARAMANGA | D87: 68 | E87: SANTANDER | F87: ACTIVIDADES PROFESIONALES, CIENTÍFICAS Y TÉCNICAS | G87: 7420 | H87: M | I87: Natural | J87: MICRO | K87: 300000 | L87: 0 | M87: 300000 | N87: 0
B88: 68679 | C88: SAN GIL | D88: 68 | E88: SANTANDER | F88: COMERCIO AL POR MAYOR Y AL POR MENOR; REPARACIÓN DE VEHÍCULOS AUTOMOTORES Y MOTOCICLETAS | G88: 4711 | H88: G | I88: Natural | J88: PEQUEÑA | K88: 4250000 | L88: 4250000 | M88: 0 | N88: 0
B89: 68861 | C89: VÉLEZ | D89: 68 | E89: SANTANDER | F89: INDUSTRIAS MANUFACTURERAS | G89: 1089 | H89: C | I89: Natural | J89: MICRO | K89: 954262 | L89: 954262 | M89: 0 | N89: 0
B90: 68001 | C90: BUCARAMANGA | D90: 68 | E90: SANTANDER | F90: ACTIVIDADES FINANCIERAS Y DE SEGUROS | G90: 6621 | H90: K | I90: Natural | J90: MICRO | K90: 227131 | L90: 227131 | M90: 0 | N90: 0
B91: 68001 | C91: BUCARAMANGA | D91: 68 | E91: SANTANDER | F91: COMERCIO AL POR MAYOR Y AL POR MENOR; REPARACIÓN DE VEHÍCULOS AUTOMOTORES Y MOTOCICLETAS | G91: 4711 | H91: G | I91: Natural | J91: MEDIANA | K91: 1000000 | L91: 1000000 | M91: 0 | N91: 0
B92: 11001 | C92: BOGOTÁ, D.C. | D92: 11 | E92: BOGOTÁ, D.C. | F92: ACTIVIDADES DE SERVICIOS ADMINISTRATIVOS Y DE APOYO | G92: 8121 | H92: N | I92: Natural | J92: MICRO | K92: 400000 | L92: 0 | M92: 100000 | N92: 300000
B93: 41001 | C93: NEIVA | D93: 41 | E93: HUILA | F93: ALOJAMIENTO Y SERVICIOS DE COMIDA | G93: 5511 | H93: I | I93: Natural | J93: MICRO | K93: 750000 | L93: 750000 | M93: 0 | N93: 0
B94: 73001 | C94: IBAGUÉ | D94: 73 | E94: TOLIMA | F94: COMERCIO AL POR MAYOR Y AL POR MENOR; REPARACIÓN DE VEHÍCULOS AUTOMOTORES Y MOTOCICLETAS | G94: 4773 | H94: G | I94: Natural | J94: MICRO | K94: 550000 | L94: 0 | M94: 100000 | N94: 450000
B95: 76001 | C95: CALI | D95: 76 | E95: VALLE DEL CAUCA | F95: INDUSTRIAS MANUFACTURERAS | G95: 1811 | H95: C | I95: Natural | J95: MICRO | K95: 750000 | L95: 750000 | M95: 0 | N95: 0
B96: 73001 | C96: IBAGUÉ | D96: 73 | E96: TOLIMA | F96: COMERCIO AL POR MAYOR Y AL POR MENOR; REPARACIÓN DE VEHÍCULOS AUTOMOTORES Y MOTOCICLETAS | G96: 4752 | H96: G | I96: Natural | J96: MICRO | K96: 2635655 | L96: 2635655 | M96: 0 | N96: 0
B97: 50001 | C97: VILLAVICENCIO | D97: 50 | E97: META | F97: ALOJAMIENTO Y SERVICIOS DE COMIDA | G97: 5511 | H97: I | I97: Natural | J97: PEQUEÑA | K97: 4253949 | L97: 3681393 | M97: 0 | N97: 572556
B98: 76834 | C98: TULUÁ | D98: 76 | E98: VALLE DEL CAUCA | F98: COMERCIO AL POR MAYOR Y AL POR MENOR; REPARACIÓN DE VEHÍCULOS AUTOMOTORES Y MOTOCICLETAS | G98: 4751 | H98: G | I98: Natural | J98: PEQUEÑA | K98: 300000 | L98: 0 | M98: 0 | N98: 300000
B99: 76020 | C99: ALCALÁ | D99: 76 | E99: VALLE DEL CAUCA | F99: COMERCIO AL POR MAYOR Y AL POR MENOR; REPARACIÓN DE VEHÍCULOS AUTOMOTORES Y MOTOCICLETAS | G99: 4752 | H99: G | I99: Natural | J99: MICRO | K99: 2000000 | L99: 1000000 | M99: 400000 | N99: 600000
B100: 76001 | C100: CALI | D100: 76 | E100: VALLE DEL CAUCA | F100: ALOJAMIENTO Y SERVICIOS DE COMIDA | G100: 5611 | H100: I | I100: Natural | J100: MICRO | K100: 2400000 | L100: 1750000 | M100: 500000 | N100: 150000
B101: 76122 | C101: CAICEDONIA | D101: 76 | E101: VALLE DEL CAUCA | F101: ACTIVIDADES PROFESIONALES, CIENTÍFICAS Y TÉCNICAS | G101: 6920 | H101: M | I101: Natural | J101: MICRO | K101: 250000 | L101: 250000 | M101: 0 | N101: 0
B102: 76400 | C102: LA UNIÓN | D102: 76 | E102: VALLE DEL CAUCA | F102: AGRICULTURA, GANADERÍA, CAZA, SILVICULTURA Y PESCA | G102: 130 | H102: A | I102: Natural | J102: PEQUEÑA | K102: 6879834 | L102: 6679834 | M102: 200000 | N102: 0
B103: 76001 | C103: CALI | D103: 76 | E103: VALLE DEL CAUCA | F103: COMERCIO AL POR MAYOR Y AL POR MENOR; REPARACIÓN DE VEHÍCULOS AUTOMOTORES Y MOTOCICLETAS | G103: 4741 | H103: G | I103: Natural | J103: MICRO | K103: 290852 | L103: 0 | M103: 290852 | N103: 0
B104: 76001 | C104: CALI | D104: 76 | E104: VALLE DEL CAUCA | F104: INDUSTRIAS MANUFACTURERAS | G104: 1081 | H104: C | I104: Natural | J104: MICRO | K104: 500000 | L104: 0 | M104: 200000 | N104: 300000
B105: 76122 | C105: CAICEDONIA | D105: 76 | E105: VALLE DEL CAUCA | F105: COMERCIO AL POR MAYOR Y AL POR MENOR; REPARACIÓN DE VEHÍCULOS AUTOMOTORES Y MOTOCICLETAS | G105: 4669 | H105: G | I105: Natural | J105: MEDIANA | K105: 227131 | L105: 227131 | M105: 0 | N105: 0
B106: 76001 | C106: CALI | D106: 76 | E106: VALLE DEL CAUCA | F106: INDUSTRIAS MANUFACTURERAS | G106: 1410 | H106: C | I106: Natural | J106: PEQUEÑA | K106: 227131 | L106: 227131 | M106: 0 | N106: 0
B107: 76834 | C107: TULUÁ | D107: 76 | E107: VALLE DEL CAUCA | F107: COMERCIO AL POR MAYOR Y AL POR MENOR; REPARACIÓN DE VEHÍCULOS AUTOMOTORES Y MOTOCICLETAS | G107: 4774 | H107: G | I107: Natural | J107: MICRO | K107: 14341368 | L107: 11451144 | M107: 0 | N107: 2890224
B108: 76111 | C108: GUADALAJARA DE BUGA | D108: 76 | E108: VALLE DEL CAUCA | F108: TRANSPORTE Y ALMACENAMIENTO | G108: 4923 | H108: H | I108: Natural | J108: MICRO | K108: 90852 | L108: 0 | M108: 90852 | N108: 0
B109: 5088 | C109: BELLO | D109: 5 | E109: ANTIOQUIA | F109: COMERCIO AL POR MAYOR Y AL POR MENOR; REPARACIÓN DE VEHÍCULOS AUTOMOTORES Y MOTOCICLETAS | G109: 4752 | H109: G | I109: Natural | J109: MICRO | K109: 750000 | L109: 750000 | M109: 0 | N109: 0
B110: 41551 | C110: PITALITO | D110: 41 | E110: HUILA | F110: COMERCIO AL POR MAYOR Y AL POR MENOR; REPARACIÓN DE VEHÍCULOS AUTOMOTORES Y MOTOCICLETAS | G110: 4711 | H110: G | I110: Natural | J110: MEDIANA | K110: 227131 | L110: 227131 | M110: 0 | N110: 0
B111: 11001 | C111: BOGOTÁ, D.C. | D111: 11 | E111: BOGOTÁ, D.C. | F111: EDUCACIÓN | G111: 8521 | H111: P | I111: Natural | J111: PEQUEÑA | K111: 908524 | L111: 908524 | M111: 0 | N111: 0
B112: 11001 | C112: BOGOTÁ, D.C. | D112: 11 | E112: BOGOTÁ, D.C. | F112: ALOJAMIENTO Y SERVICIOS DE COMIDA | G112: 5611 | H112: I | I112: Natural | J112: MICRO | K112: 3454262 | L112: 3454262 | M112: 0 | N112: 0
B113: 11001 | C113: BOGOTÁ, D.C. | D113: 11 | E113: BOGOTÁ, D.C. | F113: CONSTRUCCIÓN | G113: 4210 | H113: F | I113: Natural | J113: PEQUEÑA | K113: 12067048 | L113: 10067048 | M113: 500000 | N113: 1500000
B114: 5631 | C114: SABANETA | D114: 5 | E114: ANTIOQUIA | F114: COMERCIO AL POR MAYOR Y AL POR MENOR; REPARACIÓN DE VEHÍCULOS AUTOMOTORES Y MOTOCICLETAS | G114: 4771 | H114: G | I114: Natural | J114: MICRO | K114: 1908524 | L114: 1908524 | M114: 0 | N114: 0
B115: 18001 | C115: FLORENCIA | D115: 18 | E115: CAQUETÁ | F115: COMERCIO AL POR MAYOR Y AL POR MENOR; REPARACIÓN DE VEHÍCULOS AUTOMOTORES Y MOTOCICLETAS | G115: 4643 | H115: G | I115: Natural | J115: MICRO | K115: 1953949 | L115: 1681393 | M115: 0 | N115: 272556
B116: 18001 | C116: FLORENCIA | D116: 18 | E116: CAQUETÁ | F116: ACTIVIDADES DE SERVICIOS ADMINISTRATIVOS Y DE APOYO | G116: 8020 | H116: N | I116: Natural | J116: MICRO | K116: 454262 | L116: 454262 | M116: 0 | N116: 0
B117: 18001 | C117: FLORENCIA | D117: 18 | E117: CAQUETÁ | F117: COMERCIO AL POR MAYOR Y AL POR MENOR; REPARACIÓN DE VEHÍCULOS AUTOMOTORES Y MOTOCICLETAS | G117: 4741 | H117: G | I117: Natural | J117: MICRO | K117: 2500000 | L117: 2500000 | M117: 0 | N117: 0
B118: 70001 | C118: SINCELEJO | D118: 70 | E118: SUCRE | F118: COMERCIO AL POR MAYOR Y AL POR MENOR; REPARACIÓN DE VEHÍCULOS AUTOMOTORES Y MOTOCICLETAS | G118: 4530 | H118: G | I118: Natural | J118: MICRO | K118: 250000 | L118: 250000 | M118: 0 | N118: 0
B119: 23001 | C119: MONTERÍA | D119: 23 | E119: CÓRDOBA | F119: COMERCIO AL POR MAYOR Y AL POR MENOR; REPARACIÓN DE VEHÍCULOS AUTOMOTORES Y MOTOCICLETAS | G119: 4541 | H119: G | I119: Natural | J119: MICRO | K119: 3612786 | L119: 3612786 | M119: 0 | N119: 0
B120: 23001 | C120: MONTERÍA | D120: 23 | E120: CÓRDOBA | F120: COMERCIO AL POR MAYOR Y AL POR MENOR; REPARACIÓN DE VEHÍCULOS AUTOMOTORES Y MOTOCICLETAS | G120: 4752 | H120: G | I120: Natural | J120: PEQUEÑA | K120: 2800000 | L120: 2500000 | M120: 0 | N120: 300000
B121: 91001 | C121: LETICIA | D121: 91 | E121: AMAZONAS | F121: ALOJAMIENTO Y SERVICIOS DE COMIDA | G121: 5613 | H121: I | I121: Natural | J121: MICRO | K121: 590540 | L121: 454262 | M121: 0 | N121: 136278
B122: 15776 | C122: SUTAMARCHÁN | D122: 15 | E122: BOYACÁ | F122: ALOJAMIENTO Y SERVICIOS DE COMIDA | G122: 5611 | H122: I | I122: Natural | J122: PEQUEÑA | K122: 2558211 | L122: 2135655 | M122: 0 | N122: 422556
B123: 15001 | C123: TUNJA | D123: 15 | E123: BOYACÁ | F123: ACTIVIDADES PROFESIONALES, CIENTÍFICAS Y TÉCNICAS | G123: 7310 | H123: M | I123: Natural | J123: MICRO | K123: 704262 | L123: 704262 | M123: 0 | N123: 0
B124: 15001 | C124: TUNJA | D124: 15 | E124: BOYACÁ | F124: ACTIVIDADES ARTÍSTICAS, DE ENTRETENIMIENTO Y RECREACIÓN | G124: 9311 | H124: R | I124: Natural | J124: MICRO | K124: 4934406 | L124: 3975572 | M124: 100000 | N124: 858834
B125: 15001 | C125: TUNJA | D125: 15 | E125: BOYACÁ | F125: ACTIVIDADES PROFESIONALES, CIENTÍFICAS Y TÉCNICAS | G125: 6920 | H125: M | I125: Natural | J125: MICRO | K125: 227131 | L125: 227131 | M125: 0 | N125: 0
B126: 15238 | C126: DUITAMA | D126: 15 | E126: BOYACÁ | F126: TRANSPORTE Y ALMACENAMIENTO | G126: 4923 | H126: H | I126: Natural | J126: MICRO | K126: 400000 | L126: 0 | M126: 400000 | N126: 0
B127: 15238 | C127: DUITAMA | D127: 15 | E127: BOYACÁ | F127: COMERCIO AL POR MAYOR Y AL POR MENOR; REPARACIÓN DE VEHÍCULOS AUTOMOTORES Y MOTOCICLETAS | G127: 4732 | H127: G | I127: Natural | J127: MICRO | K127: 250000 | L127: 250000 | M127: 0 | N127: 0
B128: 85139 | C128: MANÍ | D128: 85 | E128: CASANARE | F128: COMERCIO AL POR MAYOR Y AL POR MENOR; REPARACIÓN DE VEHÍCULOS AUTOMOTORES Y MOTOCICLETAS | G128: 4731 | H128: G | I128: Natural | J128: PEQUEÑA | K128: 1000000 | L128: 1000000 | M128: 0 | N128: 0
B129: 15238 | C129: DUITAMA | D129: 15 | E129: BOYACÁ | F129: INDUSTRIAS MANUFACTURERAS | G129: 1392 | H129: C | I129: Natural | J129: MICRO | K129: 1300000 | L129: 1000000 | M129: 300000 | N129: 0
B130: 15238 | C130: DUITAMA | D130: 15 | E130: BOYACÁ | F130: COMERCIO AL POR MAYOR Y AL POR MENOR; REPARACIÓN DE VEHÍCULOS AUTOMOTORES Y MOTOCICLETAS | G130: 4771 | H130: G | I130: Natural | J130: PEQUEÑA | K130: 250000 | L130: 250000 | M130: 0 | N130: 0
B131: 15759 | C131: SOGAMOSO | D131: 15 | E131: BOYACÁ | F131: ALOJAMIENTO Y SERVICIOS DE COMIDA | G131: 5619 | H131: I | I131: Natural | J131: MICRO | K131: 1362786 | L131: 1362786 | M131: 0 | N131: 0
B132: 11001 | C132: BOGOTÁ, D.C. | D132: 11 | E132: BOGOTÁ, D.C. | F132: INDUSTRIAS MANUFACTURERAS | G132: 1081 | H132: C | I132: Natural | J132: MICRO | K132: 272556 | L132: 0 | M132: 0 | N132: 272556
B133: 15238 | C133: DUITAMA | D133: 15 | E133: BOYACÁ | F133: COMERCIO AL POR MAYOR Y AL POR MENOR; REPARACIÓN DE VEHÍCULOS AUTOMOTORES Y MOTOCICLETAS | G133: 4722 | H133: G | I133: Natural | J133: PEQUEÑA | K133: 136278 | L133: 0 | M133: 0 | N133: 136278
B134: 15238 | C134: DUITAMA | D134: 15 | E134: BOYACÁ | F134: COMERCIO AL POR MAYOR Y AL POR MENOR; REPARACIÓN DE VEHÍCULOS AUTOMOTORES Y MOTOCICLETAS | G134: 4530 | H134: G | I134: Natural | J134: MICRO | K134: 150000 | L134: 0 | M134: 0 | N134: 150000
B135: 11001 | C135: BOGOTÁ, D.C. | D135: 11 | E135: BOGOTÁ, D.C. | F135: COMERCIO AL POR MAYOR Y AL POR MENOR; REPARACIÓN DE VEHÍCULOS AUTOMOTORES Y MOTOCICLETAS | G135: 4752 | H135: G | I135: Natural | J135: MICRO | K135: 454262 | L135: 454262 | M135: 0 | N135: 0
B136: 15176 | C136: CHIQUINQUIRÁ | D136: 15 | E136: BOYACÁ | F136: CONSTRUCCIÓN | G136: 4112 | H136: F | I136: Natural | J136: MICRO | K136: 3839602 | L136: 2612786 | M136: 1226816 | N136: 0
B137: 8001 | C137: BARRANQUILLA | D137: 8 | E137: ATLÁNTICO | F137: INDUSTRIAS MANUFACTURERAS | G137: 1081 | H137: C | I137: Natural | J137: PEQUEÑA | K137: 227131 | L137: 227131 | M137: 0 | N137: 0
B138: 47001 | C138: SANTA MARTA | D138: 47 | E138: MAGDALENA | F138: COMERCIO AL POR MAYOR Y AL POR MENOR; REPARACIÓN DE VEHÍCULOS AUTOMOTORES Y MOTOCICLETAS | G138: 4773 | H138: G | I138: Natural | J138: MICRO | K138: 750000 | L138: 750000 | M138: 0 | N138: 0
B139: 63001 | C139: ARMENIA | D139: 63 | E139: QUINDÍO | F139: CONSTRUCCIÓN | G139: 4330 | H139: F | I139: Natural | J139: PEQUEÑA | K139: 1408209 | L139: 681393 | M139: 726816 | N139: 0
B140: 63001 | C140: ARMENIA | D140: 63 | E140: QUINDÍO | F140: CONSTRUCCIÓN | G140: 4111 | H140: F | I140: Natural | J140: MICRO | K140: 1044801 | L140: 681393 | M140: 363408 | N140: 0
B141: 76834 | C141: TULUÁ | D141: 76 | E141: VALLE DEL CAUCA | F141: COMERCIO AL POR MAYOR Y AL POR MENOR; REPARACIÓN DE VEHÍCULOS AUTOMOTORES Y MOTOCICLETAS | G141: 4530 | H141: G | I141: Natural | J141: MICRO | K141: 227131 | L141: 227131 | M141: 0 | N141: 0
B142: 5266 | C142: ENVIGADO | D142: 5 | E142: ANTIOQUIA | F142: ACTIVIDADES PROFESIONALES, CIENTÍFICAS Y TÉCNICAS | G142: 7111 | H142: M | I142: Natural | J142: MICRO | K142: 2776195 | L142: 2339917 | M142: 0 | N142: 436278
B143: 73001 | C143: IBAGUÉ | D143: 73 | E143: TOLIMA | F143: COMERCIO AL POR MAYOR Y AL POR MENOR; REPARACIÓN DE VEHÍCULOS AUTOMOTORES Y MOTOCICLETAS | G143: 4752 | H143: G | I143: Natural | J143: PEQUEÑA | K143: 2500000 | L143: 2500000 | M143: 0 | N143: 0
B144: 25899 | C144: ZIPAQUIRÁ | D144: 25 | E144: CUNDINAMARCA | F144: ALOJAMIENTO Y SERVICIOS DE COMIDA | G144: 5511 | H144: I | I144: Natural | J144: MICRO | K144: 3454262 | L144: 3454262 | M144: 0 | N144: 0
B145: 63001 | C145: ARMENIA | D145: 63 | E145: QUINDÍO | F145: COMERCIO AL POR MAYOR Y AL POR MENOR; REPARACIÓN DE VEHÍCULOS AUTOMOTORES Y MOTOCICLETAS | G145: 4661 | H145: G | I145: Natural | J145: PEQUEÑA | K145: 454262 | L145: 454262 | M145: 0 | N145: 0
B146: 20001 | C146: VALLEDUPAR | D146: 20 | E146: CESAR | F146: INDUSTRIAS MANUFACTURERAS | G146: 1410 | H146: C | I146: Natural | J146: PEQUEÑA | K146: 3500000 | L146: 1500000 | M146: 800000 | N146: 1200000
B147: 44001 | C147: RIOHACHA | D147: 44 | E147: LA GUAJIRA | F147: COMERCIO AL POR MAYOR Y AL POR MENOR; REPARACIÓN DE VEHÍCULOS AUTOMOTORES Y MOTOCICLETAS | G147: 4530 | H147: G | I147: Natural | J147: MICRO | K147: 500000 | L147: 500000 | M147: 0 | N147: 0
B148: 5318 | C148: GUARNE | D148: 5 | E148: ANTIOQUIA | F148: INDUSTRIAS MANUFACTURERAS | G148: 2221 | H148: C | I148: Natural | J148: PEQUEÑA | K148: 1650000 | L148: 750000 | M148: 0 | N148: 900000
B149: 76001 | C149: CALI | D149: 76 | E149: VALLE DEL CAUCA | F149: INDUSTRIAS MANUFACTURERAS | G149: 1313 | H149: C | I149: Natural | J149: PEQUEÑA | K149: 227131 | L149: 227131 | M149: 0 | N149: 0
B150: 73001 | C150: IBAGUÉ | D150: 73 | E150: TOLIMA | F150: COMERCIO AL POR MAYOR Y AL POR MENOR; REPARACIÓN DE VEHÍCULOS AUTOMOTORES Y MOTOCICLETAS | G150: 4729 | H150: G | I150: Natural | J150: MICRO | K150: 9345943 | L150: 7928275 | M150: 0 | N150: 1417668
B151: 41001 | C151: NEIVA | D151: 41 | E151: HUILA | F151: INDUSTRIAS MANUFACTURERAS | G151: 1081 | H151: C | I151: Natural | J151: MICRO | K151: 704262 | L151: 704262 | M151: 0 | N151: 0
B152: 41001 | C152: NEIVA | D152: 41 | E152: HUILA | F152: TRANSPORTE Y ALMACENAMIENTO | G152: 4923 | H152: H | I152: Natural | J152: MICRO | K152: 500000 | L152: 500000 | M152: 0 | N152: 0
B153: 41001 | C153: NEIVA | D153: 41 | E153: HUILA | F153: COMERCIO AL POR MAYOR Y AL POR MENOR; REPARACIÓN DE VEHÍCULOS AUTOMOTORES Y MOTOCICLETAS | G153: 4752 | H153: G | I153: Natural | J153: MICRO | K153: 1500000 | L153: 1500000 | M153: 0 | N153: 0
B154: 5001 | C154: MEDELLÍN | D154: 5 | E154: ANTIOQUIA | F154: ACTIVIDADES DE SERVICIOS ADMINISTRATIVOS Y DE APOYO | G154: 8299 | H154: N | I154: Natural | J154: MICRO | K154: 1050000 | L154: 500000 | M154: 400000 | N154: 150000
B155: 41001 | C155: NEIVA | D155: 41 | E155: HUILA | F155: COMERCIO AL POR MAYOR Y AL POR MENOR; REPARACIÓN DE VEHÍCULOS AUTOMOTORES Y MOTOCICLETAS | G155: 4653 | H155: G | I155: Natural | J155: MICRO | K155: 250000 | L155: 250000 | M155: 0 | N155: 0
B156: 86001 | C156: MOCOA | D156: 86 | E156: PUTUMAYO | F156: ACTIVIDADES PROFESIONALES, CIENTÍFICAS Y TÉCNICAS | G156: 7500 | H156: M | I156: Natural | J156: MICRO | K156: 150000 | L156: 0 | M156: 0 | N156: 150000
B157: 41298 | C157: GARZÓN | D157: 41 | E157: HUILA | F157: EDUCACIÓN | G157: 8530 | H157: P | I157: Natural | J157: MICRO | K157: 900000 | L157: 750000 | M157: 0 | N157: 150000
B158: 41551 | C158: PITALITO | D158: 41 | E158: HUILA | F158: TRANSPORTE Y ALMACENAMIENTO | G158: 4923 | H158: H | I158: Natural | J158: MICRO | K158: 750000 | L158: 750000 | M158: 0 | N158: 0
B159: 41001 | C159: NEIVA | D159: 41 | E159: HUILA | F159: ACTIVIDADES DE SERVICIOS ADMINISTRATIVOS Y DE APOYO | G159: 8230 | H159: N | I159: Natural | J159: MICRO | K159: 2581079 | L159: 1431393 | M159: 290852 | N159: 858834
B160: 18753 | C160: SAN VICENTE DEL CAGUÁN | D160: 18 | E160: CAQUETÁ | F160: INDUSTRIAS MANUFACTURERAS | G160: 1040 | H160: C | I160: Natural | J160: MICRO | K160: 500000 | L160: 500000 | M160: 0 | N160: 0
B161: 13001 | C161: CARTAGENA | D161: 13 | E161: BOLÍVAR | F161: TRANSPORTE Y ALMACENAMIENTO | G161: 5310 | H161: H | I161: Natural | J161: MICRO | K161: 300000 | L161: 0 | M161: 0 | N161: 300000
B162: 13688 | C162: SANTA ROSA DEL SUR | D162: 13 | E162: BOLÍVAR | F162: COMERCIO AL POR MAYOR Y AL POR MENOR; REPARACIÓN DE VEHÍCULOS AUTOMOTORES Y MOTOCICLETAS | G162: 4663 | H162: G | I162: Natural | J162: PEQUEÑA | K162: 750000 | L162: 750000 | M162: 0 | N162: 0
B163: 25001 | C163: AGUA DE DIOS | D163: 25 | E163: CUNDINAMARCA | F163: COMERCIO AL POR MAYOR Y AL POR MENOR; REPARACIÓN DE VEHÍCULOS AUTOMOTORES Y MOTOCICLETAS | G163: 4723 | H163: G | I163: Natural | J163: MICRO | K163: 454262 | L163: 454262 | M163: 0 | N163: 0
B164: 5001 | C164: MEDELLÍN | D164: 5 | E164: ANTIOQUIA | F164: INDUSTRIAS MANUFACTURERAS | G164: 2511 | H164: C | I164: Natural | J164: MICRO | K164: 1227131 | L164: 1227131 | M164: 0 | N164: 0
B165: 5631 | C165: SABANETA | D165: 5 | E165: ANTIOQUIA | F165: ALOJAMIENTO Y SERVICIOS DE COMIDA | G165: 5630 | H165: I | I165: Natural | J165: MICRO | K165: 2063096 | L165: 454262 | M165: 0 | N165: 1608834
B166: 5001 | C166: MEDELLÍN | D166: 5 | E166: ANTIOQUIA | F166: INDUSTRIAS MANUFACTURERAS | G166: 1089 | H166: C | I166: Natural | J166: MICRO | K166: 800000 | L166: 500000 | M166: 0 | N166: 300000
B167: 5001 | C167: MEDELLÍN | D167: 5 | E167: ANTIOQUIA | F167: ACTIVIDADES PROFESIONALES, CIENTÍFICAS Y TÉCNICAS | G167: 7420 | H167: M | I167: Natural | J167: MICRO | K167: 250000 | L167: 250000 | M167: 0 | N167: 0
B168: 5001 | C168: MEDELLÍN | D168: 5 | E168: ANTIOQUIA | F168: COMERCIO AL POR MAYOR Y AL POR MENOR; REPARACIÓN DE VEHÍCULOS AUTOMOTORES Y MOTOCICLETAS | G168: 4711 | H168: G | I168: Natural | J168: PEQUEÑA | K168: 681393 | L168: 681393 | M168: 0 | N168: 0
B169: 5154 | C169: CAUCASIA | D169: 5 | E169: ANTIOQUIA | F169: COMERCIO AL POR MAYOR Y AL POR MENOR; REPARACIÓN DE VEHÍCULOS AUTOMOTORES Y MOTOCICLETAS | G169: 4541 | H169: G | I169: Natural | J169: MICRO | K169: 681393 | L169: 681393 | M169: 0 | N169: 0
B170: 23466 | C170: MONTELÍBANO | D170: 23 | E170: CÓRDOBA | F170: AGRICULTURA, GANADERÍA, CAZA, SILVICULTURA Y PESCA | G170: 141 | H170: A | I170: Natural | J170: MICRO | K170: 200000 | L170: 0 | M170: 200000 | N170: 0
B171: 5001 | C171: MEDELLÍN | D171: 5 | E171: ANTIOQUIA | F171: ALOJAMIENTO Y SERVICIOS DE COMIDA | G171: 5612 | H171: I | I171: Natural | J171: MICRO | K171: 2600000 | L171: 1000000 | M171: 400000 | N171: 1200000
B172: 5001 | C172: MEDELLÍN | D172: 5 | E172: ANTIOQUIA | F172: INDUSTRIAS MANUFACTURERAS | G172: 1081 | H172: C | I172: Natural | J172: MICRO | K172: 227131 | L172: 227131 | M172: 0 | N172: 0
B173: 5001 | C173: MEDELLÍN | D173: 5 | E173: ANTIOQUIA | F173: COMERCIO AL POR MAYOR Y AL POR MENOR; REPARACIÓN DE VEHÍCULOS AUTOMOTORES Y MOTOCICLETAS | G173: 4711 | H173: G | I173: Natural | J173: MICRO | K173: 454262 | L173: 454262 | M173: 0 | N173: 0
B174: 5001 | C174: MEDELLÍN | D174: 5 | E174: ANTIOQUIA | F174: TRANSPORTE Y ALMACENAMIENTO | G174: 4923 | H174: H | I174: Natural | J174: MICRO | K174: 227131 | L174: 227131 | M174: 0 | N174: 0
B175: 5686 | C175: SANTA ROSA DE OSOS | D175: 5 | E175: ANTIOQUIA | F175: AGRICULTURA, GANADERÍA, CAZA, SILVICULTURA Y PESCA | G175: 141 | H175: A | I175: Natural | J175: MICRO | K175: 100000 | L175: 0 | M175: 100000 | N175: 0
B176: 5686 | C176: SANTA ROSA DE OSOS | D176: 5 | E176: ANTIOQUIA | F176: INDUSTRIAS MANUFACTURERAS | G176: 1610 | H176: C | I176: Natural | J176: MICRO | K176: 400000 | L176: 0 | M176: 400000 | N176: 0
B177: 5001 | C177: MEDELLÍN | D177: 5 | E177: ANTIOQUIA | F177: COMERCIO AL POR MAYOR Y AL POR MENOR; REPARACIÓN DE VEHÍCULOS AUTOMOTORES Y MOTOCICLETAS | G177: 4741 | H177: G | I177: Natural | J177: MICRO | K177: 1907900 | L177: 1817048 | M177: 90852 | N177: 0
B178: 5001 | C178: MEDELLÍN | D178: 5 | E178: ANTIOQUIA | F178: INDUSTRIAS MANUFACTURERAS | G178: 1410 | H178: C | I178: Natural | J178: MICRO | K178: 227131 | L178: 227131 | M178: 0 | N178: 0
B179: 5001 | C179: MEDELLÍN | D179: 5 | E179: ANTIOQUIA | F179: INDUSTRIAS MANUFACTURERAS | G179: 1081 | H179: C | I179: Natural | J179: PEQUEÑA | K179: 227131 | L179: 227131 | M179: 0 | N179: 0
B180: 50001 | C180: VILLAVICENCIO | D180: 50 | E180: META | F180: ALOJAMIENTO Y SERVICIOS DE COMIDA | G180: 5511 | H180: I | I180: Natural | J180: PEQUEÑA | K180: 550000 | L180: 250000 | M180: 0 | N180: 300000
B181: 23001 | C181: MONTERÍA | D181: 23 | E181: CÓRDOBA | F181: ALOJAMIENTO Y SERVICIOS DE COMIDA | G181: 5611 | H181: I | I181: Natural | J181: PEQUEÑA | K181: 150000 | L181: 0 | M181: 0 | N181: 150000
B182: 5001 | C182: MEDELLÍN | D182: 5 | E182: ANTIOQUIA | F182: ACTIVIDADES FINANCIERAS Y DE SEGUROS | G182: 6495 | H182: K | I182: Natural | J182: MICRO | K182: 250000 | L182: 250000 | M182: 0 | N182: 0
B183: 5266 | C183: ENVIGADO | D183: 5 | E183: ANTIOQUIA | F183: COMERCIO AL POR MAYOR Y AL POR MENOR; REPARACIÓN DE VEHÍCULOS AUTOMOTORES Y MOTOCICLETAS | G183: 4620 | H183: G | I183: Natural | J183: MICRO | K183: 350000 | L183: 0 | M183: 200000 | N183: 150000
B184: 47001 | C184: SANTA MARTA | D184: 47 | E184: MAGDALENA | F184: ALOJAMIENTO Y SERVICIOS DE COMIDA | G184: 5611 | H184: I | I184: Natural | J184: MICRO | K184: 3749374 | L184: 1704262 | M184: 0 | N184: 2045112
B185: 5001 | C185: MEDELLÍN | D185: 5 | E185: ANTIOQUIA | F185: ALOJAMIENTO Y SERVICIOS DE COMIDA | G185: 5611 | H185: I | I185: Natural | J185: MICRO | K185: 250000 | L185: 250000 | M185: 0 | N185: 0
B186: 5631 | C186: SABANETA | D186: 5 | E186: ANTIOQUIA | F186: INDUSTRIAS MANUFACTURERAS | G186: 3110 | H186: C | I186: Natural | J186: PEQUEÑA | K186: 1200000 | L186: 500000 | M186: 100000 | N186: 600000
B187: 5001 | C187: MEDELLÍN | D187: 5 | E187: ANTIOQUIA | F187: COMERCIO AL POR MAYOR Y AL POR MENOR; REPARACIÓN DE VEHÍCULOS AUTOMOTORES Y MOTOCICLETAS | G187: 4530 | H187: G | I187: Natural | J187: MICRO | K187: 227131 | L187: 227131 | M187: 0 | N187: 0
B188: 5001 | C188: MEDELLÍN | D188: 5 | E188: ANTIOQUIA | F188: COMERCIO AL POR MAYOR Y AL POR MENOR; REPARACIÓN DE VEHÍCULOS AUTOMOTORES Y MOTOCICLETAS | G188: 4711 | H188: G | I188: Natural | J188: PEQUEÑA | K188: 977131 | L188: 977131 | M188: 0 | N188: 0
B189: 5368 | C189: JERICÓ | D189: 5 | E189: ANTIOQUIA | F189: INDUSTRIAS MANUFACTURERAS | G189: 1084 | H189: C | I189: Natural | J189: PEQUEÑA | K189: 12498126 | L189: 9771310 | M189: 381704 | N189: 2345112
B190: 5631 | C190: SABANETA | D190: 5 | E190: ANTIOQUIA | F190: COMERCIO AL POR MAYOR Y AL POR MENOR; REPARACIÓN DE VEHÍCULOS AUTOMOTORES Y MOTOCICLETAS | G190: 4541 | H190: G | I190: Natural | J190: MICRO | K190: 3108211 | L190: 2635655 | M190: 472556 | N190: 0
B191: 5001 | C191: MEDELLÍN | D191: 5 | E191: ANTIOQUIA | F191: COMERCIO AL POR MAYOR Y AL POR MENOR; REPARACIÓN DE VEHÍCULOS AUTOMOTORES Y MOTOCICLETAS | G191: 4723 | H191: G | I191: Natural | J191: MICRO | K191: 200000 | L191: 0 | M191: 200000 | N191: 0
B192: 5736 | C192: SEGOVIA | D192: 5 | E192: ANTIOQUIA | F192: COMERCIO AL POR MAYOR Y AL POR MENOR; REPARACIÓN DE VEHÍCULOS AUTOMOTORES Y MOTOCICLETAS | G192: 4723 | H192: G | I192: Natural | J192: MICRO | K192: 6502703 | L192: 5702703 | M192: 200000 | N192: 600000
B193: 5837 | C193: TURBO | D193: 5 | E193: ANTIOQUIA | F193: COMERCIO AL POR MAYOR Y AL POR MENOR; REPARACIÓN DE VEHÍCULOS AUTOMOTORES Y MOTOCICLETAS | G193: 4761 | H193: G | I193: Natural | J193: PEQUEÑA | K193: 6288978 | L193: 5021310 | M193: 272556 | N193: 995112
B194: 5001 | C194: MEDELLÍN | D194: 5 | E194: ANTIOQUIA | F194: INDUSTRIAS MANUFACTURERAS | G194: 1811 | H194: C | I194: Natural | J194: PEQUEÑA | K194: 227131 | L194: 227131 | M194: 0 | N194: 0
B195: 5001 | C195: MEDELLÍN | D195: 5 | E195: ANTIOQUIA | F195: ACTIVIDADES PROFESIONALES, CIENTÍFICAS Y TÉCNICAS | G195: 6920 | H195: M | I195: Natural | J195: MICRO | K195: 1226818 | L195: 954262 | M195: 0 | N195: 272556
B196: 70001 | C196: SINCELEJO | D196: 70 | E196: SUCRE | F196: COMERCIO AL POR MAYOR Y AL POR MENOR; REPARACIÓN DE VEHÍCULOS AUTOMOTORES Y MOTOCICLETAS | G196: 4530 | H196: G | I196: Natural | J196: MICRO | K196: 1176818 | L196: 704262 | M196: 472556 | N196: 0
B197: 8638 | C197: SABANALARGA | D197: 8 | E197: ATLÁNTICO | F197: COMERCIO AL POR MAYOR Y AL POR MENOR; REPARACIÓN DE VEHÍCULOS AUTOMOTORES Y MOTOCICLETAS | G197: 4773 | H197: G | I197: Natural | J197: PEQUEÑA | K197: 14498128 | L197: 11975572 | M197: 0 | N197: 2522556
B198: 8001 | C198: BARRANQUILLA | D198: 8 | E198: ATLÁNTICO | F198: ACTIVIDADES DE ATENCIÓN DE LA SALUD HUMANA Y DE ASISTENCIA SOCIAL | G198: 8621 | H198: Q | I198: Natural | J198: MICRO | K198: 227131 | L198: 227131 | M198: 0 | N198: 0
B199: 5001 | C199: MEDELLÍN | D199: 5 | E199: ANTIOQUIA | F199: ALOJAMIENTO Y SERVICIOS DE COMIDA | G199: 5611 | H199: I | I199: Natural | J199: MICRO | K199: 454262 | L199: 454262 | M199: 0 | N199: 0
B200: 13001 | C200: CARTAGENA | D200: 13 | E200: BOLÍVAR | F200: ALOJAMIENTO Y SERVICIOS DE COMIDA | G200: 5611 | H200: I | I200: Natural | J200: PEQUEÑA | K200: 908524 | L200: 908524 | M200: 0 | N200: 0
... 4300 more rows

Sheet insumos2 (hidden)
A1: TIPO DE IDENTIFICACION POSTULANTE | B1: NUMERO IDENTIFICACION EMPRESA | C1: CIUDAD - DIVIPOLA - R | D1: Municipio | E1: TOTAL COTIZANTES CON CONCEPTO DE CONFORMIDAD TOTAL A GIRAR | F1: TOTAL COTIZANTES CON CONCEPTO DE NO CONFORMIDAD | G1: TIPO DE PERSONA | H1: Departamento DIVIPOLA (P) | I1: Nombre dpto | J1: ESTADO_TOTAL A GIRAR | K1: Tamaño del Empleador | L1: STRCODPAR_CIIU_EMPRESA | M1: ACTIVIDAD ECONOMICA | N1: ACTIVIDAD ECONOMICA | O1: Division 3DC_TD 3D | P1: grupo especial 2DC_TD 3D | Q1: SEXO_F_ | R1: SEXO_M_ | S1: SEXO_ND_ | T1: Jovenes | U1: Mujeres 28 años | V1: Hombres 28 años | W1: Cot_nacional | X1: Cot_extranjero | Z1: Departamentos | AA1: empleadores | AB1: Departamentos | AC1: empleadores | AJ1: TIPO DE IDENTIFICACION POSTULANTE | AK1: NUMERO IDENTIFICACION EMPRESA | AL1: CIUDAD - DIVIPOLA - R | AM1: Municipio | AN1: TOTAL COTIZANTES CON CONCEPTO DE CONFORMIDAD TOTAL A GIRAR | AO1: TOTAL COTIZANTES CON CONCEPTO DE NO CONFORMIDAD | AP1: TIPO DE PERSONA | AQ1: Departamento DIVIPOLA (P) | AR1: Nombre dpto | AS1: ESTADO_TOTAL A GIRAR | AT1: Tamaño del Empleador | AU1: STRCODPAR_CIIU_EMPRESA | AV1: ACTIVIDAD ECONOMICA | AW1: ACTIVIDAD ECONOMICA | AX1: Division 3DC_TD 3D | AY1: grupo especial 2DC_TD 3D | AZ1: SEXO_F_ | BA1: SEXO_M_ | BB1: SEXO_ND_ | BC1: Jovenes | BD1: Mujeres 28 años | BE1: Hombres 28 años | BF1: Cot_nacional | BG1: Cot_extranjero | BJ1: Departamentos | BK1: empleadores | BL1: Departamentos | BM1: empleadores | BN1: nomdpto | BP1: =BN1 -> nomdpto | BQ1: empleadores | BR1: empleados | BT1: codmunicipio | BU1: aportantes | BV1: codmunicipio | BW1: aportantes | BX1: cod_dpto | BY1: nom_dpto | BZ1: nom_mpio | CA1: empleadores | CB1: empleados | CD1: Grupo | CE1: empleadores | CF1: empleados | CG1: Grupo | CH1: empleadores | CI1: empleados | CN1: Jovenes | CO1: Mujeres > 28 años | CP1: Hombres> 28 años | CT1: Jovenes | CU1: Mujeres > 28 años | CV1: Hombres> 28 años | CY1: Jovenes | CZ1: Mujeres > 28 años | DA1: Hombres> 28 años
C2: 63001 | D2: ARMENIA | E2: 1 | F2: 0 | G2: Natural | H2: 63 | I2: QUINDÍO | J2: Aprobado con subsidio | K2: MICRO | L2: 5611 | M2: ALOJAMIENTO Y SERVICIOS DE COMIDA | N2: I | O2: Actividades de restaurantes, cafeterías y servicio móvil de comidas | P2: Actividades de restaurantes, cafeterías y servicio móvil de comidas | Q2: 0 | R2: 1 | S2: 0 | T2: 1 | U2: 0 | V2: 0 | W2: 1 | X2: 0 | Z2: 68 | AA2: =COUNTIFS($J$2:$J$399999,"Aprobado con subsidio",$H$2:$H$399999,Z2) -> 1158 | AB2: =_xlfn._xlws.SORT($Z$2:$AA$34,2,-1) -> 11 | AC2: 7789 | AD2: =VLOOKUP(AB2,Hoja4!$A$29:$B$61,2,FALSE) -> Bogotá | AJ2: =_xlfn._xlws.FILTER($A$2:$X$399999,$N$2:$N$399999=Visor!$N$4,"") -> 0 | AK2: 0 | AL2: 5001 | AM2: MEDELLÍN | AN2: 0 | AO2: 1 | AP2: Natural | AQ2: 5 | AR2: ANTIOQUIA | AS2: 0 | AT2: MICRO | AU2: 3315 | AV2: INDUSTRIAS MANUFACTURERAS | AW2: C | AX2: Mantenimiento y reparación especializado de productos elaborados en metal y de maquinaria y equipo | AY2: Instalación, mantenimiento y reparación especializado de maquinaria y equipo | AZ2: 0 | BA2: 0 | BB2: 0 | BC2: 0 | BD2: 0 | BE2: 0 | BF2: 0 | BG2: 0 | BJ2: 68 | BK2: =COUNTIFS($AS$2:$AS$399999,"Aprobado con subsidio",$AQ$2:$AQ$399999,BJ2) -> 207 | BL2: =_xlfn._xlws.SORT($BJ$2:$BK$34,2,-1) -> 11 | BM2: 1049 | BN2: =VLOOKUP(BL2,Hoja4!$A$29:$B$61,2,FALSE) -> Bogotá | BP2: =BN2 -> Bogotá | BQ2: =BM2 -> 1049 | BR2: =SUMIFS($AN$2:$AN$399999,$AS$2:$AS$399999,"Aprobado con subsidio",$AQ$2:$AQ$399999,BL2) -> 16171 | BT2: =_xlfn.UNIQUE($AL$2:$AL$399999) -> 5001 | BU2: =COUNTIFS($AS$2:$AS$399999,"Aprobado con subsidio",$AL$2:$AL$399999,BT2) -> 497 | BV2: =_xlfn._xlws.SORT($BT$2:$BU$1122,2,-1) -> 11001 | BW2: 1049 | BX2: =IF(LEN(BV2)=5,MID(BV2,1,2),MID(BV2,1,1))*1 -> 11 | BY2: =VLOOKUP(BX2,Hoja4!$A$29:$B$61,2,FALSE) -> Bogotá | BZ2: =VLOOKUP(BV2,Hoja4!$D$29:$E$1150,2,FALSE) -> Bogotá, d.c. | CA2: =BW2 -> 1049 | CB2: =SUMIFS($AN$2:$AN$399999,$AL$2:$AL$399999,BV2) -> 16171 | CD2: =_xlfn.UNIQUE($AY$2:$AY$399999) -> Instalación, mantenimiento y reparación especializado de maquinaria y equipo | CE2: =COUNTIFS($AY$2:$AY$399999,CD2,$AS$2:$AS$399999,"Aprobado con subsidio") -> 297 | CF2: =SUMIFS($AN$2:$AN$399999,$AY$2:$AY$399999,CD2,$AS$2:$AS$399999,"Aprobado con subsidio") -> 2840 | CG2: =_xlfn._xlws.SORT(CD2:CF26,2,-1) -> Elaboración de productos alimenticios | CH2: 694 | CI2: 12733 | CM2: =_xlfn.UNIQUE($M$2:$M$400000) -> ALOJAMIENTO Y SERVICIOS DE COMIDA | CN2: =SUMIFS(T$2:T$400000,$M$2:$M$400000,$CM2,$J$2:$J$400000,"Aprobado con subsidio") -> 20911 | CO2: =SUMIFS(U$2:U$400000,$M$2:$M$400000,$CM2,$J$2:$J$400000,"Aprobado con subsidio") -> 5194 | CP2: =SUMIFS(V$2:V$400000,$M$2:$M$400000,$CM2,$J$2:$J$400000,"Aprobado con subsidio") -> 2336 | CS2: =_xlfn._xlws.SORT(CM2:CP23,2,-1) -> ACTIVIDADES DE SERVICIOS ADMINISTRATIVOS Y DE APOYO | CT2: 174860 | CU2: 28811 | CV2: 10002 | CX2: =IF(CS23=0,"Total",PROPER(CS23)) -> Total | CY2: =IF(CX2="Total",SUM($CT$2:$CT$23)/SUM($CT$2:$CV$23),CT23/SUM($CT23:$CV23)) -> 0.7530950018 | CZ2: =IF(CX2="Total",SUM($CU$2:$CU$23)/SUM($CT$2:$CV$23),CU23/SUM($CT23:$CV23)) -> 0.1340663345 | DA2: =IF(CX2="Total",SUM($CV$2:$CV$23)/SUM($CT$2:$CV$23),CV23/SUM($CT23:$CV23)) -> 0.1128386637
C3: 17380 | D3: LA DORADA | E3: 0 | F3: 0 | G3: Natural | H3: 17 | I3: CALDAS | J3: 0 | K3: MICRO | L3: 141 | M3: AGRICULTURA, GANADERÍA, CAZA, SILVICULTURA Y PESCA | N3: A | O3: Ganadería | P3: Ganadería | Q3: 0 | R3: 0 | S3: 0 | T3: 0 | U3: 0 | V3: 0 | W3: 0 | X3: 0 | Z3: 13 | AA3: =COUNTIFS($J$2:$J$399999,"Aprobado con subsidio",$H$2:$H$399999,Z3) -> 458 | AB3: 5 | AC3: 4925 | AD3: =VLOOKUP(AB3,Hoja4!$A$29:$B$61,2,FALSE) -> Antioquia | AJ3: 0 | AK3: 0 | AL3: 5615 | AM3: RIONEGRO | AN3: 0 | AO3: 0 | AP3: Natural | AQ3: 5 | AR3: ANTIOQUIA | AS3: 0 | AT3: PEQUEÑA | AU3: 2012 | AV3: INDUSTRIAS MANUFACTURERAS | AW3: C | AX3: Fabricación de sustancias químicas básicas, abonos y compuestos inorgánicos nitrogenados, plásticos y caucho sintético en formas primarias | AY3: Fabricación de sustancias y productos químicos | AZ3: 0 | BA3: 0 | BB3: 0 | BC3: 0 | BD3: 0 | BE3: 0 | BF3: 0 | BG3: 0 | BJ3: 13 | BK3: 35 | BL3: 5 | BM3: 1004 | BN3: =VLOOKUP(BL3,Hoja4!$A$29:$B$61,2,FALSE) -> Antioquia | BP3: =BN3 -> Antioquia | BQ3: =BM3 -> 1004 | BR3: 17886 | BT3: 5615 | BU3: 38 | BV3: 5001 | BW3: 497 | BX3: =IF(LEN(BV3)=5,MID(BV3,1,2),MID(BV3,1,1))*1 -> 5 | BY3: =VLOOKUP(BX3,Hoja4!$A$29:$B$61,2,FALSE) -> Antioquia | BZ3: =VLOOKUP(BV3,Hoja4!$D$29:$E$1150,2,FALSE) -> Medellín | CA3: 497 | CB3: 9039 | CD3: Fabricación de sustancias y productos químicos | CE3: 160 | CF3: 1650 | CG3: Confección de prendas de vestir | CH3: 670 | CI3: 17216 | CM3: AGRICULTURA, GANADERÍA, CAZA, SILVICULTURA Y PESCA | CN3: 12086 | CO3: 1378 | CP3: 1405 | CS3: COMERCIO AL POR MAYOR Y AL POR MENOR; REPARACIÓN DE VEHÍCULOS AUTOMOTORES Y MOTOCICLETAS | CT3: 43926 | CU3: 7123 | CV3: 4658 | CX3: =IF(CS2=0,"Total",PROPER(CS2)) -> Actividades De Servicios Administrativos Y De Apoyo | CY3: =IF(CX3="Total",SUM($CT$2:$CT$23)/SUM($CT$2:$CV$23),CT2/SUM($CT2:$CV2)) -> 0.8183532781 | CZ3: =IF(CX3="Total",SUM($CU$2:$CU$23)/SUM($CT$2:$CV$23),CU2/SUM($CT2:$CV2)) -> 0.1348368769 | DA3: =IF(CX3="Total",SUM($CV$2:$CV$23)/SUM($CT$2:$CV$23),CV2/SUM($CT2:$CV2)) -> 0.04680984495
C4: 25035 | D4: ANAPOIMA | E4: 0 | F4: 0 | G4: Natural | H4: 25 | I4: CUNDINAMARCA | J4: 0 | K4: MICRO | L4: 7730 | M4: ACTIVIDADES DE SERVICIOS ADMINISTRATIVOS Y DE APOYO | N4: N | O4: Alquiler y arrendamiento de otros tipos de maquinaria, equipo y bienes tangibles n.c.p. | P4: Alquiler y arrendamiento de otros tipos de maquinaria, equipo y bienes tangibles n.c.p. | Q4: 0 | R4: 0 | S4: 0 | T4: 0 | U4: 0 | V4: 0 | W4: 0 | X4: 0 | Z4: 15 | AA4: 344 | AB4: 76 | AC4: 2117 | AD4: =VLOOKUP(AB4,Hoja4!$A$29:$B$61,2,FALSE) -> Valle del cauca | AJ4: 0 | AK4: 0 | AL4: 11001 | AM4: BOGOTÁ, D.C. | AN4: 2 | AO4: 1 | AP4: Natural | AQ4: 11 | AR4: BOGOTÁ, D.C. | AS4: Aprobado con subsidio | AT4: MICRO | AU4: 1313 | AV4: INDUSTRIAS MANUFACTURERAS | AW4: C | AX4: Preparación, hilatura, tejeduría y acabado de productos textiles | AY4: Fabricación de productos textiles | AZ4: 2 | BA4: 0 | BB4: 0 | BC4: 1 | BD4: 1 | BE4: 0 | BF4: 2 | BG4: 0 | BJ4: 15 | BK4: 36 | BL4: 76 | BM4: 358 | BN4: =VLOOKUP(BL4,Hoja4!$A$29:$B$61,2,FALSE) -> Valle del cauca | BP4: Valle del cauca | BQ4: 358 | BR4: 6772 | BT4: 11001 | BU4: 1049 | BV4: 76001 | BW4: 225 | BX4: 76 | BY4: =VLOOKUP(BX4,Hoja4!$A$29:$B$61,2,FALSE) -> Valle del cauca | BZ4: =VLOOKUP(BV4,Hoja4!$D$29:$E$1150,2,FALSE) -> Cali | CA4: 225 | CB4: 2911 | CD4: Fabricación de productos textiles | CE4: 155 | CF4: 2671 | CG4: Instalación, mantenimiento y reparación especializado de maquinaria y equipo | CH4: 297 | CI4: 2840 | CM4: ACTIVIDADES DE SERVICIOS ADMINISTRATIVOS Y DE APOYO | CN4: 174860 | CO4: 28811 | CP4: 10002 | CS4: INDUSTRIAS MANUFACTURERAS | CT4: 42347 | CU4: 7828 | CV4: 5866 | CX4: =IF(CS3=0,"Total",PROPER(CS3)) -> Comercio Al Por Mayor Y Al Por Menor; Reparación De Vehículos Automotores Y Motocicletas | CY4: 0.7885184986 | CZ4: 0.1278654388 | DA4: 0.08361606261
C5: 68001 | D5: BUCARAMANGA | E5: 0 | F5: 0 | G5: Natural | H5: 68 | I5: SANTANDER | J5: 0 | K5: 0 | L5: 4771 | M5: COMERCIO AL POR MAYOR Y AL POR MENOR; REPARACIÓN DE VEHÍCULOS AUTOMOTORES Y MOTOCICLETAS | N5: G | O5: Comercio al por menor de otros productos en establecimientos especializados | P5: Comercio al por menor de otros productos en establecimientos especializados | Q5: 0 | R5: 0 | S5: 0 | T5: 0 | U5: 0 | V5: 0 | W5: 0 | X5: 0 | Z5: 5 | AA5: 4925 | AB5: 68 | AC5: 1158 | AD5: =VLOOKUP(AB5,Hoja4!$A$29:$B$61,2,FALSE) -> Santander | AJ5: 0 | AK5: 0 | AL5: 11001 | AM5: BOGOTÁ, D.C. | AN5: 0 | AO5: 0 | AP5: Natural | AQ5: 11 | AR5: BOGOTÁ, D.C. | AS5: 0 | AT5: MICRO | AU5: 2711 | AV5: INDUSTRIAS MANUFACTURERAS | AW5: C | AX5: Fabricación de motores, generadores y transformadores eléctricos y de aparatos de distribución y control de la energía eléctrica | AY5: Fabricación de aparatos y equipo eléctrico | AZ5: 0 | BA5: 0 | BB5: 0 | BC5: 0 | BD5: 0 | BE5: 0 | BF5: 0 | BG5: 0 | BJ5: 5 | BK5: 1004 | BL5: 25 | BM5: 229 | BN5: =VLOOKUP(BL5,Hoja4!$A$29:$B$61,2,FALSE) -> Cundinamarca | BP5: Cundinamarca | BQ5: 229 | BR5: 2897 | BT5: 25875 | BU5: 2 | BV5: 5360 | BW5: 130 | BX5: 5 | BY5: =VLOOKUP(BX5,Hoja4!$A$29:$B$61,2,FALSE) -> Antioquia | BZ5: =VLOOKUP(BV5,Hoja4!$D$29:$E$1150,2,FALSE) -> Itagüí | CA5: 130 | CB5: 1809 | CD5: Fabricación de aparatos y equipo eléctrico | CE5: 59 | CF5: 1315 | CG5: Fabricación de productos elaborados de metal, excepto maquinaria y equipo | CH5: 292 | CI5: 2782 | CM5: COMERCIO AL POR MAYOR Y AL POR MENOR; REPARACIÓN DE VEHÍCULOS AUTOMOTORES Y MOTOCICLETAS | CN5: 43926 | CO5: 7123 | CP5: 4658 | CS5: CONSTRUCCIÓN | CT5: 28254 | CU5: 4289 | CV5: 21532 | CX5: Industrias Manufactureras | CY5: 0.7556431898 | CZ5: 0.139683446 | DA5: 0.1046733641
C6: 5001 | D6: MEDELLÍN | E6: 2 | F6: 1 | G6: Natural | H6: 5 | I6: ANTIOQUIA | J6: Aprobado con subsidio | K6: MICRO | L6: 141 | M6: AGRICULTURA, GANADERÍA, CAZA, SILVICULTURA Y PESCA | N6: A | O6: Ganadería | P6: Ganadería | Q6: 0 | R6: 2 | S6: 0 | T6: 2 | U6: 0 | V6: 0 | W6: 2 | X6: 0 | Z6: 76 | AA6: 2117 | AB6: 25 | AC6: 1112 | AD6: =VLOOKUP(AB6,Hoja4!$A$29:$B$61,2,FALSE) -> Cundinamarca | AJ6: 0 | AK6: 0 | AL6: 11001 | AM6: BOGOTÁ, D.C. | AN6: 0 | AO6: 0 | AP6: Natural | AQ6: 11 | AR6: BOGOTÁ, D.C. | AS6: 0 | AT6: PEQUEÑA | AU6: 1513 | AV6: INDUSTRIAS MANUFACTURERAS | AW6: C | AX6: Curtido y recurtido de cueros; fabricación de artículos de viaje, bolsos de mano y artículos similares, y fabricación de artículos de talabartería y guarnicionería; adobo y teñido de pieles | AY6: Curtido y recurtido de cueros; fabricación de calzado; fabricación de artículos de viaje, maletas, bolsos de mano y artículos similares, y fabricación de artículos de talabartería y guarnicionería; adobo y teñido de pieles | AZ6: 0 | BA6: 0 | BB6: 0 | BC6: 0 | BD6: 0 | BE6: 0 | BF6: 0 | BG6: 0 | BJ6: 76 | BK6: 358 | BL6: 68 | BM6: 207 | BN6: =VLOOKUP(BL6,Hoja4!$A$29:$B$61,2,FALSE) -> Santander | BP6: Santander | BQ6: 207 | BR6: 1884 | BT6: 5360 | BU6: 130 | BV6: 68001 | BW6: 126 | BX6: 68 | BY6: =VLOOKUP(BX6,Hoja4!$A$29:$B$61,2,FALSE) -> Santander | BZ6: =VLOOKUP(BV6,Hoja4!$D$29:$E$1150,2,FALSE) -> Bucaramanga | CA6: 126 | CB6: 1282 | CD6: Curtido y recurtido de cueros; fabricación de calzado; fabricación de artículos de viaje, maletas, bolsos de mano y artículos similares, y fabricación de artículos de talabartería y guarnicionería; adobo y teñido de pieles | CE6: 112 | CF6: 1693 | CG6: Fabricación de productos de caucho y de plástico | CH6: 194 | CI6: 2715 | CM6: INDUSTRIAS MANUFACTURERAS | CN6: 42347 | CO6: 7828 | CP6: 5866 | CS6: INFORMACIÓN Y COMUNICACIONES | CT6: 23851 | CU6: 2970 | CV6: 3080 | CX6: Construcción | CY6: 0.5224965326 | CZ6: 0.07931576514 | DA6: 0.3981877023
C7: 41001 | D7: NEIVA | E7: 0 | F7: 0 | G7: Natural | H7: 41 | I7: HUILA | J7: 0 | K7: 0 | L7: 4773 | M7: COMERCIO AL POR MAYOR Y AL POR MENOR; REPARACIÓN DE VEHÍCULOS AUTOMOTORES Y MOTOCICLETAS | N7: G | O7: Comercio al por menor de otros productos en establecimientos especializados | P7: Comercio al por menor de otros productos en establecimientos especializados | Q7: 0 | R7: 0 | S7: 0 | T7: 0 | U7: 0 | V7: 0 | W7: 0 | X7: 0 | Z7: 54 | AA7: 585 | AB7: 8 | AC7: 901 | AD7: =VLOOKUP(AB7,Hoja4!$A$29:$B$61,2,FALSE) -> Atlántico | AJ7: 0 | AK7: 0 | AL7: 25875 | AM7: VILLETA | AN7: 1 | AO7: 0 | AP7: Natural | AQ7: 25 | AR7: CUNDINAMARCA | AS7: Aprobado con subsidio | AT7: PEQUEÑA | AU7: 1081 | AV7: INDUSTRIAS MANUFACTURERAS | AW7: C | AX7: Elaboración de otros productos alimenticios | AY7: Elaboración de productos alimenticios | AZ7: 1 | BA7: 0 | BB7: 0 | BC7: 1 | BD7: 0 | BE7: 0 | BF7: 1 | BG7: 0 | BJ7: 54 | BK7: 89 | BL7: 8 | BM7: 122 | BN7: =VLOOKUP(BL7,Hoja4!$A$29:$B$61,2,FALSE) -> Atlántico | BP7: Atlántico | BQ7: 122 | BR7: 2607 | BT7: 15176 | BU7: 1 | BV7: 8001 | BW7: 101 | BX7: 8 | BY7: =VLOOKUP(BX7,Hoja4!$A$29:$B$61,2,FALSE) -> Atlántico | BZ7: =VLOOKUP(BV7,Hoja4!$D$29:$E$1150,2,FALSE) -> Barranquilla | CA7: 101 | CB7: 2068 | CD7: Elaboración de productos alimenticios | CE7: 694 | CF7: 12733 | CG7: Fabricación de sustancias y productos químicos | CH7: 160 | CI7: 1650 | CM7: TRANSPORTE Y ALMACENAMIENTO | CN7: 15583 | CO7: 2534 | CP7: 6511 | CS7: ACTIVIDADES DE ATENCIÓN DE LA SALUD HUMANA Y DE ASISTENCIA SOCIAL | CT7: 21057 | CU7: 4972 | CV7: 867 | CX7: Información Y Comunicaciones | CY7: 0.7976656299 | CZ7: 0.09932778168 | DA7: 0.1030065884
C8: 25307 | D8: GIRARDOT | E8: 1 | F8: 3 | G8: Natural | H8: 25 | I8: CUNDINAMARCA | J8: Aprobado con subsidio | K8: MICRO | L8: 4530 | M8: COMERCIO AL POR MAYOR Y AL POR MENOR; REPARACIÓN DE VEHÍCULOS AUTOMOTORES Y MOTOCICLETAS | N8: G | O8: Comercio de partes, piezas (autopartes) y accesorios (lujos) para vehículos automotores | P8: Comercio de partes, piezas (autopartes) y accesorios (lujos) para vehículos automotores | Q8: 1 | R8: 0 | S8: 0 | T8: 1 | U8: 0 | V8: 0 | W8: 1 | X8: 0 | Z8: 11 | AA8: 7789 | AB8: 54 | AC8: 585 | AD8: =VLOOKUP(AB8,Hoja4!$A$29:$B$61,2,FALSE) -> Norte de stder | AJ8: 0 | AK8: 0 | AL8: 5360 | AM8: ITAGUI | AN8: 0 | AO8: 0 | AP8: Natural | AQ8: 5 | AR8: ANTIOQUIA | AS8: 0 | AT8: MICRO | AU8: 1921 | AV8: INDUSTRIAS MANUFACTURERAS | AW8: C | AX8: Fabricación de productos de la refinación del petróleo | AY8: Coquización, fabricación de productos de la refinación del petróleo y actividad de mezcla de combustibles | AZ8: 0 | BA8: 0 | BB8: 0 | BC8: 0 | BD8: 0 | BE8: 0 | BF8: 0 | BG8: 0 | BJ8: 11 | BK8: 1049 | BL8: 66 | BM8: 101 | BN8: =VLOOKUP(BL8,Hoja4!$A$29:$B$61,2,FALSE) -> Risaralda | BP8: Risaralda | BQ8: 101 | BR8: 1886 | BT8: 15759 | BU8: 9 | BV8: 54001 | BW8: 71 | BX8: 54 | BY8: =VLOOKUP(BX8,Hoja4!$A$29:$B$61,2,FALSE) -> Norte de stder | BZ8: =VLOOKUP(BV8,Hoja4!$D$29:$E$1150,2,FALSE) -> Cucuta | CA8: 71 | CB8: 638 | CD8: Coquización, fabricación de productos de la refinación del petróleo y actividad de mezcla de combustibles | CE8: 8 | CF8: 49 | CG8: Fabricación de productos textiles | CH8: 155 | CI8: 2671 | CM8: OTRAS | CN8: 8 | CO8: 4 | CP8: 11 | CS8: ALOJAMIENTO Y SERVICIOS DE COMIDA | CT8: 20911 | CU8: 5194 | CV8: 2336 | CX8: Actividades De Atención De La Salud Humana Y De Asistencia Social | CY8: 0.7829045211 | CZ8: 0.1848602023 | DA8: 0.03223527662
C9: 54001 | D9: CÚCUTA | E9: 0 | F9: 0 | G9: Natural | H9: 54 | I9: NORTE DE SANTANDER | J9: 0 | K9: 0 | L9: 5611 | M9: ALOJAMIENTO Y SERVICIOS DE COMIDA | N9: I | O9: Actividades de restaurantes, cafeterías y servicio móvil de comidas | P9: Actividades de restaurantes, cafeterías y servicio móvil de comidas | Q9: 0 | R9: 0 | S9: 0 | T9: 0 | U9: 0 | V9: 0 | W9: 0 | X9: 0 | Z9: 66 | AA9: 556 | AB9: 66 | AC9: 556 | AD9: =VLOOKUP(AB9,Hoja4!$A$29:$B$61,2,FALSE) -> Risaralda | AJ9: 0 | AK9: 0 | AL9: 5001 | AM9: MEDELLÍN | AN9: 3 | AO9: 0 | AP9: Natural | AQ9: 5 | AR9: ANTIOQUIA | AS9: Aprobado con subsidio | AT9: MICRO | AU9: 3240 | AV9: INDUSTRIAS MANUFACTURERAS | AW9: C | AX9: Fabricación de juegos, juguetes y rompecabezas | AY9: Otras industrias manufactureras | AZ9: 2 | BA9: 1 | BB9: 0 | BC9: 2 | BD9: 0 | BE9: 1 | BF9: 3 | BG9: 0 | BJ9: 66 | BK9: 101 | BL9: 54 | BM9: 89 | BN9: =VLOOKUP(BL9,Hoja4!$A$29:$B$61,2,FALSE) -> Norte de stder | BP9: Norte de stder | BQ9: 89 | BR9: 798 | BT9: 18205 | BU9: 1 | BV9: 17001 | BW9: 58 | BX9: 17 | BY9: =VLOOKUP(BX9,Hoja4!$A$29:$B$61,2,FALSE) -> Caldas | BZ9: =VLOOKUP(BV9,Hoja4!$D$29:$E$1150,2,FALSE) -> Manizales | CA9: 58 | CB9: 631 | CD9: Otras industrias manufactureras | CE9: 123 | CF9: 1249 | CG9: Otras industrias manufactureras | CH9: 123 | CI9: 1249 | CM9: ACTIVIDADES PROFESIONALES, CIENTÍFICAS Y TÉCNICAS | CN9: 17257 | CO9: 3408 | CP9: 4640 | CS9: ACTIVIDADES PROFESIONALES, CIENTÍFICAS Y TÉCNICAS | CT9: 17257 | CU9: 3408 | CV9: 4640 | CX9: Alojamiento Y Servicios De Comida | CY9: 0.7352413769 | CZ9: 0.1826236771 | DA9: 0.08213494603
C10: 5001 | D10: MEDELLÍN | E10: 0 | F10: 1 | G10: Natural | H10: 5 | I10: ANTIOQUIA | J10: 0 | K10: MICRO | L10: 3315 | M10: INDUSTRIAS MANUFACTURERAS | N10: C | O10: Mantenimiento y reparación especializado de productos elaborados en metal y de maquinaria y equipo | P10: Instalación, mantenimiento y reparación especializado de maquinaria y equipo | Q10: 0 | R10: 0 | S10: 0 | T10: 0 | U10: 0 | V10: 0 | W10: 0 | X10: 0 | Z10: 52 | AA10: 318 | AB10: 13 | AC10: 458 | AD10: =VLOOKUP(AB10,Hoja4!$A$29:$B$61,2,FALSE) -> Bolívar | AJ10: 0 | AK10: 0 | AL10: 5001 | AM10: MEDELLÍN | AN10: 0 | AO10: 0 | AP10: Natural | AQ10: 5 | AR10: ANTIOQUIA | AS10: 0 | AT10: PEQUEÑA | AU10: 1011 | AV10: INDUSTRIAS MANUFACTURERAS | AW10: C | AX10: Procesamiento y conservación de carne, pescado, crustáceos y moluscos | AY10: Elaboración de productos alimenticios | AZ10: 0 | BA10: 0 | BB10: 0 | BC10: 0 | BD10: 0 | BE10: 0 | BF10: 0 | BG10: 0 | BJ10: 52 | BK10: 28 | BL10: 17 | BM10: 67 | BN10: =VLOOKUP(BL10,Hoja4!$A$29:$B$61,2,FALSE) -> Caldas | BP10: Caldas | BQ10: 67 | BR10: 703 | BT10: 52560 | BU10: 1 | BV10: 5380 | BW10: 57 | BX10: 5 | BY10: =VLOOKUP(BX10,Hoja4!$A$29:$B$61,2,FALSE) -> Antioquia | BZ10: =VLOOKUP(BV10,Hoja4!$D$29:$E$1150,2,FALSE) -> La estrella | CA10: 57 | CB10: 706 | CD10: Confección de prendas de vestir | CE10: 670 | CF10: 17216 | CG10: Fabricación de muebles, colchones y somieres | CH10: 117 | CI10: 1098 | CM10: EDUCACIÓN | CN10: 5435 | CO10: 2733 | CP10: 367 | CS10: TRANSPORTE Y ALMACENAMIENTO | CT10: 15583 | CU10: 2534 | CV10: 6511 | CX10: Actividades Profesionales, Científicas Y Técnicas | CY10: 0.6819600869 | CZ10: 0.1346769413 | DA10: 0.1833629717
C11: 5001 | D11: MEDELLÍN | E11: 0 | F11: 0 | G11: Natural | H11: 5 | I11: ANTIOQUIA | J11: 0 | K11: MICRO | L11: 5611 | M11: ALOJAMIENTO Y SERVICIOS DE COMIDA | N11: I | O11: Actividades de restaurantes, cafeterías y servicio móvil de comidas | P11: Actividades de restaurantes, cafeterías y servicio móvil de comidas | Q11: 0 | R11: 0 | S11: 0 | T11: 0 | U11: 0 | V11: 0 | W11: 0 | X11: 0 | Z11: 19 | AA11: 154 | AB11: 73 | AC11: 427 | AD11: =VLOOKUP(AB11,Hoja4!$A$29:$B$61,2,FALSE) -> Tolima | AJ11: 0 | AK11: 0 | AL11: 11001 | AM11: BOGOTÁ, D.C. | AN11: 0 | AO11: 0 | AP11: Natural | AQ11: 11 | AR11: BOGOTÁ, D.C. | AS11: 0 | AT11: MICRO | AU11: 1410 | AV11: INDUSTRIAS MANUFACTURERAS | AW11: C | AX11: Confección de prendas de vestir, excepto prendas de piel | AY11: Confección de prendas de vestir | AZ11: 0 | BA11: 0 | BB11: 0 | BC11: 0 | BD11: 0 | BE11: 0 | BF11: 0 | BG11: 0 | BJ11: 19 | BK11: 20 | BL11: 73 | BM11: 49 | BN11: =VLOOKUP(BL11,Hoja4!$A$29:$B$61,2,FALSE) -> Tolima | BP11: Tolima | BQ11: 49 | BR11: 516 | BT11: 54001 | BU11: 71 | BV11: 76892 | BW11: 50 | BX11: 76 | BY11: =VLOOKUP(BX11,Hoja4!$A$29:$B$61,2,FALSE) -> Valle del cauca | BZ11: =VLOOKUP(BV11,Hoja4!$D$29:$E$1150,2,FALSE) -> Yumbo | CA11: 50 | CB11: 2429 | CD11: Fabricación de muebles, colchones y somieres | CE11: 117 | CF11: 1098 | CG11: Actividades de impresión y de producción de copias a partir de grabaciones originales | CH11: 113 | CI11: 629 | CM11: CONSTRUCCIÓN | CN11: 28254 | CO11: 4289 | CP11: 21532 | CS11: AGRICULTURA, GANADERÍA, CAZA, SILVICULTURA Y PESCA | CT11: 12086 | CU11: 1378 | CV11: 1405 | CX11: Transporte Y Almacenamiento | CY11: 0.6327350983 | CZ11: 0.1028910184 | DA11: 0.2643738834
C12: 5001 | D12: MEDELLÍN | E12: 2 | F12: 0 | G12: Natural | H12: 5 | I12: ANTIOQUIA | J12: Aprobado con subsidio | K12: MICRO | L12: 5611 | M12: ALOJAMIENTO Y SERVICIOS DE COMIDA | N12: I | O12: Actividades de restaurantes, cafeterías y servicio móvil de comidas | P12: Actividades de restaurantes, cafeterías y servicio móvil de comidas | Q12: 0 | R12: 2 | S12: 0 | T12: 2 | U12: 0 | V12: 0 | W12: 2 | X12: 0 | Z12: 47 | AA12: 214 | AB12: 50 | AC12: 412 | AD12: =VLOOKUP(AB12,Hoja4!$A$29:$B$61,2,FALSE) -> Meta | AJ12: 0 | AK12: 0 | AL12: 5001 | AM12: MEDELLÍN | AN12: 2 | AO12: 0 | AP12: Natural | AQ12: 5 | AR12: ANTIOQUIA | AS12: Aprobado con subsidio | AT12: MICRO | AU12: 3110 | AV12: INDUSTRIAS MANUFACTURERAS | AW12: C | AX12: Fabricación de muebles | AY12: Fabricación de muebles, colchones y somieres | AZ12: 1 | BA12: 1 | BB12: 0 | BC12: 2 | BD12: 0 | BE12: 0 | BF12: 2 | BG12: 0 | BJ12: 47 | BK12: 14 | BL12: 15 | BM12: 36 | BN12: =VLOOKUP(BL12,Hoja4!$A$29:$B$61,2,FALSE) -> Boyacá | BP12: Boyacá | BQ12: 36 | BR12: 469 | BT12: 68001 | BU12: 126 | BV12: 66001 | BW12: 50 | BX12: 66 | BY12: =VLOOKUP(BX12,Hoja4!$A$29:$B$61,2,FALSE) -> Risaralda | BZ12: =VLOOKUP(BV12,Hoja4!$D$29:$E$1150,2,FALSE) -> Pereira | CA12: 50 | CB12: 838 | CD12: Fabricación de vehículos automotores, remolques y semirremolques | CE12: 57 | CF12: 707 | CG12: Curtido y recurtido de cueros; fabricación de calzado; fabricación de artículos de viaje, maletas, bolsos de mano y artículos similares, y fabricación de artículos de talabartería y guarnicionería; adobo y teñido de pieles | CH12: 112 | CI12: 1693 | CM12: ACTIVIDADES ARTÍSTICAS, DE ENTRETENIMIENTO Y RECREACIÓN | CN12: 5563 | CO12: 1346 | CP12: 360 | CS12: ACTIVIDADES ARTÍSTICAS, DE ENTRETENIMIENTO Y RECREACIÓN | CT12: 5563 | CU12: 1346 | CV12: 360 | CX12: Agricultura, Ganadería, Caza, Silvicultura Y Pesca | CY12: 0.8128320667 | CZ12: 0.09267603739 | DA12: 0.09449189589
C13: 11001 | D13: BOGOTÁ, D.C. | E13: 3 | F13: 6 | G13: Natural | H13: 11 | I13: BOGOTÁ, D.C. | J13: Aprobado con subsidio | K13: MICRO | L13: 4663 | M13: COMERCIO AL POR MAYOR Y AL POR MENOR; REPARACIÓN DE VEHÍCULOS AUTOMOTORES Y MOTOCICLETAS | N13: G | O13: Comercio al por mayor especializado de otros productos | P13: Comercio al por mayor especializado de otros productos | Q13: 0 | R13: 3 | S13: 0 | T13: 3 | U13: 0 | V13: 0 | W13: 3 | X13: 0 | Z13: 50 | AA13: 412 | AB13: 17 | AC13: 401 | AD13: =VLOOKUP(AB13,Hoja4!$A$29:$B$61,2,FALSE) -> Caldas | AJ13: 0 | AK13: 0 | AL13: 15176 | AM13: CHIQUINQUIRÁ | AN13: 4 | AO13: 8 | AP13: Natural | AQ13: 15 | AR13: BOYACÁ | AS13: Aprobado con subsidio | AT13: MICRO | AU13: 1081 | AV13: INDUSTRIAS MANUFACTURERAS | AW13: C | AX13: Elaboración de otros productos alimenticios | AY13: Elaboración de productos alimenticios | AZ13: 2 | BA13: 2 | BB13: 0 | BC13: 4 | BD13: 0 | BE13: 0 | BF13: 4 | BG13: 0 | BJ13: 50 | BK13: 27 | BL13: 63 | BM13: 36 | BN13: =VLOOKUP(BL13,Hoja4!$A$29:$B$61,2,FALSE) -> Quindío | BP13: Quindío | BQ13: 36 | BR13: 503 | BT13: 68861 | BU13: 2 | BV13: 5631 | BW13: 47 | BX13: 5 | BY13: =VLOOKUP(BX13,Hoja4!$A$29:$B$61,2,FALSE) -> Antioquia | BZ13: =VLOOKUP(BV13,Hoja4!$D$29:$E$1150,2,FALSE) -> Sabaneta | CA13: 47 | CB13: 936 | CD13: Fabricación de otros productos minerales no metálicos | CE13: 89 | CF13: 1400 | CG13: Fabricación de maquinaria y equipo n.c.p. | CH13: 94 | CI13: 1124 | CM13: ACTIVIDADES INMOBILIARIAS | CN13: 1448 | CO13: 483 | CP13: 350 | CS13: EDUCACIÓN | CT13: 5435 | CU13: 2733 | CV13: 367 | CX13: Actividades Artísticas, De Entretenimiento Y Recreación | CY13: 0.7653047187 | CZ13: 0.1851698996 | DA13: 0.04952538176
C14: 15176 | D14: CHIQUINQUIRÁ | E14: 3 | F14: 1 | G14: Natural | H14: 15 | I14: BOYACÁ | J14: Aprobado con subsidio | K14: MICRO | L14: 4752 | M14: COMERCIO AL POR MAYOR Y AL POR MENOR; REPARACIÓN DE VEHÍCULOS AUTOMOTORES Y MOTOCICLETAS | N14: G | O14: Comercio al por menor de otros enseres domésticos en establecimientos especializados | P14: Comercio al por menor de otros enseres domésticos en establecimientos especializados | Q14: 1 | R14: 2 | S14: 0 | T14: 2 | U14: 0 | V14: 1 | W14: 3 | X14: 0 | Z14: 63 | AA14: 286 | AB14: 41 | AC14: 349 | AD14: =VLOOKUP(AB14,Hoja4!$A$29:$B$61,2,FALSE) -> Huila | AJ14: 0 | AK14: 0 | AL14: 11001 | AM14: BOGOTÁ, D.C. | AN14: 2 | AO14: 0 | AP14: Natural | AQ14: 11 | AR14: BOGOTÁ, D.C. | AS14: Aprobado con subsidio | AT14: MICRO | AU14: 2920 | AV14: INDUSTRIAS MANUFACTURERAS | AW14: C | AX14: Fabricación de carrocerías para vehículos automotores; fabricación de remolques y semirremolques | AY14: Fabricación de vehículos automotores, remolques y semirremolques | AZ14: 2 | BA14: 0 | BB14: 0 | BC14: 0 | BD14: 2 | BE14: 0 | BF14: 2 | BG14: 0 | BJ14: 63 | BK14: 36 | BL14: 13 | BM14: 35 | BN14: =VLOOKUP(BL14,Hoja4!$A$29:$B$61,2,FALSE) -> Bolívar | BP14: Bolívar | BQ14: 35 | BR14: 903 | BT14: 76001 | BU14: 225 | BV14: 66170 | BW14: 47 | BX14: 66 | BY14: =VLOOKUP(BX14,Hoja4!$A$29:$B$61,2,FALSE) -> Risaralda | BZ14: =VLOOKUP(BV14,Hoja4!$D$29:$E$1150,2,FALSE) -> Dosquebradas | CA14: 47 | CB14: 969 | CD14: Fabricación de productos elaborados de metal, excepto maquinaria y equipo | CE14: 292 | CF14: 2782 | CG14: Fabricación de otros productos minerales no metálicos | CH14: 89 | CI14: 1400 | CM14: EXPLOTACIÓN DE MINAS Y CANTERAS | CN14: 1868 | CO14: 168 | CP14: 837 | CS14: OTRAS ACTIVIDADES DE SERVICIOS | CT14: 3621 | CU14: 1009 | CV14: 573 | CX14: Educación | CY14: 0.6367896895 | CZ14: 0.3202108963 | DA14: 0.04299941418
C15: 76001 | D15: CALI | E15: 1 | F15: 0 | G15: Natural | H15: 76 | I15: VALLE DEL CAUCA | J15: Aprobado con subsidio | K15: MICRO | L15: 4774 | M15: COMERCIO AL POR MAYOR Y AL POR MENOR; REPARACIÓN DE VEHÍCULOS AUTOMOTORES Y MOTOCICLETAS | N15: G | O15: Comercio al por menor de otros productos en establecimientos especializados | P15: Comercio al por menor de otros productos en establecimientos especializados | Q15: 0 | R15: 1 | S15: 0 | T15: 1 | U15: 0 | V15: 0 | W15: 1 | X15: 0 | Z15: 70 | AA15: 92 | AB15: 15 | AC15: 344 | AD15: =VLOOKUP(AB15,Hoja4!$A$29:$B$61,2,FALSE) -> Boyacá | AJ15: 0 | AK15: 0 | AL15: 15759 | AM15: SOGAMOSO | AN15: 1 | AO15: 2 | AP15: Natural | AQ15: 15 | AR15: BOYACÁ | AS15: Aprobado con subsidio | AT15: PEQUEÑA | AU15: 2395 | AV15: INDUSTRIAS MANUFACTURERAS | AW15: C | AX15: Fabricación de productos minerales no metálicos n.c.p. | AY15: Fabricación de otros productos minerales no metálicos | AZ15: 0 | BA15: 1 | BB15: 0 | BC15: 0 | BD15: 0 | BE15: 1 | BF15: 1 | BG15: 0 | BJ15: 70 | BK15: 13 | BL15: 52 | BM15: 28 | BN15: =VLOOKUP(BL15,Hoja4!$A$29:$B$61,2,FALSE) -> Nariño | BP15: Nariño | BQ15: 28 | BR15: 130 | BT15: 76248 | BU15: 3 | BV15: 25214 | BW15: 46 | BX15: 25 | BY15: =VLOOKUP(BX15,Hoja4!$A$29:$B$61,2,FALSE) -> Cundinamarca | BZ15: =VLOOKUP(BV15,Hoja4!$D$29:$E$1150,2,FALSE) -> Cota | CA15: 46 | CB15: 366 | CD15: Transformación de la madera y fabricación de productos de madera y de corcho, excepto muebles; fabricación de artículos de cestería y espartería | CE15: 85 | CF15: 634 | CG15: Transformación de la madera y fabricación de productos de madera y de corcho, excepto muebles; fabricación de artículos de cestería y espartería | CH15: 85 | CI15: 634 | CM15: ACTIVIDADES FINANCIERAS Y DE SEGUROS | CN15: 3508 | CO15: 938 | CP15: 125 | CS15: ACTIVIDADES FINANCIERAS Y DE SEGUROS | CT15: 3508 | CU15: 938 | CV15: 125 | CX15: Otras Actividades De Servicios | CY15: 0.6959446473 | CZ15: 0.1939265808 | DA15: 0.1101287719
C16: 76001 | D16: CALI | E16: 2 | F16: 1 | G16: Natural | H16: 76 | I16: VALLE DEL CAUCA | J16: Aprobado con subsidio | K16: MICRO | L16: 5511 | M16: ALOJAMIENTO Y SERVICIOS DE COMIDA | N16: I | O16: Actividades de alojamiento de estancias cortas | P16: Actividades de alojamiento de estancias cortas | Q16: 2 | R16: 0 | S16: 0 | T16: 2 | U16: 0 | V16: 0 | W16: 2 | X16: 0 | Z16: 41 | AA16: 349 | AB16: 52 | AC16: 318 | AD16: =VLOOKUP(AB16,Hoja4!$A$29:$B$61,2,FALSE) -> Nariño | AJ16: 0 | AK16: 0 | AL16: 11001 | AM16: BOGOTÁ, D.C. | AN16: 0 | AO16: 0 | AP16: Natural | AQ16: 11 | AR16: BOGOTÁ, D.C. | AS16: 0 | AT16: PEQUEÑA | AU16: 1410 | AV16: INDUSTRIAS MANUFACTURERAS | AW16: C | AX16: Confección de prendas de vestir, excepto prendas de piel | AY16: Confección de prendas de vestir | AZ16: 0 | BA16: 0 | BB16: 0 | BC16: 0 | BD16: 0 | BE16: 0 | BF16: 0 | BG16: 0 | BJ16: 41 | BK16: 24 | BL16: 50 | BM16: 27 | BN16: =VLOOKUP(BL16,Hoja4!$A$29:$B$61,2,FALSE) -> Meta | BP16: Meta | BQ16: 27 | BR16: 206 | BT16: 76892 | BU16: 50 | BV16: 5266 | BW16: 45 | BX16: 5 | BY16: =VLOOKUP(BX16,Hoja4!$A$29:$B$61,2,FALSE) -> Antioquia | BZ16: =VLOOKUP(BV16,Hoja4!$D$29:$E$1150,2,FALSE) -> Envigado | CA16: 45 | CB16: 1026 | CD16: Actividades de impresión y de producción de copias a partir de grabaciones originales | CE16: 113 | CF16: 629 | CG16: Fabricación de papel, cartón y productos de papel y cartón | CH16: 73 | CI16: 512 | CM16: ACTIVIDADES DE ATENCIÓN DE LA SALUD HUMANA Y DE ASISTENCIA SOCIAL | CN16: 21057 | CO16: 4972 | CP16: 867 | CS16: ADMINISTRACIÓN PÚBLICA Y DEFENSA; PLANES DE SEGURIDAD SOCIAL DE AFILIACIÓN OBLIGATORIA | CT16: 2605 | CU16: 340 | CV16: 7 | CX16: Actividades Financieras Y De Seguros | CY16: 0.7674469482 | CZ16: 0.2052067381 | DA16: 0.02734631372
C17: 41001 | D17: NEIVA | E17: 4 | F17: 0 | G17: Natural | H17: 41 | I17: HUILA | J17: Aprobado con subsidio | K17: MICRO | L17: 4729 | M17: COMERCIO AL POR MAYOR Y AL POR MENOR; REPARACIÓN DE VEHÍCULOS AUTOMOTORES Y MOTOCICLETAS | N17: G | O17: Comercio al por menor de alimentos (víveres en general), bebidas y tabaco, en establecimientos especializados | P17: Comercio al por menor de alimentos (víveres en general), bebidas y tabaco, en establecimientos especializados | Q17: 4 | R17: 0 | S17: 0 | T17: 1 | U17: 3 | V17: 0 | W17: 4 | X17: 0 | Z17: 25 | AA17: 1112 | AB17: 63 | AC17: 286 | AD17: =VLOOKUP(AB17,Hoja4!$A$29:$B$61,2,FALSE) -> Quindío | AJ17: 0 | AK17: 0 | AL17: 11001 | AM17: BOGOTÁ, D.C. | AN17: 2 | AO17: 9 | AP17: Natural | AQ17: 11 | AR17: BOGOTÁ, D.C. | AS17: Aprobado con subsidio | AT17: MICRO | AU17: 1081 | AV17: INDUSTRIAS MANUFACTURERAS | AW17: C | AX17: Elaboración de otros productos alimenticios | AY17: Elaboración de productos alimenticios | AZ17: 1 | BA17: 1 | BB17: 0 | BC17: 2 | BD17: 0 | BE17: 0 | BF17: 2 | BG17: 0 | BJ17: 25 | BK17: 229 | BL17: 41 | BM17: 24 | BN17: =VLOOKUP(BL17,Hoja4!$A$29:$B$61,2,FALSE) -> Huila | BP17: Huila | BQ17: 24 | BR17: 120 | BT17: 15238 | BU17: 10 | BV17: 73001 | BW17: 43 | BX17: 73 | BY17: =VLOOKUP(BX17,Hoja4!$A$29:$B$61,2,FALSE) -> Tolima | BZ17: =VLOOKUP(BV17,Hoja4!$D$29:$E$1150,2,FALSE) -> Ibagué | CA17: 43 | CB17: 490 | CD17: Fabricación de productos de caucho y de plástico | CE17: 194 | CF17: 2715 | CG17: Fabricación de aparatos y equipo eléctrico | CH17: 59 | CI17: 1315 | CM17: OTRAS ACTIVIDADES DE SERVICIOS | CN17: 3621 | CO17: 1009 | CP17: 573 | CS17: EXPLOTACIÓN DE MINAS Y CANTERAS | CT17: 1868 | CU17: 168 | CV17: 837 | CX17: Administración Pública Y Defensa; Planes De Seguridad Social De Afiliación Obligatoria | CY17: 0.8824525745 | CZ17: 0.1151761518 | DA17: 0.002371273713
C18: 52356 | D18: IPIALES | E18: 2 | F18: 0 | G18: Natural | H18: 52 | I18: NARIÑO | J18: Aprobado con subsidio | K18: MICRO | L18: 4923 | M18: TRANSPORTE Y ALMACENAMIENTO | N18: H | O18: Transporte terrestre publico automotor | P18: Transporte terrestre publico automotor | Q18: 0 | R18: 2 | S18: 0 | T18: 0 | U18: 0 | V18: 2 | W18: 2 | X18: 0 | Z18: 8 | AA18: 901 | AB18: 23 | AC18: 218 | AD18: =VLOOKUP(AB18,Hoja4!$A$29:$B$61,2,FALSE) -> Córdoba | AJ18: 0 | AK18: 0 | AL18: 11001 | AM18: BOGOTÁ, D.C. | AN18: 0 | AO18: 0 | AP18: Natural | AQ18: 11 | AR18: BOGOTÁ, D.C. | AS18: 0 | AT18: MICRO | AU18: 2592 | AV18: INDUSTRIAS MANUFACTURERAS | AW18: C | AX18: Fabricación de otros productos elaborados de metal y actividades de servicios relacionadas con el trabajo de metales | AY18: Fabricación de productos elaborados de metal, excepto maquinaria y equipo | AZ18: 0 | BA18: 0 | BB18: 0 | BC18: 0 | BD18: 0 | BE18: 0 | BF18: 0 | BG18: 0 | BJ18: 8 | BK18: 122 | BL18: 19 | BM18: 20 | BN18: =VLOOKUP(BL18,Hoja4!$A$29:$B$61,2,FALSE) -> Cauca | BP18: Cauca | BQ18: 20 | BR18: 430 | BT18: 85010 | BU18: 1 | BV18: 5615 | BW18: 38 | BX18: 5 | BY18: =VLOOKUP(BX18,Hoja4!$A$29:$B$61,2,FALSE) -> Antioquia | BZ18: =VLOOKUP(BV18,Hoja4!$D$29:$E$1150,2,FALSE) -> Rionegro | CA18: 38 | CB18: 1391 | CD18: Fabricación de papel, cartón y productos de papel y cartón | CE18: 73 | CF18: 512 | CG18: Fabricación de vehículos automotores, remolques y semirremolques | CH18: 57 | CI18: 707 | CM18: INFORMACIÓN Y COMUNICACIONES | CN18: 23851 | CO18: 2970 | CP18: 3080 | CS18: ACTIVIDADES INMOBILIARIAS | CT18: 1448 | CU18: 483 | CV18: 350 | CX18: Explotación De Minas Y Canteras | CY18: 0.6501914375 | CZ18: 0.05847546119 | DA18: 0.2913331013
C19: 54001 | D19: CÚCUTA | E19: 7 | F19: 12 | G19: Natural | H19: 54 | I19: NORTE DE SANTANDER | J19: Aprobado con subsidio | K19: PEQUEÑA | L19: 90 | M19: OTRAS | N19: Otras | O19: Otras | P19: Otras | Q19: 1 | R19: 6 | S19: 0 | T19: 0 | U19: 1 | V19: 6 | W19: 7 | X19: 0 | Z19: 85 | AA19: 137 | AB19: 47 | AC19: 214 | AD19: =VLOOKUP(AB19,Hoja4!$A$29:$B$61,2,FALSE) -> Magdalena | AJ19: 0 | AK19: 0 | AL19: 18205 | AM19: CURILLO | AN19: 5 | AO19: 7 | AP19: Natural | AQ19: 18 | AR19: CAQUETÁ | AS19: Aprobado con subsidio | AT19: MICRO | AU19: 1040 | AV19: INDUSTRIAS MANUFACTURERAS | AW19: C | AX19: Elaboración de productos lácteos | AY19: Elaboración de productos alimenticios | AZ19: 1 | BA19: 4 | BB19: 0 | BC19: 2 | BD19: 1 | BE19: 2 | BF19: 5 | BG19: 0 | BJ19: 85 | BK19: 11 | BL19: 23 | BM19: 17 | BN19: =VLOOKUP(BL19,Hoja4!$A$29:$B$61,2,FALSE) -> Córdoba | BP19: Córdoba | BQ19: 17 | BR19: 489 | BT19: 8001 | BU19: 101 | BV19: 76520 | BW19: 36 | BX19: 76 | BY19: =VLOOKUP(BX19,Hoja4!$A$29:$B$61,2,FALSE) -> Valle del cauca | BZ19: =VLOOKUP(BV19,Hoja4!$D$29:$E$1150,2,FALSE) -> Palmira | CA19: 36 | CB19: 560 | CD19: Elaboración de bebidas | CE19: 47 | CF19: 559 | CG19: Elaboración de bebidas | CH19: 47 | CI19: 559 | CM19: ACTIVIDADES DE LOS HOGARES INDIVIDUALES EN CALIDAD DE EMPLEADORES; ACTIVIDADES NO DIFERENCIADAS DE LOS HOGARES INDIVIDUALES COMO PRODUCTORES DE BIENES Y SERVICIOS PARA USO PROPIO | CN19: 28 | CO19: 30 | CP19: 0 | CS19: DISTRIBUCIÓN DE AGUA; EVACUACIÓN Y TRATAMIENTO DE AGUAS RESIDUALES, GESTIÓN DE DESECHOS Y ACTIVIDADES DE SANEAMIENTO AMBIENTAL | CT19: 1208 | CU19: 178 | CV19: 211 | CX19: Actividades Inmobiliarias | CY19: 0.6348092942 | CZ19: 0.2117492328 | DA19: 0.153441473
C20: 54405 | D20: LOS PATIOS | E20: 2 | F20: 0 | G20: Natural | H20: 54 | I20: NORTE DE SANTANDER | J20: Aprobado con subsidio | K20: MICRO | L20: 4923 | M20: TRANSPORTE Y ALMACENAMIENTO | N20: H | O20: Transporte terrestre publico automotor | P20: Transporte terrestre publico automotor | Q20: 1 | R20: 1 | S20: 0 | T20: 1 | U20: 0 | V20: 1 | W20: 2 | X20: 0 | Z20: 73 | AA20: 427 | AB20: 20 | AC20: 182 | AD20: =VLOOKUP(AB20,Hoja4!$A$29:$B$61,2,FALSE) -> Cesar | AJ20: 0 | AK20: 0 | AL20: 52560 | AM20: POTOSÍ | AN20: 2 | AO20: 4 | AP20: Natural | AQ20: 52 | AR20: NARIÑO | AS20: Aprobado con subsidio | AT20: MICRO | AU20: 1040 | AV20: INDUSTRIAS MANUFACTURERAS | AW20: C | AX20: Elaboración de productos lácteos | AY20: Elaboración de productos alimenticios | AZ20: 1 | BA20: 1 | BB20: 0 | BC20: 2 | BD20: 0 | BE20: 0 | BF20: 2 | BG20: 0 | BJ20: 73 | BK20: 49 | BL20: 47 | BM20: 14 | BN20: =VLOOKUP(BL20,Hoja4!$A$29:$B$61,2,FALSE) -> Magdalena | BP20: Magdalena | BQ20: 14 | BR20: 52 | BT20: 63001 | BU20: 25 | BV20: 13001 | BW20: 33 | BX20: 13 | BY20: =VLOOKUP(BX20,Hoja4!$A$29:$B$61,2,FALSE) -> Bolívar | BZ20: =VLOOKUP(BV20,Hoja4!$D$29:$E$1150,2,FALSE) -> Cartagena de ind | CA20: 33 | CB20: 580 | CD20: Fabricación de maquinaria y equipo n.c.p. | CE20: 94 | CF20: 1124 | CG20: Fabricación de productos farmacéuticos, sustancias químicas medicinales y productos botánicos de uso farmacéutico | CH20: 44 | CI20: 849 | CM20: SUMINISTRO DE ELECTRICIDAD, GAS, VAPOR Y AIRE ACONDICIONADO | CN20: 336 | CO20: 58 | CP20: 55 | CS20: SUMINISTRO DE ELECTRICIDAD, GAS, VAPOR Y AIRE ACONDICIONADO | CT20: 336 | CU20: 58 | CV20: 55 | CX20: Distribución De Agua; Evacuación Y Tratamiento De Aguas Residuales, Gestión De Desechos Y Actividades De Saneamiento Ambiental | CY20: 0.7564182843 | CZ20: 0.1114589856 | DA20: 0.1321227301
C21: 68276 | D21: FLORIDABLANCA | E21: 1 | F21: 2 | G21: Natural | H21: 68 | I21: SANTANDER | J21: Aprobado con subsidio | K21: MICRO | L21: 126 | M21: AGRICULTURA, GANADERÍA, CAZA, SILVICULTURA Y PESCA | N21: A | O21: Cultivos agrícolas permanentes | P21: Cultivos agrícolas permanentes | Q21: 0 | R21: 1 | S21: 0 | T21: 1 | U21: 0 | V21: 0 | W21: 1 | X21: 0 | Z21: 20 | AA21: 182 | AB21: 19 | AC21: 154 | AD21: =VLOOKUP(AB21,Hoja4!$A$29:$B$61,2,FALSE) -> Cauca | AJ21: 0 | AK21: 0 | AL21: 54001 | AM21: CÚCUTA | AN21: 1 | AO21: 8 | AP21: Natural | AQ21: 54 | AR21: NORTE DE SANTANDER | AS21: Aprobado con subsidio | AT21: MICRO | AU21: 2599 | AV21: INDUSTRIAS MANUFACTURERAS | AW21: C | AX21: Fabricación de otros productos elaborados de metal y actividades de servicios relacionadas con el trabajo de metales | AY21: Fabricación de productos elaborados de metal, excepto maquinaria y equipo | AZ21: 0 | BA21: 1 | BB21: 0 | BC21: 1 | BD21: 0 | BE21: 0 | BF21: 1 | BG21: 0 | BJ21: 20 | BK21: 12 | BL21: 70 | BM21: 13 | BN21: =VLOOKUP(BL21,Hoja4!$A$29:$B$61,2,FALSE) -> Sucre | BP21: Sucre | BQ21: 13 | BR21: 50 | BT21: 20001 | BU21: 7 | BV21: 25754 | BW21: 31 | BX21: 25 | BY21: =VLOOKUP(BX21,Hoja4!$A$29:$B$61,2,FALSE) -> Cundinamarca | BZ21: =VLOOKUP(BV21,Hoja4!$D$29:$E$1150,2,FALSE) -> Soacha | CA21: 31 | CB21: 361 | CD21: Fabricación de productos metalúrgicos básicos | CE21: 42 | CF21: 724 | CG21: Fabricación de productos metalúrgicos básicos | CH21: 42 | CI21: 724 | CM21: ADMINISTRACIÓN PÚBLICA Y DEFENSA; PLANES DE SEGURIDAD SOCIAL DE AFILIACIÓN OBLIGATORIA | CN21: 2605 | CO21: 340 | CP21: 7 | CS21: ACTIVIDADES DE LOS HOGARES INDIVIDUALES EN CALIDAD DE EMPLEADORES; ACTIVIDADES NO DIFERENCIADAS DE LOS HOGARES INDIVIDUALES COMO PRODUCTORES DE BIENES Y SERVICIOS PARA USO PROPIO | CT21: 28 | CU21: 30 | CV21: 0 | CX21: Suministro De Electricidad, Gas, Vapor Y Aire Acondicionado | CY21: 0.7483296214 | CZ21: 0.1291759465 | DA21: 0.1224944321
C22: 54001 | D22: CÚCUTA | E22: 0 | F22: 0 | G22: Natural | H22: 54 | I22: NORTE DE SANTANDER | J22: 0 | K22: PEQUEÑA | L22: 6910 | M22: ACTIVIDADES PROFESIONALES, CIENTÍFICAS Y TÉCNICAS | N22: M | O22: Actividades jurídicas | P22: Actividades jurídicas | Q22: 0 | R22: 0 | S22: 0 | T22: 0 | U22: 0 | V22: 0 | W22: 0 | X22: 0 | Z22: 97 | AA22: 2 | AB22: 85 | AC22: 137 | AD22: =VLOOKUP(AB22,Hoja4!$A$29:$B$61,2,FALSE) -> Casanare | AJ22: 0 | AK22: 0 | AL22: 68001 | AM22: BUCARAMANGA | AN22: 1 | AO22: 1 | AP22: Natural | AQ22: 68 | AR22: SANTANDER | AS22: Aprobado con subsidio | AT22: PEQUEÑA | AU22: 1610 | AV22: INDUSTRIAS MANUFACTURERAS | AW22: C | AX22: Aserrado, acepillado e impregnación de la madera | AY22: Transformación de la madera y fabricación de productos de madera y de corcho, excepto muebles; fabricación de artículos de cestería y espartería | AZ22: 0 | BA22: 1 | BB22: 0 | BC22: 1 | BD22: 0 | BE22: 0 | BF22: 1 | BG22: 0 | BJ22: 97 | BK22: 0 | BL22: 20 | BM22: 12 | BN22: =VLOOKUP(BL22,Hoja4!$A$29:$B$61,2,FALSE) -> Cesar | BP22: Cesar | BQ22: 12 | BR22: 115 | BT22: 5318 | BU22: 18 | BV22: 5088 | BW22: 30 | BX22: 5 | BY22: =VLOOKUP(BX22,Hoja4!$A$29:$B$61,2,FALSE) -> Antioquia | BZ22: =VLOOKUP(BV22,Hoja4!$D$29:$E$1150,2,FALSE) -> Bello | CA22: 30 | CB22: 240 | CD22: Fabricación de productos farmacéuticos, sustancias químicas medicinales y productos botánicos de uso farmacéutico | CE22: 44 | CF22: 849 | CG22: Fabricación de productos informáticos, electrónicos y ópticos | CH22: 23 | CI22: 225 | CM22: DISTRIBUCIÓN DE AGUA; EVACUACIÓN Y TRATAMIENTO DE AGUAS RESIDUALES, GESTIÓN DE DESECHOS Y ACTIVIDADES DE SANEAMIENTO AMBIENTAL | CN22: 1208 | CO22: 178 | CP22: 211 | CS22: OTRAS | CT22: 8 | CU22: 4 | CV22: 11 | CX22: Actividades De Los Hogares Individuales En Calidad De Empleadores; Actividades No Diferenciadas De Los Hogares Individuales Como Productores De Bienes Y Servicios Para Uso Propio | CY22: 0.4827586207 | CZ22: 0.5172413793 | DA22: 0
C23: 76400 | D23: LA UNIÓN | E23: 0 | F23: 0 | G23: Natural | H23: 76 | I23: VALLE DEL CAUCA | J23: 0 | K23: MICRO | L23: 4620 | M23: COMERCIO AL POR MAYOR Y AL POR MENOR; REPARACIÓN DE VEHÍCULOS AUTOMOTORES Y MOTOCICLETAS | N23: G | O23: Comercio al por mayor de materias primas agropecuarias; animales vivos | P23: Comercio al por mayor de materias primas agropecuarias; animales vivos | Q23: 0 | R23: 0 | S23: 0 | T23: 0 | U23: 0 | V23: 0 | W23: 0 | X23: 0 | Z23: 81 | AA23: 43 | AB23: 18 | AC23: 97 | AD23: =VLOOKUP(AB23,Hoja4!$A$29:$B$61,2,FALSE) -> Caquetá | AJ23: 0 | AK23: 0 | AL23: 54001 | AM23: CÚCUTA | AN23: 2 | AO23: 2 | AP23: Natural | AQ23: 54 | AR23: NORTE DE SANTANDER | AS23: Aprobado con subsidio | AT23: MICRO | AU23: 1410 | AV23: INDUSTRIAS MANUFACTURERAS | AW23: C | AX23: Confección de prendas de vestir, excepto prendas de piel | AY23: Confección de prendas de vestir | AZ23: 1 | BA23: 1 | BB23: 0 | BC23: 2 | BD23: 0 | BE23: 0 | BF23: 2 | BG23: 0 | BJ23: 81 | BK23: 2 | BL23: 85 | BM23: 11 | BN23: =VLOOKUP(BL23,Hoja4!$A$29:$B$61,2,FALSE) -> Casanare | BP23: Casanare | BQ23: 11 | BR23: 154 | BT23: 41001 | BU23: 20 | BV23: 25473 | BW23: 27 | BX23: 25 | BY23: =VLOOKUP(BX23,Hoja4!$A$29:$B$61,2,FALSE) -> Cundinamarca | BZ23: =VLOOKUP(BV23,Hoja4!$D$29:$E$1150,2,FALSE) -> Mosquera | CA23: 27 | CB23: 303 | CD23: Fabricación de productos informáticos, electrónicos y ópticos | CE23: 23 | CF23: 225 | CG23: Fabricación de otros tipos de equipo de transporte | CH23: 12 | CI23: 560 | CM23: 0 | CN23: 0 | CO23: 0 | CP23: 0 | CS23: 0 | CT23: 0 | CU23: 0 | CV23: 0 | CX23: Otras | CY23: 0.347826087 | CZ23: 0.1739130435 | DA23: 0.4782608696
C24: 63001 | D24: ARMENIA | E24: 0 | F24: 0 | G24: Natural | H24: 63 | I24: QUINDÍO | J24: 0 | K24: PEQUEÑA | L24: 4771 | M24: COMERCIO AL POR MAYOR Y AL POR MENOR; REPARACIÓN DE VEHÍCULOS AUTOMOTORES Y MOTOCICLETAS | N24: G | O24: Comercio al por menor de otros productos en establecimientos especializados | P24: Comercio al por menor de otros productos en establecimientos especializados | Q24: 0 | R24: 0 | S24: 0 | T24: 0 | U24: 0 | V24: 0 | W24: 0 | X24: 0 | Z24: 44 | AA24: 47 | AB24: 70 | AC24: 92 | AD24: =VLOOKUP(AB24,Hoja4!$A$29:$B$61,2,FALSE) -> Sucre | AJ24: 0 | AK24: 0 | AL24: 68861 | AM24: VÉLEZ | AN24: 1 | AO24: 0 | AP24: Natural | AQ24: 68 | AR24: SANTANDER | AS24: Aprobado con subsidio | AT24: MICRO | AU24: 1089 | AV24: INDUSTRIAS MANUFACTURERAS | AW24: C | AX24: Elaboración de otros productos alimenticios | AY24: Elaboración de productos alimenticios | AZ24: 1 | BA24: 0 | BB24: 0 | BC24: 1 | BD24: 0 | BE24: 0 | BF24: 1 | BG24: 0 | BJ24: 44 | BK24: 0 | BL24: 18 | BM24: 9 | BN24: =VLOOKUP(BL24,Hoja4!$A$29:$B$61,2,FALSE) -> Caquetá | BP24: Caquetá | BQ24: 9 | BR24: 48 | BT24: 18753 | BU24: 2 | BV24: 68307 | BW24: 26 | BX24: 68 | BY24: =VLOOKUP(BX24,Hoja4!$A$29:$B$61,2,FALSE) -> Santander | BZ24: =VLOOKUP(BV24,Hoja4!$D$29:$E$1150,2,FALSE) -> Girón | CA24: 26 | CB24: 368 | CD24: Fabricación de otros tipos de equipo de transporte | CE24: 12 | CF24: 560 | CG24: Coquización, fabricación de productos de la refinación del petróleo y actividad de mezcla de combustibles | CH24: 8 | CI24: 49
C25: 52001 | D25: PASTO | E25: 0 | F25: 0 | G25: Natural | H25: 52 | I25: NARIÑO | J25: 0 | K25: MICRO | L25: 5611 | M25: ALOJAMIENTO Y SERVICIOS DE COMIDA | N25: I | O25: Actividades de restaurantes, cafeterías y servicio móvil de comidas | P25: Actividades de restaurantes, cafeterías y servicio móvil de comidas | Q25: 0 | R25: 0 | S25: 0 | T25: 0 | U25: 0 | V25: 0 | W25: 0 | X25: 0 | Z25: 17 | AA25: 401 | AB25: 44 | AC25: 47 | AD25: =VLOOKUP(AB25,Hoja4!$A$29:$B$61,2,FALSE) -> La guajira | AJ25: 0 | AK25: 0 | AL25: 76001 | AM25: CALI | AN25: 2 | AO25: 9 | AP25: Natural | AQ25: 76 | AR25: VALLE DEL CAUCA | AS25: Aprobado con subsidio | AT25: MICRO | AU25: 1811 | AV25: INDUSTRIAS MANUFACTURERAS | AW25: C | AX25: Actividades de impresión y actividades de servicios relacionados con la impresión | AY25: Actividades de impresión y de producción de copias a partir de grabaciones originales | AZ25: 2 | BA25: 0 | BB25: 0 | BC25: 2 | BD25: 0 | BE25: 0 | BF25: 2 | BG25: 0 | BJ25: 17 | BK25: 67 | BL25: 86 | BM25: 3 | BN25: =VLOOKUP(BL25,Hoja4!$A$29:$B$61,2,FALSE) -> Putumayo | BP25: =BN25 -> Putumayo | BQ25: =BM25 -> 3 | BR25: 5 | BT25: 95001 | BU25: 0 | BV25: 25286 | BW25: 26 | BX25: 25 | BY25: =VLOOKUP(BX25,Hoja4!$A$29:$B$61,2,FALSE) -> Cundinamarca | BZ25: =VLOOKUP(BV25,Hoja4!$D$29:$E$1150,2,FALSE) -> Funza | CA25: 26 | CB25: 283 | CD25: Elaboración de productos de tabaco | CE25: 2 | CF25: 107 | CG25: Elaboración de productos de tabaco | CH25: 2 | CI25: 107
C26: 76828 | D26: TRUJILLO | E26: 6 | F26: 0 | G26: Natural | H26: 76 | I26: VALLE DEL CAUCA | J26: Aprobado con subsidio | K26: MICRO | L26: 4752 | M26: COMERCIO AL POR MAYOR Y AL POR MENOR; REPARACIÓN DE VEHÍCULOS AUTOMOTORES Y MOTOCICLETAS | N26: G | O26: Comercio al por menor de otros enseres domésticos en establecimientos especializados | P26: Comercio al por menor de otros enseres domésticos en establecimientos especializados | Q26: 3 | R26: 3 | S26: 0 | T26: 3 | U26: 0 | V26: 3 | W26: 6 | X26: 0 | Z26: 18 | AA26: 97 | AB26: 86 | AC26: 45 | AD26: =VLOOKUP(AB26,Hoja4!$A$29:$B$61,2,FALSE) -> Putumayo | AJ26: 0 | AK26: 0 | AL26: 11001 | AM26: BOGOTÁ, D.C. | AN26: 0 | AO26: 0 | AP26: Natural | AQ26: 11 | AR26: BOGOTÁ, D.C. | AS26: 0 | AT26: MICRO | AU26: 2599 | AV26: INDUSTRIAS MANUFACTURERAS | AW26: C | AX26: Fabricación de otros productos elaborados de metal y actividades de servicios relacionadas con el trabajo de metales | AY26: Fabricación de productos elaborados de metal, excepto maquinaria y equipo | AZ26: 0 | BA26: 0 | BB26: 0 | BC26: 0 | BD26: 0 | BE26: 0 | BF26: 0 | BG26: 0 | BJ26: 18 | BK26: 9 | BL26: 81 | BM26: 2 | BN26: =VLOOKUP(BL26,Hoja4!$A$29:$B$61,2,FALSE) -> Arauca | BP26: Arauca | BQ26: =BM26 -> 2 | BR26: 247 | BT26: 5686 | BU26: 5 | BV26: 63001 | BW26: 25 | BX26: 63 | BY26: =VLOOKUP(BX26,Hoja4!$A$29:$B$61,2,FALSE) -> Quindío | BZ26: =VLOOKUP(BV26,Hoja4!$D$29:$E$1150,2,FALSE) -> Armenia | CA26: 25 | CB26: 288 | CD26: 0 | CE26: 0 | CF26: 0 | CG26: 0 | CH26: 0 | CI26: 0
C27: 76001 | D27: CALI | E27: 1 | F27: 1 | G27: Natural | H27: 76 | I27: VALLE DEL CAUCA | J27: Aprobado con subsidio | K27: MICRO | L27: 121 | M27: AGRICULTURA, GANADERÍA, CAZA, SILVICULTURA Y PESCA | N27: A | O27: Cultivos agrícolas permanentes | P27: Cultivos agrícolas permanentes | Q27: 1 | R27: 0 | S27: 0 | T27: 1 | U27: 0 | V27: 0 | W27: 1 | X27: 0 | Z27: 23 | AA27: 218 | AB27: 81 | AC27: 43 | AD27: =VLOOKUP(AB27,Hoja4!$A$29:$B$61,2,FALSE) -> Arauca | AJ27: 0 | AK27: 0 | AL27: 5001 | AM27: MEDELLÍN | AN27: 0 | AO27: 0 | AP27: Natural | AQ27: 5 | AR27: ANTIOQUIA | AS27: 0 | AT27: PEQUEÑA | AU27: 1410 | AV27: INDUSTRIAS MANUFACTURERAS | AW27: C | AX27: Confección de prendas de vestir, excepto prendas de piel | AY27: Confección de prendas de vestir | AZ27: 0 | BA27: 0 | BB27: 0 | BC27: 0 | BD27: 0 | BE27: 0 | BF27: 0 | BG27: 0 | BJ27: 23 | BK27: 17 | BL27: 97 | BM27: 0 | BN27: =VLOOKUP(BL27,Hoja4!$A$29:$B$61,2,FALSE) -> Vaupés | BP27: Vaupés | BQ27: =BM27 -> 0 | BR27: 0 | BT27: 5631 | BU27: 47 | BV27: 52001 | BW27: 22 | BX27: 52 | BY27: =VLOOKUP(BX27,Hoja4!$A$29:$B$61,2,FALSE) -> Nariño | BZ27: =VLOOKUP(BV27,Hoja4!$D$29:$E$1150,2,FALSE) -> Pasto | CA27: 22 | CB27: 111 | CE27: 0 | CF27: 0
C28: 5615 | D28: RIONEGRO | E28: 0 | F28: 0 | G28: Natural | H28: 5 | I28: ANTIOQUIA | J28: 0 | K28: PEQUEÑA | L28: 2012 | M28: INDUSTRIAS MANUFACTURERAS | N28: C | O28: Fabricación de sustancias químicas básicas, abonos y compuestos inorgánicos nitrogenados, plásticos y caucho sintético en formas primarias | P28: Fabricación de sustancias y productos químicos | Q28: 0 | R28: 0 | S28: 0 | T28: 0 | U28: 0 | V28: 0 | W28: 0 | X28: 0 | Z28: 88 | AA28: 26 | AB28: 88 | AC28: 26 | AD28: =VLOOKUP(AB28,Hoja4!$A$29:$B$61,2,FALSE) -> San Andrés | AJ28: 0 | AK28: 0 | AL28: 76248 | AM28: EL CERRITO | AN28: 0 | AO28: 0 | AP28: Natural | AQ28: 76 | AR28: VALLE DEL CAUCA | AS28: 0 | AT28: MICRO | AU28: 3110 | AV28: INDUSTRIAS MANUFACTURERAS | AW28: C | AX28: Fabricación de muebles | AY28: Fabricación de muebles, colchones y somieres | AZ28: 0 | BA28: 0 | BB28: 0 | BC28: 0 | BD28: 0 | BE28: 0 | BF28: 0 | BG28: 0 | BJ28: 88 | BK28: 0 | BL28: 44 | BM28: 0 | BN28: =VLOOKUP(BL28,Hoja4!$A$29:$B$61,2,FALSE) -> La guajira | BP28: La guajira | BQ28: =BM28 -> 0 | BR28: 0 | BT28: 5368 | BU28: 2 | BV28: 41001 | BW28: 20 | BX28: 41 | BY28: =VLOOKUP(BX28,Hoja4!$A$29:$B$61,2,FALSE) -> Huila | BZ28: =VLOOKUP(BV28,Hoja4!$D$29:$E$1150,2,FALSE) -> Neiva | CA28: 20 | CB28: 109 | CE28: =SUM(CE2:CE27) -> 3562 | CF28: =SUM(CF2:CF27) -> 56041
C29: 11001 | D29: BOGOTÁ, D.C. | E29: 2 | F29: 1 | G29: Natural | H29: 11 | I29: BOGOTÁ, D.C. | J29: Aprobado con subsidio | K29: MICRO | L29: 1313 | M29: INDUSTRIAS MANUFACTURERAS | N29: C | O29: Preparación, hilatura, tejeduría y acabado de productos textiles | P29: Fabricación de productos textiles | Q29: 2 | R29: 0 | S29: 0 | T29: 1 | U29: 1 | V29: 0 | W29: 2 | X29: 0 | Z29: 91 | AA29: 15 | AB29: 27 | AC29: 16 | AD29: =VLOOKUP(AB29,Hoja4!$A$29:$B$61,2,FALSE) -> Chocó | AJ29: 0 | AK29: 0 | AL29: 76892 | AM29: YUMBO | AN29: 0 | AO29: 0 | AP29: Natural | AQ29: 76 | AR29: VALLE DEL CAUCA | AS29: 0 | AT29: MICRO | AU29: 1690 | AV29: INDUSTRIAS MANUFACTURERAS | AW29: C | AX29: Fabricación de otros productos de madera; fabricación de artículos de corcho, cestería y espartería | AY29: Transformación de la madera y fabricación de productos de madera y de corcho, excepto muebles; fabricación de artículos de cestería y espartería | AZ29: 0 | BA29: 0 | BB29: 0 | BC29: 0 | BD29: 0 | BE29: 0 | BF29: 0 | BG29: 0 | BJ29: 91 | BK29: 0 | BL29: 88 | BM29: 0 | BN29: =VLOOKUP(BL29,Hoja4!$A$29:$B$61,2,FALSE) -> San Andrés | BP29: Otros | BQ29: =SUM(BM29:BM34) -> 0 | BR29: =SUMIFS($AN$2:$AN$399999,$AS$2:$AS$399999,"Aprobado con subsidio")-SUM(BR2:BR28) -> 0 | BT29: 15087 | BU29: 0 | BV29: 50001 | BW29: 19 | BY29: Otros | BZ29: Otros | CA29: =SUM(BW29:BW1000) -> 606 | CB29: =SUMIFS($AN$2:$AN$399999,$AS$2:$AS$399999,"Aprobado con subsidio")-SUM(CB2:CB28) -> 9138
C30: 25214 | D30: COTA | E30: 0 | F30: 0 | G30: Natural | H30: 25 | I30: CUNDINAMARCA | J30: 0 | K30: PEQUEÑA | L30: 8530 | M30: EDUCACIÓN | N30: P | O30: Establecimientos que combinan diferentes niveles de educación | P30: Establecimientos que combinan diferentes niveles de educación | Q30: 0 | R30: 0 | S30: 0 | T30: 0 | U30: 0 | V30: 0 | W30: 0 | X30: 0 | Z30: 95 | AA30: 8 | AB30: 91 | AC30: 15 | AD30: =VLOOKUP(AB30,Hoja4!$A$29:$B$61,2,FALSE) -> Amazonas | AJ30: 0 | AK30: 0 | AL30: 76001 | AM30: CALI | AN30: 2 | AO30: 1 | AP30: Natural | AQ30: 76 | AR30: VALLE DEL CAUCA | AS30: Aprobado con subsidio | AT30: MICRO | AU30: 1081 | AV30: INDUSTRIAS MANUFACTURERAS | AW30: C | AX30: Elaboración de otros productos alimenticios | AY30: Elaboración de productos alimenticios | AZ30: 1 | BA30: 1 | BB30: 0 | BC30: 0 | BD30: 1 | BE30: 1 | BF30: 2 | BG30: 0 | BJ30: 95 | BK30: 0 | BL30: 91 | BM30: 0 | BN30: =VLOOKUP(BL30,Hoja4!$A$29:$B$61,2,FALSE) -> Amazonas | BP30: Total | BQ30: =SUM(BQ2:BQ29) -> 3562 | BR30: =SUM(BR2:BR29) -> 56041 | BT30: 85139 | BU30: 1 | BV30: 68276 | BW30: 19 | BY30: Total | CA30: =SUM(CA2:CA29) -> 3562 | CB30: =SUM(CB2:CB29) -> 56041
C31: 50001 | D31: VILLAVICENCIO | E31: 0 | F31: 0 | G31: Natural | H31: 50 | I31: META | J31: 0 | K31: MICRO | L31: 4530 | M31: COMERCIO AL POR MAYOR Y AL POR MENOR; REPARACIÓN DE VEHÍCULOS AUTOMOTORES Y MOTOCICLETAS | N31: G | O31: Comercio de partes, piezas (autopartes) y accesorios (lujos) para vehículos automotores | P31: Comercio de partes, piezas (autopartes) y accesorios (lujos) para vehículos automotores | Q31: 0 | R31: 0 | S31: 0 | T31: 0 | U31: 0 | V31: 0 | W31: 0 | X31: 0 | Z31: 86 | AA31: 45 | AB31: 95 | AC31: 8 | AD31: =VLOOKUP(AB31,Hoja4!$A$29:$B$61,2,FALSE) -> Guaviare | AJ31: 0 | AK31: 0 | AL31: 76001 | AM31: CALI | AN31: 1 | AO31: 9 | AP31: Natural | AQ31: 76 | AR31: VALLE DEL CAUCA | AS31: Aprobado con subsidio | AT31: PEQUEÑA | AU31: 1410 | AV31: INDUSTRIAS MANUFACTURERAS | AW31: C | AX31: Confección de prendas de vestir, excepto prendas de piel | AY31: Confección de prendas de vestir | AZ31: 1 | BA31: 0 | BB31: 0 | BC31: 1 | BD31: 0 | BE31: 0 | BF31: 1 | BG31: 0 | BJ31: 86 | BK31: 3 | BL31: 95 | BM31: 0 | BN31: =VLOOKUP(BL31,Hoja4!$A$29:$B$61,2,FALSE) -> Guaviare | BT31: 85001 | BU31: 8 | BV31: 5318 | BW31: 18
C32: 11001 | D32: BOGOTÁ, D.C. | E32: 1 | F32: 1 | G32: Natural | H32: 11 | I32: BOGOTÁ, D.C. | J32: Aprobado con subsidio | K32: MICRO | L32: 4754 | M32: COMERCIO AL POR MAYOR Y AL POR MENOR; REPARACIÓN DE VEHÍCULOS AUTOMOTORES Y MOTOCICLETAS | N32: G | O32: Comercio al por menor de otros enseres domésticos en establecimientos especializados | P32: Comercio al por menor de otros enseres domésticos en establecimientos especializados | Q32: 0 | R32: 1 | S32: 0 | T32: 1 | U32: 0 | V32: 0 | W32: 1 | X32: 0 | Z32: 27 | AA32: 16 | AB32: 94 | AC32: 4 | AD32: =VLOOKUP(AB32,Hoja4!$A$29:$B$61,2,FALSE) -> Guainía | AJ32: 0 | AK32: 0 | AL32: 15238 | AM32: DUITAMA | AN32: 2 | AO32: 0 | AP32: Natural | AQ32: 15 | AR32: BOYACÁ | AS32: Aprobado con subsidio | AT32: MICRO | AU32: 1392 | AV32: INDUSTRIAS MANUFACTURERAS | AW32: C | AX32: Fabricación de otros productos textiles | AY32: Fabricación de productos textiles | AZ32: 0 | BA32: 2 | BB32: 0 | BC32: 1 | BD32: 0 | BE32: 1 | BF32: 2 | BG32: 0 | BJ32: 27 | BK32: 0 | BL32: 27 | BM32: 0 | BN32: =VLOOKUP(BL32,Hoja4!$A$29:$B$61,2,FALSE) -> Chocó | BT32: 20011 | BU32: 1 | BV32: 25817 | BW32: 17
C33: 11001 | D33: BOGOTÁ, D.C. | E33: 2 | F33: 2 | G33: Natural | H33: 11 | I33: BOGOTÁ, D.C. | J33: Aprobado con subsidio | K33: MICRO | L33: 8512 | M33: EDUCACIÓN | N33: P | O33: Educación de la primera infancia, preescolar y básica primaria | P33: Educación de la primera infancia, preescolar y básica primaria | Q33: 2 | R33: 0 | S33: 0 | T33: 0 | U33: 2 | V33: 0 | W33: 2 | X33: 0 | Z33: 94 | AA33: 4 | AB33: 97 | AC33: 2 | AD33: =VLOOKUP(AB33,Hoja4!$A$29:$B$61,2,FALSE) -> Vaupés | AJ33: 0 | AK33: 0 | AL33: 11001 | AM33: BOGOTÁ, D.C. | AN33: 1 | AO33: 0 | AP33: Natural | AQ33: 11 | AR33: BOGOTÁ, D.C. | AS33: Aprobado con subsidio | AT33: MICRO | AU33: 1081 | AV33: INDUSTRIAS MANUFACTURERAS | AW33: C | AX33: Elaboración de otros productos alimenticios | AY33: Elaboración de productos alimenticios | AZ33: 1 | BA33: 0 | BB33: 0 | BC33: 0 | BD33: 1 | BE33: 0 | BF33: 1 | BG33: 0 | BJ33: 94 | BK33: 0 | BL33: 94 | BM33: 0 | BN33: =VLOOKUP(BL33,Hoja4!$A$29:$B$61,2,FALSE) -> Guainía | BT33: 66170 | BU33: 47 | BV33: 5697 | BW33: 16
C34: 25181 | D34: CHOACHÍ | E34: 1 | F34: 0 | G34: Natural | H34: 25 | I34: CUNDINAMARCA | J34: Aprobado con subsidio | K34: MICRO | L34: 145 | M34: AGRICULTURA, GANADERÍA, CAZA, SILVICULTURA Y PESCA | N34: A | O34: Ganadería | P34: Ganadería | Q34: 0 | R34: 1 | S34: 0 | T34: 0 | U34: 0 | V34: 1 | W34: 1 | X34: 0 | Z34: 99 | AA34: 2 | AB34: 99 | AC34: 2 | AD34: =VLOOKUP(AB34,Hoja4!$A$29:$B$61,2,FALSE) -> Vichada | AJ34: 0 | AK34: 0 | AL34: 15238 | AM34: DUITAMA | AN34: 0 | AO34: 0 | AP34: Natural | AQ34: 15 | AR34: BOYACÁ | AS34: 0 | AT34: MICRO | AU34: 1040 | AV34: INDUSTRIAS MANUFACTURERAS | AW34: C | AX34: Elaboración de productos lácteos | AY34: Elaboración de productos alimenticios | AZ34: 0 | BA34: 0 | BB34: 0 | BC34: 0 | BD34: 0 | BE34: 0 | BF34: 0 | BG34: 0 | BJ34: 99 | BK34: 0 | BL34: 99 | BM34: 0 | BN34: =VLOOKUP(BL34,Hoja4!$A$29:$B$61,2,FALSE) -> Vichada | BT34: 66682 | BU34: 2 | BV34: 25430 | BW34: 16
C35: 25181 | D35: CHOACHÍ | E35: 1 | F35: 1 | G35: Natural | H35: 25 | I35: CUNDINAMARCA | J35: Aprobado con subsidio | K35: PEQUEÑA | L35: 4663 | M35: COMERCIO AL POR MAYOR Y AL POR MENOR; REPARACIÓN DE VEHÍCULOS AUTOMOTORES Y MOTOCICLETAS | N35: G | O35: Comercio al por mayor especializado de otros productos | P35: Comercio al por mayor especializado de otros productos | Q35: 0 | R35: 1 | S35: 0 | T35: 0 | U35: 0 | V35: 1 | W35: 1 | X35: 0 | AJ35: 0 | AK35: 0 | AL35: 85010 | AM35: AGUAZUL | AN35: 0 | AO35: 0 | AP35: Natural | AQ35: 85 | AR35: CASANARE | AS35: 0 | AT35: GRANDE | AU35: 3311 | AV35: INDUSTRIAS MANUFACTURERAS | AW35: C | AX35: Mantenimiento y reparación especializado de productos elaborados en metal y de maquinaria y equipo | AY35: Instalación, mantenimiento y reparación especializado de maquinaria y equipo | AZ35: 0 | BA35: 0 | BB35: 0 | BC35: 0 | BD35: 0 | BE35: 0 | BF35: 0 | BG35: 0 | BT35: 66001 | BU35: 50 | BV35: 68081 | BW35: 15
C36: 11001 | D36: BOGOTÁ, D.C. | E36: 0 | F36: 0 | G36: Natural | H36: 11 | I36: BOGOTÁ, D.C. | J36: 0 | K36: PEQUEÑA | L36: 4520 | M36: COMERCIO AL POR MAYOR Y AL POR MENOR; REPARACIÓN DE VEHÍCULOS AUTOMOTORES Y MOTOCICLETAS | N36: G | O36: Mantenimiento y reparación de vehículos automotores | P36: Mantenimiento y reparación de vehículos automotores | Q36: 0 | R36: 0 | S36: 0 | T36: 0 | U36: 0 | V36: 0 | W36: 0 | X36: 0 | AJ36: 0 | AK36: 0 | AL36: 8001 | AM36: BARRANQUILLA | AN36: 1 | AO36: 3 | AP36: Natural | AQ36: 8 | AR36: ATLÁNTICO | AS36: Aprobado con subsidio | AT36: PEQUEÑA | AU36: 1081 | AV36: INDUSTRIAS MANUFACTURERAS | AW36: C | AX36: Elaboración de otros productos alimenticios | AY36: Elaboración de productos alimenticios | AZ36: 0 | BA36: 1 | BB36: 0 | BC36: 1 | BD36: 0 | BE36: 0 | BF36: 1 | BG36: 0 | BT36: 5088 | BU36: 30 | BV36: 5440 | BW36: 14
C37: 25279 | D37: FOMEQUE | E37: 1 | F37: 5 | G37: Natural | H37: 25 | I37: CUNDINAMARCA | J37: Aprobado con subsidio | K37: PEQUEÑA | L37: 145 | M37: AGRICULTURA, GANADERÍA, CAZA, SILVICULTURA Y PESCA | N37: A | O37: Ganadería | P37: Ganadería | Q37: 0 | R37: 1 | S37: 0 | T37: 1 | U37: 0 | V37: 0 | W37: 1 | X37: 0 | AJ37: 0 | AK37: 0 | AL37: 63001 | AM37: ARMENIA | AN37: 0 | AO37: 0 | AP37: Natural | AQ37: 63 | AR37: QUINDÍO | AS37: 0 | AT37: MICRO | AU37: 2511 | AV37: INDUSTRIAS MANUFACTURERAS | AW37: C | AX37: Fabricación de productos metálicos para uso estructural, tanques, depósitos y generadores de vapor. | AY37: Fabricación de productos elaborados de metal, excepto maquinaria y equipo | AZ37: 0 | BA37: 0 | BB37: 0 | BC37: 0 | BD37: 0 | BE37: 0 | BF37: 0 | BG37: 0 | BT37: 17380 | BU37: 1 | BV37: 23001 | BW37: 13
C38: 5001 | D38: MEDELLÍN | E38: 1 | F38: 0 | G38: Natural | H38: 5 | I38: ANTIOQUIA | J38: Aprobado con subsidio | K38: PEQUEÑA | L38: 4520 | M38: COMERCIO AL POR MAYOR Y AL POR MENOR; REPARACIÓN DE VEHÍCULOS AUTOMOTORES Y MOTOCICLETAS | N38: G | O38: Mantenimiento y reparación de vehículos automotores | P38: Mantenimiento y reparación de vehículos automotores | Q38: 0 | R38: 1 | S38: 0 | T38: 1 | U38: 0 | V38: 0 | W38: 1 | X38: 0 | AJ38: 0 | AK38: 0 | AL38: 20001 | AM38: VALLEDUPAR | AN38: 11 | AO38: 0 | AP38: Natural | AQ38: 20 | AR38: CESAR | AS38: Aprobado con subsidio | AT38: PEQUEÑA | AU38: 1410 | AV38: INDUSTRIAS MANUFACTURERAS | AW38: C | AX38: Confección de prendas de vestir, excepto prendas de piel | AY38: Confección de prendas de vestir | AZ38: 6 | BA38: 5 | BB38: 0 | BC38: 3 | BD38: 4 | BE38: 4 | BF38: 11 | BG38: 0 | BT38: 17001 | BU38: 58 | BV38: 5237 | BW38: 13
C39: 25214 | D39: COTA | E39: 1 | F39: 6 | G39: Natural | H39: 25 | I39: CUNDINAMARCA | J39: Aprobado con subsidio | K39: MICRO | L39: 4290 | M39: CONSTRUCCIÓN | N39: F | O39: Construcción de otras obras de ingeniería civil | P39: Construcción de otras obras de ingeniería civil | Q39: 0 | R39: 1 | S39: 0 | T39: 0 | U39: 0 | V39: 1 | W39: 1 | X39: 0 | AJ39: 0 | AK39: 0 | AL39: 5318 | AM39: GUARNE | AN39: 6 | AO39: 11 | AP39: Natural | AQ39: 5 | AR39: ANTIOQUIA | AS39: Aprobado con subsidio | AT39: PEQUEÑA | AU39: 2221 | AV39: INDUSTRIAS MANUFACTURERAS | AW39: C | AX39: Fabricación de productos de plástico | AY39: Fabricación de productos de caucho y de plástico | AZ39: 4 | BA39: 2 | BB39: 0 | BC39: 2 | BD39: 4 | BE39: 0 | BF39: 6 | BG39: 0 | BT39: 19698 | BU39: 1 | BV39: 47001 | BW39: 13
C40: 25758 | D40: SOPÓ | E40: 1 | F40: 3 | G40: Natural | H40: 25 | I40: CUNDINAMARCA | J40: Aprobado con subsidio | K40: MICRO | L40: 141 | M40: AGRICULTURA, GANADERÍA, CAZA, SILVICULTURA Y PESCA | N40: A | O40: Ganadería | P40: Ganadería | Q40: 0 | R40: 1 | S40: 0 | T40: 1 | U40: 0 | V40: 0 | W40: 1 | X40: 0 | AJ40: 0 | AK40: 0 | AL40: 76001 | AM40: CALI | AN40: 1 | AO40: 1 | AP40: Natural | AQ40: 76 | AR40: VALLE DEL CAUCA | AS40: Aprobado con subsidio | AT40: PEQUEÑA | AU40: 1313 | AV40: INDUSTRIAS MANUFACTURERAS | AW40: C | AX40: Preparación, hilatura, tejeduría y acabado de productos textiles | AY40: Fabricación de productos textiles | AZ40: 1 | BA40: 0 | BB40: 0 | BC40: 1 | BD40: 0 | BE40: 0 | BF40: 1 | BG40: 0 | BT40: 52835 | BU40: 1 | BV40: 5308 | BW40: 13
C41: 25297 | D41: GACHETÁ | E41: 1 | F41: 3 | G41: Natural | H41: 25 | I41: CUNDINAMARCA | J41: Aprobado con subsidio | K41: MICRO | L41: 4663 | M41: COMERCIO AL POR MAYOR Y AL POR MENOR; REPARACIÓN DE VEHÍCULOS AUTOMOTORES Y MOTOCICLETAS | N41: G | O41: Comercio al por mayor especializado de otros productos | P41: Comercio al por mayor especializado de otros productos | Q41: 1 | R41: 0 | S41: 0 | T41: 1 | U41: 0 | V41: 0 | W41: 1 | X41: 0 | AJ41: 0 | AK41: 0 | AL41: 41001 | AM41: NEIVA | AN41: 2 | AO41: 5 | AP41: Natural | AQ41: 41 | AR41: HUILA | AS41: Aprobado con subsidio | AT41: MICRO | AU41: 1081 | AV41: INDUSTRIAS MANUFACTURERAS | AW41: C | AX41: Elaboración de otros productos alimenticios | AY41: Elaboración de productos alimenticios | AZ41: 1 | BA41: 1 | BB41: 0 | BC41: 2 | BD41: 0 | BE41: 0 | BF41: 2 | BG41: 0 | BT41: 52001 | BU41: 22 | BV41: 5212 | BW41: 12
C42: 11001 | D42: BOGOTÁ, D.C. | E42: 0 | F42: 0 | G42: Natural | H42: 11 | I42: BOGOTÁ, D.C. | J42: 0 | K42: MICRO | L42: 2711 | M42: INDUSTRIAS MANUFACTURERAS | N42: C | O42: Fabricación de motores, generadores y transformadores eléctricos y de aparatos de distribución y control de la energía eléctrica | P42: Fabricación de aparatos y equipo eléctrico | Q42: 0 | R42: 0 | S42: 0 | T42: 0 | U42: 0 | V42: 0 | W42: 0 | X42: 0 | AJ42: 0 | AK42: 0 | AL42: 41001 | AM42: NEIVA | AN42: 0 | AO42: 0 | AP42: Natural | AQ42: 41 | AR42: HUILA | AS42: 0 | AT42: MICRO | AU42: 3110 | AV42: INDUSTRIAS MANUFACTURERAS | AW42: C | AX42: Fabricación de muebles | AY42: Fabricación de muebles, colchones y somieres | AZ42: 0 | BA42: 0 | BB42: 0 | BC42: 0 | BD42: 0 | BE42: 0 | BF42: 0 | BG42: 0 | BT42: 54405 | BU42: 7 | BV42: 15238 | BW42: 10
C43: 11001 | D43: BOGOTÁ, D.C. | E43: 0 | F43: 0 | G43: Natural | H43: 11 | I43: BOGOTÁ, D.C. | J43: 0 | K43: MICRO | L43: 7500 | M43: ACTIVIDADES PROFESIONALES, CIENTÍFICAS Y TÉCNICAS | N43: M | O43: Actividades veterinarias | P43: Actividades veterinarias | Q43: 0 | R43: 0 | S43: 0 | T43: 0 | U43: 0 | V43: 0 | W43: 0 | X43: 0 | AJ43: 0 | AK43: 0 | AL43: 18753 | AM43: SAN VICENTE DEL CAGUÁN | AN43: 2 | AO43: 3 | AP43: Natural | AQ43: 18 | AR43: CAQUETÁ | AS43: Aprobado con subsidio | AT43: MICRO | AU43: 1040 | AV43: INDUSTRIAS MANUFACTURERAS | AW43: C | AX43: Elaboración de productos lácteos | AY43: Elaboración de productos alimenticios | AZ43: 0 | BA43: 2 | BB43: 0 | BC43: 2 | BD43: 0 | BE43: 0 | BF43: 2 | BG43: 0 | BT43: 68307 | BU43: 26 | BV43: 25899 | BW43: 10
C44: 11001 | D44: BOGOTÁ, D.C. | E44: 1 | F44: 7 | G44: Natural | H44: 11 | I44: BOGOTÁ, D.C. | J44: Aprobado con subsidio | K44: PEQUEÑA | L44: 8521 | M44: EDUCACIÓN | N44: P | O44: Educación secundaria y de formación laboral | P44: Educación secundaria y de formación laboral | Q44: 1 | R44: 0 | S44: 0 | T44: 1 | U44: 0 | V44: 0 | W44: 1 | X44: 0 | AJ44: 0 | AK44: 0 | AL44: 95001 | AM44: SAN JOSÉ DEL GUAVIARE | AN44: 0 | AO44: 0 | AP44: Natural | AQ44: 95 | AR44: GUAVIARE | AS44: 0 | AT44: MICRO | AU44: 1040 | AV44: INDUSTRIAS MANUFACTURERAS | AW44: C | AX44: Elaboración de productos lácteos | AY44: Elaboración de productos alimenticios | AZ44: 0 | BA44: 0 | BB44: 0 | BC44: 0 | BD44: 0 | BE44: 0 | BF44: 0 | BG44: 0 | BT44: 68081 | BU44: 15 | BV44: 15759 | BW44: 9
C45: 11001 | D45: BOGOTÁ, D.C. | E45: 0 | F45: 0 | G45: Natural | H45: 11 | I45: BOGOTÁ, D.C. | J45: 0 | K45: PEQUEÑA | L45: 1513 | M45: INDUSTRIAS MANUFACTURERAS | N45: C | O45: Curtido y recurtido de cueros; fabricación de artículos de viaje, bolsos de mano y artículos similares, y fabricación de artículos de talabartería y guarnicionería; adobo y teñido de pieles | P45: Curtido y recurtido de cueros; fabricación de calzado; fabricación de artículos de viaje, maletas, bolsos de mano y artículos similares, y fabricación de artículos de talabartería y guarnicionería; adobo y teñido de pieles | Q45: 0 | R45: 0 | S45: 0 | T45: 0 | U45: 0 | V45: 0 | W45: 0 | X45: 0 | AJ45: 0 | AK45: 0 | AL45: 5001 | AM45: MEDELLÍN | AN45: 1 | AO45: 2 | AP45: Natural | AQ45: 5 | AR45: ANTIOQUIA | AS45: Aprobado con subsidio | AT45: MICRO | AU45: 2511 | AV45: INDUSTRIAS MANUFACTURERAS | AW45: C | AX45: Fabricación de productos metálicos para uso estructural, tanques, depósitos y generadores de vapor. | AY45: Fabricación de productos elaborados de metal, excepto maquinaria y equipo | AZ45: 0 | BA45: 1 | BB45: 0 | BC45: 1 | BD45: 0 | BE45: 0 | BF45: 1 | BG45: 0 | BT45: 50006 | BU45: 2 | BV45: 76147 | BW45: 9
C46: 11001 | D46: BOGOTÁ, D.C. | E46: 1 | F46: 3 | G46: Natural | H46: 11 | I46: BOGOTÁ, D.C. | J46: Aprobado con subsidio | K46: MICRO | L46: 7310 | M46: ACTIVIDADES PROFESIONALES, CIENTÍFICAS Y TÉCNICAS | N46: M | O46: Publicidad | P46: Publicidad | Q46: 0 | R46: 1 | S46: 0 | T46: 1 | U46: 0 | V46: 0 | W46: 1 | X46: 0 | AJ46: 0 | AK46: 0 | AL46: 5001 | AM46: MEDELLÍN | AN46: 4 | AO46: 3 | AP46: Natural | AQ46: 5 | AR46: ANTIOQUIA | AS46: Aprobado con subsidio | AT46: MICRO | AU46: 1089 | AV46: INDUSTRIAS MANUFACTURERAS | AW46: C | AX46: Elaboración de otros productos alimenticios | AY46: Elaboración de productos alimenticios | AZ46: 3 | BA46: 1 | BB46: 0 | BC46: 2 | BD46: 2 | BE46: 0 | BF46: 4 | BG46: 0 | BT46: 76834 | BU46: 4 | BV46: 5129 | BW46: 9
C47: 15407 | D47: VILLA DE LEYVA | E47: 0 | F47: 0 | G47: Natural | H47: 15 | I47: BOYACÁ | J47: 0 | K47: MICRO | L47: 5511 | M47: ALOJAMIENTO Y SERVICIOS DE COMIDA | N47: I | O47: Actividades de alojamiento de estancias cortas | P47: Actividades de alojamiento de estancias cortas | Q47: 0 | R47: 0 | S47: 0 | T47: 0 | U47: 0 | V47: 0 | W47: 0 | X47: 0 | AJ47: 0 | AK47: 0 | AL47: 5001 | AM47: MEDELLÍN | AN47: 1 | AO47: 0 | AP47: Natural | AQ47: 5 | AR47: ANTIOQUIA | AS47: Aprobado con subsidio | AT47: MICRO | AU47: 1081 | AV47: INDUSTRIAS MANUFACTURERAS | AW47: C | AX47: Elaboración de otros productos alimenticios | AY47: Elaboración de productos alimenticios | AZ47: 0 | BA47: 1 | BB47: 0 | BC47: 1 | BD47: 0 | BE47: 0 | BF47: 1 | BG47: 0 | BT47: 76670 | BU47: 2 | BV47: 85001 | BW47: 8
C48: 25572 | D48: PUERTO SALGAR | E48: 0 | F48: 0 | G48: Natural | H48: 25 | I48: CUNDINAMARCA | J48: 0 | K48: PEQUEÑA | L48: 4290 | M48: CONSTRUCCIÓN | N48: F | O48: Construcción de otras obras de ingeniería civil | P48: Construcción de otras obras de ingeniería civil | Q48: 0 | R48: 0 | S48: 0 | T48: 0 | U48: 0 | V48: 0 | W48: 0 | X48: 0 | AJ48: 0 | AK48: 0 | AL48: 5686 | AM48: SANTA ROSA DE OSOS | AN48: 4 | AO48: 7 | AP48: Natural | AQ48: 5 | AR48: ANTIOQUIA | AS48: Aprobado con subsidio | AT48: MICRO | AU48: 1610 | AV48: INDUSTRIAS MANUFACTURERAS | AW48: C | AX48: Aserrado, acepillado e impregnación de la madera | AY48: Transformación de la madera y fabricación de productos de madera y de corcho, excepto muebles; fabricación de artículos de cestería y espartería | AZ48: 0 | BA48: 4 | BB48: 0 | BC48: 0 | BD48: 0 | BE48: 4 | BF48: 4 | BG48: 0 | BT48: 5761 | BU48: 0 | BV48: 20001 | BW48: 7
C49: 25754 | D49: SOACHA | E49: 2 | F49: 0 | G49: Natural | H49: 25 | I49: CUNDINAMARCA | J49: Aprobado con subsidio | K49: MICRO | L49: 8219 | M49: ACTIVIDADES DE SERVICIOS ADMINISTRATIVOS Y DE APOYO | N49: N | O49: Actividades administrativas y de apoyo de oficina | P49: Actividades administrativas y de apoyo de oficina | Q49: 2 | R49: 0 | S49: 0 | T49: 1 | U49: 1 | V49: 0 | W49: 2 | X49: 0 | AJ49: 0 | AK49: 0 | AL49: 5001 | AM49: MEDELLÍN | AN49: 1 | AO49: 0 | AP49: Natural | AQ49: 5 | AR49: ANTIOQUIA | AS49: Aprobado con subsidio | AT49: MICRO | AU49: 1410 | AV49: INDUSTRIAS MANUFACTURERAS | AW49: C | AX49: Confección de prendas de vestir, excepto prendas de piel | AY49: Confección de prendas de vestir | AZ49: 1 | BA49: 0 | BB49: 0 | BC49: 1 | BD49: 0 | BE49: 0 | BF49: 1 | BG49: 0 | BT49: 5148 | BU49: 3 | BV49: 54405 | BW49: 7
C50: 11001 | D50: BOGOTÁ, D.C. | E50: 14 | F50: 12 | G50: Natural | H50: 11 | I50: BOGOTÁ, D.C. | J50: Aprobado con subsidio | K50: PEQUEÑA | L50: 6910 | M50: ACTIVIDADES PROFESIONALES, CIENTÍFICAS Y TÉCNICAS | N50: M | O50: Actividades jurídicas | P50: Actividades jurídicas | Q50: 9 | R50: 5 | S50: 0 | T50: 14 | U50: 0 | V50: 0 | W50: 14 | X50: 0 | AJ50: 0 | AK50: 0 | AL50: 5001 | AM50: MEDELLÍN | AN50: 1 | AO50: 4 | AP50: Natural | AQ50: 5 | AR50: ANTIOQUIA | AS50: Aprobado con subsidio | AT50: PEQUEÑA | AU50: 1081 | AV50: INDUSTRIAS MANUFACTURERAS | AW50: C | AX50: Elaboración de otros productos alimenticios | AY50: Elaboración de productos alimenticios | AZ50: 0 | BA50: 1 | BB50: 0 | BC50: 1 | BD50: 0 | BE50: 0 | BF50: 1 | BG50: 0 | BT50: 19130 | BU50: 2 | BV50: 70001 | BW50: 7
C51: 11001 | D51: BOGOTÁ, D.C. | E51: 1 | F51: 2 | G51: Natural | H51: 11 | I51: BOGOTÁ, D.C. | J51: Aprobado con subsidio | K51: MICRO | L51: 4751 | M51: COMERCIO AL POR MAYOR Y AL POR MENOR; REPARACIÓN DE VEHÍCULOS AUTOMOTORES Y MOTOCICLETAS | N51: G | O51: Comercio al por menor de otros enseres domésticos en establecimientos especializados | P51: Comercio al por menor de otros enseres domésticos en establecimientos especializados | Q51: 1 | R51: 0 | S51: 0 | T51: 1 | U51: 0 | V51: 0 | W51: 1 | X51: 0 | AJ51: 0 | AK51: 0 | AL51: 5631 | AM51: SABANETA | AN51: 5 | AO51: 16 | AP51: Natural | AQ51: 5 | AR51: ANTIOQUIA | AS51: Aprobado con subsidio | AT51: PEQUEÑA | AU51: 3110 | AV51: INDUSTRIAS MANUFACTURERAS | AW51: C | AX51: Fabricación de muebles | AY51: Fabricación de muebles, colchones y somieres | AZ51: 3 | BA51: 2 | BB51: 0 | BC51: 1 | BD51: 3 | BE51: 1 | BF51: 5 | BG51: 0 | BT51: 5376 | BU51: 4 | BV51: 5079 | BW51: 7
C52: 25785 | D52: TABIO | E52: 1 | F52: 2 | G52: Natural | H52: 25 | I52: CUNDINAMARCA | J52: Aprobado con subsidio | K52: MICRO | L52: 9004 | M52: ACTIVIDADES ARTÍSTICAS, DE ENTRETENIMIENTO Y RECREACIÓN | N52: R | O52: Actividades creativas, artísticas y de entretenimiento | P52: Actividades creativas, artísticas y de entretenimiento | Q52: 1 | R52: 0 | S52: 0 | T52: 1 | U52: 0 | V52: 0 | W52: 1 | X52: 0 | AJ52: 0 | AK52: 0 | AL52: 5368 | AM52: JERICÓ | AN52: 13 | AO52: 4 | AP52: Natural | AQ52: 5 | AR52: ANTIOQUIA | AS52: Aprobado con subsidio | AT52: PEQUEÑA | AU52: 1084 | AV52: INDUSTRIAS MANUFACTURERAS | AW52: C | AX52: Elaboración de otros productos alimenticios | AY52: Elaboración de productos alimenticios | AZ52: 8 | BA52: 5 | BB52: 0 | BC52: 8 | BD52: 4 | BE52: 1 | BF52: 12 | BG52: 1 | BT52: 73001 | BU52: 43 | BV52: 8296 | BW52: 7
C53: 25799 | D53: TENJO | E53: 0 | F53: 0 | G53: Natural | H53: 25 | I53: CUNDINAMARCA | J53: 0 | K53: PEQUEÑA | L53: 4711 | M53: COMERCIO AL POR MAYOR Y AL POR MENOR; REPARACIÓN DE VEHÍCULOS AUTOMOTORES Y MOTOCICLETAS | N53: G | O53: Comercio al por menor en establecimientos no especializados | P53: Comercio al por menor en establecimientos no especializados | Q53: 0 | R53: 0 | S53: 0 | T53: 0 | U53: 0 | V53: 0 | W53: 0 | X53: 0 | AJ53: 0 | AK53: 0 | AL53: 5001 | AM53: MEDELLÍN | AN53: 1 | AO53: 3 | AP53: Natural | AQ53: 5 | AR53: ANTIOQUIA | AS53: Aprobado con subsidio | AT53: PEQUEÑA | AU53: 1811 | AV53: INDUSTRIAS MANUFACTURERAS | AW53: C | AX53: Actividades de impresión y actividades de servicios relacionados con la impresión | AY53: Actividades de impresión y de producción de copias a partir de grabaciones originales | AZ53: 0 | BA53: 1 | BB53: 0 | BC53: 1 | BD53: 0 | BE53: 0 | BF53: 1 | BG53: 0 | BT53: 76147 | BU53: 9 | BV53: 25799 | BW53: 7
C54: 50001 | D54: VILLAVICENCIO | E54: 5 | F54: 5 | G54: Natural | H54: 50 | I54: META | J54: Aprobado con subsidio | K54: MICRO | L54: 4729 | M54: COMERCIO AL POR MAYOR Y AL POR MENOR; REPARACIÓN DE VEHÍCULOS AUTOMOTORES Y MOTOCICLETAS | N54: G | O54: Comercio al por menor de alimentos (víveres en general), bebidas y tabaco, en establecimientos especializados | P54: Comercio al por menor de alimentos (víveres en general), bebidas y tabaco, en establecimientos especializados | Q54: 0 | R54: 5 | S54: 0 | T54: 5 | U54: 0 | V54: 0 | W54: 5 | X54: 0 | AJ54: 0 | AK54: 0 | AL54: 68001 | AM54: BUCARAMANGA | AN54: 0 | AO54: 0 | AP54: Natural | AQ54: 68 | AR54: SANTANDER | AS54: 0 | AT54: MICRO | AU54: 1089 | AV54: INDUSTRIAS MANUFACTURERAS | AW54: C | AX54: Elaboración de otros productos alimenticios | AY54: Elaboración de productos alimenticios | AZ54: 0 | BA54: 0 | BB54: 0 | BC54: 0 | BD54: 0 | BE54: 0 | BF54: 0 | BG54: 0 | BT54: 25290 | BU54: 6 | BV54: 25126 | BW54: 7
C55: 25875 | D55: VILLETA | E55: 1 | F55: 0 | G55: Natural | H55: 25 | I55: CUNDINAMARCA | J55: Aprobado con subsidio | K55: PEQUEÑA | L55: 1081 | M55: INDUSTRIAS MANUFACTURERAS | N55: C | O55: Elaboración de otros productos alimenticios | P55: Elaboración de productos alimenticios | Q55: 1 | R55: 0 | S55: 0 | T55: 1 | U55: 0 | V55: 0 | W55: 1 | X55: 0 | AJ55: 0 | AK55: 0 | AL55: 8001 | AM55: BARRANQUILLA | AN55: 0 | AO55: 0 | AP55: Natural | AQ55: 8 | AR55: ATLÁNTICO | AS55: 0 | AT55: MICRO | AU55: 3312 | AV55: INDUSTRIAS MANUFACTURERAS | AW55: C | AX55: Mantenimiento y reparación especializado de productos elaborados en metal y de maquinaria y equipo | AY55: Instalación, mantenimiento y reparación especializado de maquinaria y equipo | AZ55: 0 | BA55: 0 | BB55: 0 | BC55: 0 | BD55: 0 | BE55: 0 | BF55: 0 | BG55: 0 | BT55: 50001 | BU55: 19 | BV55: 76130 | BW55: 7
C56: 25269 | D56: FACATATIVÁ | E56: 6 | F56: 1 | G56: Natural | H56: 25 | I56: CUNDINAMARCA | J56: Aprobado con subsidio | K56: MICRO | L56: 8560 | M56: EDUCACIÓN | N56: P | O56: Actividades de apoyo a la educación | P56: Actividades de apoyo a la educación | Q56: 3 | R56: 3 | S56: 0 | T56: 2 | U56: 1 | V56: 3 | W56: 6 | X56: 0 | AJ56: 0 | AK56: 0 | AL56: 15759 | AM56: SOGAMOSO | AN56: 0 | AO56: 0 | AP56: Natural | AQ56: 15 | AR56: BOYACÁ | AS56: 0 | AT56: MICRO | AU56: 2790 | AV56: INDUSTRIAS MANUFACTURERAS | AW56: C | AX56: Fabricación de otros tipos de equipo eléctrico n.c.p. | AY56: Fabricación de aparatos y equipo eléctrico | AZ56: 0 | BA56: 0 | BB56: 0 | BC56: 0 | BD56: 0 | BE56: 0 | BF56: 0 | BG56: 0 | BT56: 18001 | BU56: 6 | BV56: 76364 | BW56: 7
C57: 85001 | D57: YOPAL | E57: 4 | F57: 0 | G57: Natural | H57: 85 | I57: CASANARE | J57: Aprobado con subsidio | K57: MICRO | L57: 4769 | M57: COMERCIO AL POR MAYOR Y AL POR MENOR; REPARACIÓN DE VEHÍCULOS AUTOMOTORES Y MOTOCICLETAS | N57: G | O57: Comercio al por menor de artículos culturales y de entretenimiento, en establecimientos especializados | P57: Comercio al por menor de artículos culturales y de entretenimiento, en establecimientos especializados | Q57: 3 | R57: 1 | S57: 0 | T57: 3 | U57: 1 | V57: 0 | W57: 4 | X57: 0 | AJ57: 0 | AK57: 0 | AL57: 15087 | AM57: BELÉN | AN57: 0 | AO57: 0 | AP57: Natural | AQ57: 15 | AR57: BOYACÁ | AS57: 0 | AT57: PEQUEÑA | AU57: 1040 | AV57: INDUSTRIAS MANUFACTURERAS | AW57: C | AX57: Elaboración de productos lácteos | AY57: Elaboración de productos alimenticios | AZ57: 0 | BA57: 0 | BB57: 0 | BC57: 0 | BD57: 0 | BE57: 0 | BF57: 0 | BG57: 0 | BT57: 66400 | BU57: 1 | BV57: 63401 | BW57: 7
C58: 50001 | D58: VILLAVICENCIO | E58: 0 | F58: 0 | G58: Natural | H58: 50 | I58: META | J58: 0 | K58: MICRO | L58: 6810 | M58: ACTIVIDADES INMOBILIARIAS | N58: L | O58: Actividades inmobiliarias realizadas con bienes propios o arrendados | P58: Actividades inmobiliarias realizadas con bienes propios o arrendados | Q58: 0 | R58: 0 | S58: 0 | T58: 0 | U58: 0 | V58: 0 | W58: 0 | X58: 0 | AJ58: 0 | AK58: 0 | AL58: 85139 | AM58: MANÍ | AN58: 2 | AO58: 0 | AP58: Natural | AQ58: 85 | AR58: CASANARE | AS58: Aprobado con subsidio | AT58: MICRO | AU58: 1630 | AV58: INDUSTRIAS MANUFACTURERAS | AW58: C | AX58: Fabricación de partes y piezas de madera, de carpintería y ebanistería para la construcción | AY58: Transformación de la madera y fabricación de productos de madera y de corcho, excepto muebles; fabricación de artículos de cestería y espartería | AZ58: 0 | BA58: 2 | BB58: 0 | BC58: 1 | BD58: 0 | BE58: 1 | BF58: 2 | BG58: 0 | BT58: 25754 | BU58: 31 | BV58: 25290 | BW58: 6
C59: 5360 | D59: ITAGUI | E59: 0 | F59: 0 | G59: Natural | H59: 5 | I59: ANTIOQUIA | J59: 0 | K59: MICRO | L59: 1921 | M59: INDUSTRIAS MANUFACTURERAS | N59: C | O59: Fabricación de productos de la refinación del petróleo | P59: Coquización, fabricación de productos de la refinación del petróleo y actividad de mezcla de combustibles | Q59: 0 | R59: 0 | S59: 0 | T59: 0 | U59: 0 | V59: 0 | W59: 0 | X59: 0 | AJ59: 0 | AK59: 0 | AL59: 85001 | AM59: YOPAL | AN59: 15 | AO59: 28 | AP59: Natural | AQ59: 85 | AR59: CASANARE | AS59: Aprobado con subsidio | AT59: PEQUEÑA | AU59: 3312 | AV59: INDUSTRIAS MANUFACTURERAS | AW59: C | AX59: Mantenimiento y reparación especializado de productos elaborados en metal y de maquinaria y equipo | AY59: Instalación, mantenimiento y reparación especializado de maquinaria y equipo | AZ59: 1 | BA59: 14 | BB59: 0 | BC59: 5 | BD59: 1 | BE59: 9 | BF59: 15 | BG59: 0 | BT59: 47288 | BU59: 1 | BV59: 18001 | BW59: 6
C60: 5001 | D60: MEDELLÍN | E60: 1 | F60: 0 | G60: Natural | H60: 5 | I60: ANTIOQUIA | J60: Aprobado con subsidio | K60: MICRO | L60: 90 | M60: OTRAS | N60: Otras | O60: Otras | P60: Otras | Q60: 0 | R60: 1 | S60: 0 | T60: 0 | U60: 0 | V60: 1 | W60: 1 | X60: 0 | AJ60: 0 | AK60: 0 | AL60: 20011 | AM60: AGUACHICA | AN60: 8 | AO60: 3 | AP60: Natural | AQ60: 20 | AR60: CESAR | AS60: Aprobado con subsidio | AT60: PEQUEÑA | AU60: 2511 | AV60: INDUSTRIAS MANUFACTURERAS | AW60: C | AX60: Fabricación de productos metálicos para uso estructural, tanques, depósitos y generadores de vapor. | AY60: Fabricación de productos elaborados de metal, excepto maquinaria y equipo | AZ60: 2 | BA60: 6 | BB60: 0 | BC60: 7 | BD60: 1 | BE60: 0 | BF60: 8 | BG60: 0 | BT60: 5045 | BU60: 2 | BV60: 15001 | BW60: 6
C61: 15759 | D61: SOGAMOSO | E61: 1 | F61: 3 | G61: Natural | H61: 15 | I61: BOYACÁ | J61: Aprobado con subsidio | K61: MICRO | L61: 4799 | M61: COMERCIO AL POR MAYOR Y AL POR MENOR; REPARACIÓN DE VEHÍCULOS AUTOMOTORES Y MOTOCICLETAS | N61: G | O61: Comercio al por menor no realizado en establecimientos, puestos de venta o mercados | P61: Comercio al por menor no realizado en establecimientos, puestos de venta o mercados | Q61: 1 | R61: 0 | S61: 0 | T61: 1 | U61: 0 | V61: 0 | W61: 1 | X61: 0 | AJ61: 0 | AK61: 0 | AL61: 63001 | AM61: ARMENIA | AN61: 1 | AO61: 0 | AP61: Natural | AQ61: 63 | AR61: QUINDÍO | AS61: Aprobado con subsidio | AT61: MICRO | AU61: 1410 | AV61: INDUSTRIAS MANUFACTURERAS | AW61: C | AX61: Confección de prendas de vestir, excepto prendas de piel | AY61: Confección de prendas de vestir | AZ61: 0 | BA61: 1 | BB61: 0 | BC61: 1 | BD61: 0 | BE61: 0 | BF61: 1 | BG61: 0 | BT61: 5266 | BU61: 45 | BV61: 25175 | BW61: 6
C62: 5001 | D62: MEDELLÍN | E62: 0 | F62: 0 | G62: Natural | H62: 5 | I62: ANTIOQUIA | J62: 0 | K62: MICRO | L62: 141 | M62: AGRICULTURA, GANADERÍA, CAZA, SILVICULTURA Y PESCA | N62: A | O62: Ganadería | P62: Ganadería | Q62: 0 | R62: 0 | S62: 0 | T62: 0 | U62: 0 | V62: 0 | W62: 0 | X62: 0 | AJ62: 0 | AK62: 0 | AL62: 66170 | AM62: DOSQUEBRADAS | AN62: 0 | AO62: 0 | AP62: Natural | AQ62: 66 | AR62: RISARALDA | AS62: 0 | AT62: PEQUEÑA | AU62: 2395 | AV62: INDUSTRIAS MANUFACTURERAS | AW62: C | AX62: Fabricación de productos minerales no metálicos n.c.p. | AY62: Fabricación de otros productos minerales no metálicos | AZ62: 0 | BA62: 0 | BB62: 0 | BC62: 0 | BD62: 0 | BE62: 0 | BF62: 0 | BG62: 0 | BT62: 70001 | BU62: 7 | BV62: 54874 | BW62: 6
C63: 5001 | D63: MEDELLÍN | E63: 1 | F63: 2 | G63: Natural | H63: 5 | I63: ANTIOQUIA | J63: Aprobado con subsidio | K63: MICRO | L63: 5611 | M63: ALOJAMIENTO Y SERVICIOS DE COMIDA | N63: I | O63: Actividades de restaurantes, cafeterías y servicio móvil de comidas | P63: Actividades de restaurantes, cafeterías y servicio móvil de comidas | Q63: 0 | R63: 1 | S63: 0 | T63: 0 | U63: 0 | V63: 1 | W63: 1 | X63: 0 | AJ63: 0 | AK63: 0 | AL63: 66170 | AM63: DOSQUEBRADAS | AN63: 0 | AO63: 0 | AP63: Natural | AQ63: 66 | AR63: RISARALDA | AS63: 0 | AT63: PEQUEÑA | AU63: 3311 | AV63: INDUSTRIAS MANUFACTURERAS | AW63: C | AX63: Mantenimiento y reparación especializado de productos elaborados en metal y de maquinaria y equipo | AY63: Instalación, mantenimiento y reparación especializado de maquinaria y equipo | AZ63: 0 | BA63: 0 | BB63: 0 | BC63: 0 | BD63: 0 | BE63: 0 | BF63: 0 | BG63: 0 | BT63: 25269 | BU63: 3 | BV63: 68679 | BW63: 6
C64: 5001 | D64: MEDELLÍN | E64: 3 | F64: 0 | G64: Natural | H64: 5 | I64: ANTIOQUIA | J64: Aprobado con subsidio | K64: MICRO | L64: 4722 | M64: COMERCIO AL POR MAYOR Y AL POR MENOR; REPARACIÓN DE VEHÍCULOS AUTOMOTORES Y MOTOCICLETAS | N64: G | O64: Comercio al por menor de alimentos (víveres en general), bebidas y tabaco, en establecimientos especializados | P64: Comercio al por menor de alimentos (víveres en general), bebidas y tabaco, en establecimientos especializados | Q64: 1 | R64: 2 | S64: 0 | T64: 1 | U64: 1 | V64: 1 | W64: 3 | X64: 0 | AJ64: 0 | AK64: 0 | AL64: 66682 | AM64: SANTA ROSA DE CABAL | AN64: 0 | AO64: 0 | AP64: Natural | AQ64: 66 | AR64: RISARALDA | AS64: 0 | AT64: PEQUEÑA | AU64: 2712 | AV64: INDUSTRIAS MANUFACTURERAS | AW64: C | AX64: Fabricación de motores, generadores y transformadores eléctricos y de aparatos de distribución y control de la energía eléctrica | AY64: Fabricación de aparatos y equipo eléctrico | AZ64: 0 | BA64: 0 | BB64: 0 | BC64: 0 | BD64: 0 | BE64: 0 | BF64: 0 | BG64: 0 | BT64: 15516 | BU64: 2 | BV64: 8758 | BW64: 6
C65: 5001 | D65: MEDELLÍN | E65: 3 | F65: 0 | G65: Natural | H65: 5 | I65: ANTIOQUIA | J65: Aprobado con subsidio | K65: MICRO | L65: 3240 | M65: INDUSTRIAS MANUFACTURERAS | N65: C | O65: Fabricación de juegos, juguetes y rompecabezas | P65: Otras industrias manufactureras | Q65: 2 | R65: 1 | S65: 0 | T65: 2 | U65: 0 | V65: 1 | W65: 3 | X65: 0 | AJ65: 0 | AK65: 0 | AL65: 66001 | AM65: PEREIRA | AN65: 2 | AO65: 16 | AP65: Natural | AQ65: 66 | AR65: RISARALDA | AS65: Aprobado con subsidio | AT65: PEQUEÑA | AU65: 1410 | AV65: INDUSTRIAS MANUFACTURERAS | AW65: C | AX65: Confección de prendas de vestir, excepto prendas de piel | AY65: Confección de prendas de vestir | AZ65: 2 | BA65: 0 | BB65: 0 | BC65: 2 | BD65: 0 | BE65: 0 | BF65: 2 | BG65: 0 | BT65: 86001 | BU65: 3 | BV65: 5686 | BW65: 5
C66: 5001 | D66: MEDELLÍN | E66: 1 | F66: 0 | G66: Natural | H66: 5 | I66: ANTIOQUIA | J66: Aprobado con subsidio | K66: MICRO | L66: 4771 | M66: COMERCIO AL POR MAYOR Y AL POR MENOR; REPARACIÓN DE VEHÍCULOS AUTOMOTORES Y MOTOCICLETAS | N66: G | O66: Comercio al por menor de otros productos en establecimientos especializados | P66: Comercio al por menor de otros productos en establecimientos especializados | Q66: 1 | R66: 0 | S66: 0 | T66: 1 | U66: 0 | V66: 0 | W66: 1 | X66: 0 | AJ66: 0 | AK66: 0 | AL66: 66001 | AM66: PEREIRA | AN66: 0 | AO66: 0 | AP66: Natural | AQ66: 66 | AR66: RISARALDA | AS66: 0 | AT66: MICRO | AU66: 1081 | AV66: INDUSTRIAS MANUFACTURERAS | AW66: C | AX66: Elaboración de otros productos alimenticios | AY66: Elaboración de productos alimenticios | AZ66: 0 | BA66: 0 | BB66: 0 | BC66: 0 | BD66: 0 | BE66: 0 | BF66: 0 | BG66: 0 | BT66: 54518 | BU66: =COUNTIFS($AS$2:$AS$399999,"Aprobado con subsidio",$AL$2:$AL$399999,BT66) -> 3 | BV66: 68547 | BW66: 5
C67: 41001 | D67: NEIVA | E67: 0 | F67: 0 | G67: Natural | H67: 41 | I67: HUILA | J67: 0 | K67: MICRO | L67: 4755 | M67: COMERCIO AL POR MAYOR Y AL POR MENOR; REPARACIÓN DE VEHÍCULOS AUTOMOTORES Y MOTOCICLETAS | N67: G | O67: Comercio al por menor de otros enseres domésticos en establecimientos especializados | P67: Comercio al por menor de otros enseres domésticos en establecimientos especializados | Q67: 0 | R67: 0 | S67: 0 | T67: 0 | U67: 0 | V67: 0 | W67: 0 | X67: 0 | AJ67: 0 | AK67: 0 | AL67: 5088 | AM67: BELLO | AN67: 0 | AO67: 0 | AP67: Natural | AQ67: 5 | AR67: ANTIOQUIA | AS67: 0 | AT67: MICRO | AU67: 1081 | AV67: INDUSTRIAS MANUFACTURERAS | AW67: C | AX67: Elaboración de otros productos alimenticios | AY67: Elaboración de productos alimenticios | AZ67: 0 | BA67: 0 | BB67: 0 | BC67: 0 | BD67: 0 | BE67: 0 | BF67: 0 | BG67: 0 | BT67: 68079 | BU67: 1 | BV67: 76111 | BW67: 5
C68: 5591 | D68: PUERTO TRIUNFO | E68: 0 | F68: 0 | G68: Natural | H68: 5 | I68: ANTIOQUIA | J68: 0 | K68: MICRO | L68: 4711 | M68: COMERCIO AL POR MAYOR Y AL POR MENOR; REPARACIÓN DE VEHÍCULOS AUTOMOTORES Y MOTOCICLETAS | N68: G | O68: Comercio al por menor en establecimientos no especializados | P68: Comercio al por menor en establecimientos no especializados | Q68: 0 | R68: 0 | S68: 0 | T68: 0 | U68: 0 | V68: 0 | W68: 0 | X68: 0 | AJ68: 0 | AK68: 0 | AL68: 17380 | AM68: LA DORADA | AN68: 1 | AO68: 0 | AP68: Natural | AQ68: 17 | AR68: CALDAS | AS68: Aprobado con subsidio | AT68: MICRO | AU68: 1610 | AV68: INDUSTRIAS MANUFACTURERAS | AW68: C | AX68: Aserrado, acepillado e impregnación de la madera | AY68: Transformación de la madera y fabricación de productos de madera y de corcho, excepto muebles; fabricación de artículos de cestería y espartería | AZ68: 0 | BA68: 1 | BB68: 0 | BC68: 1 | BD68: 0 | BE68: 0 | BF68: 1 | BG68: 0 | BT68: 23001 | BU68: 13 | BV68: 25758 | BW68: 5
C69: 5001 | D69: MEDELLÍN | E69: 0 | F69: 0 | G69: Natural | H69: 5 | I69: ANTIOQUIA | J69: 0 | K69: PEQUEÑA | L69: 121 | M69: AGRICULTURA, GANADERÍA, CAZA, SILVICULTURA Y PESCA | N69: A | O69: Cultivos agrícolas permanentes | P69: Cultivos agrícolas permanentes | Q69: 0 | R69: 0 | S69: 0 | T69: 0 | U69: 0 | V69: 0 | W69: 0 | X69: 0 | AJ69: 0 | AK69: 0 | AL69: 17001 | AM69: MANIZALES | AN69: 0 | AO69: 0 | AP69: Natural | AQ69: 17 | AR69: CALDAS | AS69: 0 | AT69: MICRO | AU69: 3110 | AV69: INDUSTRIAS MANUFACTURERAS | AW69: C | AX69: Fabricación de muebles | AY69: Fabricación de muebles, colchones y somieres | AZ69: 0 | BA69: 0 | BB69: 0 | BC69: 0 | BD69: 0 | BE69: 0 | BF69: 0 | BG69: 0 | BT69: 25899 | BU69: 10 | BV69: 8433 | BW69: 5
C70: 5001 | D70: MEDELLÍN | E70: 2 | F70: 1 | G70: Natural | H70: 5 | I70: ANTIOQUIA | J70: Aprobado con subsidio | K70: MICRO | L70: 4663 | M70: COMERCIO AL POR MAYOR Y AL POR MENOR; REPARACIÓN DE VEHÍCULOS AUTOMOTORES Y MOTOCICLETAS | N70: G | O70: Comercio al por mayor especializado de otros productos | P70: Comercio al por mayor especializado de otros productos | Q70: 0 | R70: 0 | S70: 2 | T70: 2 | U70: 0 | V70: 0 | W70: 0 | X70: 2 | AJ70: 0 | AK70: 0 | AL70: 17001 | AM70: MANIZALES | AN70: 0 | AO70: 0 | AP70: Natural | AQ70: 17 | AR70: CALDAS | AS70: 0 | AT70: MEDIANA | AU70: 1523 | AV70: INDUSTRIAS MANUFACTURERAS | AW70: C | AX70: Fabricación de calzado | AY70: Curtido y recurtido de cueros; fabricación de calzado; fabricación de artículos de viaje, maletas, bolsos de mano y artículos similares, y fabricación de artículos de talabartería y guarnicionería; adobo y teñido de pieles | AZ70: 0 | BA70: 0 | BB70: 0 | BC70: 0 | BD70: 0 | BE70: 0 | BF70: 0 | BG70: 0 | BT70: 68547 | BU70: 5 | BV70: 5030 | BW70: 5
C71: 5001 | D71: MEDELLÍN | E71: 0 | F71: 0 | G71: Natural | H71: 5 | I71: ANTIOQUIA | J71: 0 | K71: MICRO | L71: 4923 | M71: TRANSPORTE Y ALMACENAMIENTO | N71: H | O71: Transporte terrestre publico automotor | P71: Transporte terrestre publico automotor | Q71: 0 | R71: 0 | S71: 0 | T71: 0 | U71: 0 | V71: 0 | W71: 0 | X71: 0 | AJ71: 0 | AK71: 0 | AL71: 19698 | AM71: SANTANDER DE QUILICHAO | AN71: 0 | AO71: 0 | AP71: Natural | AQ71: 19 | AR71: CAUCA | AS71: 0 | AT71: MICRO | AU71: 1052 | AV71: INDUSTRIAS MANUFACTURERAS | AW71: C | AX71: Elaboración de productos de molinería, almidones y productos derivados del almidón | AY71: Elaboración de productos alimenticios | AZ71: 0 | BA71: 0 | BB71: 0 | BC71: 0 | BD71: 0 | BE71: 0 | BF71: 0 | BG71: 0 | BT71: 15001 | BU71: 6 | BV71: 76834 | BW71: 4
C72: 5264 | D72: ENTRERRIOS | E72: 0 | F72: 0 | G72: Natural | H72: 5 | I72: ANTIOQUIA | J72: 0 | K72: MEDIANA | L72: 121 | M72: AGRICULTURA, GANADERÍA, CAZA, SILVICULTURA Y PESCA | N72: A | O72: Cultivos agrícolas permanentes | P72: Cultivos agrícolas permanentes | Q72: 0 | R72: 0 | S72: 0 | T72: 0 | U72: 0 | V72: 0 | W72: 0 | X72: 0 | AJ72: 0 | AK72: 0 | AL72: 11001 | AM72: BOGOTÁ, D.C. | AN72: 0 | AO72: 0 | AP72: Natural | AQ72: 11 | AR72: BOGOTÁ, D.C. | AS72: 0 | AT72: MICRO | AU72: 2591 | AV72: INDUSTRIAS MANUFACTURERAS | AW72: C | AX72: Fabricación de otros productos elaborados de metal y actividades de servicios relacionadas con el trabajo de metales | AY72: Fabricación de productos elaborados de metal, excepto maquinaria y equipo | AZ72: 0 | BA72: 0 | BB72: 0 | BC72: 0 | BD72: 0 | BE72: 0 | BF72: 0 | BG72: 0 | BT72: 54820 | BU72: 1 | BV72: 5376 | BW72: 4
C73: 5264 | D73: ENTRERRIOS | E73: 0 | F73: 0 | G73: Natural | H73: 5 | I73: ANTIOQUIA | J73: 0 | K73: MICRO | L73: 4724 | M73: COMERCIO AL POR MAYOR Y AL POR MENOR; REPARACIÓN DE VEHÍCULOS AUTOMOTORES Y MOTOCICLETAS | N73: G | O73: Comercio al por menor de alimentos (víveres en general), bebidas y tabaco, en establecimientos especializados | P73: Comercio al por menor de alimentos (víveres en general), bebidas y tabaco, en establecimientos especializados | Q73: 0 | R73: 0 | S73: 0 | T73: 0 | U73: 0 | V73: 0 | W73: 0 | X73: 0 | AJ73: 0 | AK73: 0 | AL73: 11001 | AM73: BOGOTÁ, D.C. | AN73: 1 | AO73: 0 | AP73: Natural | AQ73: 11 | AR73: BOGOTÁ, D.C. | AS73: Aprobado con subsidio | AT73: MICRO | AU73: 1410 | AV73: INDUSTRIAS MANUFACTURERAS | AW73: C | AX73: Confección de prendas de vestir, excepto prendas de piel | AY73: Confección de prendas de vestir | AZ73: 0 | BA73: 1 | BB73: 0 | BC73: 1 | BD73: 0 | BE73: 0 | BF73: 1 | BG73: 0 | BT73: 76109 | BU73: 2 | BV73: 19001 | BW73: 4
C74: 5264 | D74: ENTRERRIOS | E74: 0 | F74: 0 | G74: Natural | H74: 5 | I74: ANTIOQUIA | J74: 0 | K74: MICRO | L74: 121 | M74: AGRICULTURA, GANADERÍA, CAZA, SILVICULTURA Y PESCA | N74: A | O74: Cultivos agrícolas permanentes | P74: Cultivos agrícolas permanentes | Q74: 0 | R74: 0 | S74: 0 | T74: 0 | U74: 0 | V74: 0 | W74: 0 | X74: 0 | AJ74: 0 | AK74: 0 | AL74: 11001 | AM74: BOGOTÁ, D.C. | AN74: 3 | AO74: 5 | AP74: Natural | AQ74: 11 | AR74: BOGOTÁ, D.C. | AS74: Aprobado con subsidio | AT74: MICRO | AU74: 2394 | AV74: INDUSTRIAS MANUFACTURERAS | AW74: C | AX74: Fabricación de productos minerales no metálicos n.c.p. | AY74: Fabricación de otros productos minerales no metálicos | AZ74: 2 | BA74: 1 | BB74: 0 | BC74: 2 | BD74: 1 | BE74: 0 | BF74: 3 | BG74: 0 | BT74: 5237 | BU74: 13 | BV74: 5541 | BW74: 4
C75: 5360 | D75: ITAGUI | E75: 0 | F75: 0 | G75: Natural | H75: 5 | I75: ANTIOQUIA | J75: 0 | K75: MICRO | L75: 4721 | M75: COMERCIO AL POR MAYOR Y AL POR MENOR; REPARACIÓN DE VEHÍCULOS AUTOMOTORES Y MOTOCICLETAS | N75: G | O75: Comercio al por menor de alimentos (víveres en general), bebidas y tabaco, en establecimientos especializados | P75: Comercio al por menor de alimentos (víveres en general), bebidas y tabaco, en establecimientos especializados | Q75: 0 | R75: 0 | S75: 0 | T75: 0 | U75: 0 | V75: 0 | W75: 0 | X75: 0 | AJ75: 0 | AK75: 0 | AL75: 20001 | AM75: VALLEDUPAR | AN75: 1 | AO75: 9 | AP75: Natural | AQ75: 20 | AR75: CESAR | AS75: Aprobado con subsidio | AT75: MICRO | AU75: 1089 | AV75: INDUSTRIAS MANUFACTURERAS | AW75: C | AX75: Elaboración de otros productos alimenticios | AY75: Elaboración de productos alimenticios | AZ75: 0 | BA75: 1 | BB75: 0 | BC75: 1 | BD75: 0 | BE75: 0 | BF75: 1 | BG75: 0 | BT75: 5642 | BU75: 2 | BV75: 19573 | BW75: 4
C76: 5001 | D76: MEDELLÍN | E76: 0 | F76: 0 | G76: Natural | H76: 5 | I76: ANTIOQUIA | J76: 0 | K76: PEQUEÑA | L76: 1011 | M76: INDUSTRIAS MANUFACTURERAS | N76: C | O76: Procesamiento y conservación de carne, pescado, crustáceos y moluscos | P76: Elaboración de productos alimenticios | Q76: 0 | R76: 0 | S76: 0 | T76: 0 | U76: 0 | V76: 0 | W76: 0 | X76: 0 | AJ76: 0 | AK76: 0 | AL76: 52835 | AM76: SAN ANDRES DE TUMACO | AN76: 3 | AO76: 0 | AP76: Natural | AQ76: 52 | AR76: NARIÑO | AS76: Aprobado con subsidio | AT76: MICRO | AU76: 1410 | AV76: INDUSTRIAS MANUFACTURERAS | AW76: C | AX76: Confección de prendas de vestir, excepto prendas de piel | AY76: Confección de prendas de vestir | AZ76: 2 | BA76: 1 | BB76: 0 | BC76: 2 | BD76: 1 | BE76: 0 | BF76: 3 | BG76: 0 | BT76: 5129 | BU76: 9 | BV76: 5670 | BW76: 4
C77: 23001 | D77: MONTERÍA | E77: 0 | F77: 0 | G77: Natural | H77: 23 | I77: CÓRDOBA | J77: 0 | K77: MEDIANA | L77: 4711 | M77: COMERCIO AL POR MAYOR Y AL POR MENOR; REPARACIÓN DE VEHÍCULOS AUTOMOTORES Y MOTOCICLETAS | N77: G | O77: Comercio al por menor en establecimientos no especializados | P77: Comercio al por menor en establecimientos no especializados | Q77: 0 | R77: 0 | S77: 0 | T77: 0 | U77: 0 | V77: 0 | W77: 0 | X77: 0 | AJ77: 0 | AK77: 0 | AL77: 52001 | AM77: PASTO | AN77: 0 | AO77: 0 | AP77: Natural | AQ77: 52 | AR77: NARIÑO | AS77: 0 | AT77: MICRO | AU77: 1081 | AV77: INDUSTRIAS MANUFACTURERAS | AW77: C | AX77: Elaboración de otros productos alimenticios | AY77: Elaboración de productos alimenticios | AZ77: 0 | BA77: 0 | BB77: 0 | BC77: 0 | BD77: 0 | BE77: 0 | BF77: 0 | BG77: 0 | BT77: 5209 | BU77: 1 | BV77: 76248 | BW77: 3
C78: 5001 | D78: MEDELLÍN | E78: 0 | F78: 0 | G78: Natural | H78: 5 | I78: ANTIOQUIA | J78: 0 | K78: PEQUEÑA | L78: 4711 | M78: COMERCIO AL POR MAYOR Y AL POR MENOR; REPARACIÓN DE VEHÍCULOS AUTOMOTORES Y MOTOCICLETAS | N78: G | O78: Comercio al por menor en establecimientos no especializados | P78: Comercio al por menor en establecimientos no especializados | Q78: 0 | R78: 0 | S78: 0 | T78: 0 | U78: 0 | V78: 0 | W78: 0 | X78: 0 | AJ78: 0 | AK78: 0 | AL78: 52001 | AM78: PASTO | AN78: 4 | AO78: 3 | AP78: Natural | AQ78: 52 | AR78: NARIÑO | AS78: Aprobado con subsidio | AT78: MICRO | AU78: 1811 | AV78: INDUSTRIAS MANUFACTURERAS | AW78: C | AX78: Actividades de impresión y actividades de servicios relacionados con la impresión | AY78: Actividades de impresión y de producción de copias a partir de grabaciones originales | AZ78: 4 | BA78: 0 | BB78: 0 | BC78: 1 | BD78: 3 | BE78: 0 | BF78: 4 | BG78: 0 | BT78: 5212 | BU78: 12 | BV78: 5148 | BW78: 3
C79: 11001 | D79: BOGOTÁ, D.C. | E79: 0 | F79: 0 | G79: Natural | H79: 11 | I79: BOGOTÁ, D.C. | J79: 0 | K79: MICRO | L79: 1410 | M79: INDUSTRIAS MANUFACTURERAS | N79: C | O79: Confección de prendas de vestir, excepto prendas de piel | P79: Confección de prendas de vestir | Q79: 0 | R79: 0 | S79: 0 | T79: 0 | U79: 0 | V79: 0 | W79: 0 | X79: 0 | AJ79: 0 | AK79: 0 | AL79: 54001 | AM79: CÚCUTA | AN79: 3 | AO79: 1 | AP79: Natural | AQ79: 54 | AR79: NORTE DE SANTANDER | AS79: Aprobado con subsidio | AT79: PEQUEÑA | AU79: 1610 | AV79: INDUSTRIAS MANUFACTURERAS | AW79: C | AX79: Aserrado, acepillado e impregnación de la madera | AY79: Transformación de la madera y fabricación de productos de madera y de corcho, excepto muebles; fabricación de artículos de cestería y espartería | AZ79: 0 | BA79: 3 | BB79: 0 | BC79: 3 | BD79: 0 | BE79: 0 | BF79: 3 | BG79: 0 | BT79: 5697 | BU79: 16 | BV79: 25269 | BW79: 3
C80: 11001 | D80: BOGOTÁ, D.C. | E80: 1 | F80: 7 | G80: Natural | H80: 11 | I80: BOGOTÁ, D.C. | J80: Aprobado con subsidio | K80: PEQUEÑA | L80: 4771 | M80: COMERCIO AL POR MAYOR Y AL POR MENOR; REPARACIÓN DE VEHÍCULOS AUTOMOTORES Y MOTOCICLETAS | N80: G | O80: Comercio al por menor de otros productos en establecimientos especializados | P80: Comercio al por menor de otros productos en establecimientos especializados | Q80: 1 | R80: 0 | S80: 0 | T80: 1 | U80: 0 | V80: 0 | W80: 0 | X80: 1 | AJ80: 0 | AK80: 0 | AL80: 54001 | AM80: CÚCUTA | AN80: 2 | AO80: 3 | AP80: Natural | AQ80: 54 | AR80: NORTE DE SANTANDER | AS80: Aprobado con subsidio | AT80: PEQUEÑA | AU80: 1630 | AV80: INDUSTRIAS MANUFACTURERAS | AW80: C | AX80: Fabricación de partes y piezas de madera, de carpintería y ebanistería para la construcción | AY80: Transformación de la madera y fabricación de productos de madera y de corcho, excepto muebles; fabricación de artículos de cestería y espartería | AZ80: 0 | BA80: 2 | BB80: 0 | BC80: 2 | BD80: 0 | BE80: 0 | BF80: 2 | BG80: 0 | BT80: 25175 | BU80: 6 | BV80: 86001 | BW80: 3
C81: 5001 | D81: MEDELLÍN | E81: 2 | F81: 0 | G81: Natural | H81: 5 | I81: ANTIOQUIA | J81: Aprobado con subsidio | K81: MICRO | L81: 3110 | M81: INDUSTRIAS MANUFACTURERAS | N81: C | O81: Fabricación de muebles | P81: Fabricación de muebles, colchones y somieres | Q81: 1 | R81: 1 | S81: 0 | T81: 2 | U81: 0 | V81: 0 | W81: 2 | X81: 0 | AJ81: 0 | AK81: 0 | AL81: 54001 | AM81: CÚCUTA | AN81: 0 | AO81: 0 | AP81: Natural | AQ81: 54 | AR81: NORTE DE SANTANDER | AS81: 0 | AT81: MICRO | AU81: 1313 | AV81: INDUSTRIAS MANUFACTURERAS | AW81: C | AX81: Preparación, hilatura, tejeduría y acabado de productos textiles | AY81: Fabricación de productos textiles | AZ81: 0 | BA81: 0 | BB81: 0 | BC81: 0 | BD81: 0 | BE81: 0 | BF81: 0 | BG81: 0 | BT81: 25123 | BU81: 1 | BV81: 54518 | BW81: 3
C82: 5209 | D82: CONCORDIA | E82: 0 | F82: 0 | G82: Natural | H82: 5 | I82: ANTIOQUIA | J82: 0 | K82: MICRO | L82: 123 | M82: AGRICULTURA, GANADERÍA, CAZA, SILVICULTURA Y PESCA | N82: A | O82: Cultivos agrícolas permanentes | P82: Cultivos agrícolas permanentes | Q82: 0 | R82: 0 | S82: 0 | T82: 0 | U82: 0 | V82: 0 | W82: 0 | X82: 0 | AJ82: 0 | AK82: 0 | AL82: 54001 | AM82: CÚCUTA | AN82: 0 | AO82: 0 | AP82: Natural | AQ82: 54 | AR82: NORTE DE SANTANDER | AS82: 0 | AT82: MICRO | AU82: 3313 | AV82: INDUSTRIAS MANUFACTURERAS | AW82: C | AX82: Mantenimiento y reparación especializado de productos elaborados en metal y de maquinaria y equipo | AY82: Instalación, mantenimiento y reparación especializado de maquinaria y equipo | AZ82: 0 | BA82: 0 | BB82: 0 | BC82: 0 | BD82: 0 | BE82: 0 | BF82: 0 | BG82: 0 | BT82: 15542 | BU82: 1 | BV82: 5607 | BW82: 3
C83: 5001 | D83: MEDELLÍN | E83: 0 | F83: 0 | G83: Natural | H83: 5 | I83: ANTIOQUIA | J83: 0 | K83: MICRO | L83: 4731 | M83: COMERCIO AL POR MAYOR Y AL POR MENOR; REPARACIÓN DE VEHÍCULOS AUTOMOTORES Y MOTOCICLETAS | N83: G | O83: Comercio al por menor de combustible, lubricantes, aditivos y productos de limpieza para automotores, en establecimientos especializados | P83: Comercio al por menor de combustible, lubricantes, aditivos y productos de limpieza para automotores, en establecimientos especializados | Q83: 0 | R83: 0 | S83: 0 | T83: 0 | U83: 0 | V83: 0 | W83: 0 | X83: 0 | AJ83: 0 | AK83: 0 | AL83: 54405 | AM83: LOS PATIOS | AN83: 0 | AO83: 0 | AP83: Natural | AQ83: 54 | AR83: NORTE DE SANTANDER | AS83: 0 | AT83: MICRO | AU83: 2395 | AV83: INDUSTRIAS MANUFACTURERAS | AW83: C | AX83: Fabricación de productos minerales no metálicos n.c.p. | AY83: Fabricación de otros productos minerales no metálicos | AZ83: 0 | BA83: 0 | BB83: 0 | BC83: 0 | BD83: 0 | BE83: 0 | BF83: 0 | BG83: 0 | BT83: 47001 | BU83: 13 | BV83: 19845 | BW83: 3
C84: 5697 | D84: EL SANTUARIO | E84: 1 | F84: 1 | G84: Natural | H84: 5 | I84: ANTIOQUIA | J84: Aprobado con subsidio | K84: MICRO | L84: 4773 | M84: COMERCIO AL POR MAYOR Y AL POR MENOR; REPARACIÓN DE VEHÍCULOS AUTOMOTORES Y MOTOCICLETAS | N84: G | O84: Comercio al por menor de otros productos en establecimientos especializados | P84: Comercio al por menor de otros productos en establecimientos especializados | Q84: 1 | R84: 0 | S84: 0 | T84: 1 | U84: 0 | V84: 0 | W84: 1 | X84: 0 | AJ84: 0 | AK84: 0 | AL84: 68307 | AM84: GIRÓN | AN84: 0 | AO84: 0 | AP84: Natural | AQ84: 68 | AR84: SANTANDER | AS84: 0 | AT84: MICRO | AU84: 2511 | AV84: INDUSTRIAS MANUFACTURERAS | AW84: C | AX84: Fabricación de productos metálicos para uso estructural, tanques, depósitos y generadores de vapor. | AY84: Fabricación de productos elaborados de metal, excepto maquinaria y equipo | AZ84: 0 | BA84: 0 | BB84: 0 | BC84: 0 | BD84: 0 | BE84: 0 | BF84: 0 | BG84: 0 | BT84: 54874 | BU84: 6 | BV84: 17873 | BW84: 3
C85: 5001 | D85: MEDELLÍN | E85: 0 | F85: 0 | G85: Natural | H85: 5 | I85: ANTIOQUIA | J85: 0 | K85: PEQUEÑA | L85: 722 | M85: EXPLOTACIÓN DE MINAS Y CANTERAS | N85: B | O85: Extracción de minerales metalíferos no ferrosos | P85: Extracción de minerales metalíferos no ferrosos | Q85: 0 | R85: 0 | S85: 0 | T85: 0 | U85: 0 | V85: 0 | W85: 0 | X85: 0 | AJ85: 0 | AK85: 0 | AL85: 68081 | AM85: BARRANCABERMEJA | AN85: 1 | AO85: 0 | AP85: Natural | AQ85: 68 | AR85: SANTANDER | AS85: Aprobado con subsidio | AT85: MICRO | AU85: 3311 | AV85: INDUSTRIAS MANUFACTURERAS | AW85: C | AX85: Mantenimiento y reparación especializado de productos elaborados en metal y de maquinaria y equipo | AY85: Instalación, mantenimiento y reparación especializado de maquinaria y equipo | AZ85: 0 | BA85: 1 | BB85: 0 | BC85: 1 | BD85: 0 | BE85: 0 | BF85: 1 | BG85: 0 | BT85: 68276 | BU85: 19 | BV85: 25769 | BW85: 3
C86: 5001 | D86: MEDELLÍN | E86: 0 | F86: 0 | G86: Natural | H86: 5 | I86: ANTIOQUIA | J86: 0 | K86: PEQUEÑA | L86: 141 | M86: AGRICULTURA, GANADERÍA, CAZA, SILVICULTURA Y PESCA | N86: A | O86: Ganadería | P86: Ganadería | Q86: 0 | R86: 0 | S86: 0 | T86: 0 | U86: 0 | V86: 0 | W86: 0 | X86: 0 | AJ86: 0 | AK86: 0 | AL86: 68001 | AM86: BUCARAMANGA | AN86: 1 | AO86: 1 | AP86: Natural | AQ86: 68 | AR86: SANTANDER | AS86: Aprobado con subsidio | AT86: MICRO | AU86: 1410 | AV86: INDUSTRIAS MANUFACTURERAS | AW86: C | AX86: Confección de prendas de vestir, excepto prendas de piel | AY86: Confección de prendas de vestir | AZ86: 1 | BA86: 0 | BB86: 0 | BC86: 0 | BD86: 1 | BE86: 0 | BF86: 1 | BG86: 0 | BT86: 68679 | BU86: 6 | BV86: 68655 | BW86: 3
C87: 11001 | D87: BOGOTÁ, D.C. | E87: 1 | F87: 1 | G87: Natural | H87: 11 | I87: BOGOTÁ, D.C. | J87: Aprobado con subsidio | K87: MICRO | L87: 4652 | M87: COMERCIO AL POR MAYOR Y AL POR MENOR; REPARACIÓN DE VEHÍCULOS AUTOMOTORES Y MOTOCICLETAS | N87: G | O87: Comercio al por mayor de maquinaria y equipo | P87: Comercio al por mayor de maquinaria y equipo | Q87: 0 | R87: 1 | S87: 0 | T87: 1 | U87: 0 | V87: 0 | W87: 1 | X87: 0 | AJ87: 0 | AK87: 0 | AL87: 68001 | AM87: BUCARAMANGA | AN87: 1 | AO87: 2 | AP87: Natural | AQ87: 68 | AR87: SANTANDER | AS87: Aprobado con subsidio | AT87: MICRO | AU87: 1410 | AV87: INDUSTRIAS MANUFACTURERAS | AW87: C | AX87: Confección de prendas de vestir, excepto prendas de piel | AY87: Confección de prendas de vestir | AZ87: 1 | BA87: 0 | BB87: 0 | BC87: 1 | BD87: 0 | BE87: 0 | BF87: 1 | BG87: 0 | BT87: 76520 | BU87: 36 | BV87: 5887 | BW87: 3
C88: 54001 | D88: CÚCUTA | E88: 2 | F88: 0 | G88: Natural | H88: 54 | I88: NORTE DE SANTANDER | J88: Aprobado con subsidio | K88: PEQUEÑA | L88: 4631 | M88: COMERCIO AL POR MAYOR Y AL POR MENOR; REPARACIÓN DE VEHÍCULOS AUTOMOTORES Y MOTOCICLETAS | N88: G | O88: Comercio al por mayor de alimentos, bebidas y tabaco | P88: Comercio al por mayor de alimentos, bebidas y tabaco | Q88: 0 | R88: 2 | S88: 0 | T88: 2 | U88: 0 | V88: 0 | W88: 2 | X88: 0 | AJ88: 0 | AK88: 0 | AL88: 68861 | AM88: VÉLEZ | AN88: 0 | AO88: 0 | AP88: Natural | AQ88: 68 | AR88: SANTANDER | AS88: 0 | AT88: MICRO | AU88: 1089 | AV88: INDUSTRIAS MANUFACTURERAS | AW88: C | AX88: Elaboración de otros productos alimenticios | AY88: Elaboración de productos alimenticios | AZ88: 0 | BA88: 0 | BB88: 0 | BC88: 0 | BD88: 0 | BE88: 0 | BF88: 0 | BG88: 0 | BT88: 5079 | BU88: 7 | BV88: 25875 | BW88: 2
C89: 5001 | D89: MEDELLÍN | E89: 1 | F89: 2 | G89: Natural | H89: 5 | I89: ANTIOQUIA | J89: Aprobado con subsidio | K89: MICRO | L89: 6810 | M89: ACTIVIDADES INMOBILIARIAS | N89: L | O89: Actividades inmobiliarias realizadas con bienes propios o arrendados | P89: Actividades inmobiliarias realizadas con bienes propios o arrendados | Q89: 0 | R89: 1 | S89: 0 | T89: 0 | U89: 0 | V89: 1 | W89: 1 | X89: 0 | AJ89: 0 | AK89: 0 | AL89: 50006 | AM89: ACACÍAS | AN89: 0 | AO89: 0 | AP89: Natural | AQ89: 50 | AR89: META | AS89: 0 | AT89: PEQUEÑA | AU89: 3110 | AV89: INDUSTRIAS MANUFACTURERAS | AW89: C | AX89: Fabricación de muebles | AY89: Fabricación de muebles, colchones y somieres | AZ89: 0 | BA89: 0 | BB89: 0 | BC89: 0 | BD89: 0 | BE89: 0 | BF89: 0 | BG89: 0 | BT89: 5664 | BU89: 2 | BV89: 68861 | BW89: 2
C90: 15667 | D90: SAN LUIS DE GACENO | E90: 0 | F90: 0 | G90: Natural | H90: 15 | I90: BOYACÁ | J90: 0 | K90: MICRO | L90: 4711 | M90: COMERCIO AL POR MAYOR Y AL POR MENOR; REPARACIÓN DE VEHÍCULOS AUTOMOTORES Y MOTOCICLETAS | N90: G | O90: Comercio al por menor en establecimientos no especializados | P90: Comercio al por menor en establecimientos no especializados | Q90: 0 | R90: 0 | S90: 0 | T90: 0 | U90: 0 | V90: 0 | W90: 0 | X90: 0 | AJ90: 0 | AK90: 0 | AL90: 11001 | AM90: BOGOTÁ, D.C. | AN90: 0 | AO90: 0 | AP90: Natural | AQ90: 11 | AR90: BOGOTÁ, D.C. | AS90: 0 | AT90: PEQUEÑA | AU90: 1410 | AV90: INDUSTRIAS MANUFACTURERAS | AW90: C | AX90: Confección de prendas de vestir, excepto prendas de piel | AY90: Confección de prendas de vestir | AZ90: 0 | BA90: 0 | BB90: 0 | BC90: 0 | BD90: 0 | BE90: 0 | BF90: 0 | BG90: 0 | BT90: 5308 | BU90: 13 | BV90: 18753 | BW90: 2
C91: 15759 | D91: SOGAMOSO | E91: 4 | F91: 4 | G91: Natural | H91: 15 | I91: BOYACÁ | J91: Aprobado con subsidio | K91: MICRO | L91: 8512 | M91: EDUCACIÓN | N91: P | O91: Educación de la primera infancia, preescolar y básica primaria | P91: Educación de la primera infancia, preescolar y básica primaria | Q91: 4 | R91: 0 | S91: 0 | T91: 1 | U91: 3 | V91: 0 | W91: 4 | X91: 0 | AJ91: 0 | AK91: 0 | AL91: 68001 | AM91: BUCARAMANGA | AN91: 1 | AO91: 0 | AP91: Natural | AQ91: 68 | AR91: SANTANDER | AS91: Aprobado con subsidio | AT91: MICRO | AU91: 3110 | AV91: INDUSTRIAS MANUFACTURERAS | AW91: C | AX91: Fabricación de muebles | AY91: Fabricación de muebles, colchones y somieres | AZ91: 0 | BA91: 1 | BB91: 0 | BC91: 0 | BD91: 0 | BE91: 1 | BF91: 1 | BG91: 0 | BT91: 5440 | BU91: 14 | BV91: 5368 | BW91: 2
C92: 15176 | D92: CHIQUINQUIRÁ | E92: 4 | F92: 8 | G92: Natural | H92: 15 | I92: BOYACÁ | J92: Aprobado con subsidio | K92: MICRO | L92: 1081 | M92: INDUSTRIAS MANUFACTURERAS | N92: C | O92: Elaboración de otros productos alimenticios | P92: Elaboración de productos alimenticios | Q92: 2 | R92: 2 | S92: 0 | T92: 4 | U92: 0 | V92: 0 | W92: 4 | X92: 0 | AJ92: 0 | AK92: 0 | AL92: 76834 | AM92: TULUÁ | AN92: 0 | AO92: 0 | AP92: Natural | AQ92: 76 | AR92: VALLE DEL CAUCA | AS92: 0 | AT92: PEQUEÑA | AU92: 3110 | AV92: INDUSTRIAS MANUFACTURERAS | AW92: C | AX92: Fabricación de muebles | AY92: Fabricación de muebles, colchones y somieres | AZ92: 0 | BA92: 0 | BB92: 0 | BC92: 0 | BD92: 0 | BE92: 0 | BF92: 0 | BG92: 0 | BT92: 63130 | BU92: 2 | BV92: 66682 | BW92: 2
C93: 11001 | D93: BOGOTÁ, D.C. | E93: 2 | F93: 0 | G93: Natural | H93: 11 | I93: BOGOTÁ, D.C. | J93: Aprobado con subsidio | K93: MICRO | L93: 2920 | M93: INDUSTRIAS MANUFACTURERAS | N93: C | O93: Fabricación de carrocerías para vehículos automotores; fabricación de remolques y semirremolques | P93: Fabricación de vehículos automotores, remolques y semirremolques | Q93: 2 | R93: 0 | S93: 0 | T93: 0 | U93: 2 | V93: 0 | W93: 2 | X93: 0 | AJ93: 0 | AK93: 0 | AL93: 76670 | AM93: SAN PEDRO | AN93: 7 | AO93: 4 | AP93: Natural | AQ93: 76 | AR93: VALLE DEL CAUCA | AS93: Aprobado con subsidio | AT93: PEQUEÑA | AU93: 1620 | AV93: INDUSTRIAS MANUFACTURERAS | AW93: C | AX93: Fabricación de hojas de madera para enchapado; fabricación de tableros contrachapados, tableros laminados, tableros de partículas y otros tableros y paneles | AY93: Transformación de la madera y fabricación de productos de madera y de corcho, excepto muebles; fabricación de artículos de cestería y espartería | AZ93: 5 | BA93: 2 | BB93: 0 | BC93: 2 | BD93: 4 | BE93: 1 | BF93: 7 | BG93: 0 | BT93: 13001 | BU93: 33 | BV93: 50006 | BW93: 2
C94: 15001 | D94: TUNJA | E94: 0 | F94: 0 | G94: Natural | H94: 15 | I94: BOYACÁ | J94: 0 | K94: MICRO | L94: 4721 | M94: COMERCIO AL POR MAYOR Y AL POR MENOR; REPARACIÓN DE VEHÍCULOS AUTOMOTORES Y MOTOCICLETAS | N94: G | O94: Comercio al por menor de alimentos (víveres en general), bebidas y tabaco, en establecimientos especializados | P94: Comercio al por menor de alimentos (víveres en general), bebidas y tabaco, en establecimientos especializados | Q94: 0 | R94: 0 | S94: 0 | T94: 0 | U94: 0 | V94: 0 | W94: 0 | X94: 0 | AJ94: 0 | AK94: 0 | AL94: 5001 | AM94: MEDELLÍN | AN94: 14 | AO94: 44 | AP94: Natural | AQ94: 5 | AR94: ANTIOQUIA | AS94: Aprobado con subsidio | AT94: PEQUEÑA | AU94: 1410 | AV94: INDUSTRIAS MANUFACTURERAS | AW94: C | AX94: Confección de prendas de vestir, excepto prendas de piel | AY94: Confección de prendas de vestir | AZ94: 7 | BA94: 7 | BB94: 0 | BC94: 1 | BD94: 7 | BE94: 6 | BF94: 14 | BG94: 0 | BT94: 19001 | BU94: 4 | BV94: 76670 | BW94: 2
C95: 15238 | D95: DUITAMA | E95: 1 | F95: 1 | G95: Natural | H95: 15 | I95: BOYACÁ | J95: Aprobado con subsidio | K95: MICRO | L95: 4923 | M95: TRANSPORTE Y ALMACENAMIENTO | N95: H | O95: Transporte terrestre publico automotor | P95: Transporte terrestre publico automotor | Q95: 0 | R95: 1 | S95: 0 | T95: 1 | U95: 0 | V95: 0 | W95: 1 | X95: 0 | AJ95: 0 | AK95: 0 | AL95: 5001 | AM95: MEDELLÍN | AN95: 0 | AO95: 0 | AP95: Natural | AQ95: 5 | AR95: ANTIOQUIA | AS95: 0 | AT95: PEQUEÑA | AU95: 1709 | AV95: INDUSTRIAS MANUFACTURERAS | AW95: C | AX95: Fabricación de papel, cartón y productos de papel y cartón | AY95: Fabricación de papel, cartón y productos de papel y cartón | AZ95: 0 | BA95: 0 | BB95: 0 | BC95: 0 | BD95: 0 | BE95: 0 | BF95: 0 | BG95: 0 | BT95: 5541 | BU95: 4 | BV95: 19130 | BW95: 2
C96: 85001 | D96: YOPAL | E96: 2 | F96: 1 | G96: Natural | H96: 85 | I96: CASANARE | J96: Aprobado con subsidio | K96: MICRO | L96: 4542 | M96: COMERCIO AL POR MAYOR Y AL POR MENOR; REPARACIÓN DE VEHÍCULOS AUTOMOTORES Y MOTOCICLETAS | N96: G | O96: Comercio, mantenimiento y reparación de motocicletas y de sus partes, piezas y accesorios | P96: Comercio, mantenimiento y reparación de motocicletas y de sus partes, piezas y accesorios | Q96: 1 | R96: 1 | S96: 0 | T96: 2 | U96: 0 | V96: 0 | W96: 2 | X96: 0 | AJ96: 0 | AK96: 0 | AL96: 5360 | AM96: ITAGUI | AN96: 7 | AO96: 25 | AP96: Natural | AQ96: 5 | AR96: ANTIOQUIA | AS96: Aprobado con subsidio | AT96: MEDIANA | AU96: 1011 | AV96: INDUSTRIAS MANUFACTURERAS | AW96: C | AX96: Procesamiento y conservación de carne, pescado, crustáceos y moluscos | AY96: Elaboración de productos alimenticios | AZ96: 3 | BA96: 4 | BB96: 0 | BC96: 7 | BD96: 0 | BE96: 0 | BF96: 7 | BG96: 0 | BT96: 41298 | BU96: 0 | BV96: 5045 | BW96: 2
C97: 15537 | D97: PAZ DE RÍO | E97: 2 | F97: 2 | G97: Natural | H97: 15 | I97: BOYACÁ | J97: Aprobado con subsidio | K97: PEQUEÑA | L97: 4923 | M97: TRANSPORTE Y ALMACENAMIENTO | N97: H | O97: Transporte terrestre publico automotor | P97: Transporte terrestre publico automotor | Q97: 1 | R97: 1 | S97: 0 | T97: 2 | U97: 0 | V97: 0 | W97: 2 | X97: 0 | AJ97: 0 | AK97: 0 | AL97: 5001 | AM97: MEDELLÍN | AN97: 0 | AO97: 0 | AP97: Natural | AQ97: 5 | AR97: ANTIOQUIA | AS97: 0 | AT97: MICRO | AU97: 1089 | AV97: INDUSTRIAS MANUFACTURERAS | AW97: C | AX97: Elaboración de otros productos alimenticios | AY97: Elaboración de productos alimenticios | AZ97: 0 | BA97: 0 | BB97: 0 | BC97: 0 | BD97: 0 | BE97: 0 | BF97: 0 | BG97: 0 | BT97: 25286 | BU97: 26 | BV97: 15516 | BW97: 2
C98: 15759 | D98: SOGAMOSO | E98: 1 | F98: 2 | G98: Natural | H98: 15 | I98: BOYACÁ | J98: Aprobado con subsidio | K98: PEQUEÑA | L98: 2395 | M98: INDUSTRIAS MANUFACTURERAS | N98: C | O98: Fabricación de productos minerales no metálicos n.c.p. | P98: Fabricación de otros productos minerales no metálicos | Q98: 0 | R98: 1 | S98: 0 | T98: 0 | U98: 0 | V98: 1 | W98: 1 | X98: 0 | AJ98: 0 | AK98: 0 | AL98: 5761 | AM98: SOPETRÁN | AN98: 0 | AO98: 0 | AP98: Natural | AQ98: 5 | AR98: ANTIOQUIA | AS98: 0 | AT98: MICRO | AU98: 1081 | AV98: INDUSTRIAS MANUFACTURERAS | AW98: C | AX98: Elaboración de otros productos alimenticios | AY98: Elaboración de productos alimenticios | AZ98: 0 | BA98: 0 | BB98: 0 | BC98: 0 | BD98: 0 | BE98: 0 | BF98: 0 | BG98: 0 | BT98: 70124 | BU98: 1 | BV98: 76109 | BW98: 2
C99: 11001 | D99: BOGOTÁ, D.C. | E99: 1 | F99: 1 | G99: Natural | H99: 11 | I99: BOGOTÁ, D.C. | J99: Aprobado con subsidio | K99: MICRO | L99: 4663 | M99: COMERCIO AL POR MAYOR Y AL POR MENOR; REPARACIÓN DE VEHÍCULOS AUTOMOTORES Y MOTOCICLETAS | N99: G | O99: Comercio al por mayor especializado de otros productos | P99: Comercio al por mayor especializado de otros productos | Q99: 0 | R99: 1 | S99: 0 | T99: 1 | U99: 0 | V99: 0 | W99: 1 | X99: 0 | AJ99: 0 | AK99: 0 | AL99: 5615 | AM99: RIONEGRO | AN99: 0 | AO99: 0 | AP99: Natural | AQ99: 5 | AR99: ANTIOQUIA | AS99: 0 | AT99: MICRO | AU99: 1610 | AV99: INDUSTRIAS MANUFACTURERAS | AW99: C | AX99: Aserrado, acepillado e impregnación de la madera | AY99: Transformación de la madera y fabricación de productos de madera y de corcho, excepto muebles; fabricación de artículos de cestería y espartería | AZ99: 0 | BA99: 0 | BB99: 0 | BC99: 0 | BD99: 0 | BE99: 0 | BF99: 0 | BG99: 0 | BT99: 52227 | BU99: 1 | BV99: 5642 | BW99: 2
C100: 11001 | D100: BOGOTÁ, D.C. | E100: 0 | F100: 0 | G100: Natural | H100: 11 | I100: BOGOTÁ, D.C. | J100: 0 | K100: PEQUEÑA | L100: 1410 | M100: INDUSTRIAS MANUFACTURERAS | N100: C | O100: Confección de prendas de vestir, excepto prendas de piel | P100: Confección de prendas de vestir | Q100: 0 | R100: 0 | S100: 0 | T100: 0 | U100: 0 | V100: 0 | W100: 0 | X100: 0 | AJ100: 0 | AK100: 0 | AL100: 5148 | AM100: EL CARMEN DE VIBORAL | AN100: 0 | AO100: 0 | AP100: Natural | AQ100: 5 | AR100: ANTIOQUIA | AS100: 0 | AT100: MICRO | AU100: 1630 | AV100: INDUSTRIAS MANUFACTURERAS | AW100: C | AX100: Fabricación de partes y piezas de madera, de carpintería y ebanistería para la construcción | AY100: Transformación de la madera y fabricación de productos de madera y de corcho, excepto muebles; fabricación de artículos de cestería y espartería | AZ100: 0 | BA100: 0 | BB100: 0 | BC100: 0 | BD100: 0 | BE100: 0 | BF100: 0 | BG100: 0 | BT100: 5380 | BU100: 57 | BV100: 5664 | BW100: 2
C101: 15753 | D101: SOATÁ | E101: 2 | F101: 1 | G101: Natural | H101: 15 | I101: BOYACÁ | J101: Aprobado con subsidio | K101: MICRO | L101: 4631 | M101: COMERCIO AL POR MAYOR Y AL POR MENOR; REPARACIÓN DE VEHÍCULOS AUTOMOTORES Y MOTOCICLETAS | N101: G | O101: Comercio al por mayor de alimentos, bebidas y tabaco | P101: Comercio al por mayor de alimentos, bebidas y tabaco | Q101: 0 | R101: 2 | S101: 0 | T101: 0 | U101: 0 | V101: 2 | W101: 2 | X101: 0 | AJ101: 0 | AK101: 0 | AL101: 19130 | AM101: CAJIBÍO | AN101: 1 | AO101: 9 | AP101: Natural | AQ101: 19 | AR101: CAUCA | AS101: Aprobado con subsidio | AT101: MICRO | AU101: 1610 | AV101: INDUSTRIAS MANUFACTURERAS | AW101: C | AX101: Aserrado, acepillado e impregnación de la madera | AY101: Transformación de la madera y fabricación de productos de madera y de corcho, excepto muebles; fabricación de artículos de cestería y espartería | AZ101: 0 | BA101: 1 | BB101: 0 | BC101: 1 | BD101: 0 | BE101: 0 | BF101: 1 | BG101: 0 | BT101: 25745 | BU101: 1 | BV101: 63130 | BW101: 2
C102: 54874 | D102: VILLA DEL ROSARIO | E102: 0 | F102: 0 | G102: Natural | H102: 54 | I102: NORTE DE SANTANDER | J102: 0 | K102: MICRO | L102: 5630 | M102: ALOJAMIENTO Y SERVICIOS DE COMIDA | N102: I | O102: Expendio de bebidas alcohólicas para el consumo dentro del establecimiento | P102: Expendio de bebidas alcohólicas para el consumo dentro del establecimiento | Q102: 0 | R102: 0 | S102: 0 | T102: 0 | U102: 0 | V102: 0 | W102: 0 | X102: 0 | AJ102: 0 | AK102: 0 | AL102: 5376 | AM102: LA CEJA | AN102: 1 | AO102: 2 | AP102: Natural | AQ102: 5 | AR102: ANTIOQUIA | AS102: Aprobado con subsidio | AT102: MICRO | AU102: 1610 | AV102: INDUSTRIAS MANUFACTURERAS | AW102: C | AX102: Aserrado, acepillado e impregnación de la madera | AY102: Transformación de la madera y fabricación de productos de madera y de corcho, excepto muebles; fabricación de artículos de cestería y espartería | AZ102: 0 | BA102: 1 | BB102: 0 | BC102: 1 | BD102: 0 | BE102: 0 | BF102: 1 | BG102: 0 | BT102: 25430 | BU102: 16 | BV102: 13836 | BW102: 2
C103: 11001 | D103: BOGOTÁ, D.C. | E103: 0 | F103: 0 | G103: Natural | H103: 11 | I103: BOGOTÁ, D.C. | J103: 0 | K103: MICRO | L103: 4642 | M103: COMERCIO AL POR MAYOR Y AL POR MENOR; REPARACIÓN DE VEHÍCULOS AUTOMOTORES Y MOTOCICLETAS | N103: G | O103: Comercio al por mayor de artículos y enseres domésticos (incluidas prendas de vestir) | P103: Comercio al por mayor de artículos y enseres domésticos (incluidas prendas de vestir) | Q103: 0 | R103: 0 | S103: 0 | T103: 0 | U103: 0 | V103: 0 | W103: 0 | X103: 0 | AJ103: 0 | AK103: 0 | AL103: 73001 | AM103: IBAGUÉ | AN103: 13 | AO103: 2 | AP103: Natural | AQ103: 73 | AR103: TOLIMA | AS103: Aprobado con subsidio | AT103: MICRO | AU103: 1410 | AV103: INDUSTRIAS MANUFACTURERAS | AW103: C | AX103: Confección de prendas de vestir, excepto prendas de piel | AY103: Confección de prendas de vestir | AZ103: 13 | BA103: 0 | BB103: 0 | BC103: 5 | BD103: 8 | BE103: 0 | BF103: 13 | BG103: 0 | BT103: 13836 | BU103: 2 | BV103: 5400 | BW103: 2
C104: 11001 | D104: BOGOTÁ, D.C. | E104: 2 | F104: 9 | G104: Natural | H104: 11 | I104: BOGOTÁ, D.C. | J104: Aprobado con subsidio | K104: MICRO | L104: 1081 | M104: INDUSTRIAS MANUFACTURERAS | N104: C | O104: Elaboración de otros productos alimenticios | P104: Elaboración de productos alimenticios | Q104: 1 | R104: 1 | S104: 0 | T104: 2 | U104: 0 | V104: 0 | W104: 2 | X104: 0 | AJ104: 0 | AK104: 0 | AL104: 5001 | AM104: MEDELLÍN | AN104: 0 | AO104: 0 | AP104: Natural | AQ104: 5 | AR104: ANTIOQUIA | AS104: 0 | AT104: MICRO | AU104: 3110 | AV104: INDUSTRIAS MANUFACTURERAS | AW104: C | AX104: Fabricación de muebles | AY104: Fabricación de muebles, colchones y somieres | AZ104: 0 | BA104: 0 | BB104: 0 | BC104: 0 | BD104: 0 | BE104: 0 | BF104: 0 | BG104: 0 | BT104: 76111 | BU104: 5 | BV104: 8634 | BW104: 2
C105: 11001 | D105: BOGOTÁ, D.C. | E105: 5 | F105: 2 | G105: Natural | H105: 11 | I105: BOGOTÁ, D.C. | J105: Aprobado con subsidio | K105: MICRO | L105: 4923 | M105: TRANSPORTE Y ALMACENAMIENTO | N105: H | O105: Transporte terrestre publico automotor | P105: Transporte terrestre publico automotor | Q105: 1 | R105: 4 | S105: 0 | T105: 2 | U105: 1 | V105: 2 | W105: 5 | X105: 0 | AJ105: 0 | AK105: 0 | AL105: 54001 | AM105: CÚCUTA | AN105: 0 | AO105: 0 | AP105: Natural | AQ105: 54 | AR105: NORTE DE SANTANDER | AS105: 0 | AT105: MICRO | AU105: 1410 | AV105: INDUSTRIAS MANUFACTURERAS | AW105: C | AX105: Confección de prendas de vestir, excepto prendas de piel | AY105: Confección de prendas de vestir | AZ105: 0 | BA105: 0 | BB105: 0 | BC105: 0 | BD105: 0 | BE105: 0 | BF105: 0 | BG105: 0 | BT105: 8296 | BU105: 7 | BV105: 73268 | BW105: 2
C106: 85001 | D106: YOPAL | E106: 0 | F106: 0 | G106: Natural | H106: 85 | I106: CASANARE | J106: 0 | K106: MICRO | L106: 811 | M106: EXPLOTACIÓN DE MINAS Y CANTERAS | N106: B | O106: Extracción de piedra, arena, arcillas, cal, yeso, caolín, bentonitas y similares | P106: Extracción de piedra, arena, arcillas, cal, yeso, caolín, bentonitas y similares | Q106: 0 | R106: 0 | S106: 0 | T106: 0 | U106: 0 | V106: 0 | W106: 0 | X106: 0 | AJ106: 0 | AK106: 0 | AL106: 76147 | AM106: CARTAGO | AN106: 0 | AO106: 0 | AP106: Natural | AQ106: 76 | AR106: VALLE DEL CAUCA | AS106: 0 | AT106: MEDIANA | AU106: 1410 | AV106: INDUSTRIAS MANUFACTURERAS | AW106: C | AX106: Confección de prendas de vestir, excepto prendas de piel | AY106: Confección de prendas de vestir | AZ106: 0 | BA106: 0 | BB106: 0 | BC106: 0 | BD106: 0 | BE106: 0 | BF106: 0 | BG106: 0 | BT106: 25799 | BU106: 7 | BV106: 17541 | BW106: 2
C107: 15808 | D107: TINJACÁ | E107: 0 | F107: 0 | G107: Natural | H107: 15 | I107: BOYACÁ | J107: 0 | K107: MICRO | L107: 4752 | M107: COMERCIO AL POR MAYOR Y AL POR MENOR; REPARACIÓN DE VEHÍCULOS AUTOMOTORES Y MOTOCICLETAS | N107: G | O107: Comercio al por menor de otros enseres domésticos en establecimientos especializados | P107: Comercio al por menor de otros enseres domésticos en establecimientos especializados | Q107: 0 | R107: 0 | S107: 0 | T107: 0 | U107: 0 | V107: 0 | W107: 0 | X107: 0 | AJ107: 0 | AK107: 0 | AL107: 76834 | AM107: TULUÁ | AN107: 0 | AO107: 0 | AP107: Natural | AQ107: 76 | AR107: VALLE DEL CAUCA | AS107: 0 | AT107: PEQUEÑA | AU107: 3110 | AV107: INDUSTRIAS MANUFACTURERAS | AW107: C | AX107: Fabricación de muebles | AY107: Fabricación de muebles, colchones y somieres | AZ107: 0 | BA107: 0 | BB107: 0 | BC107: 0 | BD107: 0 | BE107: 0 | BF107: 0 | BG107: 0 | BT107: 25126 | BU107: 7 | BV107: 19300 | BW107: 2
C108: 11001 | D108: BOGOTÁ, D.C. | E108: 0 | F108: 0 | G108: Natural | H108: 11 | I108: BOGOTÁ, D.C. | J108: 0 | K108: MICRO | L108: 2592 | M108: INDUSTRIAS MANUFACTURERAS | N108: C | O108: Fabricación de otros productos elaborados de metal y actividades de servicios relacionadas con el trabajo de metales | P108: Fabricación de productos elaborados de metal, excepto maquinaria y equipo | Q108: 0 | R108: 0 | S108: 0 | T108: 0 | U108: 0 | V108: 0 | W108: 0 | X108: 0 | AJ108: 0 | AK108: 0 | AL108: 66170 | AM108: DOSQUEBRADAS | AN108: 3 | AO108: 8 | AP108: Natural | AQ108: 66 | AR108: RISARALDA | AS108: Aprobado con subsidio | AT108: PEQUEÑA | AU108: 2511 | AV108: INDUSTRIAS MANUFACTURERAS | AW108: C | AX108: Fabricación de productos metálicos para uso estructural, tanques, depósitos y generadores de vapor. | AY108: Fabricación de productos elaborados de metal, excepto maquinaria y equipo | AZ108: 1 | BA108: 2 | BB108: 0 | BC108: 2 | BD108: 1 | BE108: 0 | BF108: 3 | BG108: 0 | BT108: 25817 | BU108: 17 | BV108: 20621 | BW108: 2
C109: 11001 | D109: BOGOTÁ, D.C. | E109: 5 | F109: 0 | G109: Natural | H109: 11 | I109: BOGOTÁ, D.C. | J109: Aprobado con subsidio | K109: MICRO | L109: 5611 | M109: ALOJAMIENTO Y SERVICIOS DE COMIDA | N109: I | O109: Actividades de restaurantes, cafeterías y servicio móvil de comidas | P109: Actividades de restaurantes, cafeterías y servicio móvil de comidas | Q109: 2 | R109: 3 | S109: 0 | T109: 0 | U109: 2 | V109: 3 | W109: 4 | X109: 1 | AJ109: 0 | AK109: 0 | AL109: 76001 | AM109: CALI | AN109: 1 | AO109: 2 | AP109: Natural | AQ109: 76 | AR109: VALLE DEL CAUCA | AS109: Aprobado con subsidio | AT109: MICRO | AU109: 1522 | AV109: INDUSTRIAS MANUFACTURERAS | AW109: C | AX109: Fabricación de calzado | AY109: Curtido y recurtido de cueros; fabricación de calzado; fabricación de artículos de viaje, maletas, bolsos de mano y artículos similares, y fabricación de artículos de talabartería y guarnicionería; adobo y teñido de pieles | AZ109: 1 | BA109: 0 | BB109: 0 | BC109: 1 | BD109: 0 | BE109: 0 | BF109: 1 | BG109: 0 | BT109: 8758 | BU109: 6 | BV109: 25740 | BW109: 2
C110: 18001 | D110: FLORENCIA | E110: 0 | F110: 0 | G110: Natural | H110: 18 | I110: CAQUETÁ | J110: 0 | K110: MICRO | L110: 4651 | M110: COMERCIO AL POR MAYOR Y AL POR MENOR; REPARACIÓN DE VEHÍCULOS AUTOMOTORES Y MOTOCICLETAS | N110: G | O110: Comercio al por mayor de maquinaria y equipo | P110: Comercio al por mayor de maquinaria y equipo | Q110: 0 | R110: 0 | S110: 0 | T110: 0 | U110: 0 | V110: 0 | W110: 0 | X110: 0 | AJ110: 0 | AK110: 0 | AL110: 76001 | AM110: CALI | AN110: 0 | AO110: 0 | AP110: Natural | AQ110: 76 | AR110: VALLE DEL CAUCA | AS110: 0 | AT110: PEQUEÑA | AU110: 3311 | AV110: INDUSTRIAS MANUFACTURERAS | AW110: C | AX110: Mantenimiento y reparación especializado de productos elaborados en metal y de maquinaria y equipo | AY110: Instalación, mantenimiento y reparación especializado de maquinaria y equipo | AZ110: 0 | BA110: 0 | BB110: 0 | BC110: 0 | BD110: 0 | BE110: 0 | BF110: 0 | BG110: 0 | BT110: 5400 | BU110: 2 | BV110: 25743 | BW110: 2
C111: 5266 | D111: ENVIGADO | E111: 2 | F111: 0 | G111: Natural | H111: 5 | I111: ANTIOQUIA | J111: Aprobado con subsidio | K111: MICRO | L111: 4541 | M111: COMERCIO AL POR MAYOR Y AL POR MENOR; REPARACIÓN DE VEHÍCULOS AUTOMOTORES Y MOTOCICLETAS | N111: G | O111: Comercio, mantenimiento y reparación de motocicletas y de sus partes, piezas y accesorios | P111: Comercio, mantenimiento y reparación de motocicletas y de sus partes, piezas y accesorios | Q111: 2 | R111: 0 | S111: 0 | T111: 2 | U111: 0 | V111: 0 | W111: 2 | X111: 0 | AJ111: 0 | AK111: 0 | AL111: 76001 | AM111: CALI | AN111: 1 | AO111: 0 | AP111: Natural | AQ111: 76 | AR111: VALLE DEL CAUCA | AS111: Aprobado con subsidio | AT111: MICRO | AU111: 1811 | AV111: INDUSTRIAS MANUFACTURERAS | AW111: C | AX111: Actividades de impresión y actividades de servicios relacionados con la impresión | AY111: Actividades de impresión y de producción de copias a partir de grabaciones originales | AZ111: 0 | BA111: 1 | BB111: 0 | BC111: 1 | BD111: 0 | BE111: 0 | BF111: 1 | BG111: 0 | BT111: 76130 | BU111: 7 | BV111: 50226 | BW111: 2
C112: 76001 | D112: CALI | E112: 0 | F112: 0 | G112: Natural | H112: 76 | I112: VALLE DEL CAUCA | J112: 0 | K112: MICRO | L112: 4530 | M112: COMERCIO AL POR MAYOR Y AL POR MENOR; REPARACIÓN DE VEHÍCULOS AUTOMOTORES Y MOTOCICLETAS | N112: G | O112: Comercio de partes, piezas (autopartes) y accesorios (lujos) para vehículos automotores | P112: Comercio de partes, piezas (autopartes) y accesorios (lujos) para vehículos automotores | Q112: 0 | R112: 0 | S112: 0 | T112: 0 | U112: 0 | V112: 0 | W112: 0 | X112: 0 | AJ112: 0 | AK112: 0 | AL112: 76001 | AM112: CALI | AN112: 3 | AO112: 1 | AP112: Natural | AQ112: 76 | AR112: VALLE DEL CAUCA | AS112: Aprobado con subsidio | AT112: MICRO | AU112: 2023 | AV112: INDUSTRIAS MANUFACTURERAS | AW112: C | AX112: Fabricación de otros productos químicos | AY112: Fabricación de sustancias y productos químicos | AZ112: 3 | BA112: 0 | BB112: 0 | BC112: 3 | BD112: 0 | BE112: 0 | BF112: 3 | BG112: 0 | BT112: 76364 | BU112: 7 | BV112: 25183 | BW112: 2
C113: 66001 | D113: PEREIRA | E113: 0 | F113: 0 | G113: Natural | H113: 66 | I113: RISARALDA | J113: 0 | K113: MICRO | L113: 5530 | M113: ALOJAMIENTO Y SERVICIOS DE COMIDA | N113: I | O113: Servicios por horas | P113: Servicios por horas | Q113: 0 | R113: 0 | S113: 0 | T113: 0 | U113: 0 | V113: 0 | W113: 0 | X113: 0 | AJ113: 0 | AK113: 0 | AL113: 76001 | AM113: CALI | AN113: 4 | AO113: 7 | AP113: Natural | AQ113: 76 | AR113: VALLE DEL CAUCA | AS113: Aprobado con subsidio | AT113: MICRO | AU113: 1081 | AV113: INDUSTRIAS MANUFACTURERAS | AW113: C | AX113: Elaboración de otros productos alimenticios | AY113: Elaboración de productos alimenticios | AZ113: 4 | BA113: 0 | BB113: 0 | BC113: 1 | BD113: 3 | BE113: 0 | BF113: 3 | BG113: 1 | BT113: 25758 | BU113: 5 | BV113: 76020 | BW113: 2
C114: 66001 | D114: PEREIRA | E114: 0 | F114: 0 | G114: Natural | H114: 66 | I114: RISARALDA | J114: 0 | K114: MICRO | L114: 121 | M114: AGRICULTURA, GANADERÍA, CAZA, SILVICULTURA Y PESCA | N114: A | O114: Cultivos agrícolas permanentes | P114: Cultivos agrícolas permanentes | Q114: 0 | R114: 0 | S114: 0 | T114: 0 | U114: 0 | V114: 0 | W114: 0 | X114: 0 | AJ114: 0 | AK114: 0 | AL114: 76001 | AM114: CALI | AN114: 1 | AO114: 0 | AP114: Natural | AQ114: 76 | AR114: VALLE DEL CAUCA | AS114: Aprobado con subsidio | AT114: MICRO | AU114: 2511 | AV114: INDUSTRIAS MANUFACTURERAS | AW114: C | AX114: Fabricación de productos metálicos para uso estructural, tanques, depósitos y generadores de vapor. | AY114: Fabricación de productos elaborados de metal, excepto maquinaria y equipo | AZ114: 0 | BA114: 1 | BB114: 0 | BC114: 1 | BD114: 0 | BE114: 0 | BF114: 1 | BG114: 0 | BT114: 25473 | BU114: 27 | BV114: 19142 | BW114: 2
C115: 66001 | D115: PEREIRA | E115: 3 | F115: 0 | G115: Natural | H115: 66 | I115: RISARALDA | J115: Aprobado con subsidio | K115: MICRO | L115: 4290 | M115: CONSTRUCCIÓN | N115: F | O115: Construcción de otras obras de ingeniería civil | P115: Construcción de otras obras de ingeniería civil | Q115: 1 | R115: 2 | S115: 0 | T115: 1 | U115: 1 | V115: 1 | W115: 3 | X115: 0 | AJ115: 0 | AK115: 0 | AL115: 76001 | AM115: CALI | AN115: 1 | AO115: 2 | AP115: Natural | AQ115: 76 | AR115: VALLE DEL CAUCA | AS115: Aprobado con subsidio | AT115: MICRO | AU115: 1521 | AV115: INDUSTRIAS MANUFACTURERAS | AW115: C | AX115: Fabricación de calzado | AY115: Curtido y recurtido de cueros; fabricación de calzado; fabricación de artículos de viaje, maletas, bolsos de mano y artículos similares, y fabricación de artículos de talabartería y guarnicionería; adobo y teñido de pieles | AZ115: 0 | BA115: 1 | BB115: 0 | BC115: 1 | BD115: 0 | BE115: 0 | BF115: 1 | BG115: 0 | BT115: 25214 | BU115: 46 | BV115: 5138 | BW115: 2
C116: 66001 | D116: PEREIRA | E116: 0 | F116: 0 | G116: Natural | H116: 66 | I116: RISARALDA | J116: 0 | K116: MICRO | L116: 4711 | M116: COMERCIO AL POR MAYOR Y AL POR MENOR; REPARACIÓN DE VEHÍCULOS AUTOMOTORES Y MOTOCICLETAS | N116: G | O116: Comercio al por menor en establecimientos no especializados | P116: Comercio al por menor en establecimientos no especializados | Q116: 0 | R116: 0 | S116: 0 | T116: 0 | U116: 0 | V116: 0 | W116: 0 | X116: 0 | AJ116: 0 | AK116: 0 | AL116: 76001 | AM116: CALI | AN116: 0 | AO116: 0 | AP116: Natural | AQ116: 76 | AR116: VALLE DEL CAUCA | AS116: 0 | AT116: MICRO | AU116: 1410 | AV116: INDUSTRIAS MANUFACTURERAS | AW116: C | AX116: Confección de prendas de vestir, excepto prendas de piel | AY116: Confección de prendas de vestir | AZ116: 0 | BA116: 0 | BB116: 0 | BC116: 0 | BD116: 0 | BE116: 0 | BF116: 0 | BG116: 0 | BT116: 19573 | BU116: 4 | BV116: 15189 | BW116: 2
C117: 66001 | D117: PEREIRA | E117: 1 | F117: 8 | G117: Natural | H117: 66 | I117: RISARALDA | J117: Aprobado con subsidio | K117: PEQUEÑA | L117: 4773 | M117: COMERCIO AL POR MAYOR Y AL POR MENOR; REPARACIÓN DE VEHÍCULOS AUTOMOTORES Y MOTOCICLETAS | N117: G | O117: Comercio al por menor de otros productos en establecimientos especializados | P117: Comercio al por menor de otros productos en establecimientos especializados | Q117: 0 | R117: 0 | S117: 1 | T117: 1 | U117: 0 | V117: 0 | W117: 0 | X117: 1 | AJ117: 0 | AK117: 0 | AL117: 66001 | AM117: PEREIRA | AN117: 4 | AO117: 2 | AP117: Natural | AQ117: 66 | AR117: RISARALDA | AS117: Aprobado con subsidio | AT117: MICRO | AU117: 1410 | AV117: INDUSTRIAS MANUFACTURERAS | AW117: C | AX117: Confección de prendas de vestir, excepto prendas de piel | AY117: Confección de prendas de vestir | AZ117: 2 | BA117: 2 | BB117: 0 | BC117: 2 | BD117: 2 | BE117: 0 | BF117: 4 | BG117: 0 | BT117: 76100 | BU117: 0 | BV117: 50568 | BW117: 2
C118: 66594 | D118: QUINCHÍA | E118: 2 | F118: 1 | G118: Natural | H118: 66 | I118: RISARALDA | J118: Aprobado con subsidio | K118: MICRO | L118: 4711 | M118: COMERCIO AL POR MAYOR Y AL POR MENOR; REPARACIÓN DE VEHÍCULOS AUTOMOTORES Y MOTOCICLETAS | N118: G | O118: Comercio al por menor en establecimientos no especializados | P118: Comercio al por menor en establecimientos no especializados | Q118: 0 | R118: 2 | S118: 0 | T118: 2 | U118: 0 | V118: 0 | W118: 2 | X118: 0 | AJ118: 0 | AK118: 0 | AL118: 76001 | AM118: CALI | AN118: 0 | AO118: 0 | AP118: Natural | AQ118: 76 | AR118: VALLE DEL CAUCA | AS118: 0 | AT118: MICRO | AU118: 1921 | AV118: INDUSTRIAS MANUFACTURERAS | AW118: C | AX118: Fabricación de productos de la refinación del petróleo | AY118: Coquización, fabricación de productos de la refinación del petróleo y actividad de mezcla de combustibles | AZ118: 0 | BA118: 0 | BB118: 0 | BC118: 0 | BD118: 0 | BE118: 0 | BF118: 0 | BG118: 0 | BT118: 54498 | BU118: 0 | BV118: 5313 | BW118: 2
C119: 63001 | D119: ARMENIA | E119: 0 | F119: 0 | G119: Natural | H119: 63 | I119: QUINDÍO | J119: 0 | K119: MICRO | L119: 5611 | M119: ALOJAMIENTO Y SERVICIOS DE COMIDA | N119: I | O119: Actividades de restaurantes, cafeterías y servicio móvil de comidas | P119: Actividades de restaurantes, cafeterías y servicio móvil de comidas | Q119: 0 | R119: 0 | S119: 0 | T119: 0 | U119: 0 | V119: 0 | W119: 0 | X119: 0 | AJ119: 0 | AK119: 0 | AL119: 11001 | AM119: BOGOTÁ, D.C. | AN119: 0 | AO119: 0 | AP119: Natural | AQ119: 11 | AR119: BOGOTÁ, D.C. | AS119: 0 | AT119: PEQUEÑA | AU119: 2229 | AV119: INDUSTRIAS MANUFACTURERAS | AW119: C | AX119: Fabricación de productos de plástico | AY119: Fabricación de productos de caucho y de plástico | AZ119: 0 | BA119: 0 | BB119: 0 | BC119: 0 | BD119: 0 | BE119: 0 | BF119: 0 | BG119: 0 | BT119: 68406 | BU119: 1 | BV119: 5890 | BW119: 2
C120: 63001 | D120: ARMENIA | E120: 0 | F120: 0 | G120: Natural | H120: 63 | I120: QUINDÍO | J120: 0 | K120: MICRO | L120: 8530 | M120: EDUCACIÓN | N120: P | O120: Establecimientos que combinan diferentes niveles de educación | P120: Establecimientos que combinan diferentes niveles de educación | Q120: 0 | R120: 0 | S120: 0 | T120: 0 | U120: 0 | V120: 0 | W120: 0 | X120: 0 | AJ120: 0 | AK120: 0 | AL120: 25290 | AM120: FUSAGASUGÁ | AN120: 0 | AO120: 0 | AP120: Natural | AQ120: 25 | AR120: CUNDINAMARCA | AS120: 0 | AT120: MICRO | AU120: 3110 | AV120: INDUSTRIAS MANUFACTURERAS | AW120: C | AX120: Fabricación de muebles | AY120: Fabricación de muebles, colchones y somieres | AZ120: 0 | BA120: 0 | BB120: 0 | BC120: 0 | BD120: 0 | BE120: 0 | BF120: 0 | BG120: 0 | BT120: 25200 | BU120: 1 | BV120: 15176 | BW120: 1
C121: 66170 | D121: DOSQUEBRADAS | E121: 1 | F121: 0 | G121: Natural | H121: 66 | I121: RISARALDA | J121: Aprobado con subsidio | K121: MICRO | L121: 4775 | M121: COMERCIO AL POR MAYOR Y AL POR MENOR; REPARACIÓN DE VEHÍCULOS AUTOMOTORES Y MOTOCICLETAS | N121: G | O121: Comercio al por menor de otros productos en establecimientos especializados | P121: Comercio al por menor de otros productos en establecimientos especializados | Q121: 0 | R121: 1 | S121: 0 | T121: 1 | U121: 0 | V121: 0 | W121: 1 | X121: 0 | AJ121: 0 | AK121: 0 | AL121: 54001 | AM121: CÚCUTA | AN121: 2 | AO121: 0 | AP121: Natural | AQ121: 54 | AR121: NORTE DE SANTANDER | AS121: Aprobado con subsidio | AT121: PEQUEÑA | AU121: 3312 | AV121: INDUSTRIAS MANUFACTURERAS | AW121: C | AX121: Mantenimiento y reparación especializado de productos elaborados en metal y de maquinaria y equipo | AY121: Instalación, mantenimiento y reparación especializado de maquinaria y equipo | AZ121: 0 | BA121: 2 | BB121: 0 | BC121: 2 | BD121: 0 | BE121: 0 | BF121: 1 | BG121: 1 | BT121: 63594 | BU121: 1 | BV121: 18205 | BW121: 1
C122: 66170 | D122: DOSQUEBRADAS | E122: 5 | F122: 4 | G122: Natural | H122: 66 | I122: RISARALDA | J122: Aprobado con subsidio | K122: PEQUEÑA | L122: 6910 | M122: ACTIVIDADES PROFESIONALES, CIENTÍFICAS Y TÉCNICAS | N122: M | O122: Actividades jurídicas | P122: Actividades jurídicas | Q122: 4 | R122: 1 | S122: 0 | T122: 3 | U122: 2 | V122: 0 | W122: 5 | X122: 0 | AJ122: 0 | AK122: 0 | AL122: 11001 | AM122: BOGOTÁ, D.C. | AN122: 0 | AO122: 0 | AP122: Natural | AQ122: 11 | AR122: BOGOTÁ, D.C. | AS122: 0 | AT122: MICRO | AU122: 3110 | AV122: INDUSTRIAS MANUFACTURERAS | AW122: C | AX122: Fabricación de muebles | AY122: Fabricación de muebles, colchones y somieres | AZ122: 0 | BA122: 0 | BB122: 0 | BC122: 0 | BD122: 0 | BE122: 0 | BF122: 0 | BG122: 0 | BT122: 23660 | BU122: 0 | BV122: 52560 | BW122: 1
C123: 66001 | D123: PEREIRA | E123: 0 | F123: 0 | G123: Natural | H123: 66 | I123: RISARALDA | J123: 0 | K123: PEQUEÑA | L123: 4754 | M123: COMERCIO AL POR MAYOR Y AL POR MENOR; REPARACIÓN DE VEHÍCULOS AUTOMOTORES Y MOTOCICLETAS | N123: G | O123: Comercio al por menor de otros enseres domésticos en establecimientos especializados | P123: Comercio al por menor de otros enseres domésticos en establecimientos especializados | Q123: 0 | R123: 0 | S123: 0 | T123: 0 | U123: 0 | V123: 0 | W123: 0 | X123: 0 | AJ123: 0 | AK123: 0 | AL123: 50001 | AM123: VILLAVICENCIO | AN123: 0 | AO123: 0 | AP123: Natural | AQ123: 50 | AR123: META | AS123: 0 | AT123: MICRO | AU123: 1104 | AV123: INDUSTRIAS MANUFACTURERAS | AW123: C | AX123: Elaboración de bebidas | AY123: Elaboración de bebidas | AZ123: 0 | BA123: 0 | BB123: 0 | BC123: 0 | BD123: 0 | BE123: 0 | BF123: 0 | BG123: 0 | BT123: 63401 | BU123: 7 | BV123: 85010 | BW123: 1
C124: 17777 | D124: SUPÍA | E124: 0 | F124: 0 | G124: Natural | H124: 17 | I124: CALDAS | J124: 0 | K124: PEQUEÑA | L124: 4759 | M124: COMERCIO AL POR MAYOR Y AL POR MENOR; REPARACIÓN DE VEHÍCULOS AUTOMOTORES Y MOTOCICLETAS | N124: G | O124: Comercio al por menor de otros enseres domésticos en establecimientos especializados | P124: Comercio al por menor de otros enseres domésticos en establecimientos especializados | Q124: 0 | R124: 0 | S124: 0 | T124: 0 | U124: 0 | V124: 0 | W124: 0 | X124: 0 | AJ124: 0 | AK124: 0 | AL124: 50001 | AM124: VILLAVICENCIO | AN124: 14 | AO124: 2 | AP124: Natural | AQ124: 50 | AR124: META | AS124: Aprobado con subsidio | AT124: MICRO | AU124: 1081 | AV124: INDUSTRIAS MANUFACTURERAS | AW124: C | AX124: Elaboración de otros productos alimenticios | AY124: Elaboración de productos alimenticios | AZ124: 6 | BA124: 8 | BB124: 0 | BC124: 6 | BD124: 4 | BE124: 4 | BF124: 14 | BG124: 0 | BT124: 8634 | BU124: 2 | BV124: 85139 | BW124: 1
C125: 18205 | D125: CURILLO | E125: 5 | F125: 7 | G125: Natural | H125: 18 | I125: CAQUETÁ | J125: Aprobado con subsidio | K125: MICRO | L125: 1040 | M125: INDUSTRIAS MANUFACTURERAS | N125: C | O125: Elaboración de productos lácteos | P125: Elaboración de productos alimenticios | Q125: 1 | R125: 4 | S125: 0 | T125: 2 | U125: 1 | V125: 2 | W125: 5 | X125: 0 | AJ125: 0 | AK125: 0 | AL125: 50001 | AM125: VILLAVICENCIO | AN125: 0 | AO125: 0 | AP125: Natural | AQ125: 50 | AR125: META | AS125: 0 | AT125: MICRO | AU125: 1081 | AV125: INDUSTRIAS MANUFACTURERAS | AW125: C | AX125: Elaboración de otros productos alimenticios | AY125: Elaboración de productos alimenticios | AZ125: 0 | BA125: 0 | BB125: 0 | BC125: 0 | BD125: 0 | BE125: 0 | BF125: 0 | BG125: 0 | BT125: 73268 | BU125: 2 | BV125: 20011 | BW125: 1
C126: 19001 | D126: POPAYÁN | E126: 3 | F126: 0 | G126: Natural | H126: 19 | I126: CAUCA | J126: Aprobado con subsidio | K126: MICRO | L126: 8559 | M126: EDUCACIÓN | N126: P | O126: Otros tipos de educación | P126: Otros tipos de educación | Q126: 1 | R126: 2 | S126: 0 | T126: 0 | U126: 1 | V126: 2 | W126: 3 | X126: 0 | AJ126: 0 | AK126: 0 | AL126: 18001 | AM126: FLORENCIA | AN126: 2 | AO126: 3 | AP126: Natural | AQ126: 18 | AR126: CAQUETÁ | AS126: Aprobado con subsidio | AT126: MICRO | AU126: 1040 | AV126: INDUSTRIAS MANUFACTURERAS | AW126: C | AX126: Elaboración de productos lácteos | AY126: Elaboración de productos alimenticios | AZ126: 0 | BA126: 2 | BB126: 0 | BC126: 0 | BD126: 0 | BE126: 2 | BF126: 2 | BG126: 0 | BT126: 73443 | BU126: 1 | BV126: 17380 | BW126: 1
C127: 19698 | D127: SANTANDER DE QUILICHAO | E127: 0 | F127: 0 | G127: Natural | H127: 19 | I127: CAUCA | J127: 0 | K127: MICRO | L127: 4719 | M127: COMERCIO AL POR MAYOR Y AL POR MENOR; REPARACIÓN DE VEHÍCULOS AUTOMOTORES Y MOTOCICLETAS | N127: G | O127: Comercio al por menor en establecimientos no especializados | P127: Comercio al por menor en establecimientos no especializados | Q127: 0 | R127: 0 | S127: 0 | T127: 0 | U127: 0 | V127: 0 | W127: 0 | X127: 0 | AJ127: 0 | AK127: 0 | AL127: 18753 | AM127: SAN VICENTE DEL CAGUÁN | AN127: 3 | AO127: 1 | AP127: Natural | AQ127: 18 | AR127: CAQUETÁ | AS127: Aprobado con subsidio | AT127: MICRO | AU127: 1104 | AV127: INDUSTRIAS MANUFACTURERAS | AW127: C | AX127: Elaboración de bebidas | AY127: Elaboración de bebidas | AZ127: 0 | BA127: 3 | BB127: 0 | BC127: 0 | BD127: 0 | BE127: 3 | BF127: 3 | BG127: 0 | BT127: 5607 | BU127: 3 | BV127: 19698 | BW127: 1
C128: 76001 | D128: CALI | E128: 4 | F128: 0 | G128: Natural | H128: 76 | I128: VALLE DEL CAUCA | J128: Aprobado con subsidio | K128: MICRO | L128: 4752 | M128: COMERCIO AL POR MAYOR Y AL POR MENOR; REPARACIÓN DE VEHÍCULOS AUTOMOTORES Y MOTOCICLETAS | N128: G | O128: Comercio al por menor de otros enseres domésticos en establecimientos especializados | P128: Comercio al por menor de otros enseres domésticos en establecimientos especializados | Q128: 4 | R128: 0 | S128: 0 | T128: 4 | U128: 0 | V128: 0 | W128: 4 | X128: 0 | AJ128: 0 | AK128: 0 | AL128: 18001 | AM128: FLORENCIA | AN128: 0 | AO128: 0 | AP128: Natural | AQ128: 18 | AR128: CAQUETÁ | AS128: 0 | AT128: MICRO | AU128: 1081 | AV128: INDUSTRIAS MANUFACTURERAS | AW128: C | AX128: Elaboración de otros productos alimenticios | AY128: Elaboración de productos alimenticios | AZ128: 0 | BA128: 0 | BB128: 0 | BC128: 0 | BD128: 0 | BE128: 0 | BF128: 0 | BG128: 0 | BT128: 5579 | BU128: 1 | BV128: 52835 | BW128: 1
C129: 41001 | D129: NEIVA | E129: 47 | F129: 107 | G129: Natural | H129: 41 | I129: HUILA | J129: Aprobado con subsidio | K129: PEQUEÑA | L129: 4752 | M129: COMERCIO AL POR MAYOR Y AL POR MENOR; REPARACIÓN DE VEHÍCULOS AUTOMOTORES Y MOTOCICLETAS | N129: G | O129: Comercio al por menor de otros enseres domésticos en establecimientos especializados | P129: Comercio al por menor de otros enseres domésticos en establecimientos especializados | Q129: 1 | R129: 46 | S129: 0 | T129: 19 | U129: 1 | V129: 27 | W129: 46 | X129: 1 | AJ129: 0 | AK129: 0 | AL129: 18001 | AM129: FLORENCIA | AN129: 3 | AO129: 3 | AP129: Natural | AQ129: 18 | AR129: CAQUETÁ | AS129: Aprobado con subsidio | AT129: MICRO | AU129: 2511 | AV129: INDUSTRIAS MANUFACTURERAS | AW129: C | AX129: Fabricación de productos metálicos para uso estructural, tanques, depósitos y generadores de vapor. | AY129: Fabricación de productos elaborados de metal, excepto maquinaria y equipo | AZ129: 0 | BA129: 3 | BB129: 0 | BC129: 2 | BD129: 0 | BE129: 1 | BF129: 3 | BG129: 0 | BT129: 25307 | BU129: 1 | BV129: 66400 | BW129: 1
C130: 41001 | D130: NEIVA | E130: 1 | F130: 8 | G130: Natural | H130: 41 | I130: HUILA | J130: Aprobado con subsidio | K130: PEQUEÑA | L130: 4711 | M130: COMERCIO AL POR MAYOR Y AL POR MENOR; REPARACIÓN DE VEHÍCULOS AUTOMOTORES Y MOTOCICLETAS | N130: G | O130: Comercio al por menor en establecimientos no especializados | P130: Comercio al por menor en establecimientos no especializados | Q130: 1 | R130: 0 | S130: 0 | T130: 1 | U130: 0 | V130: 0 | W130: 1 | X130: 0 | AJ130: 0 | AK130: 0 | AL130: 5001 | AM130: MEDELLÍN | AN130: 2 | AO130: 2 | AP130: Natural | AQ130: 5 | AR130: ANTIOQUIA | AS130: Aprobado con subsidio | AT130: MICRO | AU130: 1081 | AV130: INDUSTRIAS MANUFACTURERAS | AW130: C | AX130: Elaboración de otros productos alimenticios | AY130: Elaboración de productos alimenticios | AZ130: 0 | BA130: 2 | BB130: 0 | BC130: 1 | BD130: 0 | BE130: 1 | BF130: 2 | BG130: 0 | BT130: 5310 | BU130: =COUNTIFS($AS$2:$AS$399999,"Aprobado con subsidio",$AL$2:$AL$399999,BT130) -> 1 | BV130: 47288 | BW130: 1
C131: 41551 | D131: PITALITO | E131: 2 | F131: 3 | G131: Natural | H131: 41 | I131: HUILA | J131: Aprobado con subsidio | K131: MICRO | L131: 4754 | M131: COMERCIO AL POR MAYOR Y AL POR MENOR; REPARACIÓN DE VEHÍCULOS AUTOMOTORES Y MOTOCICLETAS | N131: G | O131: Comercio al por menor de otros enseres domésticos en establecimientos especializados | P131: Comercio al por menor de otros enseres domésticos en establecimientos especializados | Q131: 1 | R131: 1 | S131: 0 | T131: 1 | U131: 1 | V131: 0 | W131: 2 | X131: 0 | AJ131: 0 | AK131: 0 | AL131: 66170 | AM131: DOSQUEBRADAS | AN131: 3 | AO131: 0 | AP131: Natural | AQ131: 66 | AR131: RISARALDA | AS131: Aprobado con subsidio | AT131: MICRO | AU131: 2819 | AV131: INDUSTRIAS MANUFACTURERAS | AW131: C | AX131: Fabricación de maquinaria y equipo de uso general | AY131: Fabricación de maquinaria y equipo n.c.p. | AZ131: 1 | BA131: 2 | BB131: 0 | BC131: 1 | BD131: 1 | BE131: 1 | BF131: 3 | BG131: 0 | BT131: 5147 | BU131: 1 | BV131: 68079 | BW131: 1
C132: 41551 | D132: PITALITO | E132: 2 | F132: 0 | G132: Natural | H132: 41 | I132: HUILA | J132: Aprobado con subsidio | K132: MICRO | L132: 4620 | M132: COMERCIO AL POR MAYOR Y AL POR MENOR; REPARACIÓN DE VEHÍCULOS AUTOMOTORES Y MOTOCICLETAS | N132: G | O132: Comercio al por mayor de materias primas agropecuarias; animales vivos | P132: Comercio al por mayor de materias primas agropecuarias; animales vivos | Q132: 1 | R132: 1 | S132: 0 | T132: 2 | U132: 0 | V132: 0 | W132: 2 | X132: 0 | AJ132: 0 | AK132: 0 | AL132: 11001 | AM132: BOGOTÁ, D.C. | AN132: 2 | AO132: 0 | AP132: Natural | AQ132: 11 | AR132: BOGOTÁ, D.C. | AS132: Aprobado con subsidio | AT132: MICRO | AU132: 1313 | AV132: INDUSTRIAS MANUFACTURERAS | AW132: C | AX132: Preparación, hilatura, tejeduría y acabado de productos textiles | AY132: Fabricación de productos textiles | AZ132: 0 | BA132: 2 | BB132: 0 | BC132: 2 | BD132: 0 | BE132: 0 | BF132: 2 | BG132: 0 | BT132: 5042 | BU132: 1 | BV132: 54820 | BW132: 1
C133: 54498 | D133: OCAÑA | E133: 3 | F133: 4 | G133: Natural | H133: 54 | I133: NORTE DE SANTANDER | J133: Aprobado con subsidio | K133: MICRO | L133: 4541 | M133: COMERCIO AL POR MAYOR Y AL POR MENOR; REPARACIÓN DE VEHÍCULOS AUTOMOTORES Y MOTOCICLETAS | N133: G | O133: Comercio, mantenimiento y reparación de motocicletas y de sus partes, piezas y accesorios | P133: Comercio, mantenimiento y reparación de motocicletas y de sus partes, piezas y accesorios | Q133: 2 | R133: 1 | S133: 0 | T133: 3 | U133: 0 | V133: 0 | W133: 3 | X133: 0 | AJ133: 0 | AK133: 0 | AL133: 66400 | AM133: LA VIRGINIA | AN133: 2 | AO133: 1 | AP133: Natural | AQ133: 66 | AR133: RISARALDA | AS133: Aprobado con subsidio | AT133: MICRO | AU133: 2511 | AV133: INDUSTRIAS MANUFACTURERAS | AW133: C | AX133: Fabricación de productos metálicos para uso estructural, tanques, depósitos y generadores de vapor. | AY133: Fabricación de productos elaborados de metal, excepto maquinaria y equipo | AZ133: 0 | BA133: 2 | BB133: 0 | BC133: 2 | BD133: 0 | BE133: 0 | BF133: 2 | BG133: 0 | BT133: 23162 | BU133: 1 | BV133: 5209 | BW133: 1
C134: 8001 | D134: BARRANQUILLA | E134: 0 | F134: 0 | G134: Natural | H134: 8 | I134: ATLÁNTICO | J134: 0 | K134: PEQUEÑA | L134: 6910 | M134: ACTIVIDADES PROFESIONALES, CIENTÍFICAS Y TÉCNICAS | N134: M | O134: Actividades jurídicas | P134: Actividades jurídicas | Q134: 0 | R134: 0 | S134: 0 | T134: 0 | U134: 0 | V134: 0 | W134: 0 | X134: 0 | AJ134: 0 | AK134: 0 | AL134: 11001 | AM134: BOGOTÁ, D.C. | AN134: 0 | AO134: 0 | AP134: Natural | AQ134: 11 | AR134: BOGOTÁ, D.C. | AS134: 0 | AT134: MICRO | AU134: 3312 | AV134: INDUSTRIAS MANUFACTURERAS | AW134: C | AX134: Mantenimiento y reparación especializado de productos elaborados en metal y de maquinaria y equipo | AY134: Instalación, mantenimiento y reparación especializado de maquinaria y equipo | AZ134: 0 | BA134: 0 | BB134: 0 | BC134: 0 | BD134: 0 | BE134: 0 | BF134: 0 | BG134: 0 | BT134: 23417 | BU134: 1 | BV134: 25123 | BW134: 1
C135: 52001 | D135: PASTO | E135: 0 | F135: 0 | G135: Natural | H135: 52 | I135: NARIÑO | J135: 0 | K135: MICRO | L135: 4530 | M135: COMERCIO AL POR MAYOR Y AL POR MENOR; REPARACIÓN DE VEHÍCULOS AUTOMOTORES Y MOTOCICLETAS | N135: G | O135: Comercio de partes, piezas (autopartes) y accesorios (lujos) para vehículos automotores | P135: Comercio de partes, piezas (autopartes) y accesorios (lujos) para vehículos automotores | Q135: 0 | R135: 0 | S135: 0 | T135: 0 | U135: 0 | V135: 0 | W135: 0 | X135: 0 | AJ135: 0 | AK135: 0 | AL135: 11001 | AM135: BOGOTÁ, D.C. | AN135: 2 | AO135: 0 | AP135: Natural | AQ135: 11 | AR135: BOGOTÁ, D.C. | AS135: Aprobado con subsidio | AT135: MICRO | AU135: 1811 | AV135: INDUSTRIAS MANUFACTURERAS | AW135: C | AX135: Actividades de impresión y actividades de servicios relacionados con la impresión | AY135: Actividades de impresión y de producción de copias a partir de grabaciones originales | AZ135: 1 | BA135: 1 | BB135: 0 | BC135: 2 | BD135: 0 | BE135: 0 | BF135: 2 | BG135: 0 | BT135: 76275 | BU135: 0 | BV135: 15542 | BW135: 1
C136: 52001 | D136: PASTO | E136: 0 | F136: 0 | G136: Natural | H136: 52 | I136: NARIÑO | J136: 0 | K136: PEQUEÑA | L136: 5611 | M136: ALOJAMIENTO Y SERVICIOS DE COMIDA | N136: I | O136: Actividades de restaurantes, cafeterías y servicio móvil de comidas | P136: Actividades de restaurantes, cafeterías y servicio móvil de comidas | Q136: 0 | R136: 0 | S136: 0 | T136: 0 | U136: 0 | V136: 0 | W136: 0 | X136: 0 | AJ136: 0 | AK136: 0 | AL136: 11001 | AM136: BOGOTÁ, D.C. | AN136: 0 | AO136: 0 | AP136: Natural | AQ136: 11 | AR136: BOGOTÁ, D.C. | AS136: 0 | AT136: PEQUEÑA | AU136: 1020 | AV136: INDUSTRIAS MANUFACTURERAS | AW136: C | AX136: Procesamiento y conservación de frutas, legumbres, hortalizas y tubérculos | AY136: Elaboración de productos alimenticios | AZ136: 0 | BA136: 0 | BB136: 0 | BC136: 0 | BD136: 0 | BE136: 0 | BF136: 0 | BG136: 0 | BT136: 17541 | BU136: 2 | BV136: 70124 | BW136: 1
C137: 52001 | D137: PASTO | E137: 1 | F137: 2 | G137: Natural | H137: 52 | I137: NARIÑO | J137: Aprobado con subsidio | K137: PEQUEÑA | L137: 4731 | M137: COMERCIO AL POR MAYOR Y AL POR MENOR; REPARACIÓN DE VEHÍCULOS AUTOMOTORES Y MOTOCICLETAS | N137: G | O137: Comercio al por menor de combustible, lubricantes, aditivos y productos de limpieza para automotores, en establecimientos especializados | P137: Comercio al por menor de combustible, lubricantes, aditivos y productos de limpieza para automotores, en establecimientos especializados | Q137: 0 | R137: 1 | S137: 0 | T137: 1 | U137: 0 | V137: 0 | W137: 1 | X137: 0 | AJ137: 0 | AK137: 0 | AL137: 76001 | AM137: CALI | AN137: 0 | AO137: 0 | AP137: Natural | AQ137: 76 | AR137: VALLE DEL CAUCA | AS137: 0 | AT137: PEQUEÑA | AU137: 2310 | AV137: INDUSTRIAS MANUFACTURERAS | AW137: C | AX137: Fabricación de vidrio y productos de vidrio | AY137: Fabricación de otros productos minerales no metálicos | AZ137: 0 | BA137: 0 | BB137: 0 | BC137: 0 | BD137: 0 | BE137: 0 | BF137: 0 | BG137: 0 | BT137: 19300 | BU137: 2 | BV137: 52227 | BW137: 1
C138: 52001 | D138: PASTO | E138: 0 | F138: 0 | G138: Natural | H138: 52 | I138: NARIÑO | J138: 0 | K138: MICRO | L138: 4752 | M138: COMERCIO AL POR MAYOR Y AL POR MENOR; REPARACIÓN DE VEHÍCULOS AUTOMOTORES Y MOTOCICLETAS | N138: G | O138: Comercio al por menor de otros enseres domésticos en establecimientos especializados | P138: Comercio al por menor de otros enseres domésticos en establecimientos especializados | Q138: 0 | R138: 0 | S138: 0 | T138: 0 | U138: 0 | V138: 0 | W138: 0 | X138: 0 | AJ138: 0 | AK138: 0 | AL138: 11001 | AM138: BOGOTÁ, D.C. | AN138: 2 | AO138: 0 | AP138: Natural | AQ138: 11 | AR138: BOGOTÁ, D.C. | AS138: Aprobado con subsidio | AT138: MICRO | AU138: 1081 | AV138: INDUSTRIAS MANUFACTURERAS | AW138: C | AX138: Elaboración de otros productos alimenticios | AY138: Elaboración de productos alimenticios | AZ138: 2 | BA138: 0 | BB138: 0 | BC138: 0 | BD138: 2 | BE138: 0 | BF138: 2 | BG138: 0 | BT138: 19845 | BU138: 3 | BV138: 25745 | BW138: 1
C139: 52001 | D139: PASTO | E139: 0 | F139: 0 | G139: Natural | H139: 52 | I139: NARIÑO | J139: 0 | K139: MICRO | L139: 5512 | M139: ALOJAMIENTO Y SERVICIOS DE COMIDA | N139: I | O139: Actividades de alojamiento de estancias cortas | P139: Actividades de alojamiento de estancias cortas | Q139: 0 | R139: 0 | S139: 0 | T139: 0 | U139: 0 | V139: 0 | W139: 0 | X139: 0 | AJ139: 0 | AK139: 0 | AL139: 11001 | AM139: BOGOTÁ, D.C. | AN139: 0 | AO139: 0 | AP139: Natural | AQ139: 11 | AR139: BOGOTÁ, D.C. | AS139: 0 | AT139: MICRO | AU139: 1081 | AV139: INDUSTRIAS MANUFACTURERAS | AW139: C | AX139: Elaboración de otros productos alimenticios | AY139: Elaboración de productos alimenticios | AZ139: 0 | BA139: 0 | BB139: 0 | BC139: 0 | BD139: 0 | BE139: 0 | BF139: 0 | BG139: 0 | BT139: 15764 | BU139: 1 | BV139: 68406 | BW139: 1
C140: 52317 | D140: GUACHUCAL | E140: 2 | F140: 0 | G140: Natural | H140: 52 | I140: NARIÑO | J140: Aprobado con subsidio | K140: PEQUEÑA | L140: 4731 | M140: COMERCIO AL POR MAYOR Y AL POR MENOR; REPARACIÓN DE VEHÍCULOS AUTOMOTORES Y MOTOCICLETAS | N140: G | O140: Comercio al por menor de combustible, lubricantes, aditivos y productos de limpieza para automotores, en establecimientos especializados | P140: Comercio al por menor de combustible, lubricantes, aditivos y productos de limpieza para automotores, en establecimientos especializados | Q140: 0 | R140: 2 | S140: 0 | T140: 2 | U140: 0 | V140: 0 | W140: 2 | X140: 0 | AJ140: 0 | AK140: 0 | AL140: 25754 | AM140: SOACHA | AN140: 1 | AO140: 1 | AP140: Natural | AQ140: 25 | AR140: CUNDINAMARCA | AS140: Aprobado con subsidio | AT140: MICRO | AU140: 2399 | AV140: INDUSTRIAS MANUFACTURERAS | AW140: C | AX140: Fabricación de productos minerales no metálicos n.c.p. | AY140: Fabricación de otros productos minerales no metálicos | AZ140: 0 | BA140: 1 | BB140: 0 | BC140: 0 | BD140: 0 | BE140: 1 | BF140: 1 | BG140: 0 | BT140: 20621 | BU140: 2 | BV140: 25200 | BW140: 1
C141: 52001 | D141: PASTO | E141: 0 | F141: 0 | G141: Natural | H141: 52 | I141: NARIÑO | J141: 0 | K141: MICRO | L141: 4731 | M141: COMERCIO AL POR MAYOR Y AL POR MENOR; REPARACIÓN DE VEHÍCULOS AUTOMOTORES Y MOTOCICLETAS | N141: G | O141: Comercio al por menor de combustible, lubricantes, aditivos y productos de limpieza para automotores, en establecimientos especializados | P141: Comercio al por menor de combustible, lubricantes, aditivos y productos de limpieza para automotores, en establecimientos especializados | Q141: 0 | R141: 0 | S141: 0 | T141: 0 | U141: 0 | V141: 0 | W141: 0 | X141: 0 | AJ141: 0 | AK141: 0 | AL141: 11001 | AM141: BOGOTÁ, D.C. | AN141: 2 | AO141: 0 | AP141: Natural | AQ141: 11 | AR141: BOGOTÁ, D.C. | AS141: Aprobado con subsidio | AT141: MICRO | AU141: 3312 | AV141: INDUSTRIAS MANUFACTURERAS | AW141: C | AX141: Mantenimiento y reparación especializado de productos elaborados en metal y de maquinaria y equipo | AY141: Instalación, mantenimiento y reparación especializado de maquinaria y equipo | AZ141: 0 | BA141: 2 | BB141: 0 | BC141: 1 | BD141: 0 | BE141: 1 | BF141: 2 | BG141: 0 | BT141: 8433 | BU141: 5 | BV141: 63594 | BW141: 1
C142: 76001 | D142: CALI | E142: 0 | F142: 0 | G142: Natural | H142: 76 | I142: VALLE DEL CAUCA | J142: 0 | K142: MICRO | L142: 4774 | M142: COMERCIO AL POR MAYOR Y AL POR MENOR; REPARACIÓN DE VEHÍCULOS AUTOMOTORES Y MOTOCICLETAS | N142: G | O142: Comercio al por menor de otros productos en establecimientos especializados | P142: Comercio al por menor de otros productos en establecimientos especializados | Q142: 0 | R142: 0 | S142: 0 | T142: 0 | U142: 0 | V142: 0 | W142: 0 | X142: 0 | AJ142: 0 | AK142: 0 | AL142: 11001 | AM142: BOGOTÁ, D.C. | AN142: 0 | AO142: 0 | AP142: Natural | AQ142: 11 | AR142: BOGOTÁ, D.C. | AS142: 0 | AT142: MICRO | AU142: 2229 | AV142: INDUSTRIAS MANUFACTURERAS | AW142: C | AX142: Fabricación de productos de plástico | AY142: Fabricación de productos de caucho y de plástico | AZ142: 0 | BA142: 0 | BB142: 0 | BC142: 0 | BD142: 0 | BE142: 0 | BF142: 0 | BG142: 0 | BT142: 25181 | BU142: 0 | BV142: 73443 | BW142: 1
C143: 52560 | D143: POTOSÍ | E143: 2 | F143: 4 | G143: Natural | H143: 52 | I143: NARIÑO | J143: Aprobado con subsidio | K143: MICRO | L143: 1040 | M143: INDUSTRIAS MANUFACTURERAS | N143: C | O143: Elaboración de productos lácteos | P143: Elaboración de productos alimenticios | Q143: 1 | R143: 1 | S143: 0 | T143: 2 | U143: 0 | V143: 0 | W143: 2 | X143: 0 | AJ143: 0 | AK143: 0 | AL143: 11001 | AM143: BOGOTÁ, D.C. | AN143: 4 | AO143: 2 | AP143: Natural | AQ143: 11 | AR143: BOGOTÁ, D.C. | AS143: Aprobado con subsidio | AT143: MICRO | AU143: 1410 | AV143: INDUSTRIAS MANUFACTURERAS | AW143: C | AX143: Confección de prendas de vestir, excepto prendas de piel | AY143: Confección de prendas de vestir | AZ143: 4 | BA143: 0 | BB143: 0 | BC143: 3 | BD143: 1 | BE143: 0 | BF143: 4 | BG143: 0 | BT143: 81001 | BU143: 1 | BV143: 5579 | BW143: 1
C144: 52683 | D144: SANDONÁ | E144: 2 | F144: 2 | G144: Natural | H144: 52 | I144: NARIÑO | J144: Aprobado con subsidio | K144: MICRO | L144: 4711 | M144: COMERCIO AL POR MAYOR Y AL POR MENOR; REPARACIÓN DE VEHÍCULOS AUTOMOTORES Y MOTOCICLETAS | N144: G | O144: Comercio al por menor en establecimientos no especializados | P144: Comercio al por menor en establecimientos no especializados | Q144: 1 | R144: 1 | S144: 0 | T144: 0 | U144: 1 | V144: 1 | W144: 2 | X144: 0 | AJ144: 0 | AK144: 0 | AL144: 11001 | AM144: BOGOTÁ, D.C. | AN144: 5 | AO144: 6 | AP144: Natural | AQ144: 11 | AR144: BOGOTÁ, D.C. | AS144: Aprobado con subsidio | AT144: MICRO | AU144: 1410 | AV144: INDUSTRIAS MANUFACTURERAS | AW144: C | AX144: Confección de prendas de vestir, excepto prendas de piel | AY144: Confección de prendas de vestir | AZ144: 2 | BA144: 3 | BB144: 0 | BC144: 5 | BD144: 0 | BE144: 0 | BF144: 5 | BG144: 0 | BT144: 85410 | BU144: 0 | BV144: 25307 | BW144: 1
C145: 54001 | D145: CÚCUTA | E145: 1 | F145: 8 | G145: Natural | H145: 54 | I145: NORTE DE SANTANDER | J145: Aprobado con subsidio | K145: MICRO | L145: 2599 | M145: INDUSTRIAS MANUFACTURERAS | N145: C | O145: Fabricación de otros productos elaborados de metal y actividades de servicios relacionadas con el trabajo de metales | P145: Fabricación de productos elaborados de metal, excepto maquinaria y equipo | Q145: 0 | R145: 1 | S145: 0 | T145: 1 | U145: 0 | V145: 0 | W145: 1 | X145: 0 | AJ145: 0 | AK145: 0 | AL145: 11001 | AM145: BOGOTÁ, D.C. | AN145: 0 | AO145: 0 | AP145: Natural | AQ145: 11 | AR145: BOGOTÁ, D.C. | AS145: 0 | AT145: MICRO | AU145: 1410 | AV145: INDUSTRIAS MANUFACTURERAS | AW145: C | AX145: Confección de prendas de vestir, excepto prendas de piel | AY145: Confección de prendas de vestir | AZ145: 0 | BA145: 0 | BB145: 0 | BC145: 0 | BD145: 0 | BE145: 0 | BF145: 0 | BG145: 0 | BT145: 25740 | BU145: 2 | BV145: 5310 | BW145: 1
C146: 54001 | D146: CÚCUTA | E146: 1 | F146: 5 | G146: Natural | H146: 54 | I146: NORTE DE SANTANDER | J146: Aprobado con subsidio | K146: MICRO | L146: 4923 | M146: TRANSPORTE Y ALMACENAMIENTO | N146: H | O146: Transporte terrestre publico automotor | P146: Transporte terrestre publico automotor | Q146: 0 | R146: 1 | S146: 0 | T146: 1 | U146: 0 | V146: 0 | W146: 1 | X146: 0 | AJ146: 0 | AK146: 0 | AL146: 11001 | AM146: BOGOTÁ, D.C. | AN146: 1 | AO146: 63 | AP146: Natural | AQ146: 11 | AR146: BOGOTÁ, D.C. | AS146: Aprobado con subsidio | AT146: MEDIANA | AU146: 3110 | AV146: INDUSTRIAS MANUFACTURERAS | AW146: C | AX146: Fabricación de muebles | AY146: Fabricación de muebles, colchones y somieres | AZ146: 1 | BA146: 0 | BB146: 0 | BC146: 1 | BD146: 0 | BE146: 0 | BF146: 1 | BG146: 0 | BT146: 25486 | BU146: 0 | BV146: 5147 | BW146: 1
C147: 54001 | D147: CÚCUTA | E147: 0 | F147: 0 | G147: Natural | H147: 54 | I147: NORTE DE SANTANDER | J147: 0 | K147: MICRO | L147: 8521 | M147: EDUCACIÓN | N147: P | O147: Educación secundaria y de formación laboral | P147: Educación secundaria y de formación laboral | Q147: 0 | R147: 0 | S147: 0 | T147: 0 | U147: 0 | V147: 0 | W147: 0 | X147: 0 | AJ147: 0 | AK147: 0 | AL147: 76001 | AM147: CALI | AN147: 0 | AO147: 0 | AP147: Natural | AQ147: 76 | AR147: VALLE DEL CAUCA | AS147: 0 | AT147: MICRO | AU147: 2511 | AV147: INDUSTRIAS MANUFACTURERAS | AW147: C | AX147: Fabricación de productos metálicos para uso estructural, tanques, depósitos y generadores de vapor. | AY147: Fabricación de productos elaborados de metal, excepto maquinaria y equipo | AZ147: 0 | BA147: 0 | BB147: 0 | BC147: 0 | BD147: 0 | BE147: 0 | BF147: 0 | BG147: 0 | BT147: 25288 | BU147: 1 | BV147: 5042 | BW147: 1
C148: 54498 | D148: OCAÑA | E148: 0 | F148: 0 | G148: Natural | H148: 54 | I148: NORTE DE SANTANDER | J148: 0 | K148: MICRO | L148: 4923 | M148: TRANSPORTE Y ALMACENAMIENTO | N148: H | O148: Transporte terrestre publico automotor | P148: Transporte terrestre publico automotor | Q148: 0 | R148: 0 | S148: 0 | T148: 0 | U148: 0 | V148: 0 | W148: 0 | X148: 0 | AJ148: 0 | AK148: 0 | AL148: 15087 | AM148: BELÉN | AN148: 0 | AO148: 0 | AP148: Natural | AQ148: 15 | AR148: BOYACÁ | AS148: 0 | AT148: MICRO | AU148: 1040 | AV148: INDUSTRIAS MANUFACTURERAS | AW148: C | AX148: Elaboración de productos lácteos | AY148: Elaboración de productos alimenticios | AZ148: 0 | BA148: 0 | BB148: 0 | BC148: 0 | BD148: 0 | BE148: 0 | BF148: 0 | BG148: 0 | BT148: 25873 | BU148: 1 | BV148: 23162 | BW148: 1
C149: 54518 | D149: PAMPLONA | E149: 2 | F149: 13 | G149: Natural | H149: 54 | I149: NORTE DE SANTANDER | J149: Aprobado con subsidio | K149: PEQUEÑA | L149: 5611 | M149: ALOJAMIENTO Y SERVICIOS DE COMIDA | N149: I | O149: Actividades de restaurantes, cafeterías y servicio móvil de comidas | P149: Actividades de restaurantes, cafeterías y servicio móvil de comidas | Q149: 2 | R149: 0 | S149: 0 | T149: 2 | U149: 0 | V149: 0 | W149: 2 | X149: 0 | AJ149: 0 | AK149: 0 | AL149: 11001 | AM149: BOGOTÁ, D.C. | AN149: 0 | AO149: 0 | AP149: Natural | AQ149: 11 | AR149: BOGOTÁ, D.C. | AS149: 0 | AT149: MICRO | AU149: 2410 | AV149: INDUSTRIAS MANUFACTURERAS | AW149: C | AX149: Industrias básicas de hierro y de acero | AY149: Fabricación de productos metalúrgicos básicos | AZ149: 0 | BA149: 0 | BB149: 0 | BC149: 0 | BD149: 0 | BE149: 0 | BF149: 0 | BG149: 0 | BT149: 5030 | BU149: 5 | BV149: 23417 | BW149: 1
C150: 54001 | D150: CÚCUTA | E150: 0 | F150: 0 | G150: Natural | H150: 54 | I150: NORTE DE SANTANDER | J150: 0 | K150: MICRO | L150: 4752 | M150: COMERCIO AL POR MAYOR Y AL POR MENOR; REPARACIÓN DE VEHÍCULOS AUTOMOTORES Y MOTOCICLETAS | N150: G | O150: Comercio al por menor de otros enseres domésticos en establecimientos especializados | P150: Comercio al por menor de otros enseres domésticos en establecimientos especializados | Q150: 0 | R150: 0 | S150: 0 | T150: 0 | U150: 0 | V150: 0 | W150: 0 | X150: 0 | AJ150: 0 | AK150: 0 | AL150: 11001 | AM150: BOGOTÁ, D.C. | AN150: 3 | AO150: 0 | AP150: Natural | AQ150: 11 | AR150: BOGOTÁ, D.C. | AS150: Aprobado con subsidio | AT150: MICRO | AU150: 1521 | AV150: INDUSTRIAS MANUFACTURERAS | AW150: C | AX150: Fabricación de calzado | AY150: Curtido y recurtido de cueros; fabricación de calzado; fabricación de artículos de viaje, maletas, bolsos de mano y artículos similares, y fabricación de artículos de talabartería y guarnicionería; adobo y teñido de pieles | AZ150: 0 | BA150: 3 | BB150: 0 | BC150: 0 | BD150: 0 | BE150: 3 | BF150: 3 | BG150: 0 | BT150: 19455 | BU150: 1 | BV150: 15764 | BW150: 1
C151: 54001 | D151: CÚCUTA | E151: 0 | F151: 0 | G151: Natural | H151: 54 | I151: NORTE DE SANTANDER | J151: 0 | K151: MICRO | L151: 8559 | M151: EDUCACIÓN | N151: P | O151: Otros tipos de educación | P151: Otros tipos de educación | Q151: 0 | R151: 0 | S151: 0 | T151: 0 | U151: 0 | V151: 0 | W151: 0 | X151: 0 | AJ151: 0 | AK151: 0 | AL151: 11001 | AM151: BOGOTÁ, D.C. | AN151: 11 | AO151: 39 | AP151: Natural | AQ151: 11 | AR151: BOGOTÁ, D.C. | AS151: Aprobado con subsidio | AT151: MEDIANA | AU151: 1081 | AV151: INDUSTRIAS MANUFACTURERAS | AW151: C | AX151: Elaboración de otros productos alimenticios | AY151: Elaboración de productos alimenticios | AZ151: 8 | BA151: 3 | BB151: 0 | BC151: 11 | BD151: 0 | BE151: 0 | BF151: 11 | BG151: 0 | BT151: 76113 | BU151: 1 | BV151: 81001 | BW151: 1
C152: 68001 | D152: BUCARAMANGA | E152: 1 | F152: 1 | G152: Natural | H152: 68 | I152: SANTANDER | J152: Aprobado con subsidio | K152: PEQUEÑA | L152: 1610 | M152: INDUSTRIAS MANUFACTURERAS | N152: C | O152: Aserrado, acepillado e impregnación de la madera | P152: Transformación de la madera y fabricación de productos de madera y de corcho, excepto muebles; fabricación de artículos de cestería y espartería | Q152: 0 | R152: 1 | S152: 0 | T152: 1 | U152: 0 | V152: 0 | W152: 1 | X152: 0 | AJ152: 0 | AK152: 0 | AL152: 47288 | AM152: FUNDACIÓN | AN152: 4 | AO152: 1 | AP152: Natural | AQ152: 47 | AR152: MAGDALENA | AS152: Aprobado con subsidio | AT152: MICRO | AU152: 1011 | AV152: INDUSTRIAS MANUFACTURERAS | AW152: C | AX152: Procesamiento y conservación de carne, pescado, crustáceos y moluscos | AY152: Elaboración de productos alimenticios | AZ152: 0 | BA152: 4 | BB152: 0 | BC152: 3 | BD152: 0 | BE152: 1 | BF152: 4 | BG152: 0 | BT152: 76403 | BU152: 1 | BV152: 25288 | BW152: 1
C153: 11001 | D153: BOGOTÁ, D.C. | E153: 0 | F153: 0 | G153: Natural | H153: 11 | I153: BOGOTÁ, D.C. | J153: 0 | K153: MICRO | L153: 4773 | M153: COMERCIO AL POR MAYOR Y AL POR MENOR; REPARACIÓN DE VEHÍCULOS AUTOMOTORES Y MOTOCICLETAS | N153: G | O153: Comercio al por menor de otros productos en establecimientos especializados | P153: Comercio al por menor de otros productos en establecimientos especializados | Q153: 0 | R153: 0 | S153: 0 | T153: 0 | U153: 0 | V153: 0 | W153: 0 | X153: 0 | AJ153: 0 | AK153: 0 | AL153: 11001 | AM153: BOGOTÁ, D.C. | AN153: 0 | AO153: 0 | AP153: Natural | AQ153: 11 | AR153: BOGOTÁ, D.C. | AS153: 0 | AT153: MICRO | AU153: 1011 | AV153: INDUSTRIAS MANUFACTURERAS | AW153: C | AX153: Procesamiento y conservación de carne, pescado, crustáceos y moluscos | AY153: Elaboración de productos alimenticios | AZ153: 0 | BA153: 0 | BB153: 0 | BC153: 0 | BD153: 0 | BE153: 0 | BF153: 0 | BG153: 0 | BT153: 41524 | BU153: 1 | BV153: 25873 | BW153: 1
C154: 68001 | D154: BUCARAMANGA | E154: 3 | F154: 2 | G154: Natural | H154: 68 | I154: SANTANDER | J154: Aprobado con subsidio | K154: MICRO | L154: 4774 | M154: COMERCIO AL POR MAYOR Y AL POR MENOR; REPARACIÓN DE VEHÍCULOS AUTOMOTORES Y MOTOCICLETAS | N154: G | O154: Comercio al por menor de otros productos en establecimientos especializados | P154: Comercio al por menor de otros productos en establecimientos especializados | Q154: 3 | R154: 0 | S154: 0 | T154: 3 | U154: 0 | V154: 0 | W154: 3 | X154: 0 | AJ154: 0 | AK154: 0 | AL154: 5045 | AM154: APARTADÓ | AN154: 24 | AO154: 32 | AP154: Natural | AQ154: 5 | AR154: ANTIOQUIA | AS154: Aprobado con subsidio | AT154: PEQUEÑA | AU154: 1089 | AV154: INDUSTRIAS MANUFACTURERAS | AW154: C | AX154: Elaboración de otros productos alimenticios | AY154: Elaboración de productos alimenticios | AZ154: 20 | BA154: 4 | BB154: 0 | BC154: 24 | BD154: 0 | BE154: 0 | BF154: 24 | BG154: 0 | BT154: 17614 | BU154: 1 | BV154: 19455 | BW154: 1
C155: 68001 | D155: BUCARAMANGA | E155: 0 | F155: 0 | G155: Natural | H155: 68 | I155: SANTANDER | J155: 0 | K155: MICRO | L155: 4729 | M155: COMERCIO AL POR MAYOR Y AL POR MENOR; REPARACIÓN DE VEHÍCULOS AUTOMOTORES Y MOTOCICLETAS | N155: G | O155: Comercio al por menor de alimentos (víveres en general), bebidas y tabaco, en establecimientos especializados | P155: Comercio al por menor de alimentos (víveres en general), bebidas y tabaco, en establecimientos especializados | Q155: 0 | R155: 0 | S155: 0 | T155: 0 | U155: 0 | V155: 0 | W155: 0 | X155: 0 | AJ155: 0 | AK155: 0 | AL155: 5001 | AM155: MEDELLÍN | AN155: 1 | AO155: 0 | AP155: Natural | AQ155: 5 | AR155: ANTIOQUIA | AS155: Aprobado con subsidio | AT155: MICRO | AU155: 1081 | AV155: INDUSTRIAS MANUFACTURERAS | AW155: C | AX155: Elaboración de otros productos alimenticios | AY155: Elaboración de productos alimenticios | AZ155: 1 | BA155: 0 | BB155: 0 | BC155: 1 | BD155: 0 | BE155: 0 | BF155: 1 | BG155: 0 | BT155: 17433 | BU155: 1 | BV155: 76113 | BW155: 1
C156: 68406 | D156: LEBRIJA | E156: 0 | F156: 0 | G156: Natural | H156: 68 | I156: SANTANDER | J156: 0 | K156: MICRO | L156: 4752 | M156: COMERCIO AL POR MAYOR Y AL POR MENOR; REPARACIÓN DE VEHÍCULOS AUTOMOTORES Y MOTOCICLETAS | N156: G | O156: Comercio al por menor de otros enseres domésticos en establecimientos especializados | P156: Comercio al por menor de otros enseres domésticos en establecimientos especializados | Q156: 0 | R156: 0 | S156: 0 | T156: 0 | U156: 0 | V156: 0 | W156: 0 | X156: 0 | AJ156: 0 | AK156: 0 | AL156: 5001 | AM156: MEDELLÍN | AN156: 19 | AO156: 2 | AP156: Natural | AQ156: 5 | AR156: ANTIOQUIA | AS156: Aprobado con subsidio | AT156: MICRO | AU156: 1410 | AV156: INDUSTRIAS MANUFACTURERAS | AW156: C | AX156: Confección de prendas de vestir, excepto prendas de piel | AY156: Confección de prendas de vestir | AZ156: 16 | BA156: 3 | BB156: 0 | BC156: 6 | BD156: 13 | BE156: 0 | BF156: 18 | BG156: 1 | BT156: 25743 | BU156: 2 | BV156: 76403 | BW156: 1
C157: 68406 | D157: LEBRIJA | E157: 0 | F157: 0 | G157: Natural | H157: 68 | I157: SANTANDER | J157: 0 | K157: MEDIANA | L157: 4711 | M157: COMERCIO AL POR MAYOR Y AL POR MENOR; REPARACIÓN DE VEHÍCULOS AUTOMOTORES Y MOTOCICLETAS | N157: G | O157: Comercio al por menor en establecimientos no especializados | P157: Comercio al por menor en establecimientos no especializados | Q157: 0 | R157: 0 | S157: 0 | T157: 0 | U157: 0 | V157: 0 | W157: 0 | X157: 0 | AJ157: 0 | AK157: 0 | AL157: 5266 | AM157: ENVIGADO | AN157: 0 | AO157: 0 | AP157: Natural | AQ157: 5 | AR157: ANTIOQUIA | AS157: 0 | AT157: MICRO | AU157: 1081 | AV157: INDUSTRIAS MANUFACTURERAS | AW157: C | AX157: Elaboración de otros productos alimenticios | AY157: Elaboración de productos alimenticios | AZ157: 0 | BA157: 0 | BB157: 0 | BC157: 0 | BD157: 0 | BE157: 0 | BF157: 0 | BG157: 0 | BT157: 54261 | BU157: 1 | BV157: 41524 | BW157: 1
C158: 68307 | D158: GIRÓN | E158: 0 | F158: 0 | G158: Natural | H158: 68 | I158: SANTANDER | J158: 0 | K158: PEQUEÑA | L158: 8513 | M158: EDUCACIÓN | N158: P | O158: Educación de la primera infancia, preescolar y básica primaria | P158: Educación de la primera infancia, preescolar y básica primaria | Q158: 0 | R158: 0 | S158: 0 | T158: 0 | U158: 0 | V158: 0 | W158: 0 | X158: 0 | AJ158: 0 | AK158: 0 | AL158: 5631 | AM158: SABANETA | AN158: 0 | AO158: 0 | AP158: Natural | AQ158: 5 | AR158: ANTIOQUIA | AS158: 0 | AT158: MICRO | AU158: 2599 | AV158: INDUSTRIAS MANUFACTURERAS | AW158: C | AX158: Fabricación de otros productos elaborados de metal y actividades de servicios relacionadas con el trabajo de metales | AY158: Fabricación de productos elaborados de metal, excepto maquinaria y equipo | AZ158: 0 | BA158: 0 | BB158: 0 | BC158: 0 | BD158: 0 | BE158: 0 | BF158: 0 | BG158: 0 | BT158: 50226 | BU158: 2 | BV158: 17614 | BW158: 1
C159: 11001 | D159: BOGOTÁ, D.C. | E159: 13 | F159: 11 | G159: Natural | H159: 11 | I159: BOGOTÁ, D.C. | J159: Aprobado con subsidio | K159: MICRO | L159: 4731 | M159: COMERCIO AL POR MAYOR Y AL POR MENOR; REPARACIÓN DE VEHÍCULOS AUTOMOTORES Y MOTOCICLETAS | N159: G | O159: Comercio al por menor de combustible, lubricantes, aditivos y productos de limpieza para automotores, en establecimientos especializados | P159: Comercio al por menor de combustible, lubricantes, aditivos y productos de limpieza para automotores, en establecimientos especializados | Q159: 8 | R159: 5 | S159: 0 | T159: 5 | U159: 4 | V159: 4 | W159: 13 | X159: 0 | AJ159: 0 | AK159: 0 | AL159: 5360 | AM159: ITAGUI | AN159: 0 | AO159: 0 | AP159: Natural | AQ159: 5 | AR159: ANTIOQUIA | AS159: 0 | AT159: PEQUEÑA | AU159: 1020 | AV159: INDUSTRIAS MANUFACTURERAS | AW159: C | AX159: Procesamiento y conservación de frutas, legumbres, hortalizas y tubérculos | AY159: Elaboración de productos alimenticios | AZ159: 0 | BA159: 0 | BB159: 0 | BC159: 0 | BD159: 0 | BE159: 0 | BF159: 0 | BG159: 0 | BT159: 15755 | BU159: 0 | BV159: 17433 | BW159: 1
C160: 54001 | D160: CÚCUTA | E160: 2 | F160: 2 | G160: Natural | H160: 54 | I160: NORTE DE SANTANDER | J160: Aprobado con subsidio | K160: MICRO | L160: 1410 | M160: INDUSTRIAS MANUFACTURERAS | N160: C | O160: Confección de prendas de vestir, excepto prendas de piel | P160: Confección de prendas de vestir | Q160: 1 | R160: 1 | S160: 0 | T160: 2 | U160: 0 | V160: 0 | W160: 2 | X160: 0 | AJ160: 0 | AK160: 0 | AL160: 11001 | AM160: BOGOTÁ, D.C. | AN160: 0 | AO160: 0 | AP160: Natural | AQ160: 11 | AR160: BOGOTÁ, D.C. | AS160: 0 | AT160: MICRO | AU160: 1081 | AV160: INDUSTRIAS MANUFACTURERAS | AW160: C | AX160: Elaboración de otros productos alimenticios | AY160: Elaboración de productos alimenticios | AZ160: 0 | BA160: 0 | BB160: 0 | BC160: 0 | BD160: 0 | BE160: 0 | BF160: 0 | BG160: 0 | BT160: 70771 | BU160: 1 | BV160: 54261 | BW160: 1
C161: 68001 | D161: BUCARAMANGA | E161: 1 | F161: 0 | G161: Natural | H161: 68 | I161: SANTANDER | J161: Aprobado con subsidio | K161: MICRO | L161: 7420 | M161: ACTIVIDADES PROFESIONALES, CIENTÍFICAS Y TÉCNICAS | N161: M | O161: Actividades de fotografía | P161: Actividades de fotografía | Q161: 0 | R161: 1 | S161: 0 | T161: 0 | U161: 0 | V161: 1 | W161: 1 | X161: 0 | AJ161: 0 | AK161: 0 | AL161: 8001 | AM161: BARRANQUILLA | AN161: 7 | AO161: 12 | AP161: Natural | AQ161: 8 | AR161: ATLÁNTICO | AS161: Aprobado con subsidio | AT161: PEQUEÑA | AU161: 1089 | AV161: INDUSTRIAS MANUFACTURERAS | AW161: C | AX161: Elaboración de otros productos alimenticios | AY161: Elaboración de productos alimenticios | AZ161: 5 | BA161: 2 | BB161: 0 | BC161: 2 | BD161: 5 | BE161: 0 | BF161: 7 | BG161: 0 | BT161: 17873 | BU161: 3 | BV161: 70771 | BW161: 1
C162: 68081 | D162: BARRANCABERMEJA | E162: 0 | F162: 0 | G162: Natural | H162: 68 | I162: SANTANDER | J162: 0 | K162: MICRO | L162: 4731 | M162: COMERCIO AL POR MAYOR Y AL POR MENOR; REPARACIÓN DE VEHÍCULOS AUTOMOTORES Y MOTOCICLETAS | N162: G | O162: Comercio al por menor de combustible, lubricantes, aditivos y productos de limpieza para automotores, en establecimientos especializados | P162: Comercio al por menor de combustible, lubricantes, aditivos y productos de limpieza para automotores, en establecimientos especializados | Q162: 0 | R162: 0 | S162: 0 | T162: 0 | U162: 0 | V162: 0 | W162: 0 | X162: 0 | AJ162: 0 | AK162: 0 | AL162: 8001 | AM162: BARRANQUILLA | AN162: 0 | AO162: 0 | AP162: Natural | AQ162: 8 | AR162: ATLÁNTICO | AS162: 0 | AT162: MICRO | AU162: 3250 | AV162: INDUSTRIAS MANUFACTURERAS | AW162: C | AX162: Fabricación de instrumentos, aparatos y materiales médicos y odontológicos (incluido mobiliario) | AY162: Otras industrias manufactureras | AZ162: 0 | BA162: 0 | BB162: 0 | BC162: 0 | BD162: 0 | BE162: 0 | BF162: 0 | BG162: 0 | BT162: 17174 | BU162: 1 | BV162: 17174 | BW162: 1
C163: 68679 | D163: SAN GIL | E163: 6 | F163: 11 | G163: Natural | H163: 68 | I163: SANTANDER | J163: Aprobado con subsidio | K163: PEQUEÑA | L163: 4711 | M163: COMERCIO AL POR MAYOR Y AL POR MENOR; REPARACIÓN DE VEHÍCULOS AUTOMOTORES Y MOTOCICLETAS | N163: G | O163: Comercio al por menor en establecimientos no especializados | P163: Comercio al por menor en establecimientos no especializados | Q163: 2 | R163: 4 | S163: 0 | T163: 6 | U163: 0 | V163: 0 | W163: 6 | X163: 0 | AJ163: 0 | AK163: 0 | AL163: 70001 | AM163: SINCELEJO | AN163: 6 | AO163: 0 | AP163: Natural | AQ163: 70 | AR163: SUCRE | AS163: Aprobado con subsidio | AT163: MICRO | AU163: 1081 | AV163: INDUSTRIAS MANUFACTURERAS | AW163: C | AX163: Elaboración de otros productos alimenticios | AY163: Elaboración de productos alimenticios | AZ163: 4 | BA163: 2 | BB163: 0 | BC163: 5 | BD163: 0 | BE163: 1 | BF163: 6 | BG163: 0 | BT163: 25769 | BU163: 3 | BV163: 20178 | BW163: 1
C164: 47288 | D164: FUNDACIÓN | E164: 0 | F164: 0 | G164: Natural | H164: 47 | I164: MAGDALENA | J164: 0 | K164: MICRO | L164: 4664 | M164: COMERCIO AL POR MAYOR Y AL POR MENOR; REPARACIÓN DE VEHÍCULOS AUTOMOTORES Y MOTOCICLETAS | N164: G | O164: Comercio al por mayor especializado de otros productos | P164: Comercio al por mayor especializado de otros productos | Q164: 0 | R164: 0 | S164: 0 | T164: 0 | U164: 0 | V164: 0 | W164: 0 | X164: 0 | AJ164: 0 | AK164: 0 | AL164: 15176 | AM164: CHIQUINQUIRÁ | AN164: 0 | AO164: 0 | AP164: Natural | AQ164: 15 | AR164: BOYACÁ | AS164: 0 | AT164: MICRO | AU164: 1081 | AV164: INDUSTRIAS MANUFACTURERAS | AW164: C | AX164: Elaboración de otros productos alimenticios | AY164: Elaboración de productos alimenticios | AZ164: 0 | BA164: 0 | BB164: 0 | BC164: 0 | BD164: 0 | BE164: 0 | BF164: 0 | BG164: 0 | BT164: 20178 | BU164: 1 | BV164: 23189 | BW164: 1
C165: 5001 | D165: MEDELLÍN | E165: 0 | F165: 0 | G165: Natural | H165: 5 | I165: ANTIOQUIA | J165: 0 | K165: PEQUEÑA | L165: 4390 | M165: CONSTRUCCIÓN | N165: F | O165: Otras actividades especializadas para la construcción de edificios y obras de ingeniería civil | P165: Otras actividades especializadas para la construcción de edificios y obras de ingeniería civil | Q165: 0 | R165: 0 | S165: 0 | T165: 0 | U165: 0 | V165: 0 | W165: 0 | X165: 0 | AJ165: 0 | AK165: 0 | AL165: 11001 | AM165: BOGOTÁ, D.C. | AN165: 1 | AO165: 3 | AP165: Natural | AQ165: 11 | AR165: BOGOTÁ, D.C. | AS165: Aprobado con subsidio | AT165: MICRO | AU165: 1081 | AV165: INDUSTRIAS MANUFACTURERAS | AW165: C | AX165: Elaboración de otros productos alimenticios | AY165: Elaboración de productos alimenticios | AZ165: 1 | BA165: 0 | BB165: 0 | BC165: 0 | BD165: 1 | BE165: 0 | BF165: 1 | BG165: 0 | BT165: 25183 | BU165: 2 | BV165: 23466 | BW165: 1
C166: 68861 | D166: VÉLEZ | E166: 1 | F166: 0 | G166: Natural | H166: 68 | I166: SANTANDER | J166: Aprobado con subsidio | K166: MICRO | L166: 1089 | M166: INDUSTRIAS MANUFACTURERAS | N166: C | O166: Elaboración de otros productos alimenticios | P166: Elaboración de productos alimenticios | Q166: 1 | R166: 0 | S166: 0 | T166: 1 | U166: 0 | V166: 0 | W166: 1 | X166: 0 | AJ166: 0 | AK166: 0 | AL166: 25754 | AM166: SOACHA | AN166: 0 | AO166: 0 | AP166: Natural | AQ166: 25 | AR166: CUNDINAMARCA | AS166: 0 | AT166: MICRO | AU166: 2410 | AV166: INDUSTRIAS MANUFACTURERAS | AW166: C | AX166: Industrias básicas de hierro y de acero | AY166: Fabricación de productos metalúrgicos básicos | AZ166: 0 | BA166: 0 | BB166: 0 | BC166: 0 | BD166: 0 | BE166: 0 | BF166: 0 | BG166: 0 | BT166: 23189 | BU166: 1 | BV166: 68077 | BW166: 1
C167: 68001 | D167: BUCARAMANGA | E167: 1 | F167: 0 | G167: Natural | H167: 68 | I167: SANTANDER | J167: Aprobado con subsidio | K167: MICRO | L167: 6621 | M167: ACTIVIDADES FINANCIERAS Y DE SEGUROS | N167: K | O167: Actividades de servicios auxiliares de los servicios de seguros y pensiones | P167: Actividades de servicios auxiliares de los servicios de seguros y pensiones | Q167: 1 | R167: 0 | S167: 0 | T167: 1 | U167: 0 | V167: 0 | W167: 1 | X167: 0 | AJ167: 0 | AK167: 0 | AL167: 11001 | AM167: BOGOTÁ, D.C. | AN167: 1 | AO167: 5 | AP167: Natural | AQ167: 11 | AR167: BOGOTÁ, D.C. | AS167: Aprobado con subsidio | AT167: MICRO | AU167: 1081 | AV167: INDUSTRIAS MANUFACTURERAS | AW167: C | AX167: Elaboración de otros productos alimenticios | AY167: Elaboración de productos alimenticios | AZ167: 1 | BA167: 0 | BB167: 0 | BC167: 1 | BD167: 0 | BE167: 0 | BF167: 1 | BG167: 0 | BT167: 52473 | BU167: 0 | BV167: 73026 | BW167: 1
C168: 68001 | D168: BUCARAMANGA | E168: 4 | F168: 84 | G168: Natural | H168: 68 | I168: SANTANDER | J168: Aprobado con subsidio | K168: MEDIANA | L168: 4711 | M168: COMERCIO AL POR MAYOR Y AL POR MENOR; REPARACIÓN DE VEHÍCULOS AUTOMOTORES Y MOTOCICLETAS | N168: G | O168: Comercio al por menor en establecimientos no especializados | P168: Comercio al por menor en establecimientos no especializados | Q168: 4 | R168: 0 | S168: 0 | T168: 4 | U168: 0 | V168: 0 | W168: 4 | X168: 0 | AJ168: 0 | AK168: 0 | AL168: 68001 | AM168: BUCARAMANGA | AN168: 0 | AO168: 0 | AP168: Natural | AQ168: 68 | AR168: SANTANDER | AS168: 0 | AT168: PEQUEÑA | AU168: 1410 | AV168: INDUSTRIAS MANUFACTURERAS | AW168: C | AX168: Confección de prendas de vestir, excepto prendas de piel | AY168: Confección de prendas de vestir | AZ168: 0 | BA168: 0 | BB168: 0 | BC168: 0 | BD168: 0 | BE168: 0 | BF168: 0 | BG168: 0 | BT168: 23466 | BU168: 1 | BV168: 41551 | BW168: 1
C169: 68895 | D169: ZAPATOCA | E169: 0 | F169: 0 | G169: Natural | H169: 68 | I169: SANTANDER | J169: 0 | K169: MICRO | L169: 4752 | M169: COMERCIO AL POR MAYOR Y AL POR MENOR; REPARACIÓN DE VEHÍCULOS AUTOMOTORES Y MOTOCICLETAS | N169: G | O169: Comercio al por menor de otros enseres domésticos en establecimientos especializados | P169: Comercio al por menor de otros enseres domésticos en establecimientos especializados | Q169: 0 | R169: 0 | S169: 0 | T169: 0 | U169: 0 | V169: 0 | W169: 0 | X169: 0 | AJ169: 0 | AK169: 0 | AL169: 15238 | AM169: DUITAMA | AN169: 2 | AO169: 6 | AP169: Natural | AQ169: 15 | AR169: BOYACÁ | AS169: Aprobado con subsidio | AT169: MICRO | AU169: 2599 | AV169: INDUSTRIAS MANUFACTURERAS | AW169: C | AX169: Fabricación de otros productos elaborados de metal y actividades de servicios relacionadas con el trabajo de metales | AY169: Fabricación de productos elaborados de metal, excepto maquinaria y equipo | AZ169: 0 | BA169: 2 | BB169: 0 | BC169: 2 | BD169: 0 | BE169: 0 | BF169: 2 | BG169: 0 | BT169: 76020 | BU169: 2 | BV169: 5861 | BW169: 1
C170: 68079 | D170: BARICHARA | E170: 0 | F170: 0 | G170: Natural | H170: 68 | I170: SANTANDER | J170: 0 | K170: PEQUEÑA | L170: 5511 | M170: ALOJAMIENTO Y SERVICIOS DE COMIDA | N170: I | O170: Actividades de alojamiento de estancias cortas | P170: Actividades de alojamiento de estancias cortas | Q170: 0 | R170: 0 | S170: 0 | T170: 0 | U170: 0 | V170: 0 | W170: 0 | X170: 0 | AJ170: 0 | AK170: 0 | AL170: 25269 | AM170: FACATATIVÁ | AN170: 3 | AO170: 3 | AP170: Natural | AQ170: 25 | AR170: CUNDINAMARCA | AS170: Aprobado con subsidio | AT170: PEQUEÑA | AU170: 1081 | AV170: INDUSTRIAS MANUFACTURERAS | AW170: C | AX170: Elaboración de otros productos alimenticios | AY170: Elaboración de productos alimenticios | AZ170: 2 | BA170: 0 | BB170: 1 | BC170: 3 | BD170: 0 | BE170: 0 | BF170: 2 | BG170: 1 | BT170: 25099 | BU170: 0 | BV170: 66088 | BW170: 1
C171: 11001 | D171: BOGOTÁ, D.C. | E171: 3 | F171: 0 | G171: Natural | H171: 11 | I171: BOGOTÁ, D.C. | J171: Aprobado con subsidio | K171: MICRO | L171: 8121 | M171: ACTIVIDADES DE SERVICIOS ADMINISTRATIVOS Y DE APOYO | N171: N | O171: Actividades de limpieza | P171: Actividades de limpieza | Q171: 2 | R171: 1 | S171: 0 | T171: 0 | U171: 2 | V171: 1 | W171: 3 | X171: 0 | AJ171: 0 | AK171: 0 | AL171: 15516 | AM171: PAIPA | AN171: 2 | AO171: 0 | AP171: Natural | AQ171: 15 | AR171: BOYACÁ | AS171: Aprobado con subsidio | AT171: MICRO | AU171: 1040 | AV171: INDUSTRIAS MANUFACTURERAS | AW171: C | AX171: Elaboración de productos lácteos | AY171: Elaboración de productos alimenticios | AZ171: 0 | BA171: 2 | BB171: 0 | BC171: 2 | BD171: 0 | BE171: 0 | BF171: 2 | BG171: 0 | BT171: 76622 | BU171: 0 | BV171: 70820 | BW171: 1
C172: 73001 | D172: IBAGUÉ | E172: 0 | F172: 0 | G172: Natural | H172: 73 | I172: TOLIMA | J172: 0 | K172: MICRO | L172: 4751 | M172: COMERCIO AL POR MAYOR Y AL POR MENOR; REPARACIÓN DE VEHÍCULOS AUTOMOTORES Y MOTOCICLETAS | N172: G | O172: Comercio al por menor de otros enseres domésticos en establecimientos especializados | P172: Comercio al por menor de otros enseres domésticos en establecimientos especializados | Q172: 0 | R172: 0 | S172: 0 | T172: 0 | U172: 0 | V172: 0 | W172: 0 | X172: 0 | AJ172: 0 | AK172: 0 | AL172: 17001 | AM172: MANIZALES | AN172: 0 | AO172: 0 | AP172: Natural | AQ172: 17 | AR172: CALDAS | AS172: 0 | AT172: PEQUEÑA | AU172: 1084 | AV172: INDUSTRIAS MANUFACTURERAS | AW172: C | AX172: Elaboración de otros productos alimenticios | AY172: Elaboración de productos alimenticios | AZ172: 0 | BA172: 0 | BB172: 0 | BC172: 0 | BD172: 0 | BE172: 0 | BF172: 0 | BG172: 0 | BT172: 68077 | BU172: 1 | BV172: 52399 | BW172: 1
C173: 41001 | D173: NEIVA | E173: 3 | F173: 10 | G173: Natural | H173: 41 | I173: HUILA | J173: Aprobado con subsidio | K173: MICRO | L173: 5511 | M173: ALOJAMIENTO Y SERVICIOS DE COMIDA | N173: I | O173: Actividades de alojamiento de estancias cortas | P173: Actividades de alojamiento de estancias cortas | Q173: 1 | R173: 2 | S173: 0 | T173: 3 | U173: 0 | V173: 0 | W173: 3 | X173: 0 | AJ173: 0 | AK173: 0 | AL173: 17001 | AM173: MANIZALES | AN173: 0 | AO173: 0 | AP173: Natural | AQ173: 17 | AR173: CALDAS | AS173: 0 | AT173: MICRO | AU173: 1084 | AV173: INDUSTRIAS MANUFACTURERAS | AW173: C | AX173: Elaboración de otros productos alimenticios | AY173: Elaboración de productos alimenticios | AZ173: 0 | BA173: 0 | BB173: 0 | BC173: 0 | BD173: 0 | BE173: 0 | BF173: 0 | BG173: 0 | BT173: 5591 | BU173: 0 | BV173: 52356 | BW173: 1
C174: 11001 | D174: BOGOTÁ, D.C. | E174: 0 | F174: 0 | G174: Natural | H174: 11 | I174: BOGOTÁ, D.C. | J174: 0 | K174: MICRO | L174: 6910 | M174: ACTIVIDADES PROFESIONALES, CIENTÍFICAS Y TÉCNICAS | N174: M | O174: Actividades jurídicas | P174: Actividades jurídicas | Q174: 0 | R174: 0 | S174: 0 | T174: 0 | U174: 0 | V174: 0 | W174: 0 | X174: 0 | AJ174: 0 | AK174: 0 | AL174: 17001 | AM174: MANIZALES | AN174: 16 | AO174: 39 | AP174: Natural | AQ174: 17 | AR174: CALDAS | AS174: Aprobado con subsidio | AT174: PEQUEÑA | AU174: 1523 | AV174: INDUSTRIAS MANUFACTURERAS | AW174: C | AX174: Fabricación de calzado | AY174: Curtido y recurtido de cueros; fabricación de calzado; fabricación de artículos de viaje, maletas, bolsos de mano y artículos similares, y fabricación de artículos de talabartería y guarnicionería; adobo y teñido de pieles | AZ174: 15 | BA174: 1 | BB174: 0 | BC174: 6 | BD174: 10 | BE174: 0 | BF174: 16 | BG174: 0 | BT174: 73026 | BU174: 1 | BV174: 5264 | BW174: 1
C175: 73001 | D175: IBAGUÉ | E175: 4 | F175: 0 | G175: Natural | H175: 73 | I175: TOLIMA | J175: Aprobado con subsidio | K175: MICRO | L175: 4773 | M175: COMERCIO AL POR MAYOR Y AL POR MENOR; REPARACIÓN DE VEHÍCULOS AUTOMOTORES Y MOTOCICLETAS | N175: G | O175: Comercio al por menor de otros productos en establecimientos especializados | P175: Comercio al por menor de otros productos en establecimientos especializados | Q175: 3 | R175: 1 | S175: 0 | T175: 0 | U175: 3 | V175: 1 | W175: 4 | X175: 0 | AJ175: 0 | AK175: 0 | AL175: 17001 | AM175: MANIZALES | AN175: 10 | AO175: 21 | AP175: Natural | AQ175: 17 | AR175: CALDAS | AS175: Aprobado con subsidio | AT175: PEQUEÑA | AU175: 1081 | AV175: INDUSTRIAS MANUFACTURERAS | AW175: C | AX175: Elaboración de otros productos alimenticios | AY175: Elaboración de productos alimenticios | AZ175: 10 | BA175: 0 | BB175: 0 | BC175: 8 | BD175: 2 | BE175: 0 | BF175: 9 | BG175: 1 | BT175: 41551 | BU175: 1 | BV175: 25377 | BW175: 1
C176: 76001 | D176: CALI | E176: 2 | F176: 9 | G176: Natural | H176: 76 | I176: VALLE DEL CAUCA | J176: Aprobado con subsidio | K176: MICRO | L176: 1811 | M176: INDUSTRIAS MANUFACTURERAS | N176: C | O176: Actividades de impresión y actividades de servicios relacionados con la impresión | P176: Actividades de impresión y de producción de copias a partir de grabaciones originales | Q176: 2 | R176: 0 | S176: 0 | T176: 2 | U176: 0 | V176: 0 | W176: 2 | X176: 0 | AJ176: 0 | AK176: 0 | AL176: 76001 | AM176: CALI | AN176: 0 | AO176: 0 | AP176: Natural | AQ176: 76 | AR176: VALLE DEL CAUCA | AS176: 0 | AT176: MICRO | AU176: 1089 | AV176: INDUSTRIAS MANUFACTURERAS | AW176: C | AX176: Elaboración de otros productos alimenticios | AY176: Elaboración de productos alimenticios | AZ176: 0 | BA176: 0 | BB176: 0 | BC176: 0 | BD176: 0 | BE176: 0 | BF176: 0 | BG176: 0 | BT176: 5861 | BU176: 1 | BV176: 76233 | BW176: 1
C177: 73001 | D177: IBAGUÉ | E177: 1 | F177: 0 | G177: Natural | H177: 73 | I177: TOLIMA | J177: Aprobado con subsidio | K177: MICRO | L177: 4752 | M177: COMERCIO AL POR MAYOR Y AL POR MENOR; REPARACIÓN DE VEHÍCULOS AUTOMOTORES Y MOTOCICLETAS | N177: G | O177: Comercio al por menor de otros enseres domésticos en establecimientos especializados | P177: Comercio al por menor de otros enseres domésticos en establecimientos especializados | Q177: 0 | R177: 1 | S177: 0 | T177: 1 | U177: 0 | V177: 0 | W177: 1 | X177: 0 | AJ177: 0 | AK177: 0 | AL177: 17001 | AM177: MANIZALES | AN177: 0 | AO177: 0 | AP177: Natural | AQ177: 17 | AR177: CALDAS | AS177: 0 | AT177: PEQUEÑA | AU177: 1523 | AV177: INDUSTRIAS MANUFACTURERAS | AW177: C | AX177: Fabricación de calzado | AY177: Curtido y recurtido de cueros; fabricación de calzado; fabricación de artículos de viaje, maletas, bolsos de mano y artículos similares, y fabricación de artículos de talabartería y guarnicionería; adobo y teñido de pieles | AZ177: 0 | BA177: 0 | BB177: 0 | BC177: 0 | BD177: 0 | BE177: 0 | BF177: 0 | BG177: 0 | BT177: 66088 | BU177: 1 | BV177: 25402 | BW177: 1
C178: 73001 | D178: IBAGUÉ | E178: 0 | F178: 0 | G178: Natural | H178: 73 | I178: TOLIMA | J178: 0 | K178: MICRO | L178: 4752 | M178: COMERCIO AL POR MAYOR Y AL POR MENOR; REPARACIÓN DE VEHÍCULOS AUTOMOTORES Y MOTOCICLETAS | N178: G | O178: Comercio al por menor de otros enseres domésticos en establecimientos especializados | P178: Comercio al por menor de otros enseres domésticos en establecimientos especializados | Q178: 0 | R178: 0 | S178: 0 | T178: 0 | U178: 0 | V178: 0 | W178: 0 | X178: 0 | AJ178: 0 | AK178: 0 | AL178: 66170 | AM178: DOSQUEBRADAS | AN178: 2 | AO178: 3 | AP178: Natural | AQ178: 66 | AR178: RISARALDA | AS178: Aprobado con subsidio | AT178: MICRO | AU178: 2511 | AV178: INDUSTRIAS MANUFACTURERAS | AW178: C | AX178: Fabricación de productos metálicos para uso estructural, tanques, depósitos y generadores de vapor. | AY178: Fabricación de productos elaborados de metal, excepto maquinaria y equipo | AZ178: 0 | BA178: 2 | BB178: 0 | BC178: 0 | BD178: 0 | BE178: 2 | BF178: 2 | BG178: 0 | BT178: 20710 | BU178: 0 | BV178: 73449 | BW178: 1
C179: 73268 | D179: ESPINAL | E179: 0 | F179: 0 | G179: Natural | H179: 73 | I179: TOLIMA | J179: 0 | K179: PEQUEÑA | L179: 4290 | M179: CONSTRUCCIÓN | N179: F | O179: Construcción de otras obras de ingeniería civil | P179: Construcción de otras obras de ingeniería civil | Q179: 0 | R179: 0 | S179: 0 | T179: 0 | U179: 0 | V179: 0 | W179: 0 | X179: 0 | AJ179: 0 | AK179: 0 | AL179: 73001 | AM179: IBAGUÉ | AN179: 1 | AO179: 0 | AP179: Natural | AQ179: 73 | AR179: TOLIMA | AS179: Aprobado con subsidio | AT179: MICRO | AU179: 1081 | AV179: INDUSTRIAS MANUFACTURERAS | AW179: C | AX179: Elaboración de otros productos alimenticios | AY179: Elaboración de productos alimenticios | AZ179: 0 | BA179: 1 | BB179: 0 | BC179: 1 | BD179: 0 | BE179: 0 | BF179: 1 | BG179: 0 | BT179: 70820 | BU179: 1 | BV179: 25718 | BW179: 1
C180: 5001 | D180: MEDELLÍN | E180: 0 | F180: 0 | G180: Natural | H180: 5 | I180: ANTIOQUIA | J180: 0 | K180: MICRO | L180: 4719 | M180: COMERCIO AL POR MAYOR Y AL POR MENOR; REPARACIÓN DE VEHÍCULOS AUTOMOTORES Y MOTOCICLETAS | N180: G | O180: Comercio al por menor en establecimientos no especializados | P180: Comercio al por menor en establecimientos no especializados | Q180: 0 | R180: 0 | S180: 0 | T180: 0 | U180: 0 | V180: 0 | W180: 0 | X180: 0 | AJ180: 0 | AK180: 0 | AL180: 86001 | AM180: MOCOA | AN180: 0 | AO180: 0 | AP180: Natural | AQ180: 86 | AR180: PUTUMAYO | AS180: 0 | AT180: MICRO | AU180: 1081 | AV180: INDUSTRIAS MANUFACTURERAS | AW180: C | AX180: Elaboración de otros productos alimenticios | AY180: Elaboración de productos alimenticios | AZ180: 0 | BA180: 0 | BB180: 0 | BC180: 0 | BD180: 0 | BE180: 0 | BF180: 0 | BG180: 0 | BT180: 52399 | BU180: 1 | BV180: 15491 | BW180: 1
C181: 63001 | D181: ARMENIA | E181: 0 | F181: 0 | G181: Natural | H181: 63 | I181: QUINDÍO | J181: 0 | K181: PEQUEÑA | L181: 4752 | M181: COMERCIO AL POR MAYOR Y AL POR MENOR; REPARACIÓN DE VEHÍCULOS AUTOMOTORES Y MOTOCICLETAS | N181: G | O181: Comercio al por menor de otros enseres domésticos en establecimientos especializados | P181: Comercio al por menor de otros enseres domésticos en establecimientos especializados | Q181: 0 | R181: 0 | S181: 0 | T181: 0 | U181: 0 | V181: 0 | W181: 0 | X181: 0 | AJ181: 0 | AK181: 0 | AL181: 54001 | AM181: CÚCUTA | AN181: 1 | AO181: 0 | AP181: Natural | AQ181: 54 | AR181: NORTE DE SANTANDER | AS181: Aprobado con subsidio | AT181: MICRO | AU181: 1410 | AV181: INDUSTRIAS MANUFACTURERAS | AW181: C | AX181: Confección de prendas de vestir, excepto prendas de piel | AY181: Confección de prendas de vestir | AZ181: 0 | BA181: 1 | BB181: 0 | BC181: 1 | BD181: 0 | BE181: 0 | BF181: 1 | BG181: 0 | BT181: 52356 | BU181: 1 | BV181: 20250 | BW181: 1
C182: 76001 | D182: CALI | E182: 0 | F182: 0 | G182: Natural | H182: 76 | I182: VALLE DEL CAUCA | J182: 0 | K182: MICRO | L182: 5611 | M182: ALOJAMIENTO Y SERVICIOS DE COMIDA | N182: I | O182: Actividades de restaurantes, cafeterías y servicio móvil de comidas | P182: Actividades de restaurantes, cafeterías y servicio móvil de comidas | Q182: 0 | R182: 0 | S182: 0 | T182: 0 | U182: 0 | V182: 0 | W182: 0 | X182: 0 | AJ182: 0 | AK182: 0 | AL182: 11001 | AM182: BOGOTÁ, D.C. | AN182: 2 | AO182: 0 | AP182: Natural | AQ182: 11 | AR182: BOGOTÁ, D.C. | AS182: Aprobado con subsidio | AT182: MICRO | AU182: 1811 | AV182: INDUSTRIAS MANUFACTURERAS | AW182: C | AX182: Actividades de impresión y actividades de servicios relacionados con la impresión | AY182: Actividades de impresión y de producción de copias a partir de grabaciones originales | AZ182: 1 | BA182: 1 | BB182: 0 | BC182: 2 | BD182: 0 | BE182: 0 | BF182: 2 | BG182: 0 | BT182: 5264 | BU182: 1 | BV182: 25736 | BW182: 1
C183: 50001 | D183: VILLAVICENCIO | E183: 10 | F183: 12 | G183: Natural | H183: 50 | I183: META | J183: Aprobado con subsidio | K183: PEQUEÑA | L183: 5511 | M183: ALOJAMIENTO Y SERVICIOS DE COMIDA | N183: I | O183: Actividades de alojamiento de estancias cortas | P183: Actividades de alojamiento de estancias cortas | Q183: 4 | R183: 6 | S183: 0 | T183: 7 | U183: 3 | V183: 0 | W183: 10 | X183: 0 | AJ183: 0 | AK183: 0 | AL183: 54518 | AM183: PAMPLONA | AN183: 3 | AO183: 1 | AP183: Natural | AQ183: 54 | AR183: NORTE DE SANTANDER | AS183: Aprobado con subsidio | AT183: PEQUEÑA | AU183: 1081 | AV183: INDUSTRIAS MANUFACTURERAS | AW183: C | AX183: Elaboración de otros productos alimenticios | AY183: Elaboración de productos alimenticios | AZ183: 3 | BA183: 0 | BB183: 0 | BC183: 1 | BD183: 2 | BE183: 0 | BF183: 3 | BG183: 0 | BT183: 25377 | BU183: 1 | BV183: 25295 | BW183: 1
C184: 73001 | D184: IBAGUÉ | E184: 0 | F184: 0 | G184: Natural | H184: 73 | I184: TOLIMA | J184: 0 | K184: MICRO | L184: 4752 | M184: COMERCIO AL POR MAYOR Y AL POR MENOR; REPARACIÓN DE VEHÍCULOS AUTOMOTORES Y MOTOCICLETAS | N184: G | O184: Comercio al por menor de otros enseres domésticos en establecimientos especializados | P184: Comercio al por menor de otros enseres domésticos en establecimientos especializados | Q184: 0 | R184: 0 | S184: 0 | T184: 0 | U184: 0 | V184: 0 | W184: 0 | X184: 0 | AJ184: 0 | AK184: 0 | AL184: 68079 | AM184: BARICHARA | AN184: 0 | AO184: 0 | AP184: Natural | AQ184: 68 | AR184: SANTANDER | AS184: 0 | AT184: MICRO | AU184: 1081 | AV184: INDUSTRIAS MANUFACTURERAS | AW184: C | AX184: Elaboración de otros productos alimenticios | AY184: Elaboración de productos alimenticios | AZ184: 0 | BA184: 0 | BB184: 0 | BC184: 0 | BD184: 0 | BE184: 0 | BF184: 0 | BG184: 0 | BT184: 76233 | BU184: 1 | BV184: 68689 | BW184: 1
C185: 76834 | D185: TULUÁ | E185: 1 | F185: 7 | G185: Natural | H185: 76 | I185: VALLE DEL CAUCA | J185: Aprobado con subsidio | K185: PEQUEÑA | L185: 4751 | M185: COMERCIO AL POR MAYOR Y AL POR MENOR; REPARACIÓN DE VEHÍCULOS AUTOMOTORES Y MOTOCICLETAS | N185: G | O185: Comercio al por menor de otros enseres domésticos en establecimientos especializados | P185: Comercio al por menor de otros enseres domésticos en establecimientos especializados | Q185: 1 | R185: 0 | S185: 0 | T185: 0 | U185: 1 | V185: 0 | W185: 1 | X185: 0 | AJ185: 0 | AK185: 0 | AL185: 68861 | AM185: VÉLEZ | AN185: 1 | AO185: 2 | AP185: Natural | AQ185: 68 | AR185: SANTANDER | AS185: Aprobado con subsidio | AT185: PEQUEÑA | AU185: 1089 | AV185: INDUSTRIAS MANUFACTURERAS | AW185: C | AX185: Elaboración de otros productos alimenticios | AY185: Elaboración de productos alimenticios | AZ185: 0 | BA185: 1 | BB185: 0 | BC185: 1 | BD185: 0 | BE185: 0 | BF185: 1 | BG185: 0 | BT185: 25402 | BU185: 1 | BV185: 76036 | BW185: 1
C186: 76020 | D186: ALCALÁ | E186: 6 | F186: 1 | G186: Natural | H186: 76 | I186: VALLE DEL CAUCA | J186: Aprobado con subsidio | K186: MICRO | L186: 4752 | M186: COMERCIO AL POR MAYOR Y AL POR MENOR; REPARACIÓN DE VEHÍCULOS AUTOMOTORES Y MOTOCICLETAS | N186: G | O186: Comercio al por menor de otros enseres domésticos en establecimientos especializados | P186: Comercio al por menor de otros enseres domésticos en establecimientos especializados | Q186: 2 | R186: 4 | S186: 0 | T186: 2 | U186: 2 | V186: 2 | W186: 6 | X186: 0 | AJ186: 0 | AK186: 0 | AL186: 52001 | AM186: PASTO | AN186: 0 | AO186: 0 | AP186: Natural | AQ186: 52 | AR186: NARIÑO | AS186: 0 | AT186: MICRO | AU186: 3250 | AV186: INDUSTRIAS MANUFACTURERAS | AW186: C | AX186: Fabricación de instrumentos, aparatos y materiales médicos y odontológicos (incluido mobiliario) | AY186: Otras industrias manufactureras | AZ186: 0 | BA186: 0 | BB186: 0 | BC186: 0 | BD186: 0 | BE186: 0 | BF186: 0 | BG186: 0 | BT186: 73449 | BU186: 1 | BV186: 8573 | BW186: 1
C187: 76001 | D187: CALI | E187: 0 | F187: 0 | G187: Natural | H187: 76 | I187: VALLE DEL CAUCA | J187: 0 | K187: PEQUEÑA | L187: 4762 | M187: COMERCIO AL POR MAYOR Y AL POR MENOR; REPARACIÓN DE VEHÍCULOS AUTOMOTORES Y MOTOCICLETAS | N187: G | O187: Comercio al por menor de artículos culturales y de entretenimiento, en establecimientos especializados | P187: Comercio al por menor de artículos culturales y de entretenimiento, en establecimientos especializados | Q187: 0 | R187: 0 | S187: 0 | T187: 0 | U187: 0 | V187: 0 | W187: 0 | X187: 0 | AJ187: 0 | AK187: 0 | AL187: 17001 | AM187: MANIZALES | AN187: 3 | AO187: 20 | AP187: Natural | AQ187: 17 | AR187: CALDAS | AS187: Aprobado con subsidio | AT187: PEQUEÑA | AU187: 1081 | AV187: INDUSTRIAS MANUFACTURERAS | AW187: C | AX187: Elaboración de otros productos alimenticios | AY187: Elaboración de productos alimenticios | AZ187: 2 | BA187: 1 | BB187: 0 | BC187: 3 | BD187: 0 | BE187: 0 | BF187: 3 | BG187: 0 | BT187: 25718 | BU187: 1 | BV187: 68755 | BW187: 1
C188: 76001 | D188: CALI | E188: 0 | F188: 0 | G188: Natural | H188: 76 | I188: VALLE DEL CAUCA | J188: 0 | K188: PEQUEÑA | L188: 150 | M188: AGRICULTURA, GANADERÍA, CAZA, SILVICULTURA Y PESCA | N188: A | O188: Explotación mixta (agrícola y pecuaria) | P188: Explotación mixta (agrícola y pecuaria) | Q188: 0 | R188: 0 | S188: 0 | T188: 0 | U188: 0 | V188: 0 | W188: 0 | X188: 0 | AJ188: 0 | AK188: 0 | AL188: 17001 | AM188: MANIZALES | AN188: 0 | AO188: 0 | AP188: Natural | AQ188: 17 | AR188: CALDAS | AS188: 0 | AT188: MICRO | AU188: 1812 | AV188: INDUSTRIAS MANUFACTURERAS | AW188: C | AX188: Actividades de impresión y actividades de servicios relacionados con la impresión | AY188: Fabricación de papel, cartón y productos de papel y cartón | AZ188: 0 | BA188: 0 | BB188: 0 | BC188: 0 | BD188: 0 | BE188: 0 | BF188: 0 | BG188: 0 | BT188: 63190 | BU188: 0 | BV188: 85162 | BW188: 1
C189: 11001 | D189: BOGOTÁ, D.C. | E189: 0 | F189: 0 | G189: Natural | H189: 11 | I189: BOGOTÁ, D.C. | J189: 0 | K189: MICRO | L189: 2599 | M189: INDUSTRIAS MANUFACTURERAS | N189: C | O189: Fabricación de otros productos elaborados de metal y actividades de servicios relacionadas con el trabajo de metales | P189: Fabricación de productos elaborados de metal, excepto maquinaria y equipo | Q189: 0 | R189: 0 | S189: 0 | T189: 0 | U189: 0 | V189: 0 | W189: 0 | X189: 0 | AJ189: 0 | AK189: 0 | AL189: 17001 | AM189: MANIZALES | AN189: 4 | AO189: 18 | AP189: Natural | AQ189: 17 | AR189: CALDAS | AS189: Aprobado con subsidio | AT189: PEQUEÑA | AU189: 1523 | AV189: INDUSTRIAS MANUFACTURERAS | AW189: C | AX189: Fabricación de calzado | AY189: Curtido y recurtido de cueros; fabricación de calzado; fabricación de artículos de viaje, maletas, bolsos de mano y artículos similares, y fabricación de artículos de talabartería y guarnicionería; adobo y teñido de pieles | AZ189: 4 | BA189: 0 | BB189: 0 | BC189: 2 | BD189: 2 | BE189: 0 | BF189: 4 | BG189: 0 | BT189: 20045 | BU189: 0 | BV189: 5154 | BW189: 1
C190: 76001 | D190: CALI | E190: 5 | F190: 0 | G190: Natural | H190: 76 | I190: VALLE DEL CAUCA | J190: Aprobado con subsidio | K190: MICRO | L190: 5611 | M190: ALOJAMIENTO Y SERVICIOS DE COMIDA | N190: I | O190: Actividades de restaurantes, cafeterías y servicio móvil de comidas | P190: Actividades de restaurantes, cafeterías y servicio móvil de comidas | Q190: 2 | R190: 3 | S190: 0 | T190: 2 | U190: 1 | V190: 2 | W190: 5 | X190: 0 | AJ190: 0 | AK190: 0 | AL190: 52001 | AM190: PASTO | AN190: 10 | AO190: 2 | AP190: Natural | AQ190: 52 | AR190: NARIÑO | AS190: Aprobado con subsidio | AT190: MICRO | AU190: 2229 | AV190: INDUSTRIAS MANUFACTURERAS | AW190: C | AX190: Fabricación de productos de plástico | AY190: Fabricación de productos de caucho y de plástico | AZ190: 6 | BA190: 4 | BB190: 0 | BC190: 5 | BD190: 3 | BE190: 2 | BF190: 10 | BG190: 0 | BT190: 5670 | BU190: 4 | BV190: 50318 | BW190: 1
C191: 5001 | D191: MEDELLÍN | E191: 0 | F191: 0 | G191: Natural | H191: 5 | I191: ANTIOQUIA | J191: 0 | K191: PEQUEÑA | L191: 1410 | M191: INDUSTRIAS MANUFACTURERAS | N191: C | O191: Confección de prendas de vestir, excepto prendas de piel | P191: Confección de prendas de vestir | Q191: 0 | R191: 0 | S191: 0 | T191: 0 | U191: 0 | V191: 0 | W191: 0 | X191: 0 | AJ191: 0 | AK191: 0 | AL191: 76001 | AM191: CALI | AN191: 0 | AO191: 0 | AP191: Natural | AQ191: 76 | AR191: VALLE DEL CAUCA | AS191: 0 | AT191: PEQUEÑA | AU191: 1690 | AV191: INDUSTRIAS MANUFACTURERAS | AW191: C | AX191: Fabricación de otros productos de madera; fabricación de artículos de corcho, cestería y espartería | AY191: Transformación de la madera y fabricación de productos de madera y de corcho, excepto muebles; fabricación de artículos de cestería y espartería | AZ191: 0 | BA191: 0 | BB191: 0 | BC191: 0 | BD191: 0 | BE191: 0 | BF191: 0 | BG191: 0 | BT191: 81736 | BU191: 0 | BV191: 15469 | BW191: 1
C192: 76122 | D192: CAICEDONIA | E192: 1 | F192: 1 | G192: Natural | H192: 76 | I192: VALLE DEL CAUCA | J192: Aprobado con subsidio | K192: MICRO | L192: 6920 | M192: ACTIVIDADES PROFESIONALES, CIENTÍFICAS Y TÉCNICAS | N192: M | O192: Actividades de contabilidad, teneduría de libros, auditoria financiera y asesoría tributaria | P192: Actividades de contabilidad, teneduría de libros, auditoria financiera y asesoría tributaria | Q192: 1 | R192: 0 | S192: 0 | T192: 1 | U192: 0 | V192: 0 | W192: 1 | X192: 0 | AJ192: 0 | AK192: 0 | AL192: 76001 | AM192: CALI | AN192: 3 | AO192: 4 | AP192: Natural | AQ192: 76 | AR192: VALLE DEL CAUCA | AS192: Aprobado con subsidio | AT192: PEQUEÑA | AU192: 1089 | AV192: INDUSTRIAS MANUFACTURERAS | AW192: C | AX192: Elaboración de otros productos alimenticios | AY192: Elaboración de productos alimenticios | AZ192: 1 | BA192: 2 | BB192: 0 | BC192: 2 | BD192: 1 | BE192: 0 | BF192: 2 | BG192: 1 | BT192: 15491 | BU192: 1 | BV192: 15646 | BW192: 1
C193: 76248 | D193: EL CERRITO | E193: 0 | F193: 0 | G193: Natural | H193: 76 | I193: VALLE DEL CAUCA | J193: 0 | K193: MICRO | L193: 3110 | M193: INDUSTRIAS MANUFACTURERAS | N193: C | O193: Fabricación de muebles | P193: Fabricación de muebles, colchones y somieres | Q193: 0 | R193: 0 | S193: 0 | T193: 0 | U193: 0 | V193: 0 | W193: 0 | X193: 0 | AJ193: 0 | AK193: 0 | AL193: 52001 | AM193: PASTO | AN193: 4 | AO193: 0 | AP193: Natural | AQ193: 52 | AR193: NARIÑO | AS193: Aprobado con subsidio | AT193: MICRO | AU193: 1410 | AV193: INDUSTRIAS MANUFACTURERAS | AW193: C | AX193: Confección de prendas de vestir, excepto prendas de piel | AY193: Confección de prendas de vestir | AZ193: 3 | BA193: 1 | BB193: 0 | BC193: 4 | BD193: 0 | BE193: 0 | BF193: 4 | BG193: 0 | BT193: 20250 | BU193: 1 | BV193: 41396 | BW193: 1
C194: 50001 | D194: VILLAVICENCIO | E194: 0 | F194: 0 | G194: Natural | H194: 50 | I194: META | J194: 0 | K194: MICRO | L194: 4719 | M194: COMERCIO AL POR MAYOR Y AL POR MENOR; REPARACIÓN DE VEHÍCULOS AUTOMOTORES Y MOTOCICLETAS | N194: G | O194: Comercio al por menor en establecimientos no especializados | P194: Comercio al por menor en establecimientos no especializados | Q194: 0 | R194: 0 | S194: 0 | T194: 0 | U194: 0 | V194: 0 | W194: 0 | X194: 0 | AJ194: 0 | AK194: 0 | AL194: 76001 | AM194: CALI | AN194: 3 | AO194: 2 | AP194: Natural | AQ194: 76 | AR194: VALLE DEL CAUCA | AS194: Aprobado con subsidio | AT194: PEQUEÑA | AU194: 1089 | AV194: INDUSTRIAS MANUFACTURERAS | AW194: C | AX194: Elaboración de otros productos alimenticios | AY194: Elaboración de productos alimenticios | AZ194: 2 | BA194: 1 | BB194: 0 | BC194: 3 | BD194: 0 | BE194: 0 | BF194: 3 | BG194: 0 | BT194: 66687 | BU194: =COUNTIFS($AS$2:$AS$399999,"Aprobado con subsidio",$AL$2:$AL$399999,BT194) -> 0 | BV194: 81300 | BW194: 1
C195: 76892 | D195: YUMBO | E195: 0 | F195: 0 | G195: Natural | H195: 76 | I195: VALLE DEL CAUCA | J195: 0 | K195: MICRO | L195: 1690 | M195: INDUSTRIAS MANUFACTURERAS | N195: C | O195: Fabricación de otros productos de madera; fabricación de artículos de corcho, cestería y espartería | P195: Transformación de la madera y fabricación de productos de madera y de corcho, excepto muebles; fabricación de artículos de cestería y espartería | Q195: 0 | R195: 0 | S195: 0 | T195: 0 | U195: 0 | V195: 0 | W195: 0 | X195: 0 | AJ195: 0 | AK195: 0 | AL195: 76001 | AM195: CALI | AN195: 0 | AO195: 0 | AP195: Natural | AQ195: 76 | AR195: VALLE DEL CAUCA | AS195: 0 | AT195: PEQUEÑA | AU195: 1089 | AV195: INDUSTRIAS MANUFACTURERAS | AW195: C | AX195: Elaboración de otros productos alimenticios | AY195: Elaboración de productos alimenticios | AZ195: 0 | BA195: 0 | BB195: 0 | BC195: 0 | BD195: 0 | BE195: 0 | BF195: 0 | BG195: 0 | BT195: 44001 | BU195: 0 | BV195: 50287 | BW195: 1
C196: 76400 | D196: LA UNIÓN | E196: 10 | F196: 12 | G196: Natural | H196: 76 | I196: VALLE DEL CAUCA | J196: Aprobado con subsidio | K196: PEQUEÑA | L196: 130 | M196: AGRICULTURA, GANADERÍA, CAZA, SILVICULTURA Y PESCA | N196: A | O196: Propagación de plantas (actividades de los viveros, excepto viveros forestales) | P196: Propagación de plantas (actividades de los viveros, excepto viveros forestales) | Q196: 1 | R196: 9 | S196: 0 | T196: 9 | U196: 0 | V196: 1 | W196: 10 | X196: 0 | AJ196: 0 | AK196: 0 | AL196: 76001 | AM196: CALI | AN196: 0 | AO196: 0 | AP196: Natural | AQ196: 76 | AR196: VALLE DEL CAUCA | AS196: 0 | AT196: MICRO | AU196: 1521 | AV196: INDUSTRIAS MANUFACTURERAS | AW196: C | AX196: Fabricación de calzado | AY196: Curtido y recurtido de cueros; fabricación de calzado; fabricación de artículos de viaje, maletas, bolsos de mano y artículos similares, y fabricación de artículos de talabartería y guarnicionería; adobo y teñido de pieles | AZ196: 0 | BA196: 0 | BB196: 0 | BC196: 0 | BD196: 0 | BE196: 0 | BF196: 0 | BG196: 0 | BT196: 68655 | BU196: 3 | BV196: 5190 | BW196: 1
C197: 76001 | D197: CALI | E197: 1 | F197: 0 | G197: Natural | H197: 76 | I197: VALLE DEL CAUCA | J197: Aprobado con subsidio | K197: MICRO | L197: 4741 | M197: COMERCIO AL POR MAYOR Y AL POR MENOR; REPARACIÓN DE VEHÍCULOS AUTOMOTORES Y MOTOCICLETAS | N197: G | O197: Comercio al por menor de equipos de informática y de comunicaciones, en establecimientos especializados | P197: Comercio al por menor de equipos de informática y de comunicaciones, en establecimientos especializados | Q197: 0 | R197: 1 | S197: 0 | T197: 0 | U197: 0 | V197: 1 | W197: 1 | X197: 0 | AJ197: 0 | AK197: 0 | AL197: 76001 | AM197: CALI | AN197: 2 | AO197: 5 | AP197: Natural | AQ197: 76 | AR197: VALLE DEL CAUCA | AS197: Aprobado con subsidio | AT197: PEQUEÑA | AU197: 2511 | AV197: INDUSTRIAS MANUFACTURERAS | AW197: C | AX197: Fabricación de productos metálicos para uso estructural, tanques, depósitos y generadores de vapor. | AY197: Fabricación de productos elaborados de metal, excepto maquinaria y equipo | AZ197: 0 | BA197: 1 | BB197: 1 | BC197: 2 | BD197: 0 | BE197: 0 | BF197: 1 | BG197: 1 | BT197: 76736 | BU197: 0 | BV197: 63272 | BW197: 1
C198: 76001 | D198: CALI | E198: 2 | F198: 1 | G198: Natural | H198: 76 | I198: VALLE DEL CAUCA | J198: Aprobado con subsidio | K198: MICRO | L198: 1081 | M198: INDUSTRIAS MANUFACTURERAS | N198: C | O198: Elaboración de otros productos alimenticios | P198: Elaboración de productos alimenticios | Q198: 1 | R198: 1 | S198: 0 | T198: 0 | U198: 1 | V198: 1 | W198: 2 | X198: 0 | AJ198: 0 | AK198: 0 | AL198: 5686 | AM198: SANTA ROSA DE OSOS | AN198: 0 | AO198: 0 | AP198: Natural | AQ198: 5 | AR198: ANTIOQUIA | AS198: 0 | AT198: PEQUEÑA | AU198: 1410 | AV198: INDUSTRIAS MANUFACTURERAS | AW198: C | AX198: Confección de prendas de vestir, excepto prendas de piel | AY198: Confección de prendas de vestir | AZ198: 0 | BA198: 0 | BB198: 0 | BC198: 0 | BD198: 0 | BE198: 0 | BF198: 0 | BG198: 0 | BT198: 54810 | BU198: 0 | BV198: 15835 | BW198: 1
C199: 76122 | D199: CAICEDONIA | E199: 1 | F199: 19 | G199: Natural | H199: 76 | I199: VALLE DEL CAUCA | J199: Aprobado con subsidio | K199: MEDIANA | L199: 4669 | M199: COMERCIO AL POR MAYOR Y AL POR MENOR; REPARACIÓN DE VEHÍCULOS AUTOMOTORES Y MOTOCICLETAS | N199: G | O199: Comercio al por mayor especializado de otros productos | P199: Comercio al por mayor especializado de otros productos | Q199: 0 | R199: 1 | S199: 0 | T199: 1 | U199: 0 | V199: 0 | W199: 1 | X199: 0 | AJ199: 0 | AK199: 0 | AL199: 5001 | AM199: MEDELLÍN | AN199: 6 | AO199: 15 | AP199: Natural | AQ199: 5 | AR199: ANTIOQUIA | AS199: Aprobado con subsidio | AT199: PEQUEÑA | AU199: 1051 | AV199: INDUSTRIAS MANUFACTURERAS | AW199: C | AX199: Elaboración de productos de molinería, almidones y productos derivados del almidón | AY199: Elaboración de productos alimenticios | AZ199: 2 | BA199: 4 | BB199: 0 | BC199: 6 | BD199: 0 | BE199: 0 | BF199: 6 | BG199: 0 | BT199: 25736 | BU199: 1 | BV199: 5656 | BW199: 1
C200: 76001 | D200: CALI | E200: 1 | F200: 9 | G200: Natural | H200: 76 | I200: VALLE DEL CAUCA | J200: Aprobado con subsidio | K200: PEQUEÑA | L200: 1410 | M200: INDUSTRIAS MANUFACTURERAS | N200: C | O200: Confección de prendas de vestir, excepto prendas de piel | P200: Confección de prendas de vestir | Q200: 1 | R200: 0 | S200: 0 | T200: 1 | U200: 0 | V200: 0 | W200: 1 | X200: 0 | AJ200: 0 | AK200: 0 | AL200: 5001 | AM200: MEDELLÍN | AN200: 0 | AO200: 0 | AP200: Natural | AQ200: 5 | AR200: ANTIOQUIA | AS200: 0 | AT200: PEQUEÑA | AU200: 3110 | AV200: INDUSTRIAS MANUFACTURERAS | AW200: C | AX200: Fabricación de muebles | AY200: Fabricación de muebles, colchones y somieres | AZ200: 0 | BA200: 0 | BB200: 0 | BC200: 0 | BD200: 0 | BE200: 0 | BF200: 0 | BG200: 0 | BT200: 19142 | BU200: 2 | BV200: 76126 | BW200: 1
... 925 more rows

Sheet Hoja4 (hidden)
A1: Descripción Sección Rev. 4 | B1: Sección Rev. 4 | C1: Nombre | D1: Seccion | E1: Total | G1: Nombre | H1: Seccion | I1: Total empleadores | J1: Empleadores % | K1: Total empleados | L1: Empleados % | M1: Monto | N1: Hombres | O1: Mujeres | P1: no disponible | Q1: Actividad | R1: Indice | T1: cod_dpto | U1: Departamento | V1: % empleadores general | W1: ="% empleadores sección "&Visor!$N$4 -> % empleadores sección C
A2: AGRICULTURA, GANADERÍA, CAZA, SILVICULTURA Y PESCA | B2: A | C2: Agricultura, ganadería, caza, silvicultura y pesca | D2: =B2 -> A | E2: =COUNTIFS(insumos2!$N$2:$N$399999,Hoja4!D2,insumos2!$J$2:$J$399999,"Aprobado con subsidio") -> 635 | G2: =MID(VLOOKUP(H2,$B$2:$C$23,2,FALSE),1,36) -> Comercio al por mayor y al por menor | H2: =_xlfn._xlws.SORT($D$2:$E$23,2,-1) -> G | I2: 5341 | J2: =I2/$I$24 -> 0.2278583618 | K2: =SUMIFS(insumos2!$E$2:$E$399999,insumos2!$J$2:$J$399999,"Aprobado con subsidio",insumos2!$N$2:$N$399999,Hoja4!H2) -> 55707 | L2: =K2/$K$24 -> 0.09853594341 | M2: =SUMIFS(insumos1!$K$2:$K$372158,insumos1!$H$2:$H$372158,Hoja4!H2) -> 35638302593 | N2: =SUMIFS(insumos2!$R$2:$R$399999,insumos2!$J$2:$J$399999,"Aprobado con subsidio",insumos2!$N$2:$N$399999,Hoja4!H2) -> 23781 | O2: =SUMIFS(insumos2!$Q$2:$Q$399999,insumos2!$J$2:$J$399999,"Aprobado con subsidio",insumos2!$N$2:$N$399999,Hoja4!H2) -> 31847 | P2: =SUMIFS(insumos2!$S$2:$S$399999,insumos2!$J$2:$J$399999,"Aprobado con subsidio",insumos2!$N$2:$N$399999,Hoja4!H2) -> 79 | Q2: =G2 -> Comercio al por mayor y al por menor | R2: =O2/N2*100 -> 133.9178336 | T2: 11 | U2: BOGOTÁ, D.C. | V2: =(VLOOKUP(T2,_xlfn.ANCHORARRAY(insumos2!$AB$2),2,0)/SUM(insumos2!$AC$2:$AC$34)) -> 0.3322952218 | W2: =VLOOKUP(T2,insumos2!$BJ$2:$BK$34,2,FALSE)/insumos2!$BQ$30 -> 0.2944974733 | Z2: =_xlfn.UNIQUE(insumos1!F2:F5000) -> ALOJAMIENTO Y SERVICIOS DE COMIDA | AA2: =_xlfn.UNIQUE(insumos1!H2:H5000) -> I | AD2: =_xlfn._xlws.SORT(Z2:AA22,2,1) -> AGRICULTURA, GANADERÍA, CAZA, SILVICULTURA Y PESCA | AE2: A | AF2: =IFERROR(VLOOKUP(AE2,$B$2:$C$23,2,0),"") -> Agricultura, ganadería, caza, silvicultura y pesca
A3: EXPLOTACIÓN DE MINAS Y CANTERAS | B3: B | C3: Explotación de minas y canteras | D3: =B3 -> B | E3: =COUNTIFS(insumos2!$N$2:$N$399999,Hoja4!D3,insumos2!$J$2:$J$399999,"Aprobado con subsidio") -> 101 | G3: =MID(VLOOKUP(H3,$B$2:$C$23,2,FALSE),1,30) -> Industrias manufactureras | H3: C | I3: 3562 | J3: 0.1519624573 | K3: =SUMIFS(insumos2!$E$2:$E$399999,insumos2!$J$2:$J$399999,"Aprobado con subsidio",insumos2!$N$2:$N$399999,Hoja4!H3) -> 56041 | L3: =K3/$K$24 -> 0.09912673102 | M3: =SUMIFS(insumos1!$K$2:$K$372158,insumos1!$H$2:$H$372158,Hoja4!H3) -> 35810514887 | N3: =SUMIFS(insumos2!$R$2:$R$399999,insumos2!$J$2:$J$399999,"Aprobado con subsidio",insumos2!$N$2:$N$399999,Hoja4!H3) -> 26548 | O3: =SUMIFS(insumos2!$Q$2:$Q$399999,insumos2!$J$2:$J$399999,"Aprobado con subsidio",insumos2!$N$2:$N$399999,Hoja4!H3) -> 29399 | P3: =SUMIFS(insumos2!$S$2:$S$399999,insumos2!$J$2:$J$399999,"Aprobado con subsidio",insumos2!$N$2:$N$399999,Hoja4!H3) -> 94 | Q3: =G3 -> Industrias manufactureras | R3: 110.7390387 | T3: 5 | U3: ANTIOQUIA | V3: =(VLOOKUP(T3,_xlfn.ANCHORARRAY(insumos2!$AB$2),2,0)/SUM(insumos2!$AC$2:$AC$34)) -> 0.2101109215 | W3: =VLOOKUP(T3,insumos2!$BJ$2:$BK$34,2,FALSE)/insumos2!$BQ$30 -> 0.2818641213 | Z3: AGRICULTURA, GANADERÍA, CAZA, SILVICULTURA Y PESCA | AA3: A | AD3: EXPLOTACIÓN DE MINAS Y CANTERAS | AE3: B | AF3: =IFERROR(VLOOKUP(AE3,$B$2:$C$23,2,0),"") -> Explotación de minas y canteras
A4: INDUSTRIAS MANUFACTURERAS | B4: C | C4: Industrias manufactureras | D4: C | E4: =COUNTIFS(insumos2!$N$2:$N$399999,Hoja4!D4,insumos2!$J$2:$J$399999,"Aprobado con subsidio") -> 3562 | G4: =MID(VLOOKUP(H4,$B$2:$C$23,2,FALSE),1,85) -> Actividades profesionales, científicas y técnicas | H4: M | I4: 2840 | J4: 0.1211604096 | K4: =SUMIFS(insumos2!$E$2:$E$399999,insumos2!$J$2:$J$399999,"Aprobado con subsidio",insumos2!$N$2:$N$399999,Hoja4!H4) -> 25305 | L4: 0.04476012078 | M4: =SUMIFS(insumos1!$K$2:$K$372158,insumos1!$H$2:$H$372158,Hoja4!H4) -> 15578251527 | N4: =SUMIFS(insumos2!$R$2:$R$399999,insumos2!$J$2:$J$399999,"Aprobado con subsidio",insumos2!$N$2:$N$399999,Hoja4!H4) -> 13071 | O4: =SUMIFS(insumos2!$Q$2:$Q$399999,insumos2!$J$2:$J$399999,"Aprobado con subsidio",insumos2!$N$2:$N$399999,Hoja4!H4) -> 12215 | P4: =SUMIFS(insumos2!$S$2:$S$399999,insumos2!$J$2:$J$399999,"Aprobado con subsidio",insumos2!$N$2:$N$399999,Hoja4!H4) -> 19 | Q4: Actividades profesionales, científicas y técnicas | R4: 93.4511514 | T4: 76 | U4: VALLE DEL CAUCA | V4: =(VLOOKUP(T4,_xlfn.ANCHORARRAY(insumos2!$AB$2),2,0)/SUM(insumos2!$AC$2:$AC$34)) -> 0.09031569966 | W4: =VLOOKUP(T4,insumos2!$BJ$2:$BK$34,2,FALSE)/insumos2!$BQ$30 -> 0.1005053341 | Z4: COMERCIO AL POR MAYOR Y AL POR MENOR; REPARACIÓN DE VEHÍCULOS AUTOMOTORES Y MOTOCICLETAS | AA4: G | AD4: INDUSTRIAS MANUFACTURERAS | AE4: C | AF4: Industrias manufactureras
A5: SUMINISTRO DE ELECTRICIDAD, GAS, VAPOR Y AIRE ACONDICIONADO | B5: D | C5: Suministro de electricidad, gas, vapor y aire acondicionado | D5: D | E5: =COUNTIFS(insumos2!$N$2:$N$399999,Hoja4!D5,insumos2!$J$2:$J$399999,"Aprobado con subsidio") -> 36 | G5: =MID(VLOOKUP(H5,$B$2:$C$23,2,FALSE),1,30) -> Construcción | H5: F | I5: 2210 | J5: 0.09428327645 | K5: =SUMIFS(insumos2!$E$2:$E$399999,insumos2!$J$2:$J$399999,"Aprobado con subsidio",insumos2!$N$2:$N$399999,Hoja4!H5) -> 54075 | L5: 0.09564922074 | M5: =SUMIFS(insumos1!$K$2:$K$372158,insumos1!$H$2:$H$372158,Hoja4!H5) -> 26019328793 | N5: =SUMIFS(insumos2!$R$2:$R$399999,insumos2!$J$2:$J$399999,"Aprobado con subsidio",insumos2!$N$2:$N$399999,Hoja4!H5) -> 44551 | O5: =SUMIFS(insumos2!$Q$2:$Q$399999,insumos2!$J$2:$J$399999,"Aprobado con subsidio",insumos2!$N$2:$N$399999,Hoja4!H5) -> 9477 | P5: =SUMIFS(insumos2!$S$2:$S$399999,insumos2!$J$2:$J$399999,"Aprobado con subsidio",insumos2!$N$2:$N$399999,Hoja4!H5) -> 47 | Q5: Construcción | R5: 21.27224978 | T5: 8 | U5: ATLÁNTICO | V5: =(VLOOKUP(T5,_xlfn.ANCHORARRAY(insumos2!$AB$2),2,0)/SUM(insumos2!$AC$2:$AC$34)) -> 0.03843856655 | W5: =VLOOKUP(T5,insumos2!$BJ$2:$BK$34,2,FALSE)/insumos2!$BQ$30 -> 0.03425042111 | Z5: TRANSPORTE Y ALMACENAMIENTO | AA5: H | AD5: SUMINISTRO DE ELECTRICIDAD, GAS, VAPOR Y AIRE ACONDICIONADO | AE5: D | AF5: Suministro de electricidad, gas, vapor y aire acondicionado
A6: DISTRIBUCIÓN DE AGUA; EVACUACIÓN Y TRATAMIENTO DE AGUAS RESIDUALES, GESTIÓN DE DESECHOS Y ACTIVIDADES DE SANEAMIENTO AMBIENTAL | B6: E | C6: Distribución de agua; evacuación y tratamiento de aguas residuales, gestión de desechos y actividades de saneamiento ambiental | D6: E | E6: =COUNTIFS(insumos2!$N$2:$N$399999,Hoja4!D6,insumos2!$J$2:$J$399999,"Aprobado con subsidio") -> 93 | G6: =MID(VLOOKUP(H6,$B$2:$C$23,2,FALSE),1,35) -> Actividades de servicios administra | H6: N | I6: 1736 | J6: 0.07406143345 | K6: =SUMIFS(insumos2!$E$2:$E$399999,insumos2!$J$2:$J$399999,"Aprobado con subsidio",insumos2!$N$2:$N$399999,Hoja4!H6) -> 213673 | L6: 0.3779501793 | M6: =SUMIFS(insumos1!$K$2:$K$372158,insumos1!$H$2:$H$372158,Hoja4!H6) -> 141352019328 | N6: =SUMIFS(insumos2!$R$2:$R$399999,insumos2!$J$2:$J$399999,"Aprobado con subsidio",insumos2!$N$2:$N$399999,Hoja4!H6) -> 76052 | O6: =SUMIFS(insumos2!$Q$2:$Q$399999,insumos2!$J$2:$J$399999,"Aprobado con subsidio",insumos2!$N$2:$N$399999,Hoja4!H6) -> 137340 | P6: =SUMIFS(insumos2!$S$2:$S$399999,insumos2!$J$2:$J$399999,"Aprobado con subsidio",insumos2!$N$2:$N$399999,Hoja4!H6) -> 281 | Q6: Actividades de servicios administra | R6: 180.5869668 | T6: 25 | U6: CUNDINAMARCA | V6: =(VLOOKUP(T6,_xlfn.ANCHORARRAY(insumos2!$AB$2),2,0)/SUM(insumos2!$AC$2:$AC$34)) -> 0.04744027304 | W6: =VLOOKUP(T6,insumos2!$BJ$2:$BK$34,2,FALSE)/insumos2!$BQ$30 -> 0.06428972487 | Z6: OTRAS | AA6: Otras | AD6: DISTRIBUCIÓN DE AGUA; EVACUACIÓN Y TRATAMIENTO DE AGUAS RESIDUALES, GESTIÓN DE DESECHOS Y ACTIVIDADES DE SANEAMIENTO AMBIENTAL | AE6: E | AF6: Distribución de agua; evacuación y tratamiento de aguas residuales, gestión de desechos y actividades de saneamiento ambiental
A7: CONSTRUCCIÓN | B7: F | C7: Construcción | D7: F | E7: =COUNTIFS(insumos2!$N$2:$N$399999,Hoja4!D7,insumos2!$J$2:$J$399999,"Aprobado con subsidio") -> 2210 | G7: =MID(VLOOKUP(H7,$B$2:$C$23,2,FALSE),1,30) -> Alojamiento y servicios de com | H7: I | I7: 1388 | J7: 0.05921501706 | K7: =SUMIFS(insumos2!$E$2:$E$399999,insumos2!$J$2:$J$399999,"Aprobado con subsidio",insumos2!$N$2:$N$399999,Hoja4!H7) -> 28441 | L7: 0.05030715649 | M7: =SUMIFS(insumos1!$K$2:$K$372158,insumos1!$H$2:$H$372158,Hoja4!H7) -> 18653872590 | N7: =SUMIFS(insumos2!$R$2:$R$399999,insumos2!$J$2:$J$399999,"Aprobado con subsidio",insumos2!$N$2:$N$399999,Hoja4!H7) -> 10335 | O7: =SUMIFS(insumos2!$Q$2:$Q$399999,insumos2!$J$2:$J$399999,"Aprobado con subsidio",insumos2!$N$2:$N$399999,Hoja4!H7) -> 18024 | P7: =SUMIFS(insumos2!$S$2:$S$399999,insumos2!$J$2:$J$399999,"Aprobado con subsidio",insumos2!$N$2:$N$399999,Hoja4!H7) -> 82 | Q7: Alojamiento y servicios de com | R7: 174.3976778 | T7: 68 | U7: SANTANDER | V7: =(VLOOKUP(T7,_xlfn.ANCHORARRAY(insumos2!$AB$2),2,0)/SUM(insumos2!$AC$2:$AC$34)) -> 0.04940273038 | W7: =VLOOKUP(T7,insumos2!$BJ$2:$BK$34,2,FALSE)/insumos2!$BQ$30 -> 0.05811341943 | Z7: INDUSTRIAS MANUFACTURERAS | AA7: C | AD7: CONSTRUCCIÓN | AE7: F | AF7: Construcción
A8: COMERCIO AL POR MAYOR Y AL POR MENOR; REPARACIÓN DE VEHÍCULOS AUTOMOTORES Y MOTOCICLETAS | B8: G | C8: Comercio al por mayor y al por menor; reparación de vehículos automotores y motocicletas | D8: G | E8: =COUNTIFS(insumos2!$N$2:$N$399999,Hoja4!D8,insumos2!$J$2:$J$399999,"Aprobado con subsidio") -> 5341 | G8: =MID(VLOOKUP(H8,$B$2:$C$23,2,FALSE),1,40) -> información y comunicaciones | H8: J | I8: 1205 | J8: 0.05140784983 | K8: =SUMIFS(insumos2!$E$2:$E$399999,insumos2!$J$2:$J$399999,"Aprobado con subsidio",insumos2!$N$2:$N$399999,Hoja4!H8) -> 29901 | L8: 0.05288964123 | M8: =SUMIFS(insumos1!$K$2:$K$372158,insumos1!$H$2:$H$372158,Hoja4!H8) -> 23589637166 | N8: =SUMIFS(insumos2!$R$2:$R$399999,insumos2!$J$2:$J$399999,"Aprobado con subsidio",insumos2!$N$2:$N$399999,Hoja4!H8) -> 16894 | O8: =SUMIFS(insumos2!$Q$2:$Q$399999,insumos2!$J$2:$J$399999,"Aprobado con subsidio",insumos2!$N$2:$N$399999,Hoja4!H8) -> 12987 | P8: =SUMIFS(insumos2!$S$2:$S$399999,insumos2!$J$2:$J$399999,"Aprobado con subsidio",insumos2!$N$2:$N$399999,Hoja4!H8) -> 20 | Q8: información y comunicaciones | R8: 76.87344619 | T8: 13 | U8: BOLÍVAR | V8: =(VLOOKUP(T8,_xlfn.ANCHORARRAY(insumos2!$AB$2),2,0)/SUM(insumos2!$AC$2:$AC$34)) -> 0.01953924915 | W8: =VLOOKUP(T8,insumos2!$BJ$2:$BK$34,2,FALSE)/insumos2!$BQ$30 -> 0.009825940483 | Z8: EDUCACIÓN | AA8: P | AD8: COMERCIO AL POR MAYOR Y AL POR MENOR; REPARACIÓN DE VEHÍCULOS AUTOMOTORES Y MOTOCICLETAS | AE8: G | AF8: Comercio al por mayor y al por menor; reparación de vehículos automotores y motocicletas
A9: TRANSPORTE Y ALMACENAMIENTO | B9: H | C9: Transporte y almacenamiento | D9: H | E9: =COUNTIFS(insumos2!$N$2:$N$399999,Hoja4!D9,insumos2!$J$2:$J$399999,"Aprobado con subsidio") -> 1016 | G9: =MID(VLOOKUP(H9,$B$2:$C$23,2,FALSE),1,42) -> Actividades de atención de la salud humana | H9: Q | I9: 1041 | J9: 0.0444112628 | K9: =SUMIFS(insumos2!$E$2:$E$399999,insumos2!$J$2:$J$399999,"Aprobado con subsidio",insumos2!$N$2:$N$399999,Hoja4!H9) -> 26896 | L9: 0.04757432161 | M9: =SUMIFS(insumos1!$K$2:$K$372158,insumos1!$H$2:$H$372158,Hoja4!H9) -> 18730806571 | N9: =SUMIFS(insumos2!$R$2:$R$399999,insumos2!$J$2:$J$399999,"Aprobado con subsidio",insumos2!$N$2:$N$399999,Hoja4!H9) -> 4491 | O9: =SUMIFS(insumos2!$Q$2:$Q$399999,insumos2!$J$2:$J$399999,"Aprobado con subsidio",insumos2!$N$2:$N$399999,Hoja4!H9) -> 22397 | P9: =SUMIFS(insumos2!$S$2:$S$399999,insumos2!$J$2:$J$399999,"Aprobado con subsidio",insumos2!$N$2:$N$399999,Hoja4!H9) -> 8 | Q9: Actividades de atención de la salud humana | R9: 498.7085282 | T9: 66 | U9: RISARALDA | V9: =(VLOOKUP(T9,_xlfn.ANCHORARRAY(insumos2!$AB$2),2,0)/SUM(insumos2!$AC$2:$AC$34)) -> 0.02372013652 | W9: =VLOOKUP(T9,insumos2!$BJ$2:$BK$34,2,FALSE)/insumos2!$BQ$30 -> 0.02835485682 | Z9: CONSTRUCCIÓN | AA9: F | AD9: TRANSPORTE Y ALMACENAMIENTO | AE9: H | AF9: Transporte y almacenamiento
A10: ALOJAMIENTO Y SERVICIOS DE COMIDA | B10: I | C10: Alojamiento y servicios de comida | D10: I | E10: =COUNTIFS(insumos2!$N$2:$N$399999,Hoja4!D10,insumos2!$J$2:$J$399999,"Aprobado con subsidio") -> 1388 | G10: =MID(VLOOKUP(H10,$B$2:$C$23,2,FALSE),1,30) -> Transporte y almacenamiento | H10: H | I10: 1016 | J10: 0.0433447099 | K10: =SUMIFS(insumos2!$E$2:$E$399999,insumos2!$J$2:$J$399999,"Aprobado con subsidio",insumos2!$N$2:$N$399999,Hoja4!H10) -> 24628 | L10: 0.04356262614 | M10: =SUMIFS(insumos1!$K$2:$K$372158,insumos1!$H$2:$H$372158,Hoja4!H10) -> 14501501243 | N10: =SUMIFS(insumos2!$R$2:$R$399999,insumos2!$J$2:$J$399999,"Aprobado con subsidio",insumos2!$N$2:$N$399999,Hoja4!H10) -> 15941 | O10: =SUMIFS(insumos2!$Q$2:$Q$399999,insumos2!$J$2:$J$399999,"Aprobado con subsidio",insumos2!$N$2:$N$399999,Hoja4!H10) -> 8676 | P10: =SUMIFS(insumos2!$S$2:$S$399999,insumos2!$J$2:$J$399999,"Aprobado con subsidio",insumos2!$N$2:$N$399999,Hoja4!H10) -> 11 | Q10: Transporte y almacenamiento | R10: 54.42569475 | T10: 54 | U10: NORTE DE SANTANDER | V10: =(VLOOKUP(T10,_xlfn.ANCHORARRAY(insumos2!$AB$2),2,0)/SUM(insumos2!$AC$2:$AC$34)) -> 0.02495733788 | W10: =VLOOKUP(T10,insumos2!$BJ$2:$BK$34,2,FALSE)/insumos2!$BQ$30 -> 0.02498596294 | Z10: ACTIVIDADES PROFESIONALES, CIENTÍFICAS Y TÉCNICAS | AA10: M | AD10: ALOJAMIENTO Y SERVICIOS DE COMIDA | AE10: I | AF10: Alojamiento y servicios de comida
